{"text_format":"1","workbook":"xlsx","n_sheets":11,"sheets":["Readme","Inputs","Transient_Data","Parameters","Outputs","Résultats","DALY-Calc","Graph Long-term ELV","Graph Long-term DALY","Graph Short-term ELV","Graph hidden"],"not_rendered":{"charts":6,"images":0,"macros":1,"external_links":0,"defined_names":1,"comments":0,"pivot_tables":0},"unopened":[{"sheet":"Graph Long-term ELV","index":7,"reason":"not_a_worksheet"},{"sheet":"Graph Long-term DALY","index":8,"reason":"not_a_worksheet"},{"sheet":"Graph Short-term ELV","index":9,"reason":"not_a_worksheet"}],"bounds":{"document_bytes":16777216,"sheet_cells":100000,"rows_first":2000,"rows_last":500,"rows_between":2000,"halvings":0,"cell_chars":16384,"cell_head_chars":4096},"cells_cut":0,"cells_raw":0,"read":"whole","date_system":"1900"}

{"sheet":"Readme","index":0,"n_rows":27,"n_cols":1,"rows_kept":27,"cut":false,"hidden":false,"merged":[]}
["IEA EBC Annex 68 – Indoor Air Quality Design and Control in Low-energy Residential Buildings"]
["SUBTASK 1: Defining the metrics"]
[]
["The present Excel Worksheet aims at calculating the Indoor Air Quality Indices defined in Subtask 1 report."]
[]
["There is two ways to use this worksheet depending on your inputs:"]
[]
["Case 1: you have already calculated the mean concentration for long-term exposure and % of exceeding the short-term concentration"]
["Go to the \"Inputs\" sheet, fill the sheet with your values and press the \"Calculate\" button"]
["Results are displayed in Tables (\"Outputs\") and Graphs (Graph Long-term ELV...)"]
[]
["Case 2: you have not already calculated the mean concentration for long-term exposure and % of exceeding the short-term concentration"]
["Go to the \"Transient_Data\" sheet, fill the sheet with your hourly values. In this sheet, the first day is Monday. You can define a whole year of data (8760h). "]
["Define the schedules of occupation (Week and Weekend days)."]
["Press the \"Calculate\" button."]
["Results are displayed in Tables (\"Outputs\") and Graphs (Graph Long-term ELV...)"]
[]
[]
["Note"]
["To avoid mistake, only highlighted cells can be edited. To remove this protection, use the password: ST1"]
[]
[]
["Contact:"]
["Marc Abadie (mabadie@univ-lr.fr) - University of La Rochelle (France)"]
["Louis Cony (louis.cony-renaud-salis@univ-lr.fr) - University of La Rochelle (France)"]
[]
["How to cite this tool: Cony L., Abadie M. IAQ Indices tool. IEA EBC Annex 68 – Indoor Air Quality Design and Control in Low-energy Residential Buildings - Subtask 1, 1st October 2019."]

{"sheet":"Inputs","index":1,"n_rows":41,"n_cols":5,"rows_kept":41,"cut":false,"hidden":false,"merged":[[0,1,0,4],[20,1,20,4]]}
[null,"Long-term Exposure"]
[null,"Concentration","Unit","Averaging period","Source"]
["Acetaldehyde",0,"µg/m³","1 year","Japan"]
["Acrolein",0,"µg/m³","1 year","USA-California"]
["a-Pinene",0,"µg/m³","1 year","Germany"]
["Benzene",0,"µg/m³","whole life (carcinogenic risk level: 10-6)","France"]
["Carbon dioxide","-","ppm","-","-"]
["Formaldehyde",0,"µg/m³","1 year","USA-California"]
["Naphthalene",0,"µg/m³","1 year","Germany"]
["Nitrogen dioxide",0,"µg/m³","1 year","France, Canada"]
["PM10",1500,"µg/m³","1 year","WHO"]
["PM2.5",48.95384615384615,"µg/m³","1 year","WHO"]
["Radon",0,"Bq/m³","1 year","Austria, Canada, Hong-Kong"]
["Styrene",0,"µg/m³","1 year","Germany"]
["Toluene",0,"µg/m³","1 year","Portugal"]
["Trichloroethylene",0,"µg/m³","whole life (carcinogenic risk level: 10-6)","France"]
["TVOC","-","µg/m³","-"]
["Mold",0,"CFU/m³","1 year","EU"]
[]
[]
[null,"Short-term Exposure"]
[null,"%","Unit","Averaging period","Source"]
["Acetaldehyde","-","µg/m³","-","-"]
["Acrolein",0,"µg/m³","1 h","France"]
["a-Pinene","-","µg/m³","-","-"]
["Benzene","-","µg/m³","-","-"]
["Carbon dioxide",0.33333333333333331,"ppm","8 h","Portugal"]
["Formaldehyde",0,"µg/m³","1 h","Canada"]
["Naphthalene","-","µg/m³","-","-"]
["Nitrogen dioxide",0,"µg/m³","1 h","USA-California"]
["PM10",1,"µg/m³","24 h","WHO"]
["PM2.5",1,"µg/m³","24 h","WHO"]
["Radon",0,"Bq/m³","8 h","Austria, China, Portugal"]
["Styrene","-","µg/m³","-","-"]
["Toluene","-","µg/m³","-","-"]
["Trichloroethylene","-","µg/m³","-","-"]
["TVOC",0,"µg/m³","8 h","China, Hong-Kong, Portugal"]
["Mold","-","CFU/m³","-","-"]
[]
[]
["Editable Cells"]

{"sheet":"Transient_Data","index":2,"n_rows":8762,"n_cols":26,"rows_kept":4500,"cut":true,"hidden":false,"merged":[],"bounds":{"rows_first":2000,"rows_last":500,"rows_between":2000,"halvings":0}}
["Time","Day","Hour","Acetaldehyde","Acrolein","a-Pinene","Benzene","Carbon dioxide","Formaldehyde","Naphthalene","Nitrogen dioxide","PM10","PM2.5","Radon","Styrene","Toluene","Trichloroethylene","TVOC","Mold",null,null,"Schedule","Week day","Week end"]
[0,"Monday",{"$f":"A2","v":0},null,null,null,null,1500,null,null,null,1500,35.5,null,null,null,null,309,null,null,null,"Hour","Occupation","Occupation",null,"Editable Cells"]
[{"$f":"A2+1","v":1},{"$f":"B2","v":"Monday"},{"$f":"A3","v":1},null,null,null,null,1500,null,null,null,1500,33.200000000000003,null,null,null,null,311,null,null,null,{"$f":"A2","v":0},1,0]
[{"$f":"A3+1","v":2},{"$f":"B3","v":"Monday"},2,null,null,null,null,1500,null,null,null,1500,39.5,null,null,null,null,310,null,null,null,{"$f":"A3","v":1},1,0]
[3,"Monday",3,null,null,null,null,1500,null,null,null,1500,36.6,null,null,null,null,309,null,null,null,2,1,0]
[4,"Monday",4,null,null,null,null,1500,null,null,null,1500,78.7,null,null,null,null,308,null,null,null,3,1,0]
[5,"Monday",5,null,null,null,null,1500,null,null,null,1500,141.4,null,null,null,null,306,null,null,null,4,1,0]
[6,"Monday",6,null,null,null,null,1500,null,null,null,1500,43.6,null,null,null,null,306,null,null,null,5,1,0]
[7,"Monday",7,null,null,null,null,1500,null,null,null,1500,49.4,null,null,null,null,305,null,null,null,6,1,0]
[8,"Monday",8,null,null,null,null,10000,null,null,null,10000,54,null,null,null,null,305,null,null,null,7,1,0]
[9,"Monday",9,null,null,null,null,10000,null,null,null,10000,47.1,null,null,null,null,307,null,null,null,8,0,0]
[10,"Monday",10,null,null,null,null,10000,null,null,null,10000,41.9,null,null,null,null,306,null,null,null,9,0,0]
[11,"Monday",11,null,null,null,null,10000,null,null,null,10000,42.6,null,null,null,null,306,null,null,null,10,0,0]
[12,"Monday",12,null,null,null,null,10000,null,null,null,10000,41.7,null,null,null,null,307,null,null,null,11,0,0]
[13,"Monday",13,null,null,null,null,10000,null,null,null,10000,39.1,null,null,null,null,306,null,null,null,12,0,0]
[14,"Monday",14,null,null,null,null,10000,null,null,null,10000,39.9,null,null,null,null,306,null,null,null,13,0,0]
[15,"Monday",15,null,null,null,null,10000,null,null,null,10000,39,null,null,null,null,306,null,null,null,14,0,0]
[16,"Monday",16,null,null,null,null,10000,null,null,null,10000,39.299999999999997,null,null,null,null,307,null,null,null,15,0,0]
[17,"Monday",17,null,null,null,null,10000,null,null,null,10000,37.299999999999997,null,null,null,null,308,null,null,null,16,0,0]
[18,"Monday",18,null,null,null,null,10000,null,null,null,10000,36.5,null,null,null,null,310,null,null,null,17,0,0]
[19,"Monday",19,null,null,null,null,1500,null,null,null,1500,36.299999999999997,null,null,null,null,308,null,null,null,18,0,0]
[20,"Monday",20,null,null,null,null,1500,null,null,null,1500,36.299999999999997,null,null,null,null,304,null,null,null,19,1,0]
[21,"Monday",21,null,null,null,null,1500,null,null,null,1500,36.4,null,null,null,null,305,null,null,null,20,1,0]
[22,"Monday",22,null,null,null,null,1500,null,null,null,1500,34.700000000000003,null,null,null,null,308,null,null,null,21,1,0]
[23,"Monday",23,null,null,null,null,1500,null,null,null,1500,34.799999999999997,null,null,null,null,308,null,null,null,22,1,0]
[24,"Tuesday",{"$f":"C2","v":0},null,null,null,null,null,null,null,null,null,null,null,null,null,null,null,null,null,null,23,1,0]
[25,{"$f":"B26","v":"Tuesday"},{"$f":"C3","v":1}]
[26,{"$f":"B27","v":"Tuesday"},2]
[27,"Tuesday",3]
[28,"Tuesday",4]
[29,"Tuesday",5]
[30,"Tuesday",6]
[31,"Tuesday",7]
[32,"Tuesday",8]
[33,"Tuesday",9]
[34,"Tuesday",10]
[35,"Tuesday",11]
[36,"Tuesday",12]
[37,"Tuesday",13]
[38,"Tuesday",14]
[39,"Tuesday",15]
[40,"Tuesday",16]
[41,"Tuesday",17]
[{"$f":"A43+1","v":42},"Tuesday",18]
[43,"Tuesday",19]
[44,"Tuesday",20]
[45,"Tuesday",21]
[46,"Tuesday",22]
[47,"Tuesday",23]
[48,"Wednesday",0]
[49,"Wednesday",1]
[50,"Wednesday",2]
[51,"Wednesday",3]
[52,"Wednesday",4]
[53,"Wednesday",5]
[54,"Wednesday",6]
[55,"Wednesday",7]
[56,"Wednesday",8]
[57,"Wednesday",9]
[58,"Wednesday",10]
[59,"Wednesday",11]
[60,"Wednesday",12]
[61,"Wednesday",13]
[62,"Wednesday",14]
[63,"Wednesday",15]
[64,"Wednesday",16]
[65,"Wednesday",17]
[66,"Wednesday",18]
[67,"Wednesday",19]
[68,"Wednesday",20]
[69,"Wednesday",21]
[70,"Wednesday",22]
[71,"Wednesday",23]
[72,"Thursday",0]
[73,"Thursday",1]
[74,"Thursday",2]
[75,"Thursday",3]
[76,"Thursday",4]
[77,"Thursday",5]
[78,"Thursday",6]
[79,"Thursday",7]
[80,"Thursday",8]
[81,"Thursday",9]
[82,"Thursday",10]
[83,"Thursday",11]
[84,"Thursday",12]
[85,"Thursday",13]
[86,"Thursday",14]
[87,"Thursday",15]
[88,"Thursday",16]
[89,"Thursday",{"$f":"C67","v":17}]
[90,"Thursday",18]
[91,"Thursday",19]
[92,"Thursday",20]
[93,"Thursday",21]
[94,"Thursday",22]
[95,"Thursday",23]
[96,"Friday",0]
[97,"Friday",1]
[98,"Friday",2]
[99,"Friday",3]
[100,"Friday",4]
[101,"Friday",5]
[102,"Friday",6]
[103,"Friday",7]
[104,"Friday",8]
[105,"Friday",9]
[{"$f":"A107+1","v":106},"Friday",10]
[107,"Friday",11]
[108,"Friday",12]
[109,"Friday",13]
[110,"Friday",14]
[111,"Friday",15]
[112,"Friday",16]
[113,"Friday",17]
[114,"Friday",18]
[115,"Friday",19]
[116,"Friday",20]
[117,"Friday",21]
[118,"Friday",22]
[119,"Friday",23]
[120,"Saturday",0]
[121,"Saturday",1]
[122,"Saturday",2]
[123,"Saturday",3]
[124,"Saturday",4]
[125,"Saturday",5]
[126,"Saturday",6]
[127,"Saturday",7]
[128,"Saturday",8]
[129,"Saturday",9]
[130,"Saturday",10]
[131,"Saturday",11]
[132,"Saturday",12]
[133,"Saturday",13]
[134,"Saturday",14]
[135,"Saturday",15]
[136,"Saturday",16]
[137,"Saturday",17]
[138,"Saturday",18]
[139,"Saturday",19]
[140,"Saturday",20]
[141,"Saturday",21]
[142,"Saturday",22]
[143,"Saturday",23]
[144,"Sunday",0]
[145,"Sunday",1]
[146,"Sunday",2]
[147,"Sunday",3]
[148,"Sunday",4]
[149,"Sunday",5]
[150,"Sunday",6]
[151,"Sunday",7]
[152,"Sunday",8]
[153,"Sunday",{"$f":"C131","v":9}]
[154,"Sunday",10]
[155,"Sunday",11]
[156,"Sunday",12]
[157,"Sunday",13]
[158,"Sunday",14]
[159,"Sunday",15]
[160,"Sunday",16]
[161,"Sunday",17]
[162,"Sunday",18]
[163,"Sunday",19]
[164,"Sunday",20]
[165,"Sunday",21]
[166,"Sunday",22]
[167,"Sunday",23]
[168,{"$f":"B2","v":"Monday"},0]
[169,{"$f":"B3","v":"Monday"},1]
[{"$f":"A171+1","v":170},"Monday",2]
[171,"Monday",3]
[172,"Monday",4]
[173,"Monday",5]
[174,"Monday",6]
[175,"Monday",7]
[176,"Monday",8]
[177,"Monday",9]
[178,"Monday",10]
[179,"Monday",11]
[180,"Monday",12]
[181,"Monday",13]
[182,"Monday",14]
[183,"Monday",15]
[184,"Monday",16]
[185,"Monday",17]
[186,"Monday",18]
[187,"Monday",19]
[188,"Monday",20]
[189,"Monday",21]
[190,"Monday",22,null,null,null,null,null,null,null,null,null,null,null,null,null,null,315]
[191,"Monday",23,null,null,null,null,null,null,null,null,null,null,null,null,null,null,317]
[192,"Tuesday",0,null,null,null,null,null,null,null,null,null,null,null,null,null,null,318]
[193,"Tuesday",1,null,null,null,null,null,null,null,null,null,null,null,null,null,null,316]
[194,"Tuesday",2,null,null,null,null,null,null,null,null,null,null,null,null,null,null,316]
[195,"Tuesday",3,null,null,null,null,null,null,null,null,null,null,null,null,null,null,315]
[196,"Tuesday",4,null,null,null,null,null,null,null,null,null,null,null,null,null,null,317]
[197,"Tuesday",5,null,null,null,null,null,null,null,null,null,null,null,null,null,null,319]
[198,"Tuesday",6,null,null,null,null,null,null,null,null,null,null,null,null,null,null,319]
[199,"Tuesday",7,null,null,null,null,null,null,null,null,null,null,null,null,null,null,319]
[200,"Tuesday",8,null,null,null,null,null,null,null,null,null,null,null,null,null,null,320]
[201,"Tuesday",9,null,null,null,null,null,null,null,null,null,null,null,null,null,null,320]
[202,"Tuesday",10,null,null,null,null,null,null,null,null,null,null,null,null,null,null,316]
[203,"Tuesday",11,null,null,null,null,null,null,null,null,null,null,null,null,null,null,314]
[204,"Tuesday",12,null,null,null,null,null,null,null,null,null,null,null,null,null,null,316]
[205,"Tuesday",13,null,null,null,null,null,null,null,null,null,null,null,null,null,null,317]
[206,"Tuesday",14,null,null,null,null,null,null,null,null,null,null,null,null,null,null,316]
[207,"Tuesday",15,null,null,null,null,null,null,null,null,null,null,null,null,null,null,314]
[208,"Tuesday",16,null,null,null,null,null,null,null,null,null,null,null,null,null,null,313]
[209,"Tuesday",17,null,null,null,null,null,null,null,null,null,null,null,null,null,null,313]
[210,"Tuesday",18,null,null,null,null,null,null,null,null,null,null,null,null,null,null,318]
[211,"Tuesday",19,null,null,null,null,null,null,null,null,null,null,null,null,null,null,318]
[212,"Tuesday",20,null,null,null,null,null,null,null,null,null,null,null,null,null,null,316]
[213,"Tuesday",21,null,null,null,null,null,null,null,null,null,null,null,null,null,null,318]
[214,"Tuesday",22,null,null,null,null,null,null,null,null,null,null,null,null,null,null,317]
[215,"Tuesday",23,null,null,null,null,null,null,null,null,null,null,null,null,null,null,318]
[216,"Wednesday",0,null,null,null,null,null,null,null,null,null,null,null,null,null,null,321]
[217,"Wednesday",{"$f":"C195","v":1},null,null,null,null,null,null,null,null,null,null,null,null,null,null,323]
[218,"Wednesday",2,null,null,null,null,null,null,null,null,null,null,null,null,null,null,321]
[219,"Wednesday",3,null,null,null,null,null,null,null,null,null,null,null,null,null,null,317]
[220,"Wednesday",4,null,null,null,null,null,null,null,null,null,null,null,null,null,null,317]
[221,"Wednesday",5,null,null,null,null,null,null,null,null,null,null,null,null,null,null,315]
[222,"Wednesday",6,null,null,null,null,null,null,null,null,null,null,null,null,null,null,312]
[223,"Wednesday",7,null,null,null,null,null,null,null,null,null,null,null,null,null,null,309]
[224,"Wednesday",8,null,null,null,null,null,null,null,null,null,null,null,null,null,null,313]
[225,"Wednesday",9,null,null,null,null,null,null,null,null,null,null,null,null,null,null,310]
[226,"Wednesday",10,null,null,null,null,null,null,null,null,null,null,null,null,null,null,312]
[227,"Wednesday",11,null,null,null,null,null,null,null,null,null,null,null,null,null,null,316]
[228,"Wednesday",12,null,null,null,null,null,null,null,null,null,null,null,null,null,null,315]
[229,"Wednesday",13,null,null,null,null,null,null,null,null,null,null,null,null,null,null,315]
[230,"Wednesday",14,null,null,null,null,null,null,null,null,null,null,null,null,null,null,317]
[231,"Wednesday",15,null,null,null,null,null,null,null,null,null,null,null,null,null,null,317]
[232,"Wednesday",16,null,null,null,null,null,null,null,null,null,null,null,null,null,null,319]
[233,{"$f":"B67","v":"Wednesday"},17,null,null,null,null,null,null,null,null,null,null,null,null,null,null,314]
[{"$f":"A235+1","v":234},"Wednesday",18,null,null,null,null,null,null,null,null,null,null,null,null,null,null,313]
[235,"Wednesday",19,null,null,null,null,null,null,null,null,null,null,null,null,null,null,314]
[236,"Wednesday",20,null,null,null,null,null,null,null,null,null,null,null,null,null,null,316]
[237,"Wednesday",21,null,null,null,null,null,null,null,null,null,null,null,null,null,null,315]
[238,"Wednesday",22,null,null,null,null,null,null,null,null,null,null,null,null,null,null,312]
[239,"Wednesday",23,null,null,null,null,null,null,null,null,null,null,null,null,null,null,310]
[240,"Thursday",0,null,null,null,null,null,null,null,null,null,null,null,null,null,null,311]
[241,"Thursday",1,null,null,null,null,null,null,null,null,null,null,null,null,null,null,310]
[242,"Thursday",2,null,null,null,null,null,null,null,null,null,null,null,null,null,null,314]
[243,"Thursday",3,null,null,null,null,null,null,null,null,null,null,null,null,null,null,312]
[244,"Thursday",4,null,null,null,null,null,null,null,null,null,null,null,null,null,null,310]
[245,"Thursday",5,null,null,null,null,null,null,null,null,null,null,null,null,null,null,315]
[246,"Thursday",6,null,null,null,null,null,null,null,null,null,null,null,null,null,null,317]
[247,"Thursday",7,null,null,null,null,null,null,null,null,null,null,null,null,null,null,316]
[248,"Thursday",8,null,null,null,null,null,null,null,null,null,null,null,null,null,null,313]
[249,"Thursday",9,null,null,null,null,null,null,null,null,null,null,null,null,null,null,312]
[250,"Thursday",10,null,null,null,null,null,null,null,null,null,null,null,null,null,null,310]
[251,"Thursday",11,null,null,null,null,null,null,null,null,null,null,null,null,null,null,310]
[252,"Thursday",12,null,null,null,null,null,null,null,null,null,null,null,null,null,null,309]
[253,"Thursday",13,null,null,null,null,null,null,null,null,null,null,null,null,null,null,306]
[254,"Thursday",14,null,null,null,null,null,null,null,null,null,null,null,null,null,null,309]
[255,"Thursday",15,null,null,null,null,null,null,null,null,null,null,null,null,null,null,309]
[256,"Thursday",16,null,null,null,null,null,null,null,null,null,null,null,null,null,null,311]
[257,"Thursday",17,null,null,null,null,null,null,null,null,null,null,null,null,null,null,312]
[258,"Thursday",18,null,null,null,null,null,null,null,null,null,null,null,null,null,null,311]
[259,"Thursday",19,null,null,null,null,null,null,null,null,null,null,null,null,null,null,316]
[260,"Thursday",20,null,null,null,null,null,null,null,null,null,null,null,null,null,null,313]
[261,"Thursday",21,null,null,null,null,null,null,null,null,null,null,null,null,null,null,313]
[262,"Thursday",22,null,null,null,null,null,null,null,null,null,null,null,null,null,null,312]
[263,"Thursday",23,null,null,null,null,null,null,null,null,null,null,null,null,null,null,309]
[264,"Friday",0,null,null,null,null,null,null,null,null,null,null,null,null,null,null,309]
[265,"Friday",1,null,null,null,null,null,null,null,null,null,null,null,null,null,null,311]
[266,"Friday",2,null,null,null,null,null,null,null,null,null,null,null,null,null,null,310]
[267,"Friday",3,null,null,null,null,null,null,null,null,null,null,null,null,null,null,312]
[268,"Friday",4,null,null,null,null,null,null,null,null,null,null,null,null,null,null,310]
[269,"Friday",5,null,null,null,null,null,null,null,null,null,null,null,null,null,null,307]
[270,"Friday",6,null,null,null,null,null,null,null,null,null,null,null,null,null,null,307]
[271,"Friday",7,null,null,null,null,null,null,null,null,null,null,null,null,null,null,309]
[272,"Friday",8,null,null,null,null,null,null,null,null,null,null,null,null,null,null,313]
[273,"Friday",9,null,null,null,null,null,null,null,null,null,null,null,null,null,null,313]
[274,"Friday",10,null,null,null,null,null,null,null,null,null,null,null,null,null,null,309]
[275,"Friday",11,null,null,null,null,null,null,null,null,null,null,null,null,null,null,312]
[276,"Friday",12,null,null,null,null,null,null,null,null,null,null,null,null,null,null,314]
[277,"Friday",13,null,null,null,null,null,null,null,null,null,null,null,null,null,null,313]
[278,"Friday",14,null,null,null,null,null,null,null,null,null,null,null,null,null,null,310]
[279,"Friday",15,null,null,null,null,null,null,null,null,null,null,null,null,null,null,309]
[280,"Friday",16,null,null,null,null,null,null,null,null,null,null,null,null,null,null,311]
[281,"Friday",{"$f":"C259","v":17},null,null,null,null,null,null,null,null,null,null,null,null,null,null,309]
[282,"Friday",18,null,null,null,null,null,null,null,null,null,null,null,null,null,null,305]
[283,"Friday",19,null,null,null,null,null,null,null,null,null,null,null,null,null,null,307]
[284,"Friday",20,null,null,null,null,null,null,null,null,null,null,null,null,null,null,308]
[285,"Friday",21,null,null,null,null,null,null,null,null,null,null,null,null,null,null,307]
[286,"Friday",22,null,null,null,null,null,null,null,null,null,null,null,null,null,null,309]
[287,"Friday",23,null,null,null,null,null,null,null,null,null,null,null,null,null,null,309]
[288,"Saturday",0,null,null,null,null,null,null,null,null,null,null,null,null,null,null,311]
[289,"Saturday",1,null,null,null,null,null,null,null,null,null,null,null,null,null,null,312]
[290,"Saturday",2,null,null,null,null,null,null,null,null,null,null,null,null,null,null,312]
[291,"Saturday",3,null,null,null,null,null,null,null,null,null,null,null,null,null,null,313]
[292,"Saturday",4,null,null,null,null,null,null,null,null,null,null,null,null,null,null,310]
[293,"Saturday",5,null,null,null,null,null,null,null,null,null,null,null,null,null,null,306]
[294,"Saturday",6,null,null,null,null,null,null,null,null,null,null,null,null,null,null,307]
[295,"Saturday",7,null,null,null,null,null,null,null,null,null,null,null,null,null,null,308]
[296,"Saturday",8,null,null,null,null,null,null,null,null,null,null,null,null,null,null,310]
[297,{"$f":"B131","v":"Saturday"},9,null,null,null,null,null,null,null,null,null,null,null,null,null,null,310]
[{"$f":"A299+1","v":298},"Saturday",10,null,null,null,null,null,null,null,null,null,null,null,null,null,null,310]
[299,"Saturday",11,null,null,null,null,null,null,null,null,null,null,null,null,null,null,309]
[300,"Saturday",12,null,null,null,null,null,null,null,null,null,null,null,null,null,null,306]
[301,"Saturday",13,null,null,null,null,null,null,null,null,null,null,null,null,null,null,307]
[302,"Saturday",14,null,null,null,null,null,null,null,null,null,null,null,null,null,null,311]
[303,"Saturday",15,null,null,null,null,null,null,null,null,null,null,null,null,null,null,312]
[304,"Saturday",16,null,null,null,null,null,null,null,null,null,null,null,null,null,null,311]
[305,"Saturday",17,null,null,null,null,null,null,null,null,null,null,null,null,null,null,311]
[306,"Saturday",18,null,null,null,null,null,null,null,null,null,null,null,null,null,null,313]
[307,"Saturday",19,null,null,null,null,null,null,null,null,null,null,null,null,null,null,310]
[308,"Saturday",20,null,null,null,null,null,null,null,null,null,null,null,null,null,null,307]
[309,"Saturday",21,null,null,null,null,null,null,null,null,null,null,null,null,null,null,305]
[310,"Saturday",22,null,null,null,null,null,null,null,null,null,null,null,null,null,null,305]
[311,"Saturday",23,null,null,null,null,null,null,null,null,null,null,null,null,null,null,304]
[312,"Sunday",0,null,null,null,null,null,null,null,null,null,null,null,null,null,null,304]
[313,"Sunday",1,null,null,null,null,null,null,null,null,null,null,null,null,null,null,307]
[314,"Sunday",2,null,null,null,null,null,null,null,null,null,null,null,null,null,null,303]
[315,"Sunday",3,null,null,null,null,null,null,null,null,null,null,null,null,null,null,305]
[316,"Sunday",4,null,null,null,null,null,null,null,null,null,null,null,null,null,null,310]
[317,"Sunday",5,null,null,null,null,null,null,null,null,null,null,null,null,null,null,308]
[318,"Sunday",6,null,null,null,null,null,null,null,null,null,null,null,null,null,null,306]
[319,"Sunday",7,null,null,null,null,null,null,null,null,null,null,null,null,null,null,309]
[320,"Sunday",8,null,null,null,null,null,null,null,null,null,null,null,null,null,null,310]
[321,"Sunday",9,null,null,null,null,null,null,null,null,null,null,null,null,null,null,309]
[322,"Sunday",10,null,null,null,null,null,null,null,null,null,null,null,null,null,null,309]
[323,"Sunday",11,null,null,null,null,null,null,null,null,null,null,null,null,null,null,306]
[324,"Sunday",12,null,null,null,null,null,null,null,null,null,null,null,null,null,null,300]
[325,"Sunday",13,null,null,null,null,null,null,null,null,null,null,null,null,null,null,304]
[326,"Sunday",14,null,null,null,null,null,null,null,null,null,null,null,null,null,null,306]
[327,"Sunday",15,null,null,null,null,null,null,null,null,null,null,null,null,null,null,305]
[328,"Sunday",16,null,null,null,null,null,null,null,null,null,null,null,null,null,null,302]
[329,"Sunday",17,null,null,null,null,null,null,null,null,null,null,null,null,null,null,298]
[330,"Sunday",18,null,null,null,null,null,null,null,null,null,null,null,null,null,null,300]
[331,"Sunday",19,null,null,null,null,null,null,null,null,null,null,null,null,null,null,302]
[332,"Sunday",20,null,null,null,null,null,null,null,null,null,null,null,null,null,null,305]
[333,"Sunday",21,null,null,null,null,null,null,null,null,null,null,null,null,null,null,304]
[334,"Sunday",22,null,null,null,null,null,null,null,null,null,null,null,null,null,null,306]
[335,"Sunday",23,null,null,null,null,null,null,null,null,null,null,null,null,null,null,308]
[336,"Monday",0,null,null,null,null,null,null,null,null,null,null,null,null,null,null,310]
[337,"Monday",1,null,null,null,null,null,null,null,null,null,null,null,null,null,null,309]
[338,"Monday",2,null,null,null,null,null,null,null,null,null,null,null,null,null,null,307]
[339,"Monday",3,null,null,null,null,null,null,null,null,null,null,null,null,null,null,303]
[340,"Monday",4,null,null,null,null,null,null,null,null,null,null,null,null,null,null,303]
[341,"Monday",5,null,null,null,null,null,null,null,null,null,null,null,null,null,null,302]
[342,"Monday",6,null,null,null,null,null,null,null,null,null,null,null,null,null,null,302]
[343,"Monday",7,null,null,null,null,null,null,null,null,null,null,null,null,null,null,301]
[344,"Monday",8,null,null,null,null,null,null,null,null,null,null,null,null,null,null,302]
[345,"Monday",{"$f":"C323","v":9},null,null,null,null,null,null,null,null,null,null,null,null,null,null,306]
[346,"Monday",10,null,null,null,null,null,null,null,null,null,null,null,null,null,null,309]
[347,"Monday",11,null,null,null,null,null,null,null,null,null,null,null,null,null,null,307]
[348,"Monday",12,null,null,null,null,null,null,null,null,null,null,null,null,null,null,305]
[349,"Monday",13,null,null,null,null,null,null,null,null,null,null,null,null,null,null,305]
[350,"Monday",14,null,null,null,null,null,null,null,null,null,null,null,null,null,null,305]
[351,"Monday",15,null,null,null,null,null,null,null,null,null,null,null,null,null,null,304]
[352,"Monday",16,null,null,null,null,null,null,null,null,null,null,null,null,null,null,305]
[353,"Monday",17,null,null,null,null,null,null,null,null,null,null,null,null,null,null,305]
[354,"Monday",18,null,null,null,null,null,null,null,null,null,null,null,null,null,null,304]
[355,"Monday",19,null,null,null,null,null,null,null,null,null,null,null,null,null,null,304]
[356,"Monday",20,null,null,null,null,null,null,null,null,null,null,null,null,null,null,300]
[357,"Monday",21,null,null,null,null,null,null,null,null,null,null,null,null,null,null,298]
[358,"Monday",22,null,null,null,null,null,null,null,null,null,null,null,null,null,null,299]
[359,"Monday",23,null,null,null,null,null,null,null,null,null,null,null,null,null,null,298]
[360,"Tuesday",0,null,null,null,null,null,null,null,null,null,null,null,null,null,null,301]
[361,{"$f":"B195","v":"Tuesday"},1,null,null,null,null,null,null,null,null,null,null,null,null,null,null,306]
[{"$f":"A363+1","v":362},"Tuesday",2,null,null,null,null,null,null,null,null,null,null,null,null,null,null,302]
[363,"Tuesday",3,null,null,null,null,null,null,null,null,null,null,null,null,null,null,299]
[364,"Tuesday",4,null,null,null,null,null,null,null,null,null,null,null,null,null,null,301]
[365,"Tuesday",5,null,null,null,null,null,null,null,null,null,null,null,null,null,null,304]
[366,"Tuesday",6,null,null,null,null,null,null,null,null,null,null,null,null,null,null,306]
[367,"Tuesday",7,null,null,null,null,null,null,null,null,null,null,null,null,null,null,306]
[368,"Tuesday",8,null,null,null,null,null,null,null,null,null,null,null,null,null,null,307]
[369,"Tuesday",9,null,null,null,null,null,null,null,null,null,null,null,null,null,null,304]
[370,"Tuesday",10,null,null,null,null,null,null,null,null,null,null,null,null,null,null,301]
[371,"Tuesday",11,null,null,null,null,null,null,null,null,null,null,null,null,null,null,299]
[372,"Tuesday",12,null,null,null,null,null,null,null,null,null,null,null,null,null,null,301]
[373,"Tuesday",13,null,null,null,null,null,null,null,null,null,null,null,null,null,null,301]
[374,"Tuesday",14,null,null,null,null,null,null,null,null,null,null,null,null,null,null,301]
[375,"Tuesday",15,null,null,null,null,null,null,null,null,null,null,null,null,null,null,301]
[376,"Tuesday",16,null,null,null,null,null,null,null,null,null,null,null,null,null,null,300]
[377,"Tuesday",17,null,null,null,null,null,null,null,null,null,null,null,null,null,null,300]
[378,"Tuesday",18,null,null,null,null,null,null,null,null,null,null,null,null,null,null,305]
[379,"Tuesday",19,null,null,null,null,null,null,null,null,null,null,null,null,null,null,306]
[380,"Tuesday",20,null,null,null,null,null,null,null,null,null,null,null,null,null,null,302]
[381,"Tuesday",21,null,null,null,null,null,null,null,null,null,null,null,null,null,null,303]
[382,"Tuesday",22,null,null,null,null,null,null,null,null,null,null,null,null,null,null,305]
[383,"Tuesday",23,null,null,null,null,null,null,null,null,null,null,null,null,null,null,304]
[384,"Wednesday",0,null,null,null,null,null,null,null,null,null,null,null,null,null,null,302]
[385,"Wednesday",1,null,null,null,null,null,null,null,null,null,null,null,null,null,null,302]
[386,"Wednesday",2,null,null,null,null,null,null,null,null,null,null,null,null,null,null,300]
[387,"Wednesday",3,null,null,null,null,null,null,null,null,null,null,null,null,null,null,302]
[388,"Wednesday",4,null,null,null,null,null,null,null,null,null,null,null,null,null,null,297]
[389,"Wednesday",5,null,null,null,null,null,null,null,null,null,null,null,null,null,null,299]
[390,"Wednesday",6,null,null,null,null,null,null,null,null,null,null,null,null,null,null,299]
[391,"Wednesday",7,null,null,null,null,null,null,null,null,null,null,null,null,null,null,301]
[392,"Wednesday",8,null,null,null,null,null,null,null,null,null,null,null,null,null,null,303]
[393,"Wednesday",9,null,null,null,null,null,null,null,null,null,null,null,null,null,null,300]
[394,"Wednesday",10,null,null,null,null,null,null,null,null,null,null,null,null,null,null,300]
[395,"Wednesday",11,null,null,null,null,null,null,null,null,null,null,null,null,null,null,300]
[396,"Wednesday",12,null,null,null,null,null,null,null,null,null,null,null,null,null,null,302]
[397,"Wednesday",13,null,null,null,null,null,null,null,null,null,null,null,null,null,null,304]
[398,"Wednesday",14,null,null,null,null,null,null,null,null,null,null,null,null,null,null,307]
[399,"Wednesday",15,null,null,null,null,null,null,null,null,null,null,null,null,null,null,303]
[400,"Wednesday",16,null,null,null,null,null,null,null,null,null,null,null,null,null,null,300]
[401,"Wednesday",17,null,null,null,null,null,null,null,null,null,null,null,null,null,null,299]
[402,"Wednesday",18,null,null,null,null,null,null,null,null,null,null,null,null,null,null,299]
[403,"Wednesday",19,null,null,null,null,null,null,null,null,null,null,null,null,null,null,300]
[404,"Wednesday",20,null,null,null,null,null,null,null,null,null,null,null,null,null,null,299]
[405,"Wednesday",21,null,null,null,null,null,null,null,null,null,null,null,null,null,null,298]
[406,"Wednesday",22,null,null,null,null,null,null,null,null,null,null,null,null,null,null,296]
[407,"Wednesday",23,null,null,null,null,null,null,null,null,null,null,null,null,null,null,298]
[408,"Thursday",0,null,null,null,null,null,null,null,null,null,null,null,null,null,null,302]
[409,"Thursday",{"$f":"C387","v":1},null,null,null,null,null,null,null,null,null,null,null,null,null,null,300]
[410,"Thursday",2,null,null,null,null,null,null,null,null,null,null,null,null,null,null,302]
[411,"Thursday",3,null,null,null,null,null,null,null,null,null,null,null,null,null,null,302]
[412,"Thursday",4,null,null,null,null,null,null,null,null,null,null,null,null,null,null,304]
[413,"Thursday",5,null,null,null,null,null,null,null,null,null,null,null,null,null,null,305]
[414,"Thursday",6,null,null,null,null,null,null,null,null,null,null,null,null,null,null,306]
[415,"Thursday",7,null,null,null,null,null,null,null,null,null,null,null,null,null,null,300]
[416,"Thursday",8,null,null,null,null,null,null,null,null,null,null,null,null,null,null,297]
[417,"Thursday",9,null,null,null,null,null,null,null,null,null,null,null,null,null,null,299]
[418,"Thursday",10,null,null,null,null,null,null,null,null,null,null,null,null,null,null,299]
[419,"Thursday",11,null,null,null,null,null,null,null,null,null,null,null,null,null,null,297]
[420,"Thursday",12,null,null,null,null,null,null,null,null,null,null,null,null,null,null,296]
[421,"Thursday",13,null,null,null,null,null,null,null,null,null,null,null,null,null,null,294]
[422,"Thursday",14,null,null,null,null,null,null,null,null,null,null,null,null,null,null,290]
[423,"Thursday",15,null,null,null,null,null,null,null,null,null,null,null,null,null,null,296]
[424,"Thursday",16,null,null,null,null,null,null,null,null,null,null,null,null,null,null,301]
[425,{"$f":"B259","v":"Thursday"},17,null,null,null,null,null,null,null,null,null,null,null,null,null,null,301]
[{"$f":"A427+1","v":426},"Thursday",18,null,null,null,null,null,null,null,null,null,null,null,null,null,null,303]
[427,"Thursday",19,null,null,null,null,null,null,null,null,null,null,null,null,null,null,300]
[428,"Thursday",20,null,null,null,null,null,null,null,null,null,null,null,null,null,null,301]
[429,"Thursday",21,null,null,null,null,null,null,null,null,null,null,null,null,null,null,300]
[430,"Thursday",22,null,null,null,null,null,null,null,null,null,null,null,null,null,null,302]
[431,"Thursday",23,null,null,null,null,null,null,null,null,null,null,null,null,null,null,298]
[432,"Friday",0,null,null,null,null,null,null,null,null,null,null,null,null,null,null,295]
[433,"Friday",1,null,null,null,null,null,null,null,null,null,null,null,null,null,null,296]
[434,"Friday",2,null,null,null,null,null,null,null,null,null,null,null,null,null,null,293]
[435,"Friday",3,null,null,null,null,null,null,null,null,null,null,null,null,null,null,292]
[436,"Friday",4,null,null,null,null,null,null,null,null,null,null,null,null,null,null,298]
[437,"Friday",5,null,null,null,null,null,null,null,null,null,null,null,null,null,null,297]
[438,"Friday",6,null,null,null,null,null,null,null,null,null,null,null,null,null,null,299]
[439,"Friday",7,null,null,null,null,null,null,null,null,null,null,null,null,null,null,301]
[440,"Friday",8,null,null,null,null,null,null,null,null,null,null,null,null,null,null,299]
[441,"Friday",9,null,null,null,null,null,null,null,null,null,null,null,null,null,null,300]
[442,"Friday",10,null,null,null,null,null,null,null,null,null,null,null,null,null,null,300]
[443,"Friday",11,null,null,null,null,null,null,null,null,null,null,null,null,null,null,302]
[444,"Friday",12,null,null,null,null,null,null,null,null,null,null,null,null,null,null,302]
[445,"Friday",13,null,null,null,null,null,null,null,null,null,null,null,null,null,null,298]
[446,"Friday",14,null,null,null,null,null,null,null,null,null,null,null,null,null,null,297]
[447,"Friday",15,null,null,null,null,null,null,null,null,null,null,null,null,null,null,297]
[448,"Friday",16,null,null,null,null,null,null,null,null,null,null,null,null,null,null,296]
[449,"Friday",17,null,null,null,null,null,null,null,null,null,null,null,null,null,null,296]
[450,"Friday",18,null,null,null,null,null,null,null,null,null,null,null,null,null,null,296]
[451,"Friday",19,null,null,null,null,null,null,null,null,null,null,null,null,null,null,295]
[452,"Friday",20,null,null,null,null,null,null,null,null,null,null,null,null,null,null,296]
[453,"Friday",21,null,null,null,null,null,null,null,null,null,null,null,null,null,null,299]
[454,"Friday",22,null,null,null,null,null,null,null,null,null,null,null,null,null,null,298]
[455,"Friday",23,null,null,null,null,null,null,null,null,null,null,null,null,null,null,299]
[456,"Saturday",0,null,null,null,null,null,null,null,null,null,null,null,null,null,null,301]
[457,"Saturday",1,null,null,null,null,null,null,null,null,null,null,null,null,null,null,302]
[458,"Saturday",2,null,null,null,null,null,null,null,null,null,null,null,null,null,null,300]
[459,"Saturday",3,null,null,null,null,null,null,null,null,null,null,null,null,null,null,298]
[460,"Saturday",4,null,null,null,null,null,null,null,null,null,null,null,null,null,null,298]
[461,"Saturday",5,null,null,null,null,null,null,null,null,null,null,null,null,null,null,298]
[462,"Saturday",6,null,null,null,null,null,null,null,null,null,null,null,null,null,null,298]
[463,"Saturday",7,null,null,null,null,null,null,null,null,null,null,null,null,null,null,299]
[464,"Saturday",8,null,null,null,null,null,null,null,null,null,null,null,null,null,null,297]
[465,"Saturday",9,null,null,null,null,null,null,null,null,null,null,null,null,null,null,297]
[466,"Saturday",10,null,null,null,null,null,null,null,null,null,null,null,null,null,null,296]
[467,"Saturday",11,null,null,null,null,null,null,null,null,null,null,null,null,null,null,296]
[468,"Saturday",12,null,null,null,null,null,null,null,null,null,null,null,null,null,null,299]
[469,"Saturday",13,null,null,null,null,null,null,null,null,null,null,null,null,null,null,297]
[470,"Saturday",14,null,null,null,null,null,null,null,null,null,null,null,null,null,null,297]
[471,"Saturday",15,null,null,null,null,null,null,null,null,null,null,null,null,null,null,301]
[472,"Saturday",16,null,null,null,null,null,null,null,null,null,null,null,null,null,null,305]
[473,"Saturday",{"$f":"C451","v":17},null,null,null,null,null,null,null,null,null,null,null,null,null,null,304]
[474,"Saturday",18,null,null,null,null,null,null,null,null,null,null,null,null,null,null,302]
[475,"Saturday",19,null,null,null,null,null,null,null,null,null,null,null,null,null,null,301]
[476,"Saturday",20,null,null,null,null,null,null,null,null,null,null,null,null,null,null,299]
[477,"Saturday",21,null,null,null,null,null,null,null,null,null,null,null,null,null,null,296]
[478,"Saturday",22,null,null,null,null,null,null,null,null,null,null,null,null,null,null,295]
[479,"Saturday",23,null,null,null,null,null,null,null,null,null,null,null,null,null,null,296]
[480,"Sunday",0,null,null,null,null,null,null,null,null,null,null,null,null,null,null,294]
[481,"Sunday",1,null,null,null,null,null,null,null,null,null,null,null,null,null,null,294]
[482,"Sunday",2,null,null,null,null,null,null,null,null,null,null,null,null,null,null,296]
[483,"Sunday",3,null,null,null,null,null,null,null,null,null,null,null,null,null,null,296]
[484,"Sunday",4,null,null,null,null,null,null,null,null,null,null,null,null,null,null,297]
[485,"Sunday",5,null,null,null,null,null,null,null,null,null,null,null,null,null,null,298]
[486,"Sunday",6,null,null,null,null,null,null,null,null,null,null,null,null,null,null,299]
[487,"Sunday",7,null,null,null,null,null,null,null,null,null,null,null,null,null,null,297]
[488,"Sunday",8,null,null,null,null,null,null,null,null,null,null,null,null,null,null,298]
[489,{"$f":"B323","v":"Sunday"},9,null,null,null,null,null,null,null,null,null,null,null,null,null,null,299]
[{"$f":"A491+1","v":490},"Sunday",10,null,null,null,null,null,null,null,null,null,null,null,null,null,null,297]
[491,"Sunday",11,null,null,null,null,null,null,null,null,null,null,null,null,null,null,294]
[492,"Sunday",12,null,null,null,null,null,null,null,null,null,null,null,null,null,null,297]
[493,"Sunday",13,null,null,null,null,null,null,null,null,null,null,null,null,null,null,296]
[494,"Sunday",14,null,null,null,null,null,null,null,null,null,null,null,null,null,null,296]
[495,"Sunday",15,null,null,null,null,null,null,null,null,null,null,null,null,null,null,299]
[496,"Sunday",16,null,null,null,null,null,null,null,null,null,null,null,null,null,null,299]
[497,"Sunday",17,null,null,null,null,null,null,null,null,null,null,null,null,null,null,296]
[498,"Sunday",18,null,null,null,null,null,null,null,null,null,null,null,null,null,null,297]
[499,"Sunday",19,null,null,null,null,null,null,null,null,null,null,null,null,null,null,300]
[500,"Sunday",20,null,null,null,null,null,null,null,null,null,null,null,null,null,null,301]
[501,"Sunday",21,null,null,null,null,null,null,null,null,null,null,null,null,null,null,299]
[502,"Sunday",22,null,null,null,null,null,null,null,null,null,null,null,null,null,null,301]
[503,"Sunday",23,null,null,null,null,null,null,null,null,null,null,null,null,null,null,303]
[504,"Monday",0,null,null,null,null,null,null,null,null,null,null,null,null,null,null,301]
[505,"Monday",1,null,null,null,null,null,null,null,null,null,null,null,null,null,null,299]
[506,"Monday",2,null,null,null,null,null,null,null,null,null,null,null,null,null,null,298]
[507,"Monday",3,null,null,null,null,null,null,null,null,null,null,null,null,null,null,298]
[508,"Monday",4,null,null,null,null,null,null,null,null,null,null,null,null,null,null,296]
[509,"Monday",5,null,null,null,null,null,null,null,null,null,null,null,null,null,null,293]
[510,"Monday",6,null,null,null,null,null,null,null,null,null,null,null,null,null,null,296]
[511,"Monday",7,null,null,null,null,null,null,null,null,null,null,null,null,null,null,297]
[512,"Monday",8,null,null,null,null,null,null,null,null,null,null,null,null,null,null,299]
[513,"Monday",9,null,null,null,null,null,null,null,null,null,null,null,null,null,null,296]
[514,"Monday",10,null,null,null,null,null,null,null,null,null,null,null,null,null,null,293]
[515,"Monday",11,null,null,null,null,null,null,null,null,null,null,null,null,null,null,296]
[516,"Monday",12,null,null,null,null,null,null,null,null,null,null,null,null,null,null,300]
[517,"Monday",13,null,null,null,null,null,null,null,null,null,null,null,null,null,null,301]
[518,"Monday",14,null,null,null,null,null,null,null,null,null,null,null,null,null,null,300]
[519,"Monday",15,null,null,null,null,null,null,null,null,null,null,null,null,null,null,302]
[520,"Monday",16,null,null,null,null,null,null,null,null,null,null,null,null,null,null,304]
[521,"Monday",17,null,null,null,null,null,null,null,null,null,null,null,null,null,null,302]
[522,"Monday",18,null,null,null,null,null,null,null,null,null,null,null,null,null,null,296]
[523,"Monday",19,null,null,null,null,null,null,null,null,null,null,null,null,null,null,293]
[524,"Monday",20,null,null,null,null,null,null,null,null,null,null,null,null,null,null,294]
[525,"Monday",21,null,null,null,null,null,null,null,null,null,null,null,null,null,null,292]
[526,"Monday",22,null,null,null,null,null,null,null,null,null,null,null,null,null,null,293]
[527,"Monday",23,null,null,null,null,null,null,null,null,null,null,null,null,null,null,295]
[528,"Tuesday",0,null,null,null,null,null,null,null,null,null,null,null,null,null,null,299]
[529,"Tuesday",1,null,null,null,null,null,null,null,null,null,null,null,null,null,null,297]
[530,"Tuesday",2,null,null,null,null,null,null,null,null,null,null,null,null,null,null,299]
[531,"Tuesday",3,null,null,null,null,null,null,null,null,null,null,null,null,null,null,298]
[532,"Tuesday",4,null,null,null,null,null,null,null,null,null,null,null,null,null,null,296]
[533,"Tuesday",5,null,null,null,null,null,null,null,null,null,null,null,null,null,null,296]
[534,"Tuesday",6,null,null,null,null,null,null,null,null,null,null,null,null,null,null,297]
[535,"Tuesday",7,null,null,null,null,null,null,null,null,null,null,null,null,null,null,297]
[536,"Tuesday",8,null,null,null,null,null,null,null,null,null,null,null,null,null,null,299]
[537,"Tuesday",{"$f":"C515","v":9},null,null,null,null,null,null,null,null,null,null,null,null,null,null,294]
[538,"Tuesday",10,null,null,null,null,null,null,null,null,null,null,null,null,null,null,295]
[539,"Tuesday",11,null,null,null,null,null,null,null,null,null,null,null,null,null,null,296]
[540,"Tuesday",12,null,null,null,null,null,null,null,null,null,null,null,null,null,null,295]
[541,"Tuesday",13,null,null,null,null,null,null,null,null,null,null,null,null,null,null,291]
[542,"Tuesday",14,null,null,null,null,null,null,null,null,null,null,null,null,null,null,291]
[543,"Tuesday",15,null,null,null,null,null,null,null,null,null,null,null,null,null,null,293]
[544,"Tuesday",16,null,null,null,null,null,null,null,null,null,null,null,null,null,null,294]
[545,"Tuesday",17,null,null,null,null,null,null,null,null,null,null,null,null,null,null,297]
[546,"Tuesday",18,null,null,null,null,null,null,null,null,null,null,null,null,null,null,299]
[547,"Tuesday",19,null,null,null,null,null,null,null,null,null,null,null,null,null,null,299]
[548,"Tuesday",20,null,null,null,null,null,null,null,null,null,null,null,null,null,null,298]
[549,"Tuesday",21,null,null,null,null,null,null,null,null,null,null,null,null,null,null,301]
[550,"Tuesday",22,null,null,null,null,null,null,null,null,null,null,null,null,null,null,302]
[551,"Tuesday",23,null,null,null,null,null,null,null,null,null,null,null,null,null,null,300]
[552,"Wednesday",0,null,null,null,null,null,null,null,null,null,null,null,null,null,null,297]
[553,{"$f":"B387","v":"Wednesday"},1,null,null,null,null,null,null,null,null,null,null,null,null,null,null,297]
[{"$f":"A555+1","v":554},"Wednesday",2,null,null,null,null,null,null,null,null,null,null,null,null,null,null,296]
[555,"Wednesday",3,null,null,null,null,null,null,null,null,null,null,null,null,null,null,294]
[556,"Wednesday",4,null,null,null,null,null,null,null,null,null,null,null,null,null,null,293]
[557,"Wednesday",5,null,null,null,null,null,null,null,null,null,null,null,null,null,null,294]
[558,"Wednesday",6,null,null,null,null,null,null,null,null,null,null,null,null,null,null,296]
[559,"Wednesday",7,null,null,null,null,null,null,null,null,null,null,null,null,null,null,296]
[560,"Wednesday",8,null,null,null,null,null,null,null,null,null,null,null,null,null,null,296]
[561,"Wednesday",9,null,null,null,null,null,null,null,null,null,null,null,null,null,null,297]
[562,"Wednesday",10,null,null,null,null,null,null,null,null,null,null,null,null,null,null,300]
[563,"Wednesday",11,null,null,null,null,null,null,null,null,null,null,null,null,null,null,300]
[564,"Wednesday",12,null,null,null,null,null,null,null,null,null,null,null,null,null,null,299]
[565,"Wednesday",13,null,null,null,null,null,null,null,null,null,null,null,null,null,null,297]
[566,"Wednesday",14,null,null,null,null,null,null,null,null,null,null,null,null,null,null,295]
[567,"Wednesday",15,null,null,null,null,null,null,null,null,null,null,null,null,null,null,296]
[568,"Wednesday",16,null,null,null,null,null,null,null,null,null,null,null,null,null,null,297]
[569,"Wednesday",17,null,null,null,null,null,null,null,null,null,null,null,null,null,null,294]
[570,"Wednesday",18,null,null,null,null,null,null,null,null,null,null,null,null,null,null,292]
[571,"Wednesday",19,null,null,null,null,null,null,null,null,null,null,null,null,null,null,292]
[572,"Wednesday",20,null,null,null,null,null,null,null,null,null,null,null,null,null,null,293]
[573,"Wednesday",21,null,null,null,null,null,null,null,null,null,null,null,null,null,null,294]
[574,"Wednesday",22,null,null,null,null,null,null,null,null,null,null,null,null,null,null,297]
[575,"Wednesday",23,null,null,null,null,null,null,null,null,null,null,null,null,null,null,293]
[576,"Thursday",0,null,null,null,null,null,null,null,null,null,null,null,null,null,null,297]
[577,"Thursday",1,null,null,null,null,null,null,null,null,null,null,null,null,null,null,299]
[578,"Thursday",2,null,null,null,null,null,null,null,null,null,null,null,null,null,null,298]
[579,"Thursday",3,null,null,null,null,null,null,null,null,null,null,null,null,null,null,300]
[580,"Thursday",4,null,null,null,null,null,null,null,null,null,null,null,null,null,null,298]
[581,"Thursday",5,null,null,null,null,null,null,null,null,null,null,null,null,null,null,294]
[582,"Thursday",6,null,null,null,null,null,null,null,null,null,null,null,null,null,null,295]
[583,"Thursday",7,null,null,null,null,null,null,null,null,null,null,null,null,null,null,295]
[584,"Thursday",8,null,null,null,null,null,null,null,null,null,null,null,null,null,null,296]
[585,"Thursday",9,null,null,null,null,null,null,null,null,null,null,null,null,null,null,295]
[586,"Thursday",10,null,null,null,null,null,null,null,null,null,null,null,null,null,null,294]
[587,"Thursday",11,null,null,null,null,null,null,null,null,null,null,null,null,null,null,298]
[588,"Thursday",12,null,null,null,null,null,null,null,null,null,null,null,null,null,null,297]
[589,"Thursday",13,null,null,null,null,null,null,null,null,null,null,null,null,null,null,297]
[590,"Thursday",14,null,null,null,null,null,null,null,null,null,null,null,null,null,null,297]
[591,"Thursday",15,null,null,null,null,null,null,null,null,null,null,null,null,null,null,298]
[592,"Thursday",16,null,null,null,null,null,null,null,null,null,null,null,null,null,null,299]
[593,"Thursday",17,null,null,null,null,null,null,null,null,null,null,null,null,null,null,300]
[594,"Thursday",18,null,null,null,null,null,null,null,null,null,null,null,null,null,null,301]
[595,"Thursday",19,null,null,null,null,null,null,null,null,null,null,null,null,null,null,298]
[596,"Thursday",20,null,null,null,null,null,null,null,null,null,null,null,null,null,null,296]
[597,"Thursday",21,null,null,null,null,null,null,null,null,null,null,null,null,null,null,295]
[598,"Thursday",22,null,null,null,null,null,null,null,null,null,null,null,null,null,null,295]
[599,"Thursday",23,null,null,null,null,null,null,null,null,null,null,null,null,null,null,291]
[600,"Friday",0,null,null,null,null,null,null,null,null,null,null,null,null,null,null,292]
[601,"Friday",{"$f":"C579","v":1},null,null,null,null,null,null,null,null,null,null,null,null,null,null,295]
[602,"Friday",2,null,null,null,null,null,null,null,null,null,null,null,null,null,null,295]
[603,"Friday",3,null,null,null,null,null,null,null,null,null,null,null,null,null,null,293]
[604,"Friday",4,null,null,null,null,null,null,null,null,null,null,null,null,null,null,292]
[605,"Friday",5,null,null,null,null,null,null,null,null,null,null,null,null,null,null,294]
[606,"Friday",6,null,null,null,null,null,null,null,null,null,null,null,null,null,null,302]
[607,"Friday",7,null,null,null,null,null,null,null,null,null,null,null,null,null,null,302]
[608,"Friday",8,null,null,null,null,null,null,null,null,null,null,null,null,null,null,300]
[609,"Friday",9,null,null,null,null,null,null,null,null,null,null,null,null,null,null,300]
[610,"Friday",10,null,null,null,null,null,null,null,null,null,null,null,null,null,null,298]
[611,"Friday",11,null,null,null,null,null,null,null,null,null,null,null,null,null,null,299]
[612,"Friday",12,null,null,null,null,null,null,null,null,null,null,null,null,null,null,297]
[613,"Friday",13,null,null,null,null,null,null,null,null,null,null,null,null,null,null,294]
[614,"Friday",14,null,null,null,null,null,null,null,null,null,null,null,null,null,null,294]
[615,"Friday",15,null,null,null,null,null,null,null,null,null,null,null,null,null,null,292]
[616,"Friday",16,null,null,null,null,null,null,null,null,null,null,null,null,null,null,293]
[617,{"$f":"B451","v":"Friday"},17,null,null,null,null,null,null,null,null,null,null,null,null,null,null,297]
[{"$f":"A619+1","v":618},"Friday",18,null,null,null,null,null,null,null,null,null,null,null,null,null,null,299]
[619,"Friday",19,null,null,null,null,null,null,null,null,null,null,null,null,null,null,300]
[620,"Friday",20,null,null,null,null,null,null,null,null,null,null,null,null,null,null,297]
[621,"Friday",21,null,null,null,null,null,null,null,null,null,null,null,null,null,null,302]
[622,"Friday",22,null,null,null,null,null,null,null,null,null,null,null,null,null,null,302]
[623,"Friday",23,null,null,null,null,null,null,null,null,null,null,null,null,null,null,300]
[624,"Saturday",0,null,null,null,null,null,null,null,null,null,null,null,null,null,null,299]
[625,"Saturday",1,null,null,null,null,null,null,null,null,null,null,null,null,null,null,297]
[626,"Saturday",2,null,null,null,null,null,null,null,null,null,null,null,null,null,null,295]
[627,"Saturday",3,null,null,null,null,null,null,null,null,null,null,null,null,null,null,297]
[628,"Saturday",4,null,null,null,null,null,null,null,null,null,null,null,null,null,null,297]
[629,"Saturday",5,null,null,null,null,null,null,null,null,null,null,null,null,null,null,299]
[630,"Saturday",6,null,null,null,null,null,null,null,null,null,null,null,null,null,null,297]
[631,"Saturday",7,null,null,null,null,null,null,null,null,null,null,null,null,null,null,299]
[632,"Saturday",8,null,null,null,null,null,null,null,null,null,null,null,null,null,null,299]
[633,"Saturday",9,null,null,null,null,null,null,null,null,null,null,null,null,null,null,298]
[634,"Saturday",10,null,null,null,null,null,null,null,null,null,null,null,null,null,null,301]
[635,"Saturday",11,null,null,null,null,null,null,null,null,null,null,null,null,null,null,300]
[636,"Saturday",12,null,null,null,null,null,null,null,null,null,null,null,null,null,null,302]
[637,"Saturday",13,null,null,null,null,null,null,null,null,null,null,null,null,null,null,303]
[638,"Saturday",14,null,null,null,null,null,null,null,null,null,null,null,null,null,null,297]
[639,"Saturday",15,null,null,null,null,null,null,null,null,null,null,null,null,null,null,300]
[640,"Saturday",16,null,null,null,null,null,null,null,null,null,null,null,null,null,null,301]
[641,"Saturday",17,null,null,null,null,null,null,null,null,null,null,null,null,null,null,300]
[642,"Saturday",18,null,null,null,null,null,null,null,null,null,null,null,null,null,null,299]
[643,"Saturday",19,null,null,null,null,null,null,null,null,null,null,null,null,null,null,296]
[644,"Saturday",20,null,null,null,null,null,null,null,null,null,null,null,null,null,null,295]
[645,"Saturday",21,null,null,null,null,null,null,null,null,null,null,null,null,null,null,290]
[646,"Saturday",22,null,null,null,null,null,null,null,null,null,null,null,null,null,null,297]
[647,"Saturday",23,null,null,null,null,null,null,null,null,null,null,null,null,null,null,298]
[648,"Sunday",0,null,null,null,null,null,null,null,null,null,null,null,null,null,null,295]
[649,"Sunday",1,null,null,null,null,null,null,null,null,null,null,null,null,null,null,298]
[650,"Sunday",2,null,null,null,null,null,null,null,null,null,null,null,null,null,null,300]
[651,"Sunday",3,null,null,null,null,null,null,null,null,null,null,null,null,null,null,298]
[652,"Sunday",4,null,null,null,null,null,null,null,null,null,null,null,null,null,null,298]
[653,"Sunday",5,null,null,null,null,null,null,null,null,null,null,null,null,null,null,299]
[654,"Sunday",6,null,null,null,null,null,null,null,null,null,null,null,null,null,null,297]
[655,"Sunday",7,null,null,null,null,null,null,null,null,null,null,null,null,null,null,296]
[656,"Sunday",8,null,null,null,null,null,null,null,null,null,null,null,null,null,null,297]
[657,"Sunday",9,null,null,null,null,null,null,null,null,null,null,null,null,null,null,297]
[658,"Sunday",10,null,null,null,null,null,null,null,null,null,null,null,null,null,null,294]
[659,"Sunday",11,null,null,null,null,null,null,null,null,null,null,null,null,null,null,293]
[660,"Sunday",12,null,null,null,null,null,null,null,null,null,null,null,null,null,null,294]
[661,"Sunday",13,null,null,null,null,null,null,null,null,null,null,null,null,null,null,296]
[662,"Sunday",14,null,null,null,null,null,null,null,null,null,null,null,null,null,null,296]
[663,"Sunday",15,null,null,null,null,null,null,null,null,null,null,null,null,null,null,293]
[664,"Sunday",16,null,null,null,null,null,null,null,null,null,null,null,null,null,null,296]
[665,"Sunday",{"$f":"C643","v":17},null,null,null,null,null,null,null,null,null,null,null,null,null,null,300]
[666,"Sunday",18,null,null,null,null,null,null,null,null,null,null,null,null,null,null,299]
[667,"Sunday",19,null,null,null,null,null,null,null,null,null,null,null,null,null,null,301]
[668,"Sunday",20,null,null,null,null,null,null,null,null,null,null,null,null,null,null,300]
[669,"Sunday",21,null,null,null,null,null,null,null,null,null,null,null,null,null,null,296]
[670,"Sunday",22,null,null,null,null,null,null,null,null,null,null,null,null,null,null,298]
[671,"Sunday",23,null,null,null,null,null,null,null,null,null,null,null,null,null,null,298]
[672,"Monday",0,null,null,null,null,null,null,null,null,null,null,null,null,null,null,295]
[673,"Monday",1,null,null,null,null,null,null,null,null,null,null,null,null,null,null,293]
[674,"Monday",2,null,null,null,null,null,null,null,null,null,null,null,null,null,null,295]
[675,"Monday",3,null,null,null,null,null,null,null,null,null,null,null,null,null,null,294]
[676,"Monday",4,null,null,null,null,null,null,null,null,null,null,null,null,null,null,294]
[677,"Monday",5,null,null,null,null,null,null,null,null,null,null,null,null,null,null,297]
[678,"Monday",6,null,null,null,null,null,null,null,null,null,null,null,null,null,null,298]
[679,"Monday",7,null,null,null,null,null,null,null,null,null,null,null,null,null,null,304]
[680,"Monday",8,null,null,null,null,null,null,null,null,null,null,null,null,null,null,302]
[681,{"$f":"B515","v":"Monday"},9,null,null,null,null,null,null,null,null,null,null,null,null,null,null,297]
[{"$f":"A683+1","v":682},"Monday",10,null,null,null,null,null,null,null,null,null,null,null,null,null,null,300]
[683,"Monday",11,null,null,null,null,null,null,null,null,null,null,null,null,null,null,298]
[684,"Monday",12,null,null,null,null,null,null,null,null,null,null,null,null,null,null,296]
[685,"Monday",13,null,null,null,null,null,null,null,null,null,null,null,null,null,null,294]
[686,"Monday",14,null,null,null,null,null,null,null,null,null,null,null,null,null,null,296]
[687,"Monday",15,null,null,null,null,null,null,null,null,null,null,null,null,null,null,294]
[688,"Monday",16,null,null,null,null,null,null,null,null,null,null,null,null,null,null,294]
[689,"Monday",17,null,null,null,null,null,null,null,null,null,null,null,null,null,null,295]
[690,"Monday",18,null,null,null,null,null,null,null,null,null,null,null,null,null,null,297]
[691,"Monday",19,null,null,null,null,null,null,null,null,null,null,null,null,null,null,299]
[692,"Monday",20,null,null,null,null,null,null,null,null,null,null,null,null,null,null,298]
[693,"Monday",21,null,null,null,null,null,null,null,null,null,null,null,null,null,null,298]
[694,"Monday",22,null,null,null,null,null,null,null,null,null,null,null,null,null,null,299]
[695,"Monday",23,null,null,null,null,null,null,null,null,null,null,null,null,null,null,298]
[696,"Tuesday",0,null,null,null,null,null,null,null,null,null,null,null,null,null,null,300]
[697,"Tuesday",1,null,null,null,null,null,null,null,null,null,null,null,null,null,null,298]
[698,"Tuesday",2,null,null,null,null,null,null,null,null,null,null,null,null,null,null,297]
[699,"Tuesday",3,null,null,null,null,null,null,null,null,null,null,null,null,null,null,294]
[700,"Tuesday",4,null,null,null,null,null,null,null,null,null,null,null,null,null,null,294]
[701,"Tuesday",5,null,null,null,null,null,null,null,null,null,null,null,null,null,null,296]
[702,"Tuesday",6,null,null,null,null,null,null,null,null,null,null,null,null,null,null,296]
[703,"Tuesday",7,null,null,null,null,null,null,null,null,null,null,null,null,null,null,296]
[704,"Tuesday",8,null,null,null,null,null,null,null,null,null,null,null,null,null,null,297]
[705,"Tuesday",9,null,null,null,null,null,null,null,null,null,null,null,null,null,null,298]
[706,"Tuesday",10,null,null,null,null,null,null,null,null,null,null,null,null,null,null,300]
[707,"Tuesday",11,null,null,null,null,null,null,null,null,null,null,null,null,null,null,303]
[708,"Tuesday",12,null,null,null,null,null,null,null,null,null,null,null,null,null,null,302]
[709,"Tuesday",13,null,null,null,null,null,null,null,null,null,null,null,null,null,null,300]
[710,"Tuesday",14,null,null,null,null,null,null,null,null,null,null,null,null,null,null,298]
[711,"Tuesday",15,null,null,null,null,null,null,null,null,null,null,null,null,null,null,299]
[712,"Tuesday",16,null,null,null,null,null,null,null,null,null,null,null,null,null,null,299]
[713,"Tuesday",17,null,null,null,null,null,null,null,null,null,null,null,null,null,null,299]
[714,"Tuesday",18,null,null,null,null,null,null,null,null,null,null,null,null,null,null,296]
[715,"Tuesday",19,null,null,null,null,null,null,null,null,null,null,null,null,null,null,295]
[716,"Tuesday",20,null,null,null,null,null,null,null,null,null,null,null,null,null,null,297]
[717,"Tuesday",21,null,null,null,null,null,null,null,null,null,null,null,null,null,null,297]
[718,"Tuesday",22,null,null,null,null,null,null,null,null,null,null,null,null,null,null,294]
[719,"Tuesday",23,null,null,null,null,null,null,null,null,null,null,null,null,null,null,293]
[720,"Wednesday",0,null,null,null,null,null,null,null,null,null,null,null,null,null,null,294]
[721,"Wednesday",1,null,null,null,null,null,null,null,null,null,null,null,null,null,null,294]
[722,"Wednesday",2,null,null,null,null,null,null,null,null,null,null,null,null,null,null,298]
[723,"Wednesday",3,null,null,null,null,null,null,null,null,null,null,null,null,null,null,298]
[724,"Wednesday",4,null,null,null,null,null,null,null,null,null,null,null,null,null,null,300]
[725,"Wednesday",5,null,null,null,null,null,null,null,null,null,null,null,null,null,null,302]
[726,"Wednesday",6,null,null,null,null,null,null,null,null,null,null,null,null,null,null,302]
[727,"Wednesday",7,null,null,null,null,null,null,null,null,null,null,null,null,null,null,302]
[728,"Wednesday",8,null,null,null,null,null,null,null,null,null,null,null,null,null,null,298]
[729,"Wednesday",{"$f":"C707","v":9},null,null,null,null,null,null,null,null,null,null,null,null,null,null,295]
[730,"Wednesday",10,null,null,null,null,null,null,null,null,null,null,null,null,null,null,294]
[731,"Wednesday",11,null,null,null,null,null,null,null,null,null,null,null,null,null,null,296]
[732,"Wednesday",12,null,null,null,null,null,null,null,null,null,null,null,null,null,null,298]
[733,"Wednesday",13,null,null,null,null,null,null,null,null,null,null,null,null,null,null,295]
[734,"Wednesday",14,null,null,null,null,null,null,null,null,null,null,null,null,null,null,293]
[735,"Wednesday",15,null,null,null,null,null,null,null,null,null,null,null,null,null,null,297]
[736,"Wednesday",16,null,null,null,null,null,null,null,null,null,null,null,null,null,null,296]
[737,"Wednesday",17,null,null,null,null,null,null,null,null,null,null,null,null,null,null,295]
[738,"Wednesday",18,null,null,null,null,null,null,null,null,null,null,null,null,null,null,297]
[739,"Wednesday",19,null,null,null,null,null,null,null,null,null,null,null,null,null,null,297]
[740,"Wednesday",20,null,null,null,null,null,null,null,null,null,null,null,null,null,null,301]
[741,"Wednesday",21,null,null,null,null,null,null,null,null,null,null,null,null,null,null,298]
[742,"Wednesday",22,null,null,null,null,null,null,null,null,null,null,null,null,null,null,297]
[743,"Wednesday",23,null,null,null,null,null,null,null,null,null,null,null,null,null,null,297]
[744,"Thursday",0,null,null,null,null,null,null,null,null,null,null,null,null,null,null,298]
[745,{"$f":"B579","v":"Thursday"},1,null,null,null,null,null,null,null,null,null,null,null,null,null,null,295]
[{"$f":"A747+1","v":746},"Thursday",2,null,null,null,null,null,null,null,null,null,null,null,null,null,null,292]
[747,"Thursday",3,null,null,null,null,null,null,null,null,null,null,null,null,null,null,290]
[748,"Thursday",4,null,null,null,null,null,null,null,null,null,null,null,null,null,null,293]
[749,"Thursday",5,null,null,null,null,null,null,null,null,null,null,null,null,null,null,297]
[750,"Thursday",6,null,null,null,null,null,null,null,null,null,null,null,null,null,null,299]
[751,"Thursday",7,null,null,null,null,null,null,null,null,null,null,null,null,null,null,299]
[752,"Thursday",8,null,null,null,null,null,null,null,null,null,null,null,null,null,null,299]
[753,"Thursday",9,null,null,null,null,null,null,null,null,null,null,null,null,null,null,297]
[754,"Thursday",10,null,null,null,null,null,null,null,null,null,null,null,null,null,null,298]
[755,"Thursday",11,null,null,null,null,null,null,null,null,null,null,null,null,null,null,299]
[756,"Thursday",12,null,null,null,null,null,null,null,null,null,null,null,null,null,null,298]
[757,"Thursday",13,null,null,null,null,null,null,null,null,null,null,null,null,null,null,295]
[758,"Thursday",14,null,null,null,null,null,null,null,null,null,null,null,null,null,null,294]
[759,"Thursday",15,null,null,null,null,null,null,null,null,null,null,null,null,null,null,293]
[760,"Thursday",16,null,null,null,null,null,null,null,null,null,null,null,null,null,null,295]
[761,"Thursday",17,null,null,null,null,null,null,null,null,null,null,null,null,null,null,297]
[762,"Thursday",18,null,null,null,null,null,null,null,null,null,null,null,null,null,null,296]
[763,"Thursday",19,null,null,null,null,null,null,null,null,null,null,null,null,null,null,297]
[764,"Thursday",20,null,null,null,null,null,null,null,null,null,null,null,null,null,null,302]
[765,"Thursday",21,null,null,null,null,null,null,null,null,null,null,null,null,null,null,299]
[766,"Thursday",22,null,null,null,null,null,null,null,null,null,null,null,null,null,null,297]
[767,"Thursday",23,null,null,null,null,null,null,null,null,null,null,null,null,null,null,300]
[768,"Friday",0,null,null,null,null,null,null,null,null,null,null,null,null,null,null,302]
[769,"Friday",1,null,null,null,null,null,null,null,null,null,null,null,null,null,null,299]
[770,"Friday",2,null,null,null,null,null,null,null,null,null,null,null,null,null,null,299]
[771,"Friday",3,null,null,null,null,null,null,null,null,null,null,null,null,null,null,298]
[772,"Friday",4,null,null,null,null,null,null,null,null,null,null,null,null,null,null,295]
[773,"Friday",5,null,null,null,null,null,null,null,null,null,null,null,null,null,null,296]
[774,"Friday",6,null,null,null,null,null,null,null,null,null,null,null,null,null,null,296]
[775,"Friday",7,null,null,null,null,null,null,null,null,null,null,null,null,null,null,296]
[776,"Friday",8,null,null,null,null,null,null,null,null,null,null,null,null,null,null,294]
[777,"Friday",9,null,null,null,null,null,null,null,null,null,null,null,null,null,null,296]
[778,"Friday",10,null,null,null,null,null,null,null,null,null,null,null,null,null,null,294]
[779,"Friday",11,null,null,null,null,null,null,null,null,null,null,null,null,null,null,292]
[780,"Friday",12,null,null,null,null,null,null,null,null,null,null,null,null,null,null,294]
[781,"Friday",13,null,null,null,null,null,null,null,null,null,null,null,null,null,null,295]
[782,"Friday",14,null,null,null,null,null,null,null,null,null,null,null,null,null,null,299]
[783,"Friday",15,null,null,null,null,null,null,null,null,null,null,null,null,null,null,297]
[784,"Friday",16,null,null,null,null,null,null,null,null,null,null,null,null,null,null,296]
[785,"Friday",17,null,null,null,null,null,null,null,null,null,null,null,null,null,null,295]
[786,"Friday",18,null,null,null,null,null,null,null,null,null,null,null,null,null,null,293]
[787,"Friday",19,null,null,null,null,null,null,null,null,null,null,null,null,null,null,293]
[788,"Friday",20,null,null,null,null,null,null,null,null,null,null,null,null,null,null,292]
[789,"Friday",21,null,null,null,null,null,null,null,null,null,null,null,null,null,null,292]
[790,"Friday",22,null,null,null,null,null,null,null,null,null,null,null,null,null,null,296]
[791,"Friday",23,null,null,null,null,null,null,null,null,null,null,null,null,null,null,298]
[792,"Saturday",0,null,null,null,null,null,null,null,null,null,null,null,null,null,null,300]
[793,"Saturday",{"$f":"C771","v":1},null,null,null,null,null,null,null,null,null,null,null,null,null,null,298]
[794,"Saturday",2,null,null,null,null,null,null,null,null,null,null,null,null,null,null,296]
[795,"Saturday",3,null,null,null,null,null,null,null,null,null,null,null,null,null,null,294]
[796,"Saturday",4,null,null,null,null,null,null,null,null,null,null,null,null,null,null,296]
[797,"Saturday",5,null,null,null,null,null,null,null,null,null,null,null,null,null,null,298]
[798,"Saturday",6,null,null,null,null,null,null,null,null,null,null,null,null,null,null,298]
[799,"Saturday",7,null,null,null,null,null,null,null,null,null,null,null,null,null,null,297]
[800,"Saturday",8,null,null,null,null,null,null,null,null,null,null,null,null,null,null,295]
[801,"Saturday",9,null,null,null,null,null,null,null,null,null,null,null,null,null,null,297]
[802,"Saturday",10,null,null,null,null,null,null,null,null,null,null,null,null,null,null,296]
[803,"Saturday",11,null,null,null,null,null,null,null,null,null,null,null,null,null,null,296]
[804,"Saturday",12,null,null,null,null,null,null,null,null,null,null,null,null,null,null,300]
[805,"Saturday",13,null,null,null,null,null,null,null,null,null,null,null,null,null,null,299]
[806,"Saturday",14,null,null,null,null,null,null,null,null,null,null,null,null,null,null,296]
[807,"Saturday",15,null,null,null,null,null,null,null,null,null,null,null,null,null,null,296]
[808,"Saturday",16,null,null,null,null,null,null,null,null,null,null,null,null,null,null,300]
[809,{"$f":"B643","v":"Saturday"},17,null,null,null,null,null,null,null,null,null,null,null,null,null,null,300]
[{"$f":"A811+1","v":810},"Saturday",18,null,null,null,null,null,null,null,null,null,null,null,null,null,null,301]
[811,"Saturday",19,null,null,null,null,null,null,null,null,null,null,null,null,null,null,300]
[812,"Saturday",20,null,null,null,null,null,null,null,null,null,null,null,null,null,null,297]
[813,"Saturday",21,null,null,null,null,null,null,null,null,null,null,null,null,null,null,296]
[814,"Saturday",22,null,null,null,null,null,null,null,null,null,null,null,null,null,null,294]
[815,"Saturday",23,null,null,null,null,null,null,null,null,null,null,null,null,null,null,297]
[816,"Sunday",0,null,null,null,null,null,null,null,null,null,null,null,null,null,null,297]
[817,"Sunday",1,null,null,null,null,null,null,null,null,null,null,null,null,null,null,296]
[818,"Sunday",2,null,null,null,null,null,null,null,null,null,null,null,null,null,null,295]
[819,"Sunday",3,null,null,null,null,null,null,null,null,null,null,null,null,null,null,297]
[820,"Sunday",4,null,null,null,null,null,null,null,null,null,null,null,null,null,null,299]
[821,"Sunday",5,null,null,null,null,null,null,null,null,null,null,null,null,null,null,299]
[822,"Sunday",6,null,null,null,null,null,null,null,null,null,null,null,null,null,null,296]
[823,"Sunday",7,null,null,null,null,null,null,null,null,null,null,null,null,null,null,296]
[824,"Sunday",8,null,null,null,null,null,null,null,null,null,null,null,null,null,null,300]
[825,"Sunday",9,null,null,null,null,null,null,null,null,null,null,null,null,null,null,301]
[826,"Sunday",10,null,null,null,null,null,null,null,null,null,null,null,null,null,null,302]
[827,"Sunday",11,null,null,null,null,null,null,null,null,null,null,null,null,null,null,299]
[828,"Sunday",12,null,null,null,null,null,null,null,null,null,null,null,null,null,null,295]
[829,"Sunday",13,null,null,null,null,null,null,null,null,null,null,null,null,null,null,295]
[830,"Sunday",14,null,null,null,null,null,null,null,null,null,null,null,null,null,null,293]
[831,"Sunday",15,null,null,null,null,null,null,null,null,null,null,null,null,null,null,296]
[832,"Sunday",16,null,null,null,null,null,null,null,null,null,null,null,null,null,null,299]
[833,"Sunday",17,null,null,null,null,null,null,null,null,null,null,null,null,null,null,299]
[834,"Sunday",18,null,null,null,null,null,null,null,null,null,null,null,null,null,null,299]
[835,"Sunday",19,null,null,null,null,null,null,null,null,null,null,null,null,null,null,297]
[836,"Sunday",20,null,null,null,null,null,null,null,null,null,null,null,null,null,null,300]
[837,"Sunday",21,null,null,null,null,null,null,null,null,null,null,null,null,null,null,299]
[838,"Sunday",22,null,null,null,null,null,null,null,null,null,null,null,null,null,null,300]
[839,"Sunday",23,null,null,null,null,null,null,null,null,null,null,null,null,null,null,299]
[840,"Monday",0,null,null,null,null,null,null,null,null,null,null,null,null,null,null,294]
[841,"Monday",1,null,null,null,null,null,null,null,null,null,null,null,null,null,null,296]
[842,"Monday",2,null,null,null,null,null,null,null,null,null,null,null,null,null,null,296]
[843,"Monday",3,null,null,null,null,null,null,null,null,null,null,null,null,null,null,295]
[844,"Monday",4,null,null,null,null,null,null,null,null,null,null,null,null,null,null,296]
[845,"Monday",5,null,null,null,null,null,null,null,null,null,null,null,null,null,null,297]
[846,"Monday",6,null,null,null,null,null,null,null,null,null,null,null,null,null,null,299]
[847,"Monday",7,null,null,null,null,null,null,null,null,null,null,null,null,null,null,299]
[848,"Monday",8,null,null,null,null,null,null,null,null,null,null,null,null,null,null,298]
[849,"Monday",9,null,null,null,null,null,null,null,null,null,null,null,null,null,null,299]
[850,"Monday",10,null,null,null,null,null,null,null,null,null,null,null,null,null,null,300]
[851,"Monday",11,null,null,null,null,null,null,null,null,null,null,null,null,null,null,301]
[852,"Monday",12,null,null,null,null,null,null,null,null,null,null,null,null,null,null,300]
[853,"Monday",13,null,null,null,null,null,null,null,null,null,null,null,null,null,null,296]
[854,"Monday",14,null,null,null,null,null,null,null,null,null,null,null,null,null,null,294]
[855,"Monday",15,null,null,null,null,null,null,null,null,null,null,null,null,null,null,294]
[856,"Monday",16,null,null,null,null,null,null,null,null,null,null,null,null,null,null,295]
[857,"Monday",{"$f":"C835","v":17},null,null,null,null,null,null,null,null,null,null,null,null,null,null,298]
[858,"Monday",18,null,null,null,null,null,null,null,null,null,null,null,null,null,null,299]
[859,"Monday",19,null,null,null,null,null,null,null,null,null,null,null,null,null,null,299]
[860,"Monday",20,null,null,null,null,null,null,null,null,null,null,null,null,null,null,299]
[861,"Monday",21,null,null,null,null,null,null,null,null,null,null,null,null,null,null,301]
[862,"Monday",22,null,null,null,null,null,null,null,null,null,null,null,null,null,null,300]
[863,"Monday",23,null,null,null,null,null,null,null,null,null,null,null,null,null,null,301]
[864,"Tuesday",0,null,null,null,null,null,null,null,null,null,null,null,null,null,null,301]
[865,"Tuesday",1,null,null,null,null,null,null,null,null,null,null,null,null,null,null,298]
[866,"Tuesday",2,null,null,null,null,null,null,null,null,null,null,null,null,null,null,295]
[867,"Tuesday",3,null,null,null,null,null,null,null,null,null,null,null,null,null,null,296]
[868,"Tuesday",4,null,null,null,null,null,null,null,null,null,null,null,null,null,null,299]
[869,"Tuesday",5,null,null,null,null,null,null,null,null,null,null,null,null,null,null,296]
[870,"Tuesday",6,null,null,null,null,null,null,null,null,null,null,null,null,null,null,296]
[871,"Tuesday",7,null,null,null,null,null,null,null,null,null,null,null,null,null,null,298]
[872,"Tuesday",8,null,null,null,null,null,null,null,null,null,null,null,null,null,null,298]
[873,{"$f":"B707","v":"Tuesday"},9,null,null,null,null,null,null,null,null,null,null,null,null,null,null,297]
[{"$f":"A875+1","v":874},"Tuesday",10,null,null,null,null,null,null,null,null,null,null,null,null,null,null,300]
[875,"Tuesday",11,null,null,null,null,null,null,null,null,null,null,null,null,null,null,303]
[876,"Tuesday",12,null,null,null,null,null,null,null,null,null,null,null,null,null,null,304]
[877,"Tuesday",13,null,null,null,null,null,null,null,null,null,null,null,null,null,null,308]
[878,"Tuesday",14,null,null,null,null,null,null,null,null,null,null,null,null,null,null,312]
[879,"Tuesday",15,null,null,null,null,null,null,null,null,null,null,null,null,null,null,312]
[880,"Tuesday",16,null,null,null,null,null,null,null,null,null,null,null,null,null,null,309]
[881,"Tuesday",17,null,null,null,null,null,null,null,null,null,null,null,null,null,null,311]
[882,"Tuesday",18,null,null,null,null,null,null,null,null,null,null,null,null,null,null,312]
[883,"Tuesday",19,null,null,null,null,null,null,null,null,null,null,null,null,null,null,309]
[884,"Tuesday",20,null,null,null,null,null,null,null,null,null,null,null,null,null,null,310]
[885,"Tuesday",21,null,null,null,null,null,null,null,null,null,null,null,null,null,null,309]
[886,"Tuesday",22,null,null,null,null,null,null,null,null,null,null,null,null,null,null,310]
[887,"Tuesday",23,null,null,null,null,null,null,null,null,null,null,null,null,null,null,317]
[888,"Wednesday",0,null,null,null,null,null,null,null,null,null,null,null,null,null,null,320]
[889,"Wednesday",1,null,null,null,null,null,null,null,null,null,null,null,null,null,null,321]
[890,"Wednesday",2,null,null,null,null,null,null,null,null,null,null,null,null,null,null,321]
[891,"Wednesday",3,null,null,null,null,null,null,null,null,null,null,null,null,null,null,321]
[892,"Wednesday",4,null,null,null,null,null,null,null,null,null,null,null,null,null,null,321]
[893,"Wednesday",5,null,null,null,null,null,null,null,null,null,null,null,null,null,null,318]
[894,"Wednesday",6,null,null,null,null,null,null,null,null,null,null,null,null,null,null,316]
[895,"Wednesday",7,null,null,null,null,null,null,null,null,null,null,null,null,null,null,315]
[896,"Wednesday",8,null,null,null,null,null,null,null,null,null,null,null,null,null,null,317]
[897,"Wednesday",9,null,null,null,null,null,null,null,null,null,null,null,null,null,null,320]
[898,"Wednesday",10,null,null,null,null,null,null,null,null,null,null,null,null,null,null,321]
[899,"Wednesday",11,null,null,null,null,null,null,null,null,null,null,null,null,null,null,322]
[900,"Wednesday",12,null,null,null,null,null,null,null,null,null,null,null,null,null,null,324]
[901,"Wednesday",13,null,null,null,null,null,null,null,null,null,null,null,null,null,null,325]
[902,"Wednesday",14,null,null,null,null,null,null,null,null,null,null,null,null,null,null,323]
[903,"Wednesday",15,null,null,null,null,null,null,null,null,null,null,null,null,null,null,320]
[904,"Wednesday",16,null,null,null,null,null,null,null,null,null,null,null,null,null,null,321]
[905,"Wednesday",17,null,null,null,null,null,null,null,null,null,null,null,null,null,null,321]
[906,"Wednesday",18,null,null,null,null,null,null,null,null,null,null,null,null,null,null,318]
[907,"Wednesday",19,null,null,null,null,null,null,null,null,null,null,null,null,null,null,320]
[908,"Wednesday",20,null,null,null,null,null,null,null,null,null,null,null,null,null,null,323]
[909,"Wednesday",21,null,null,null,null,null,null,null,null,null,null,null,null,null,null,324]
[910,"Wednesday",22,null,null,null,null,null,null,null,null,null,null,null,null,null,null,322]
[911,"Wednesday",23,null,null,null,null,null,null,null,null,null,null,null,null,null,null,324]
[912,"Thursday",0,null,null,null,null,null,null,null,null,null,null,null,null,null,null,328]
[913,"Thursday",1,null,null,null,null,null,null,null,null,null,null,null,null,null,null,329]
[914,"Thursday",2,null,null,null,null,null,null,null,null,null,null,null,null,null,null,327]
[915,"Thursday",3,null,null,null,null,null,null,null,null,null,null,null,null,null,null,324]
[916,"Thursday",4,null,null,null,null,null,null,null,null,null,null,null,null,null,null,321]
[917,"Thursday",5,null,null,null,null,null,null,null,null,null,null,null,null,null,null,319]
[918,"Thursday",6,null,null,null,null,null,null,null,null,null,null,null,null,null,null,319]
[919,"Thursday",7,null,null,null,null,null,null,null,null,null,null,null,null,null,null,323]
[920,"Thursday",8,null,null,null,null,null,null,null,null,null,null,null,null,null,null,322]
[921,"Thursday",{"$f":"C899","v":9},null,null,null,null,null,null,null,null,null,null,null,null,null,null,326]
[922,"Thursday",10,null,null,null,null,null,null,null,null,null,null,null,null,null,null,325]
[923,"Thursday",11,null,null,null,null,null,null,null,null,null,null,null,null,null,null,326]
[924,"Thursday",12,null,null,null,null,null,null,null,null,null,null,null,null,null,null,326]
[925,"Thursday",13,null,null,null,null,null,null,null,null,null,null,null,null,null,null,323]
[926,"Thursday",14,null,null,null,null,null,null,null,null,null,null,null,null,null,null,320]
[927,"Thursday",15,null,null,null,null,null,null,null,null,null,null,null,null,null,null,320]
[928,"Thursday",16,null,null,null,null,null,null,null,null,null,null,null,null,null,null,317]
[929,"Thursday",17,null,null,null,null,null,null,null,null,null,null,null,null,null,null,319]
[930,"Thursday",18,null,null,null,null,null,null,null,null,null,null,null,null,null,null,322]
[931,"Thursday",19,null,null,null,null,null,null,null,null,null,null,null,null,null,null,323]
[932,"Thursday",20,null,null,null,null,null,null,null,null,null,null,null,null,null,null,324]
[933,"Thursday",21,null,null,null,null,null,null,null,null,null,null,null,null,null,null,325]
[934,"Thursday",22,null,null,null,null,null,null,null,null,null,null,null,null,null,null,328]
[935,"Thursday",23,null,null,null,null,null,null,null,null,null,null,null,null,null,null,326]
[936,"Friday",0,null,null,null,null,null,null,null,null,null,null,null,null,null,null,324]
[937,{"$f":"B771","v":"Friday"},1,null,null,null,null,null,null,null,null,null,null,null,null,null,null,323]
[{"$f":"A939+1","v":938},"Friday",2,null,null,null,null,null,null,null,null,null,null,null,null,null,null,320]
[939,"Friday",3,null,null,null,null,null,null,null,null,null,null,null,null,null,null,316]
[940,"Friday",4,null,null,null,null,null,null,null,null,null,null,null,null,null,null,318]
[941,"Friday",5,null,null,null,null,null,null,null,null,null,null,null,null,null,null,321]
[942,"Friday",6,null,null,null,null,null,null,null,null,null,null,null,null,null,null,322]
[943,"Friday",7,null,null,null,null,null,null,null,null,null,null,null,null,null,null,322]
[944,"Friday",8,null,null,null,null,null,null,null,null,null,null,null,null,null,null,325]
[945,"Friday",9,null,null,null,null,null,null,null,null,null,null,null,null,null,null,325]
[946,"Friday",10,null,null,null,null,null,null,null,null,null,null,null,null,null,null,326]
[947,"Friday",11,null,null,null,null,null,null,null,null,null,null,null,null,null,null,327]
[948,"Friday",12,null,null,null,null,null,null,null,null,null,null,null,null,null,null,325]
[949,"Friday",13,null,null,null,null,null,null,null,null,null,null,null,null,null,null,324]
[950,"Friday",14,null,null,null,null,null,null,null,null,null,null,null,null,null,null,323]
[951,"Friday",15,null,null,null,null,null,null,null,null,null,null,null,null,null,null,321]
[952,"Friday",16,null,null,null,null,null,null,null,null,null,null,null,null,null,null,322]
[953,"Friday",17,null,null,null,null,null,null,null,null,null,null,null,null,null,null,322]
[954,"Friday",18,null,null,null,null,null,null,null,null,null,null,null,null,null,null,323]
[955,"Friday",19,null,null,null,null,null,null,null,null,null,null,null,null,null,null,323]
[956,"Friday",20,null,null,null,null,null,null,null,null,null,null,null,null,null,null,321]
[957,"Friday",21,null,null,null,null,null,null,null,null,null,null,null,null,null,null,322]
[958,"Friday",22,null,null,null,null,null,null,null,null,null,null,null,null,null,null,325]
[959,"Friday",23,null,null,null,null,null,null,null,null,null,null,null,null,null,null,323]
[960,"Saturday",0,null,null,null,null,null,null,null,null,null,null,null,null,null,null,320]
[961,"Saturday",1,null,null,null,null,null,null,null,null,null,null,null,null,null,null,321]
[962,"Saturday",2,null,null,null,null,null,null,null,null,null,null,null,null,null,null,323]
[963,"Saturday",3,null,null,null,null,null,null,null,null,null,null,null,null,null,null,323]
[964,"Saturday",4,null,null,null,null,null,null,null,null,null,null,null,null,null,null,320]
[965,"Saturday",5,null,null,null,null,null,null,null,null,null,null,null,null,null,null,318]
[966,"Saturday",6,null,null,null,null,null,null,null,null,null,null,null,null,null,null,322]
[967,"Saturday",7,null,null,null,null,null,null,null,null,null,null,null,null,null,null,327]
[968,"Saturday",8,null,null,null,null,null,null,null,null,null,null,null,null,null,null,327]
[969,"Saturday",9,null,null,null,null,null,null,null,null,null,null,null,null,null,null,326]
[970,"Saturday",10,null,null,null,null,null,null,null,null,null,null,null,null,null,null,329]
[971,"Saturday",11,null,null,null,null,null,null,null,null,null,null,null,null,null,null,326]
[972,"Saturday",12,null,null,null,null,null,null,null,null,null,null,null,null,null,null,323]
[973,"Saturday",13,null,null,null,null,null,null,null,null,null,null,null,null,null,null,323]
[974,"Saturday",14,null,null,null,null,null,null,null,null,null,null,null,null,null,null,324]
[975,"Saturday",15,null,null,null,null,null,null,null,null,null,null,null,null,null,null,323]
[976,"Saturday",16,null,null,null,null,null,null,null,null,null,null,null,null,null,null,321]
[977,"Saturday",17,null,null,null,null,null,null,null,null,null,null,null,null,null,null,324]
[978,"Saturday",18,null,null,null,null,null,null,null,null,null,null,null,null,null,null,327]
[979,"Saturday",19,null,null,null,null,null,null,null,null,null,null,null,null,null,null,327]
[980,"Saturday",20,null,null,null,null,null,null,null,null,null,null,null,null,null,null,327]
[981,"Saturday",21,null,null,null,null,null,null,null,null,null,null,null,null,null,null,323]
[982,"Saturday",22,null,null,null,null,null,null,null,null,null,null,null,null,null,null,324]
[983,"Saturday",23,null,null,null,null,null,null,null,null,null,null,null,null,null,null,324]
[984,"Sunday",0,null,null,null,null,null,null,null,null,null,null,null,null,null,null,324]
[985,"Sunday",{"$f":"C963","v":1},null,null,null,null,null,null,null,null,null,null,null,null,null,null,324]
[986,"Sunday",2,null,null,null,null,null,null,null,null,null,null,null,null,null,null,322]
[987,"Sunday",3,null,null,null,null,null,null,null,null,null,null,null,null,null,null,319]
[988,"Sunday",4,null,null,null,null,null,null,null,null,null,null,null,null,null,null,320]
[989,"Sunday",5,null,null,null,null,null,null,null,null,null,null,null,null,null,null,323]
[990,"Sunday",6,null,null,null,null,null,null,null,null,null,null,null,null,null,null,324]
[991,"Sunday",7,null,null,null,null,null,null,null,null,null,null,null,null,null,null,324]
[992,"Sunday",8,null,null,null,null,null,null,null,null,null,null,null,null,null,null,328]
[993,"Sunday",9,null,null,null,null,null,null,null,null,null,null,null,null,null,null,328]
[994,"Sunday",10,null,null,null,null,null,null,null,null,null,null,null,null,null,null,327]
[995,"Sunday",11,null,null,null,null,null,null,null,null,null,null,null,null,null,null,327]
[996,"Sunday",12,null,null,null,null,null,null,null,null,null,null,null,null,null,null,326]
[997,"Sunday",13,null,null,null,null,null,null,null,null,null,null,null,null,null,null,324]
[998,"Sunday",14,null,null,null,null,null,null,null,null,null,null,null,null,null,null,324]
[999,"Sunday",15,null,null,null,null,null,null,null,null,null,null,null,null,null,null,326]
[1000,"Sunday",16,null,null,null,null,null,null,null,null,null,null,null,null,null,null,325]
[1001,{"$f":"B835","v":"Sunday"},17,null,null,null,null,null,null,null,null,null,null,null,null,null,null,325]
[{"$f":"A1003+1","v":1002},"Sunday",18,null,null,null,null,null,null,null,null,null,null,null,null,null,null,327]
[1003,"Sunday",19,null,null,null,null,null,null,null,null,null,null,null,null,null,null,331]
[1004,"Sunday",20,null,null,null,null,null,null,null,null,null,null,null,null,null,null,332]
[1005,"Sunday",21,null,null,null,null,null,null,null,null,null,null,null,null,null,null,329]
[1006,"Sunday",22,null,null,null,null,null,null,null,null,null,null,null,null,null,null,329]
[1007,"Sunday",23,null,null,null,null,null,null,null,null,null,null,null,null,null,null,331]
[1008,"Monday",0,null,null,null,null,null,null,null,null,null,null,null,null,null,null,327]
[1009,"Monday",1,null,null,null,null,null,null,null,null,null,null,null,null,null,null,321]
[1010,"Monday",2,null,null,null,null,null,null,null,null,null,null,null,null,null,null,321]
[1011,"Monday",3,null,null,null,null,null,null,null,null,null,null,null,null,null,null,326]
[1012,"Monday",4,null,null,null,null,null,null,null,null,null,null,null,null,null,null,327]
[1013,"Monday",5,null,null,null,null,null,null,null,null,null,null,null,null,null,null,326]
[1014,"Monday",6,null,null,null,null,null,null,null,null,null,null,null,null,null,null,323]
[1015,"Monday",7,null,null,null,null,null,null,null,null,null,null,null,null,null,null,325]
[1016,"Monday",8,null,null,null,null,null,null,null,null,null,null,null,null,null,null,326]
[1017,"Monday",9,null,null,null,null,null,null,null,null,null,null,null,null,null,null,327]
[1018,"Monday",10,null,null,null,null,null,null,null,null,null,null,null,null,null,null,328]
[1019,"Monday",11,null,null,null,null,null,null,null,null,null,null,null,null,null,null,329]
[1020,"Monday",12,null,null,null,null,null,null,null,null,null,null,null,null,null,null,332]
[1021,"Monday",13,null,null,null,null,null,null,null,null,null,null,null,null,null,null,333]
[1022,"Monday",14,null,null,null,null,null,null,null,null,null,null,null,null,null,null,330]
[1023,"Monday",15,null,null,null,null,null,null,null,null,null,null,null,null,null,null,333]
[1024,"Monday",16,null,null,null,null,null,null,null,null,null,null,null,null,null,null,333]
[1025,"Monday",17,null,null,null,null,null,null,null,null,null,null,null,null,null,null,336]
[1026,"Monday",18,null,null,null,null,null,null,null,null,null,null,null,null,null,null,336]
[1027,"Monday",19,null,null,null,null,null,null,null,null,null,null,null,null,null,null,335]
[1028,"Monday",20,null,null,null,null,null,null,null,null,null,null,null,null,null,null,332]
[1029,"Monday",21,null,null,null,null,null,null,null,null,null,null,null,null,null,null,333]
[1030,"Monday",22,null,null,null,null,null,null,null,null,null,null,null,null,null,null,334]
[1031,"Monday",23,null,null,null,null,null,null,null,null,null,null,null,null,null,null,334]
[1032,"Tuesday",0,null,null,null,null,null,null,null,null,null,null,null,null,null,null,336]
[1033,"Tuesday",1,null,null,null,null,null,null,null,null,null,null,null,null,null,null,341]
[1034,"Tuesday",2,null,null,null,null,null,null,null,null,null,null,null,null,null,null,337]
[1035,"Tuesday",3,null,null,null,null,null,null,null,null,null,null,null,null,null,null,333]
[1036,"Tuesday",4,null,null,null,null,null,null,null,null,null,null,null,null,null,null,333]
[1037,"Tuesday",5,null,null,null,null,null,null,null,null,null,null,null,null,null,null,335]
[1038,"Tuesday",6,null,null,null,null,null,null,null,null,null,null,null,null,null,null,339]
[1039,"Tuesday",7,null,null,null,null,null,null,null,null,null,null,null,null,null,null,337]
[1040,"Tuesday",8,null,null,null,null,null,null,null,null,null,null,null,null,null,null,341]
[1041,"Tuesday",9,null,null,null,null,null,null,null,null,null,null,null,null,null,null,339]
[1042,"Tuesday",10,null,null,null,null,null,null,null,null,null,null,null,null,null,null,339]
[1043,"Tuesday",11,null,null,null,null,null,null,null,null,null,null,null,null,null,null,339]
[1044,"Tuesday",12,null,null,null,null,null,null,null,null,null,null,null,null,null,null,342]
[1045,"Tuesday",13,null,null,null,null,null,null,null,null,null,null,null,null,null,null,342]
[1046,"Tuesday",14,null,null,null,null,null,null,null,null,null,null,null,null,null,null,335]
[1047,"Tuesday",15,null,null,null,null,null,null,null,null,null,null,null,null,null,null,335]
[1048,"Tuesday",16,null,null,null,null,null,null,null,null,null,null,null,null,null,null,333]
[1049,"Tuesday",{"$f":"C1027","v":17},null,null,null,null,null,null,null,null,null,null,null,null,null,null,332]
[1050,"Tuesday",18,null,null,null,null,null,null,null,null,null,null,null,null,null,null,335]
[1051,"Tuesday",19,null,null,null,null,null,null,null,null,null,null,null,null,null,null,333]
[1052,"Tuesday",20,null,null,null,null,null,null,null,null,null,null,null,null,null,null,333]
[1053,"Tuesday",21,null,null,null,null,null,null,null,null,null,null,null,null,null,null,332]
[1054,"Tuesday",22,null,null,null,null,null,null,null,null,null,null,null,null,null,null,334]
[1055,"Tuesday",23,null,null,null,null,null,null,null,null,null,null,null,null,null,null,336]
[1056,"Wednesday",0,null,null,null,null,null,null,null,null,null,null,null,null,null,null,341]
[1057,"Wednesday",1,null,null,null,null,null,null,null,null,null,null,null,null,null,null,338]
[1058,"Wednesday",2,null,null,null,null,null,null,null,null,null,null,null,null,null,null,333]
[1059,"Wednesday",3,null,null,null,null,null,null,null,null,null,null,null,null,null,null,331]
[1060,"Wednesday",4,null,null,null,null,null,null,null,null,null,null,null,null,null,null,331]
[1061,"Wednesday",5,null,null,null,null,null,null,null,null,null,null,null,null,null,null,331]
[1062,"Wednesday",6,null,null,null,null,null,null,null,null,null,null,null,null,null,null,328]
[1063,"Wednesday",7,null,null,null,null,null,null,null,null,null,null,null,null,null,null,328]
[1064,"Wednesday",8,null,null,null,null,null,null,null,null,null,null,null,null,null,null,331]
[1065,{"$f":"B899","v":"Wednesday"},9,null,null,null,null,null,null,null,null,null,null,null,null,null,null,332]
[{"$f":"A1067+1","v":1066},"Wednesday",10,null,null,null,null,null,null,null,null,null,null,null,null,null,null,332]
[1067,"Wednesday",11,null,null,null,null,null,null,null,null,null,null,null,null,null,null,330]
[1068,"Wednesday",12,null,null,null,null,null,null,null,null,null,null,null,null,null,null,329]
[1069,"Wednesday",13,null,null,null,null,null,null,null,null,null,null,null,null,null,null,327]
[1070,"Wednesday",14,null,null,null,null,null,null,null,null,null,null,null,null,null,null,326]
[1071,"Wednesday",15,null,null,null,null,null,null,null,null,null,null,null,null,null,null,325]
[1072,"Wednesday",16,null,null,null,null,null,null,null,null,null,null,null,null,null,null,328]
[1073,"Wednesday",17,null,null,null,null,null,null,null,null,null,null,null,null,null,null,334]
[1074,"Wednesday",18,null,null,null,null,null,null,null,null,null,null,null,null,null,null,332]
[1075,"Wednesday",19,null,null,null,null,null,null,null,null,null,null,null,null,null,null,330]
[1076,"Wednesday",20,null,null,null,null,null,null,null,null,null,null,null,null,null,null,332]
[1077,"Wednesday",21,null,null,null,null,null,null,null,null,null,null,null,null,null,null,329]
[1078,"Wednesday",22,null,null,null,null,null,null,null,null,null,null,null,null,null,null,326]
[1079,"Wednesday",23,null,null,null,null,null,null,null,null,null,null,null,null,null,null,328]
[1080,"Thursday",0,null,null,null,null,null,null,null,null,null,null,null,null,null,null,329]
[1081,"Thursday",1,null,null,null,null,null,null,null,null,null,null,null,null,null,null,327]
[1082,"Thursday",2,null,null,null,null,null,null,null,null,null,null,null,null,null,null,326]
[1083,"Thursday",3,null,null,null,null,null,null,null,null,null,null,null,null,null,null,330]
[1084,"Thursday",4,null,null,null,null,null,null,null,null,null,null,null,null,null,null,331]
[1085,"Thursday",5,null,null,null,null,null,null,null,null,null,null,null,null,null,null,333]
[1086,"Thursday",6,null,null,null,null,null,null,null,null,null,null,null,null,null,null,329]
[1087,"Thursday",7,null,null,null,null,null,null,null,null,null,null,null,null,null,null,329]
[1088,"Thursday",8,null,null,null,null,null,null,null,null,null,null,null,null,null,null,328]
[1089,"Thursday",9,null,null,null,null,null,null,null,null,null,null,null,null,null,null,330]
[1090,"Thursday",10,null,null,null,null,null,null,null,null,null,null,null,null,null,null,333]
[1091,"Thursday",11,null,null,null,null,null,null,null,null,null,null,null,null,null,null,329]
[1092,"Thursday",12,null,null,null,null,null,null,null,null,null,null,null,null,null,null,329]
[1093,"Thursday",13,null,null,null,null,null,null,null,null,null,null,null,null,null,null,327]
[1094,"Thursday",14,null,null,null,null,null,null,null,null,null,null,null,null,null,null,328]
[1095,"Thursday",15,null,null,null,null,null,null,null,null,null,null,null,null,null,null,329]
[1096,"Thursday",16,null,null,null,null,null,null,null,null,null,null,null,null,null,null,330]
[1097,"Thursday",17,null,null,null,null,null,null,null,null,null,null,null,null,null,null,329]
[1098,"Thursday",18,null,null,null,null,null,null,null,null,null,null,null,null,null,null,330]
[1099,"Thursday",19,null,null,null,null,null,null,null,null,null,null,null,null,null,null,327]
[1100,"Thursday",20,null,null,null,null,null,null,null,null,null,null,null,null,null,null,322]
[1101,"Thursday",21,null,null,null,null,null,null,null,null,null,null,null,null,null,null,325]
[1102,"Thursday",22,null,null,null,null,null,null,null,null,null,null,null,null,null,null,327]
[1103,"Thursday",23,null,null,null,null,null,null,null,null,null,null,null,null,null,null,327]
[1104,"Friday",0,null,null,null,null,null,null,null,null,null,null,null,null,null,null,327]
[1105,"Friday",1,null,null,null,null,null,null,null,null,null,null,null,null,null,null,328]
[1106,"Friday",2,null,null,null,null,null,null,null,null,null,null,null,null,null,null,325]
[1107,"Friday",3,null,null,null,null,null,null,null,null,null,null,null,null,null,null,325]
[1108,"Friday",4,null,null,null,null,null,null,null,null,null,null,null,null,null,null,324]
[1109,"Friday",5,null,null,null,null,null,null,null,null,null,null,null,null,null,null,327]
[1110,"Friday",6,null,null,null,null,null,null,null,null,null,null,null,null,null,null,325]
[1111,"Friday",7,null,null,null,null,null,null,null,null,null,null,null,null,null,null,320]
[1112,"Friday",8,null,null,null,null,null,null,null,null,null,null,null,null,null,null,320]
[1113,"Friday",{"$f":"C1091","v":9},null,null,null,null,null,null,null,null,null,null,null,null,null,null,319]
[1114,"Friday",10,null,null,null,null,null,null,null,null,null,null,null,null,null,null,320]
[1115,"Friday",11,null,null,null,null,null,null,null,null,null,null,null,null,null,null,323]
[1116,"Friday",12,null,null,null,null,null,null,null,null,null,null,null,null,null,null,323]
[1117,"Friday",13,null,null,null,null,null,null,null,null,null,null,null,null,null,null,321]
[1118,"Friday",14,null,null,null,null,null,null,null,null,null,null,null,null,null,null,320]
[1119,"Friday",15,null,null,null,null,null,null,null,null,null,null,null,null,null,null,320]
[1120,"Friday",16,null,null,null,null,null,null,null,null,null,null,null,null,null,null,324]
[1121,"Friday",17,null,null,null,null,null,null,null,null,null,null,null,null,null,null,327]
[1122,"Friday",18,null,null,null,null,null,null,null,null,null,null,null,null,null,null,325]
[1123,"Friday",19,null,null,null,null,null,null,null,null,null,null,null,null,null,null,323]
[1124,"Friday",20,null,null,null,null,null,null,null,null,null,null,null,null,null,null,319]
[1125,"Friday",21,null,null,null,null,null,null,null,null,null,null,null,null,null,null,319]
[1126,"Friday",22,null,null,null,null,null,null,null,null,null,null,null,null,null,null,320]
[1127,"Friday",23,null,null,null,null,null,null,null,null,null,null,null,null,null,null,321]
[1128,"Saturday",0,null,null,null,null,null,null,null,null,null,null,null,null,null,null,320]
[1129,{"$f":"B963","v":"Saturday"},1,null,null,null,null,null,null,null,null,null,null,null,null,null,null,321]
[{"$f":"A1131+1","v":1130},"Saturday",2,null,null,null,null,null,null,null,null,null,null,null,null,null,null,320]
[1131,"Saturday",3,null,null,null,null,null,null,null,null,null,null,null,null,null,null,321]
[1132,"Saturday",4,null,null,null,null,null,null,null,null,null,null,null,null,null,null,322]
[1133,"Saturday",5,null,null,null,null,null,null,null,null,null,null,null,null,null,null,319]
[1134,"Saturday",6,null,null,null,null,null,null,null,null,null,null,null,null,null,null,323]
[1135,"Saturday",7,null,null,null,null,null,null,null,null,null,null,null,null,null,null,320]
[1136,"Saturday",8,null,null,null,null,null,null,null,null,null,null,null,null,null,null,319]
[1137,"Saturday",9,null,null,null,null,null,null,null,null,null,null,null,null,null,null,316]
[1138,"Saturday",10,null,null,null,null,null,null,null,null,null,null,null,null,null,null,317]
[1139,"Saturday",11,null,null,null,null,null,null,null,null,null,null,null,null,null,null,317]
[1140,"Saturday",12,null,null,null,null,null,null,null,null,null,null,null,null,null,null,317]
[1141,"Saturday",13,null,null,null,null,null,null,null,null,null,null,null,null,null,null,317]
[1142,"Saturday",14,null,null,null,null,null,null,null,null,null,null,null,null,null,null,319]
[1143,"Saturday",15,null,null,null,null,null,null,null,null,null,null,null,null,null,null,322]
[1144,"Saturday",16,null,null,null,null,null,null,null,null,null,null,null,null,null,null,322]
[1145,"Saturday",17,null,null,null,null,null,null,null,null,null,null,null,null,null,null,322]
[1146,"Saturday",18,null,null,null,null,null,null,null,null,null,null,null,null,null,null,318]
[1147,"Saturday",19,null,null,null,null,null,null,null,null,null,null,null,null,null,null,318]
[1148,"Saturday",20,null,null,null,null,null,null,null,null,null,null,null,null,null,null,314]
[1149,"Saturday",21,null,null,null,null,null,null,null,null,null,null,null,null,null,null,315]
[1150,"Saturday",22,null,null,null,null,null,null,null,null,null,null,null,null,null,null,317]
[1151,"Saturday",23,null,null,null,null,null,null,null,null,null,null,null,null,null,null,313]
[1152,"Sunday",0,null,null,null,null,null,null,null,null,null,null,null,null,null,null,314]
[1153,"Sunday",1,null,null,null,null,null,null,null,null,null,null,null,null,null,null,316]
[1154,"Sunday",2,null,null,null,null,null,null,null,null,null,null,null,null,null,null,316]
[1155,"Sunday",3,null,null,null,null,null,null,null,null,null,null,null,null,null,null,319]
[1156,"Sunday",4,null,null,null,null,null,null,null,null,null,null,null,null,null,null,320]
[1157,"Sunday",5,null,null,null,null,null,null,null,null,null,null,null,null,null,null,319]
[1158,"Sunday",6,null,null,null,null,null,null,null,null,null,null,null,null,null,null,319]
[1159,"Sunday",7,null,null,null,null,null,null,null,null,null,null,null,null,null,null,320]
[1160,"Sunday",8,null,null,null,null,null,null,null,null,null,null,null,null,null,null,319]
[1161,"Sunday",9,null,null,null,null,null,null,null,null,null,null,null,null,null,null,314]
[1162,"Sunday",10,null,null,null,null,null,null,null,null,null,null,null,null,null,null,312]
[1163,"Sunday",11,null,null,null,null,null,null,null,null,null,null,null,null,null,null,313]
[1164,"Sunday",12,null,null,null,null,null,null,null,null,null,null,null,null,null,null,314]
[1165,"Sunday",13,null,null,null,null,null,null,null,null,null,null,null,null,null,null,315]
[1166,"Sunday",14,null,null,null,null,null,null,null,null,null,null,null,null,null,null,318]
[1167,"Sunday",15,null,null,null,null,null,null,null,null,null,null,null,null,null,null,318]
[1168,"Sunday",16,null,null,null,null,null,null,null,null,null,null,null,null,null,null,354]
[1169,"Sunday",17,null,null,null,null,null,null,null,null,null,null,null,null,null,null,426]
[1170,"Sunday",18,null,null,null,null,null,null,null,null,null,null,null,null,null,null,480]
[1171,"Sunday",19,null,null,null,null,null,null,null,null,null,null,null,null,null,null,503]
[1172,"Sunday",20,null,null,null,null,null,null,null,null,null,null,null,null,null,null,513]
[1173,"Sunday",21,null,null,null,null,null,null,null,null,null,null,null,null,null,null,522]
[1174,"Sunday",22,null,null,null,null,null,null,null,null,null,null,null,null,null,null,561]
[1175,"Sunday",23,null,null,null,null,null,null,null,null,null,null,null,null,null,null,581]
[1176,"Monday",0,null,null,null,null,null,null,null,null,null,null,null,null,null,null,574]
[1177,"Monday",{"$f":"C1155","v":1},null,null,null,null,null,null,null,null,null,null,null,null,null,null,569]
[1178,"Monday",2,null,null,null,null,null,null,null,null,null,null,null,null,null,null,571]
[1179,"Monday",3,null,null,null,null,null,null,null,null,null,null,null,null,null,null,566]
[1180,"Monday",4,null,null,null,null,null,null,null,null,null,null,null,null,null,null,570]
[1181,"Monday",5,null,null,null,null,null,null,null,null,null,null,null,null,null,null,576]
[1182,"Monday",6,null,null,null,null,null,null,null,null,null,null,null,null,null,null,575]
[1183,"Monday",7,null,null,null,null,null,null,null,null,null,null,null,null,null,null,571]
[1184,"Monday",8,null,null,null,null,null,null,null,null,null,null,null,null,null,null,571]
[1185,"Monday",9,null,null,null,null,null,null,null,null,null,null,null,null,null,null,568]
[1186,"Monday",10,null,null,null,null,null,null,null,null,null,null,null,null,null,null,566]
[1187,"Monday",11,null,null,null,null,null,null,null,null,null,null,null,null,null,null,565]
[1188,"Monday",12,null,null,null,null,null,null,null,null,null,null,null,null,null,null,563]
[1189,"Monday",13,null,null,null,null,null,null,null,null,null,null,null,null,null,null,558]
[1190,"Monday",14,null,null,null,null,null,null,null,null,null,null,null,null,null,null,555]
[1191,"Monday",15,null,null,null,null,null,null,null,null,null,null,null,null,null,null,553]
[1192,"Monday",16,null,null,null,null,null,null,null,null,null,null,null,null,null,null,548]
[1193,{"$f":"B1027","v":"Monday"},17,null,null,null,null,null,null,null,null,null,null,null,null,null,null,544]
[{"$f":"A1195+1","v":1194},"Monday",18,null,null,null,null,null,null,null,null,null,null,null,null,null,null,543]
[1195,"Monday",19,null,null,null,null,null,null,null,null,null,null,null,null,null,null,538]
[1196,"Monday",20,null,null,null,null,null,null,null,null,null,null,null,null,null,null,530]
[1197,"Monday",21,null,null,null,null,null,null,null,null,null,null,null,null,null,null,531]
[1198,"Monday",22,null,null,null,null,null,null,null,null,null,null,null,null,null,null,531]
[1199,"Monday",23,null,null,null,null,null,null,null,null,null,null,null,null,null,null,529]
[1200,"Tuesday",0,null,null,null,null,null,null,null,null,null,null,null,null,null,null,526]
[1201,"Tuesday",1,null,null,null,null,null,null,null,null,null,null,null,null,null,null,522]
[1202,"Tuesday",2,null,null,null,null,null,null,null,null,null,null,null,null,null,null,520]
[1203,"Tuesday",3,null,null,null,null,null,null,null,null,null,null,null,null,null,null,514]
[1204,"Tuesday",4,null,null,null,null,null,null,null,null,null,null,null,null,null,null,511]
[1205,"Tuesday",5,null,null,null,null,null,null,null,null,null,null,null,null,null,null,508]
[1206,"Tuesday",6,null,null,null,null,null,null,null,null,null,null,null,null,null,null,501]
[1207,"Tuesday",7,null,null,null,null,null,null,null,null,null,null,null,null,null,null,501]
[1208,"Tuesday",8,null,null,null,null,null,null,null,null,null,null,null,null,null,null,501]
[1209,"Tuesday",9,null,null,null,null,null,null,null,null,null,null,null,null,null,null,492]
[1210,"Tuesday",10,null,null,null,null,null,null,null,null,null,null,null,null,null,null,489]
[1211,"Tuesday",11,null,null,null,null,null,null,null,null,null,null,null,null,null,null,486]
[1212,"Tuesday",12,null,null,null,null,null,null,null,null,null,null,null,null,null,null,485]
[1213,"Tuesday",13,null,null,null,null,null,null,null,null,null,null,null,null,null,null,483]
[1214,"Tuesday",14,null,null,null,null,null,null,null,null,null,null,null,null,null,null,478]
[1215,"Tuesday",15,null,null,null,null,null,null,null,null,null,null,null,null,null,null,476]
[1216,"Tuesday",16,null,null,null,null,null,null,null,null,null,null,null,null,null,null,471]
[1217,"Tuesday",17,null,null,null,null,null,null,null,null,null,null,null,null,null,null,470]
[1218,"Tuesday",18,null,null,null,null,null,null,null,null,null,null,null,null,null,null,469]
[1219,"Tuesday",19,null,null,null,null,null,null,null,null,null,null,null,null,null,null,463]
[1220,"Tuesday",20,null,null,null,null,null,null,null,null,null,null,null,null,null,null,460]
[1221,"Tuesday",21,null,null,null,null,null,null,null,null,null,null,null,null,null,null,459]
[1222,"Tuesday",22,null,null,null,null,null,null,null,null,null,null,null,null,null,null,458]
[1223,"Tuesday",23,null,null,null,null,null,null,null,null,null,null,null,null,null,null,454]
[1224,"Wednesday",0,null,null,null,null,null,null,null,null,null,null,null,null,null,null,448]
[1225,"Wednesday",1,null,null,null,null,null,null,null,null,null,null,null,null,null,null,448]
[1226,"Wednesday",2,null,null,null,null,null,null,null,null,null,null,null,null,null,null,444]
[1227,"Wednesday",3,null,null,null,null,null,null,null,null,null,null,null,null,null,null,445]
[1228,"Wednesday",4,null,null,null,null,null,null,null,null,null,null,null,null,null,null,441]
[1229,"Wednesday",5,null,null,null,null,null,null,null,null,null,null,null,null,null,null,439]
[1230,"Wednesday",6,null,null,null,null,null,null,null,null,null,null,null,null,null,null,440]
[1231,"Wednesday",7,null,null,null,null,null,null,null,null,null,null,null,null,null,null,438]
[1232,"Wednesday",8,null,null,null,null,null,null,null,null,null,null,null,null,null,null,433]
[1233,"Wednesday",9,null,null,null,null,null,null,null,null,null,null,null,null,null,null,431]
[1234,"Wednesday",10,null,null,null,null,null,null,null,null,null,null,null,null,null,null,429]
[1235,"Wednesday",11,null,null,null,null,null,null,null,null,null,null,null,null,null,null,425]
[1236,"Wednesday",12,null,null,null,null,null,null,null,null,null,null,null,null,null,null,419]
[1237,"Wednesday",13,null,null,null,null,null,null,null,null,null,null,null,null,null,null,414]
[1238,"Wednesday",14,null,null,null,null,null,null,null,null,null,null,null,null,null,null,413]
[1239,"Wednesday",15,null,null,null,null,null,null,null,null,null,null,null,null,null,null,413]
[1240,"Wednesday",16,null,null,null,null,null,null,null,null,null,null,null,null,null,null,409]
[1241,"Wednesday",{"$f":"C1219","v":17},null,null,null,null,null,null,null,null,null,null,null,null,null,null,407]
[1242,"Wednesday",18,null,null,null,null,null,null,null,null,null,null,null,null,null,null,405]
[1243,"Wednesday",19,null,null,null,null,null,null,null,null,null,null,null,null,null,null,404]
[1244,"Wednesday",20,null,null,null,null,null,null,null,null,null,null,null,null,null,null,402]
[1245,"Wednesday",21,null,null,null,null,null,null,null,null,null,null,null,null,null,null,401]
[1246,"Wednesday",22,null,null,null,null,null,null,null,null,null,null,null,null,null,null,406]
[1247,"Wednesday",23,null,null,null,null,null,null,null,null,null,null,null,null,null,null,406]
[1248,"Thursday",0,null,null,null,null,null,null,null,null,null,null,null,null,null,null,404]
[1249,"Thursday",1,null,null,null,null,null,null,null,null,null,null,null,null,null,null,403]
[1250,"Thursday",2,null,null,null,null,null,null,null,null,null,null,null,null,null,null,402]
[1251,"Thursday",3,null,null,null,null,null,null,null,null,null,null,null,null,null,null,404]
[1252,"Thursday",4,null,null,null,null,null,null,null,null,null,null,null,null,null,null,407]
[1253,"Thursday",5,null,null,null,null,null,null,null,null,null,null,null,null,null,null,404]
[1254,"Thursday",6,null,null,null,null,null,null,null,null,null,null,null,null,null,null,403]
[1255,"Thursday",7,null,null,null,null,null,null,null,null,null,null,null,null,null,null,403]
[1256,"Thursday",8,null,null,null,null,null,null,null,null,null,null,null,null,null,null,405]
[1257,{"$f":"B1091","v":"Thursday"},9,null,null,null,null,null,null,null,null,null,null,null,null,null,null,406]
[{"$f":"A1259+1","v":1258},"Thursday",10,null,null,null,null,null,null,null,null,null,null,null,null,null,null,406]
[1259,"Thursday",11,null,null,null,null,null,null,null,null,null,null,null,null,null,null,404]
[1260,"Thursday",12,null,null,null,null,null,null,null,null,null,null,null,null,null,null,401]
[1261,"Thursday",13,null,null,null,null,null,null,null,null,null,null,null,null,null,null,401]
[1262,"Thursday",14,null,null,null,null,null,null,null,null,null,null,null,null,null,null,398]
[1263,"Thursday",15,null,null,null,null,null,null,null,null,null,null,null,null,null,null,395]
[1264,"Thursday",16,null,null,null,null,null,null,null,null,null,null,null,null,null,null,396]
[1265,"Thursday",17,null,null,null,null,null,null,null,null,null,null,null,null,null,null,396]
[1266,"Thursday",18,null,null,null,null,null,null,null,null,null,null,null,null,null,null,394]
[1267,"Thursday",19,null,null,null,null,null,null,null,null,null,null,null,null,null,null,395]
[1268,"Thursday",20,null,null,null,null,null,null,null,null,null,null,null,null,null,null,393]
[1269,"Thursday",21,null,null,null,null,null,null,null,null,null,null,null,null,null,null,387]
[1270,"Thursday",22,null,null,null,null,null,null,null,null,null,null,null,null,null,null,388]
[1271,"Thursday",23,null,null,null,null,null,null,null,null,null,null,null,null,null,null,387]
[1272,"Friday",0,null,null,null,null,null,null,null,null,null,null,null,null,null,null,386]
[1273,"Friday",1,null,null,null,null,null,null,null,null,null,null,null,null,null,null,390]
[1274,"Friday",2,null,null,null,null,null,null,null,null,null,null,null,null,null,null,386]
[1275,"Friday",3,null,null,null,null,null,null,null,null,null,null,null,null,null,null,385]
[1276,"Friday",4,null,null,null,null,null,null,null,null,null,null,null,null,null,null,384]
[1277,"Friday",5,null,null,null,null,null,null,null,null,null,null,null,null,null,null,386]
[1278,"Friday",6,null,null,null,null,null,null,null,null,null,null,null,null,null,null,384]
[1279,"Friday",7,null,null,null,null,null,null,null,null,null,null,null,null,null,null,379]
[1280,"Friday",8,null,null,null,null,null,null,null,null,null,null,null,null,null,null,375]
[1281,"Friday",9,null,null,null,null,null,null,null,null,null,null,null,null,null,null,373]
[1282,"Friday",10,null,null,null,null,null,null,null,null,null,null,null,null,null,null,373]
[1283,"Friday",11,null,null,null,null,null,null,null,null,null,null,null,null,null,null,373]
[1284,"Friday",12,null,null,null,null,null,null,null,null,null,null,null,null,null,null,374]
[1285,"Friday",13,null,null,null,null,null,null,null,null,null,null,null,null,null,null,368]
[1286,"Friday",14,null,null,null,null,null,null,null,null,null,null,null,null,null,null,366]
[1287,"Friday",15,null,null,null,null,null,null,null,null,null,null,null,null,null,null,369]
[1288,"Friday",16,null,null,null,null,null,null,null,null,null,null,null,null,null,null,367]
[1289,"Friday",17,null,null,null,null,null,null,null,null,null,null,null,null,null,null,371]
[1290,"Friday",18,null,null,null,null,null,null,null,null,null,null,null,null,null,null,365]
[1291,"Friday",19,null,null,null,null,null,null,null,null,null,null,null,null,null,null,362]
[1292,"Friday",20,null,null,null,null,null,null,null,null,null,null,null,null,null,null,365]
[1293,"Friday",21,null,null,null,null,null,null,null,null,null,null,null,null,null,null,366]
[1294,"Friday",22,null,null,null,null,null,null,null,null,null,null,null,null,null,null,368]
[1295,"Friday",23,null,null,null,null,null,null,null,null,null,null,null,null,null,null,369]
[1296,"Saturday",0,null,null,null,null,null,null,null,null,null,null,null,null,null,null,370]
[1297,"Saturday",1,null,null,null,null,null,null,null,null,null,null,null,null,null,null,368]
[1298,"Saturday",2,null,null,null,null,null,null,null,null,null,null,null,null,null,null,364]
[1299,"Saturday",3,null,null,null,null,null,null,null,null,null,null,null,null,null,null,364]
[1300,"Saturday",4,null,null,null,null,null,null,null,null,null,null,null,null,null,null,365]
[1301,"Saturday",5,null,null,null,null,null,null,null,null,null,null,null,null,null,null,365]
[1302,"Saturday",6,null,null,null,null,null,null,null,null,null,null,null,null,null,null,365]
[1303,"Saturday",7,null,null,null,null,null,null,null,null,null,null,null,null,null,null,364]
[1304,"Saturday",8,null,null,null,null,null,null,null,null,null,null,null,null,null,null,363]
[1305,"Saturday",{"$f":"C1283","v":9},null,null,null,null,null,null,null,null,null,null,null,null,null,null,361]
[1306,"Saturday",10,null,null,null,null,null,null,null,null,null,null,null,null,null,null,361]
[1307,"Saturday",11,null,null,null,null,null,null,null,null,null,null,null,null,null,null,363]
[1308,"Saturday",12,null,null,null,null,null,null,null,null,null,null,null,null,null,null,362]
[1309,"Saturday",13,null,null,null,null,null,null,null,null,null,null,null,null,null,null,362]
[1310,"Saturday",14,null,null,null,null,null,null,null,null,null,null,null,null,null,null,364]
[1311,"Saturday",15,null,null,null,null,null,null,null,null,null,null,null,null,null,null,365]
[1312,"Saturday",16,null,null,null,null,null,null,null,null,null,null,null,null,null,null,365]
[1313,"Saturday",17,null,null,null,null,null,null,null,null,null,null,null,null,null,null,364]
[1314,"Saturday",18,null,null,null,null,null,null,null,null,null,null,null,null,null,null,364]
[1315,"Saturday",19,null,null,null,null,null,null,null,null,null,null,null,null,null,null,362]
[1316,"Saturday",20,null,null,null,null,null,null,null,null,null,null,null,null,null,null,359]
[1317,"Saturday",21,null,null,null,null,null,null,null,null,null,null,null,null,null,null,358]
[1318,"Saturday",22,null,null,null,null,null,null,null,null,null,null,null,null,null,null,356]
[1319,"Saturday",23,null,null,null,null,null,null,null,null,null,null,null,null,null,null,353]
[1320,"Sunday",0,null,null,null,null,null,null,null,null,null,null,null,null,null,null,353]
[1321,{"$f":"B1155","v":"Sunday"},1,null,null,null,null,null,null,null,null,null,null,null,null,null,null,351]
[{"$f":"A1323+1","v":1322},"Sunday",2,null,null,null,null,null,null,null,null,null,null,null,null,null,null,350]
[1323,"Sunday",3,null,null,null,null,null,null,null,null,null,null,null,null,null,null,349]
[1324,"Sunday",4,null,null,null,null,null,null,null,null,null,null,null,null,null,null,348]
[1325,"Sunday",5,null,null,null,null,null,null,null,null,null,null,null,null,null,null,348]
[1326,"Sunday",6,null,null,null,null,null,null,null,null,null,null,null,null,null,null,346]
[1327,"Sunday",7,null,null,null,null,null,null,null,null,null,null,null,null,null,null,345]
[1328,"Sunday",8,null,null,null,null,null,null,null,null,null,null,null,null,null,null,349]
[1329,"Sunday",9,null,null,null,null,null,null,null,null,null,null,null,null,null,null,350]
[1330,"Sunday",10,null,null,null,null,null,null,null,null,null,null,null,null,null,null,346]
[1331,"Sunday",11,null,null,null,null,null,null,null,null,null,null,null,null,null,null,345]
[1332,"Sunday",12,null,null,null,null,null,null,null,null,null,null,null,null,null,null,351]
[1333,"Sunday",13,null,null,null,null,null,null,null,null,null,null,null,null,null,null,352]
[1334,"Sunday",14,null,null,null,null,null,null,null,null,null,null,null,null,null,null,349]
[1335,"Sunday",15,null,null,null,null,null,null,null,null,null,null,null,null,null,null,350]
[1336,"Sunday",16,null,null,null,null,null,null,null,null,null,null,null,null,null,null,348]
[1337,"Sunday",17,null,null,null,null,null,null,null,null,null,null,null,null,null,null,347]
[1338,"Sunday",18,null,null,null,null,null,null,null,null,null,null,null,null,null,null,349]
[1339,"Sunday",19,null,null,null,null,null,null,null,null,null,null,null,null,null,null,351]
[1340,"Sunday",20,null,null,null,null,null,null,null,null,null,null,null,null,null,null,349]
[1341,"Sunday",21,null,null,null,null,null,null,null,null,null,null,null,null,null,null,351]
[1342,"Sunday",22,null,null,null,null,null,null,null,null,null,null,null,null,null,null,350]
[1343,"Sunday",23,null,null,null,null,null,null,null,null,null,null,null,null,null,null,345]
[1344,"Monday",0,null,null,null,null,null,null,null,null,null,null,null,null,null,null,346]
[1345,"Monday",1,null,null,null,null,null,null,null,null,null,null,null,null,null,null,351]
[1346,"Monday",2,null,null,null,null,null,null,null,null,null,null,null,null,null,null,352]
[1347,"Monday",3,null,null,null,null,null,null,null,null,null,null,null,null,null,null,349]
[1348,"Monday",4,null,null,null,null,null,null,null,null,null,null,null,null,null,null,345]
[1349,"Monday",5,null,null,null,null,null,null,null,null,null,null,null,null,null,null,348]
[1350,"Monday",6,null,null,null,null,null,null,null,null,null,null,null,null,null,null,346]
[1351,"Monday",7,null,null,null,null,null,null,null,null,null,null,null,null,null,null,346]
[1352,"Monday",8,null,null,null,null,null,null,null,null,null,null,null,null,null,null,344]
[1353,"Monday",9,null,null,null,null,null,null,null,null,null,null,null,null,null,null,343]
[1354,"Monday",10,null,null,null,null,null,null,null,null,null,null,null,null,null,null,343]
[1355,"Monday",11,null,null,null,null,null,null,null,null,null,null,null,null,null,null,343]
[1356,"Monday",12,null,null,null,null,null,null,null,null,null,null,null,null,null,null,344]
[1357,"Monday",13,null,null,null,null,null,null,null,null,null,null,null,null,null,null,344]
[1358,"Monday",14,null,null,null,null,null,null,null,null,null,null,null,null,null,null,341]
[1359,"Monday",15,null,null,null,null,null,null,null,null,null,null,null,null,null,null,339]
[1360,"Monday",16,null,null,null,null,null,null,null,null,null,null,null,null,null,null,338]
[1361,"Monday",17,null,null,null,null,null,null,null,null,null,null,null,null,null,null,338]
[1362,"Monday",18,null,null,null,null,null,null,null,null,null,null,null,null,null,null,334]
[1363,"Monday",19,null,null,null,null,null,null,null,null,null,null,null,null,null,null,334]
[1364,"Monday",20,null,null,null,null,null,null,null,null,null,null,null,null,null,null,335]
[1365,"Monday",21,null,null,null,null,null,null,null,null,null,null,null,null,null,null,334]
[1366,"Monday",22,null,null,null,null,null,null,null,null,null,null,null,null,null,null,332]
[1367,"Monday",23,null,null,null,null,null,null,null,null,null,null,null,null,null,null,329]
[1368,"Tuesday",0,null,null,null,null,null,null,null,null,null,null,null,null,null,null,329]
[1369,"Tuesday",{"$f":"C1347","v":1},null,null,null,null,null,null,null,null,null,null,null,null,null,null,334]
[1370,"Tuesday",2,null,null,null,null,null,null,null,null,null,null,null,null,null,null,337]
[1371,"Tuesday",3,null,null,null,null,null,null,null,null,null,null,null,null,null,null,333]
[1372,"Tuesday",4,null,null,null,null,null,null,null,null,null,null,null,null,null,null,333]
[1373,"Tuesday",5,null,null,null,null,null,null,null,null,null,null,null,null,null,null,334]
[1374,"Tuesday",6,null,null,null,null,null,null,null,null,null,null,null,null,null,null,333]
[1375,"Tuesday",7,null,null,null,null,null,null,null,null,null,null,null,null,null,null,335]
[1376,"Tuesday",8,null,null,null,null,null,null,null,null,null,null,null,null,null,null,336]
[1377,"Tuesday",9,null,null,null,null,null,null,null,null,null,null,null,null,null,null,336]
[1378,"Tuesday",10,null,null,null,null,null,null,null,null,null,null,null,null,null,null,335]
[1379,"Tuesday",11,null,null,null,null,null,null,null,null,null,null,null,null,null,null,338]
[1380,"Tuesday",12,null,null,null,null,null,null,null,null,null,null,null,null,null,null,337]
[1381,"Tuesday",13,null,null,null,null,null,null,null,null,null,null,null,null,null,null,337]
[1382,"Tuesday",14,null,null,null,null,null,null,null,null,null,null,null,null,null,null,337]
[1383,"Tuesday",15,null,null,null,null,null,null,null,null,null,null,null,null,null,null,335]
[1384,"Tuesday",16,null,null,null,null,null,null,null,null,null,null,null,null,null,null,335]
[1385,{"$f":"B1219","v":"Tuesday"},17,null,null,null,null,null,null,null,null,null,null,null,null,null,null,332]
[{"$f":"A1387+1","v":1386},"Tuesday",18,null,null,null,null,null,null,null,null,null,null,null,null,null,null,334]
[1387,"Tuesday",19,null,null,null,null,null,null,null,null,null,null,null,null,null,null,334]
[1388,"Tuesday",20,null,null,null,null,null,null,null,null,null,null,null,null,null,null,334]
[1389,"Tuesday",21,null,null,null,null,null,null,null,null,null,null,null,null,null,null,332]
[1390,"Tuesday",22,null,null,null,null,null,null,null,null,null,null,null,null,null,null,330]
[1391,"Tuesday",23,null,null,null,null,null,null,null,null,null,null,null,null,null,null,330]
[1392,"Wednesday",0,null,null,null,null,null,null,null,null,null,null,null,null,null,null,329]
[1393,"Wednesday",1,null,null,null,null,null,null,null,null,null,null,null,null,null,null,331]
[1394,"Wednesday",2,null,null,null,null,null,null,null,null,null,null,null,null,null,null,331]
[1395,"Wednesday",3,null,null,null,null,null,null,null,null,null,null,null,null,null,null,329]
[1396,"Wednesday",4,null,null,null,null,null,null,null,null,null,null,null,null,null,null,329]
[1397,"Wednesday",5,null,null,null,null,null,null,null,null,null,null,null,null,null,null,327]
[1398,"Wednesday",6,null,null,null,null,null,null,null,null,null,null,null,null,null,null,326]
[1399,"Wednesday",7,null,null,null,null,null,null,null,null,null,null,null,null,null,null,326]
[1400,"Wednesday",8,null,null,null,null,null,null,null,null,null,null,null,null,null,null,325]
[1401,"Wednesday",9,null,null,null,null,null,null,null,null,null,null,null,null,null,null,323]
[1402,"Wednesday",10,null,null,null,null,null,null,null,null,null,null,null,null,null,null,324]
[1403,"Wednesday",11,null,null,null,null,null,null,null,null,null,null,null,null,null,null,326]
[1404,"Wednesday",12,null,null,null,null,null,null,null,null,null,null,null,null,null,null,331]
[1405,"Wednesday",13,null,null,null,null,null,null,null,null,null,null,null,null,null,null,330]
[1406,"Wednesday",14,null,null,null,null,null,null,null,null,null,null,null,null,null,null,328]
[1407,"Wednesday",15,null,null,null,null,null,null,null,null,null,null,null,null,null,null,331]
[1408,"Wednesday",16,null,null,null,null,null,null,null,null,null,null,null,null,null,null,334]
[1409,"Wednesday",17,null,null,null,null,null,null,null,null,null,null,null,null,null,null,330]
[1410,"Wednesday",18,null,null,null,null,null,null,null,null,null,null,null,null,null,null,328]
[1411,"Wednesday",19,null,null,null,null,null,null,null,null,null,null,null,null,null,null,329]
[1412,"Wednesday",20,null,null,null,null,null,null,null,null,null,null,null,null,null,null,330]
[1413,"Wednesday",21,null,null,null,null,null,null,null,null,null,null,null,null,null,null,331]
[1414,"Wednesday",22,null,null,null,null,null,null,null,null,null,null,null,null,null,null,332]
[1415,"Wednesday",23,null,null,null,null,null,null,null,null,null,null,null,null,null,null,330]
[1416,"Thursday",0,null,null,null,null,null,null,null,null,null,null,null,null,null,null,331]
[1417,"Thursday",1,null,null,null,null,null,null,null,null,null,null,null,null,null,null,331]
[1418,"Thursday",2,null,null,null,null,null,null,null,null,null,null,null,null,null,null,330]
[1419,"Thursday",3,null,null,null,null,null,null,null,null,null,null,null,null,null,null,329]
[1420,"Thursday",4,null,null,null,null,null,null,null,null,null,null,null,null,null,null,332]
[1421,"Thursday",5,null,null,null,null,null,null,null,null,null,null,null,null,null,null,331]
[1422,"Thursday",6,null,null,null,null,null,null,null,null,null,null,null,null,null,null,331]
[1423,"Thursday",7,null,null,null,null,null,null,null,null,null,null,null,null,null,null,327]
[1424,"Thursday",8,null,null,null,null,null,null,null,null,null,null,null,null,null,null,323]
[1425,"Thursday",9,null,null,null,null,null,null,null,null,null,null,null,null,null,null,323]
[1426,"Thursday",10,null,null,null,null,null,null,null,null,null,null,null,null,null,null,324]
[1427,"Thursday",11,null,null,null,null,null,null,null,null,null,null,null,null,null,null,324]
[1428,"Thursday",12,null,null,null,null,null,null,null,null,null,null,null,null,null,null,326]
[1429,"Thursday",13,null,null,null,null,null,null,null,null,null,null,null,null,null,null,325]
[1430,"Thursday",14,null,null,null,null,null,null,null,null,null,null,null,null,null,null,322]
[1431,"Thursday",15,null,null,null,null,null,null,null,null,null,null,null,null,null,null,326]
[1432,"Thursday",16,null,null,null,null,null,null,null,null,null,null,null,null,null,null,326]
[1433,"Thursday",{"$f":"C1411","v":17},null,null,null,null,null,null,null,null,null,null,null,null,null,null,326]
[1434,"Thursday",18,null,null,null,null,null,null,null,null,null,null,null,null,null,null,323]
[1435,"Thursday",19,null,null,null,null,null,null,null,null,null,null,null,null,null,null,320]
[1436,"Thursday",20,null,null,null,null,null,null,null,null,null,null,null,null,null,null,321]
[1437,"Thursday",21,null,null,null,null,null,null,null,null,null,null,null,null,null,null,325]
[1438,"Thursday",22,null,null,null,null,null,null,null,null,null,null,null,null,null,null,323]
[1439,"Thursday",23,null,null,null,null,null,null,null,null,null,null,null,null,null,null,324]
[1440,"Friday",0,null,null,null,null,null,null,null,null,null,null,null,null,null,null,324]
[1441,"Friday",1,null,null,null,null,null,null,null,null,null,null,null,null,null,null,325]
[1442,"Friday",2,null,null,null,null,null,null,null,null,null,null,null,null,null,null,323]
[1443,"Friday",3,null,null,null,null,null,null,null,null,null,null,null,null,null,null,322]
[1444,"Friday",4,null,null,null,null,null,null,null,null,null,null,null,null,null,null,328]
[1445,"Friday",5,null,null,null,null,null,null,null,null,null,null,null,null,null,null,327]
[1446,"Friday",6,null,null,null,null,null,null,null,null,null,null,null,null,null,null,326]
[1447,"Friday",7,null,null,null,null,null,null,null,null,null,null,null,null,null,null,327]
[1448,"Friday",8,null,null,null,null,null,null,null,null,null,null,null,null,null,null,328]
[1449,{"$f":"B1283","v":"Friday"},9,null,null,null,null,null,null,null,null,null,null,null,null,null,null,328]
[{"$f":"A1451+1","v":1450},"Friday",10,null,null,null,null,null,null,null,null,null,null,null,null,null,null,327]
[1451,"Friday",11,null,null,null,null,null,null,null,null,null,null,null,null,null,null,326]
[1452,"Friday",12,null,null,null,null,null,null,null,null,null,null,null,null,null,null,325]
[1453,"Friday",13,null,null,null,null,null,null,null,null,null,null,null,null,null,null,324]
[1454,"Friday",14,null,null,null,null,null,null,null,null,null,null,null,null,null,null,326]
[1455,"Friday",15,null,null,null,null,null,null,null,null,null,null,null,null,null,null,329]
[1456,"Friday",16,null,null,null,null,null,null,null,null,null,null,null,null,null,null,325]
[1457,"Friday",17,null,null,null,null,null,null,null,null,null,null,null,null,null,null,324]
[1458,"Friday",18,null,null,null,null,null,null,null,null,null,null,null,null,null,null,322]
[1459,"Friday",19,null,null,null,null,null,null,null,null,null,null,null,null,null,null,321]
[1460,"Friday",20,null,null,null,null,null,null,null,null,null,null,null,null,null,null,325]
[1461,"Friday",21,null,null,null,null,null,null,null,null,null,null,null,null,null,null,322]
[1462,"Friday",22,null,null,null,null,null,null,null,null,null,null,null,null,null,null,318]
[1463,"Friday",23,null,null,null,null,null,null,null,null,null,null,null,null,null,null,322]
[1464,"Saturday",0,null,null,null,null,null,null,null,null,null,null,null,null,null,null,323]
[1465,"Saturday",1,null,null,null,null,null,null,null,null,null,null,null,null,null,null,321]
[1466,"Saturday",2,null,null,null,null,null,null,null,null,null,null,null,null,null,null,320]
[1467,"Saturday",3,null,null,null,null,null,null,null,null,null,null,null,null,null,null,321]
[1468,"Saturday",4,null,null,null,null,null,null,null,null,null,null,null,null,null,null,320]
[1469,"Saturday",5,null,null,null,null,null,null,null,null,null,null,null,null,null,null,317]
[1470,"Saturday",6,null,null,null,null,null,null,null,null,null,null,null,null,null,null,320]
[1471,"Saturday",7,null,null,null,null,null,null,null,null,null,null,null,null,null,null,323]
[1472,"Saturday",8,null,null,null,null,null,null,null,null,null,null,null,null,null,null,323]
[1473,"Saturday",9,null,null,null,null,null,null,null,null,null,null,null,null,null,null,319]
[1474,"Saturday",10,null,null,null,null,null,null,null,null,null,null,null,null,null,null,320]
[1475,"Saturday",11,null,null,null,null,null,null,null,null,null,null,null,null,null,null,321]
[1476,"Saturday",12,null,null,null,null,null,null,null,null,null,null,null,null,null,null,322]
[1477,"Saturday",13,null,null,null,null,null,null,null,null,null,null,null,null,null,null,325]
[1478,"Saturday",14,null,null,null,null,null,null,null,null,null,null,null,null,null,null,325]
[1479,"Saturday",15,null,null,null,null,null,null,null,null,null,null,null,null,null,null,326]
[1480,"Saturday",16,null,null,null,null,null,null,null,null,null,null,null,null,null,null,324]
[1481,"Saturday",17,null,null,null,null,null,null,null,null,null,null,null,null,null,null,326]
[1482,"Saturday",18,null,null,null,null,null,null,null,null,null,null,null,null,null,null,327]
[1483,"Saturday",19,null,null,null,null,null,null,null,null,null,null,null,null,null,null,328]
[1484,"Saturday",20,null,null,null,null,null,null,null,null,null,null,null,null,null,null,329]
[1485,"Saturday",21,null,null,null,null,null,null,null,null,null,null,null,null,null,null,327]
[1486,"Saturday",22,null,null,null,null,null,null,null,null,null,null,null,null,null,null,327]
[1487,"Saturday",23,null,null,null,null,null,null,null,null,null,null,null,null,null,null,327]
[1488,"Sunday",0,null,null,null,null,null,null,null,null,null,null,null,null,null,null,325]
[1489,"Sunday",1,null,null,null,null,null,null,null,null,null,null,null,null,null,null,327]
[1490,"Sunday",2,null,null,null,null,null,null,null,null,null,null,null,null,null,null,329]
[1491,"Sunday",3,null,null,null,null,null,null,null,null,null,null,null,null,null,null,329]
[1492,"Sunday",4,null,null,null,null,null,null,null,null,null,null,null,null,null,null,330]
[1493,"Sunday",5,null,null,null,null,null,null,null,null,null,null,null,null,null,null,327]
[1494,"Sunday",6,null,null,null,null,null,null,null,null,null,null,null,null,null,null,328]
[1495,"Sunday",7,null,null,null,null,null,null,null,null,null,null,null,null,null,null,328]
[1496,"Sunday",8,null,null,null,null,null,null,null,null,null,null,null,null,null,null,329]
[1497,"Sunday",{"$f":"C1475","v":9},null,null,null,null,null,null,null,null,null,null,null,null,null,null,329]
[1498,"Sunday",10,null,null,null,null,null,null,null,null,null,null,null,null,null,null,328]
[1499,"Sunday",11,null,null,null,null,null,null,null,null,null,null,null,null,null,null,327]
[1500,"Sunday",12,null,null,null,null,null,null,null,null,null,null,null,null,null,null,329]
[1501,"Sunday",13,null,null,null,null,null,null,null,null,null,null,null,null,null,null,329]
[1502,"Sunday",14,null,null,null,null,null,null,null,null,null,null,null,null,null,null,328]
[1503,"Sunday",15,null,null,null,null,null,null,null,null,null,null,null,null,null,null,326]
[1504,"Sunday",16,null,null,null,null,null,null,null,null,null,null,null,null,null,null,328]
[1505,"Sunday",17,null,null,null,null,null,null,null,null,null,null,null,null,null,null,332]
[1506,"Sunday",18,null,null,null,null,null,null,null,null,null,null,null,null,null,null,332]
[1507,"Sunday",19,null,null,null,null,null,null,null,null,null,null,null,null,null,null,330]
[1508,"Sunday",20,null,null,null,null,null,null,null,null,null,null,null,null,null,null,327]
[1509,"Sunday",21,null,null,null,null,null,null,null,null,null,null,null,null,null,null,325]
[1510,"Sunday",22,null,null,null,null,null,null,null,null,null,null,null,null,null,null,325]
[1511,"Sunday",23,null,null,null,null,null,null,null,null,null,null,null,null,null,null,324]
[1512,"Monday",0,null,null,null,null,null,null,null,null,null,null,null,null,null,null,324]
[1513,{"$f":"B1347","v":"Monday"},1,null,null,null,null,null,null,null,null,null,null,null,null,null,null,328]
[{"$f":"A1515+1","v":1514},"Monday",2,null,null,null,null,null,null,null,null,null,null,null,null,null,null,326]
[1515,"Monday",3,null,null,null,null,null,null,null,null,null,null,null,null,null,null,325]
[1516,"Monday",4,null,null,null,null,null,null,null,null,null,null,null,null,null,null,326]
[1517,"Monday",5,null,null,null,null,null,null,null,null,null,null,null,null,null,null,322]
[1518,"Monday",6,null,null,null,null,null,null,null,null,null,null,null,null,null,null,323]
[1519,"Monday",7,null,null,null,null,null,null,null,null,null,null,null,null,null,null,326]
[1520,"Monday",8,null,null,null,null,null,null,null,null,null,null,null,null,null,null,323]
[1521,"Monday",9,null,null,null,null,null,null,null,null,null,null,null,null,null,null,324]
[1522,"Monday",10,null,null,null,null,null,null,null,null,null,null,null,null,null,null,326]
[1523,"Monday",11,null,null,null,null,null,null,null,null,null,null,null,null,null,null,327]
[1524,"Monday",12,null,null,null,null,null,null,null,null,null,null,null,null,null,null,326]
[1525,"Monday",13,null,null,null,null,null,null,null,null,null,null,null,null,null,null,328]
[1526,"Monday",14,null,null,null,null,null,null,null,null,null,null,null,null,null,null,328]
[1527,"Monday",15,null,null,null,null,null,null,null,null,null,null,null,null,null,null,329]
[1528,"Monday",16,null,null,null,null,null,null,null,null,null,null,null,null,null,null,330]
[1529,"Monday",17,null,null,null,null,null,null,null,null,null,null,null,null,null,null,330]
[1530,"Monday",18,null,null,null,null,null,null,null,null,null,null,null,null,null,null,328]
[1531,"Monday",19,null,null,null,null,null,null,null,null,null,null,null,null,null,null,328]
[1532,"Monday",20,null,null,null,null,null,null,null,null,null,null,null,null,null,null,325]
[1533,"Monday",21,null,null,null,null,null,null,null,null,null,null,null,null,null,null,327]
[1534,"Monday",22,null,null,null,null,null,null,null,null,null,null,null,null,null,null,328]
[1535,"Monday",23,null,null,null,null,null,null,null,null,null,null,null,null,null,null,330]
[1536,"Tuesday",0,null,null,null,null,null,null,null,null,null,null,null,null,null,null,330]
[1537,"Tuesday",1,null,null,null,null,null,null,null,null,null,null,null,null,null,null,329]
[1538,"Tuesday",2,null,null,null,null,null,null,null,null,null,null,null,null,null,null,328]
[1539,"Tuesday",3,null,null,null,null,null,null,null,null,null,null,null,null,null,null,329]
[1540,"Tuesday",4,null,null,null,null,null,null,null,null,null,null,null,null,null,null,329]
[1541,"Tuesday",5,null,null,null,null,null,null,null,null,null,null,null,null,null,null,330]
[1542,"Tuesday",6,null,null,null,null,null,null,null,null,null,null,null,null,null,null,330]
[1543,"Tuesday",7,null,null,null,null,null,null,null,null,null,null,null,null,null,null,332]
[1544,"Tuesday",8,null,null,null,null,null,null,null,null,null,null,null,null,null,null,333]
[1545,"Tuesday",9,null,null,null,null,null,null,null,null,null,null,null,null,null,null,330]
[1546,"Tuesday",10,null,null,null,null,null,null,null,null,null,null,null,null,null,null,332]
[1547,"Tuesday",11,null,null,null,null,null,null,null,null,null,null,null,null,null,null,332]
[1548,"Tuesday",12,null,null,null,null,null,null,null,null,null,null,null,null,null,null,331]
[1549,"Tuesday",13,null,null,null,null,null,null,null,null,null,null,null,null,null,null,328]
[1550,"Tuesday",14,null,null,null,null,null,null,null,null,null,null,null,null,null,null,327]
[1551,"Tuesday",15,null,null,null,null,null,null,null,null,null,null,null,null,null,null,329]
[1552,"Tuesday",16,null,null,null,null,null,null,null,null,null,null,null,null,null,null,329]
[1553,"Tuesday",17,null,null,null,null,null,null,null,null,null,null,null,null,null,null,329]
[1554,"Tuesday",18,null,null,null,null,null,null,null,null,null,null,null,null,null,null,326]
[1555,"Tuesday",19,null,null,null,null,null,null,null,null,null,null,null,null,null,null,325]
[1556,"Tuesday",20,null,null,null,null,null,null,null,null,null,null,null,null,null,null,326]
[1557,"Tuesday",21,null,null,null,null,null,null,null,null,null,null,null,null,null,null,327]
[1558,"Tuesday",22,null,null,null,null,null,null,null,null,null,null,null,null,null,null,325]
[1559,"Tuesday",23,null,null,null,null,null,null,null,null,null,null,null,null,null,null,321]
[1560,"Wednesday",0,null,null,null,null,null,null,null,null,null,null,null,null,null,null,319]
[1561,"Wednesday",{"$f":"C1539","v":1},null,null,null,null,null,null,null,null,null,null,null,null,null,null,321]
[1562,"Wednesday",2,null,null,null,null,null,null,null,null,null,null,null,null,null,null,327]
[1563,"Wednesday",3,null,null,null,null,null,null,null,null,null,null,null,null,null,null,328]
[1564,"Wednesday",4,null,null,null,null,null,null,null,null,null,null,null,null,null,null,319]
[1565,"Wednesday",5,null,null,null,null,null,null,null,null,null,null,null,null,null,null,319]
[1566,"Wednesday",6,null,null,null,null,null,null,null,null,null,null,null,null,null,null,321]
[1567,"Wednesday",7,null,null,null,null,null,null,null,null,null,null,null,null,null,null,322]
[1568,"Wednesday",8,null,null,null,null,null,null,null,null,null,null,null,null,null,null,322]
[1569,"Wednesday",9,null,null,null,null,null,null,null,null,null,null,null,null,null,null,324]
[1570,"Wednesday",10,null,null,null,null,null,null,null,null,null,null,null,null,null,null,324]
[1571,"Wednesday",11,null,null,null,null,null,null,null,null,null,null,null,null,null,null,324]
[1572,"Wednesday",12,null,null,null,null,null,null,null,null,null,null,null,null,null,null,325]
[1573,"Wednesday",13,null,null,null,null,null,null,null,null,null,null,null,null,null,null,324]
[1574,"Wednesday",14,null,null,null,null,null,null,null,null,null,null,null,null,null,null,323]
[1575,"Wednesday",15,null,null,null,null,null,null,null,null,null,null,null,null,null,null,326]
[1576,"Wednesday",16,null,null,null,null,null,null,null,null,null,null,null,null,null,null,323]
[1577,{"$f":"B1411","v":"Wednesday"},17,null,null,null,null,null,null,null,null,null,null,null,null,null,null,325]
[{"$f":"A1579+1","v":1578},"Wednesday",18,null,null,null,null,null,null,null,null,null,null,null,null,null,null,327]
[1579,"Wednesday",19,null,null,null,null,null,null,null,null,null,null,null,null,null,null,325]
[1580,"Wednesday",20,null,null,null,null,null,null,null,null,null,null,null,null,null,null,325]
[1581,"Wednesday",21,null,null,null,null,null,null,null,null,null,null,null,null,null,null,327]
[1582,"Wednesday",22,null,null,null,null,null,null,null,null,null,null,null,null,null,null,329]
[1583,"Wednesday",23,null,null,null,null,null,null,null,null,null,null,null,null,null,null,328]
[1584,"Thursday",0,null,null,null,null,null,null,null,null,null,null,null,null,null,null,326]
[1585,"Thursday",1,null,null,null,null,null,null,null,null,null,null,null,null,null,null,325]
[1586,"Thursday",2,null,null,null,null,null,null,null,null,null,null,null,null,null,null,326]
[1587,"Thursday",3,null,null,null,null,null,null,null,null,null,null,null,null,null,null,326]
[1588,"Thursday",4,null,null,null,null,null,null,null,null,null,null,null,null,null,null,326]
[1589,"Thursday",5,null,null,null,null,null,null,null,null,null,null,null,null,null,null,323]
[1590,"Thursday",6,null,null,null,null,null,null,null,null,null,null,null,null,null,null,319]
[1591,"Thursday",7,null,null,null,null,null,null,null,null,null,null,null,null,null,null,319]
[1592,"Thursday",8,null,null,null,null,null,null,null,null,null,null,null,null,null,null,318]
[1593,"Thursday",9,null,null,null,null,null,null,null,null,null,null,null,null,null,null,321]
[1594,"Thursday",10,null,null,null,null,null,null,null,null,null,null,null,null,null,null,323]
[1595,"Thursday",11,null,null,null,null,null,null,null,null,null,null,null,null,null,null,322]
[1596,"Thursday",12,null,null,null,null,null,null,null,null,null,null,null,null,null,null,325]
[1597,"Thursday",13,null,null,null,null,null,null,null,null,null,null,null,null,null,null,325]
[1598,"Thursday",14,null,null,null,null,null,null,null,null,null,null,null,null,null,null,326]
[1599,"Thursday",15,null,null,null,null,null,null,null,null,null,null,null,null,null,null,323]
[1600,"Thursday",16,null,null,null,null,null,null,null,null,null,null,null,null,null,null,327]
[1601,"Thursday",17,null,null,null,null,null,null,null,null,null,null,null,null,null,null,325]
[1602,"Thursday",18,null,null,null,null,null,null,null,null,null,null,null,null,null,null,321]
[1603,"Thursday",19,null,null,null,null,null,null,null,null,null,null,null,null,null,null,319]
[1604,"Thursday",20,null,null,null,null,null,null,null,null,null,null,null,null,null,null,321]
[1605,"Thursday",21,null,null,null,null,null,null,null,null,null,null,null,null,null,null,322]
[1606,"Thursday",22,null,null,null,null,null,null,null,null,null,null,null,null,null,null,321]
[1607,"Thursday",23,null,null,null,null,null,null,null,null,null,null,null,null,null,null,323]
[1608,"Friday",0,null,null,null,null,null,null,null,null,null,null,null,null,null,null,323]
[1609,"Friday",1,null,null,null,null,null,null,null,null,null,null,null,null,null,null,320]
[1610,"Friday",2,null,null,null,null,null,null,null,null,null,null,null,null,null,null,318]
[1611,"Friday",3,null,null,null,null,null,null,null,null,null,null,null,null,null,null,319]
[1612,"Friday",4,null,null,null,null,null,null,null,null,null,null,null,null,null,null,319]
[1613,"Friday",5,null,null,null,null,null,null,null,null,null,null,null,null,null,null,316]
[1614,"Friday",6,null,null,null,null,null,null,null,null,null,null,null,null,null,null,316]
[1615,"Friday",7,null,null,null,null,null,null,null,null,null,null,null,null,null,null,318]
[1616,"Friday",8,null,null,null,null,null,null,null,null,null,null,null,null,null,null,315]
[1617,"Friday",9,null,null,null,null,null,null,null,null,null,null,null,null,null,null,313]
[1618,"Friday",10,null,null,null,null,null,null,null,null,null,null,null,null,null,null,314]
[1619,"Friday",11,null,null,null,null,null,null,null,null,null,null,null,null,null,null,310]
[1620,"Friday",12,null,null,null,null,null,null,null,null,null,null,null,null,null,null,311]
[1621,"Friday",13,null,null,null,null,null,null,null,null,null,null,null,null,null,null,316]
[1622,"Friday",14,null,null,null,null,null,null,null,null,null,null,null,null,null,null,319]
[1623,"Friday",15,null,null,null,null,null,null,null,null,null,null,null,null,null,null,317]
[1624,"Friday",16,null,null,null,null,null,null,null,null,null,null,null,null,null,null,314]
[1625,"Friday",{"$f":"C1603","v":17},null,null,null,null,null,null,null,null,null,null,null,null,null,null,313]
[1626,"Friday",18,null,null,null,null,null,null,null,null,null,null,null,null,null,null,315]
[1627,"Friday",19,null,null,null,null,null,null,null,null,null,null,null,null,null,null,318]
[1628,"Friday",20,null,null,null,null,null,null,null,null,null,null,null,null,null,null,319]
[1629,"Friday",21,null,null,null,null,null,null,null,null,null,null,null,null,null,null,320]
[1630,"Friday",22,null,null,null,null,null,null,null,null,null,null,null,null,null,null,318]
[1631,"Friday",23,null,null,null,null,null,null,null,null,null,null,null,null,null,null,321]
[1632,"Saturday",0,null,null,null,null,null,null,null,null,null,null,null,null,null,null,319]
[1633,"Saturday",1,null,null,null,null,null,null,null,null,null,null,null,null,null,null,314]
[1634,"Saturday",2,null,null,null,null,null,null,null,null,null,null,null,null,null,null,317]
[1635,"Saturday",3,null,null,null,null,null,null,null,null,null,null,null,null,null,null,317]
[1636,"Saturday",4,null,null,null,null,null,null,null,null,null,null,null,null,null,null,313]
[1637,"Saturday",5,null,null,null,null,null,null,null,null,null,null,null,null,null,null,315]
[1638,"Saturday",6,null,null,null,null,null,null,null,null,null,null,null,null,null,null,320]
[1639,"Saturday",7,null,null,null,null,null,null,null,null,null,null,null,null,null,null,316]
[1640,"Saturday",8,null,null,null,null,null,null,null,null,null,null,null,null,null,null,313]
[1641,{"$f":"B1475","v":"Saturday"},9,null,null,null,null,null,null,null,null,null,null,null,null,null,null,317]
[{"$f":"A1643+1","v":1642},"Saturday",10,null,null,null,null,null,null,null,null,null,null,null,null,null,null,319]
[1643,"Saturday",11,null,null,null,null,null,null,null,null,null,null,null,null,null,null,317]
[1644,"Saturday",12,null,null,null,null,null,null,null,null,null,null,null,null,null,null,317]
[1645,"Saturday",13,null,null,null,null,null,null,null,null,null,null,null,null,null,null,318]
[1646,"Saturday",14,null,null,null,null,null,null,null,null,null,null,null,null,null,null,315]
[1647,"Saturday",15,null,null,null,null,null,null,null,null,null,null,null,null,null,null,316]
[1648,"Saturday",16,null,null,null,null,null,null,null,null,null,null,null,null,null,null,320]
[1649,"Saturday",17,null,null,null,null,null,null,null,null,null,null,null,null,null,null,320]
[1650,"Saturday",18,null,null,null,null,null,null,null,null,null,null,null,null,null,null,320]
[1651,"Saturday",19,null,null,null,null,null,null,null,null,null,null,null,null,null,null,318]
[1652,"Saturday",20,null,null,null,null,null,null,null,null,null,null,null,null,null,null,316]
[1653,"Saturday",21,null,null,null,null,null,null,null,null,null,null,null,null,null,null,316]
[1654,"Saturday",22,null,null,null,null,null,null,null,null,null,null,null,null,null,null,314]
[1655,"Saturday",23,null,null,null,null,null,null,null,null,null,null,null,null,null,null,316]
[1656,"Sunday",0,null,null,null,null,null,null,null,null,null,null,null,null,null,null,318]
[1657,"Sunday",1,null,null,null,null,null,null,null,null,null,null,null,null,null,null,319]
[1658,"Sunday",2,null,null,null,null,null,null,null,null,null,null,null,null,null,null,318]
[1659,"Sunday",3,null,null,null,null,null,null,null,null,null,null,null,null,null,null,316]
[1660,"Sunday",4,null,null,null,null,null,null,null,null,null,null,null,null,null,null,317]
[1661,"Sunday",5,null,null,null,null,null,null,null,null,null,null,null,null,null,null,316]
[1662,"Sunday",6,null,null,null,null,null,null,null,null,null,null,null,null,null,null,314]
[1663,"Sunday",7,null,null,null,null,null,null,null,null,null,null,null,null,null,null,312]
[1664,"Sunday",8,null,null,null,null,null,null,null,null,null,null,null,null,null,null,309]
[1665,"Sunday",9,null,null,null,null,null,null,null,null,null,null,null,null,null,null,309]
[1666,"Sunday",10,null,null,null,null,null,null,null,null,null,null,null,null,null,null,310]
[1667,"Sunday",11,null,null,null,null,null,null,null,null,null,null,null,null,null,null,311]
[1668,"Sunday",12,null,null,null,null,null,null,null,null,null,null,null,null,null,null,309]
[1669,"Sunday",13,null,null,null,null,null,null,null,null,null,null,null,null,null,null,309]
[1670,"Sunday",14,null,null,null,null,null,null,null,null,null,null,null,null,null,null,312]
[1671,"Sunday",15,null,null,null,null,null,null,null,null,null,null,null,null,null,null,308]
[1672,"Sunday",16,null,null,null,null,null,null,null,null,null,null,null,null,null,null,308]
[1673,"Sunday",17,null,null,null,null,null,null,null,null,null,null,null,null,null,null,310]
[1674,"Sunday",18,null,null,null,null,null,null,null,null,null,null,null,null,null,null,310]
[1675,"Sunday",19,null,null,null,null,null,null,null,null,null,null,null,null,null,null,312]
[1676,"Sunday",20,null,null,null,null,null,null,null,null,null,null,null,null,null,null,308]
[1677,"Sunday",21,null,null,null,null,null,null,null,null,null,null,null,null,null,null,310]
[1678,"Sunday",22,null,null,null,null,null,null,null,null,null,null,null,null,null,null,313]
[1679,"Sunday",23,null,null,null,null,null,null,null,null,null,null,null,null,null,null,314]
[1680,"Monday",0,null,null,null,null,null,null,null,null,null,null,null,null,null,null,312]
[1681,"Monday",1,null,null,null,null,null,null,null,null,null,null,null,null,null,null,309]
[1682,"Monday",2,null,null,null,null,null,null,null,null,null,null,null,null,null,null,309]
[1683,"Monday",3,null,null,null,null,null,null,null,null,null,null,null,null,null,null,313]
[1684,"Monday",4,null,null,null,null,null,null,null,null,null,null,null,null,null,null,312]
[1685,"Monday",5,null,null,null,null,null,null,null,null,null,null,null,null,null,null,314]
[1686,"Monday",6,null,null,null,null,null,null,null,null,null,null,null,null,null,null,311]
[1687,"Monday",7,null,null,null,null,null,null,null,null,null,null,null,null,null,null,310]
[1688,"Monday",8,null,null,null,null,null,null,null,null,null,null,null,null,null,null,316]
[1689,"Monday",{"$f":"C1667","v":9},null,null,null,null,null,null,null,null,null,null,null,null,null,null,312]
[1690,"Monday",10,null,null,null,null,null,null,null,null,null,null,null,null,null,null,309]
[1691,"Monday",11,null,null,null,null,null,null,null,null,null,null,null,null,null,null,311]
[1692,"Monday",12,null,null,null,null,null,null,null,null,null,null,null,null,null,null,312]
[1693,"Monday",13,null,null,null,null,null,null,null,null,null,null,null,null,null,null,314]
[1694,"Monday",14,null,null,null,null,null,null,null,null,null,null,null,null,null,null,314]
[1695,"Monday",15,null,null,null,null,null,null,null,null,null,null,null,null,null,null,313]
[1696,"Monday",16,null,null,null,null,null,null,null,null,null,null,null,null,null,null,314]
[1697,"Monday",17,null,null,null,null,null,null,null,null,null,null,null,null,null,null,313]
[1698,"Monday",18,null,null,null,null,null,null,null,null,null,null,null,null,null,null,312]
[1699,"Monday",19,null,null,null,null,null,null,null,null,null,null,null,null,null,null,310]
[1700,"Monday",20,null,null,null,null,null,null,null,null,null,null,null,null,null,null,310]
[1701,"Monday",21,null,null,null,null,null,null,null,null,null,null,null,null,null,null,307]
[1702,"Monday",22,null,null,null,null,null,null,null,null,null,null,null,null,null,null,310]
[1703,"Monday",23,null,null,null,null,null,null,null,null,null,null,null,null,null,null,313]
[1704,"Tuesday",0,null,null,null,null,null,null,null,null,null,null,null,null,null,null,312]
[1705,{"$f":"B1539","v":"Tuesday"},1,null,null,null,null,null,null,null,null,null,null,null,null,null,null,311]
[{"$f":"A1707+1","v":1706},"Tuesday",2,null,null,null,null,null,null,null,null,null,null,null,null,null,null,312]
[1707,"Tuesday",3,null,null,null,null,null,null,null,null,null,null,null,null,null,null,310]
[1708,"Tuesday",4,null,null,null,null,null,null,null,null,null,null,null,null,null,null,311]
[1709,"Tuesday",5,null,null,null,null,null,null,null,null,null,null,null,null,null,null,308]
[1710,"Tuesday",6,null,null,null,null,null,null,null,null,null,null,null,null,null,null,308]
[1711,"Tuesday",7,null,null,null,null,null,null,null,null,null,null,null,null,null,null,309]
[1712,"Tuesday",8,null,null,null,null,null,null,null,null,null,null,null,null,null,null,309]
[1713,"Tuesday",9,null,null,null,null,null,null,null,null,null,null,null,null,null,null,309]
[1714,"Tuesday",10,null,null,null,null,null,null,null,null,null,null,null,null,null,null,309]
[1715,"Tuesday",11,null,null,null,null,null,null,null,null,null,null,null,null,null,null,308]
[1716,"Tuesday",12,null,null,null,null,null,null,null,null,null,null,null,null,null,null,306]
[1717,"Tuesday",13,null,null,null,null,null,null,null,null,null,null,null,null,null,null,304]
[1718,"Tuesday",14,null,null,null,null,null,null,null,null,null,null,null,null,null,null,304]
[1719,"Tuesday",15,null,null,null,null,null,null,null,null,null,null,null,null,null,null,305]
[1720,"Tuesday",16,null,null,null,null,null,null,null,null,null,null,null,null,null,null,306]
[1721,"Tuesday",17,null,null,null,null,null,null,null,null,null,null,null,null,null,null,307]
[1722,"Tuesday",18,null,null,null,null,null,null,null,null,null,null,null,null,null,null,306]
[1723,"Tuesday",19,null,null,null,null,null,null,null,null,null,null,null,null,null,null,307]
[1724,"Tuesday",20,null,null,null,null,null,null,null,null,null,null,null,null,null,null,306]
[1725,"Tuesday",21,null,null,null,null,null,null,null,null,null,null,null,null,null,null,304]
[1726,"Tuesday",22,null,null,null,null,null,null,null,null,null,null,null,null,null,null,303]
[1727,"Tuesday",23,null,null,null,null,null,null,null,null,null,null,null,null,null,null,304]
[1728,"Wednesday",0,null,null,null,null,null,null,null,null,null,null,null,null,null,null,303]
[1729,"Wednesday",1,null,null,null,null,null,null,null,null,null,null,null,null,null,null,304]
[1730,"Wednesday",2,null,null,null,null,null,null,null,null,null,null,null,null,null,null,304]
[1731,"Wednesday",3,null,null,null,null,null,null,null,null,null,null,null,null,null,null,308]
[1732,"Wednesday",4,null,null,null,null,null,null,null,null,null,null,null,null,null,null,309]
[1733,"Wednesday",5,null,null,null,null,null,null,null,null,null,null,null,null,null,null,307]
[1734,"Wednesday",6,null,null,null,null,null,null,null,null,null,null,null,null,null,null,307]
[1735,"Wednesday",7,null,null,null,null,null,null,null,null,null,null,null,null,null,null,307]
[1736,"Wednesday",8,null,null,null,null,null,null,null,null,null,null,null,null,null,null,309]
[1737,"Wednesday",9,null,null,null,null,null,null,null,null,null,null,null,null,null,null,311]
[1738,"Wednesday",10,null,null,null,null,null,null,null,null,null,null,null,null,null,null,311]
[1739,"Wednesday",11,null,null,null,null,null,null,null,null,null,null,null,null,null,null,309]
[1740,"Wednesday",12,null,null,null,null,null,null,null,null,null,null,null,null,null,null,311]
[1741,"Wednesday",13,null,null,null,null,null,null,null,null,null,null,null,null,null,null,308]
[1742,"Wednesday",14,null,null,null,null,null,null,null,null,null,null,null,null,null,null,307]
[1743,"Wednesday",15,null,null,null,null,null,null,null,null,null,null,null,null,null,null,307]
[1744,"Wednesday",16,null,null,null,null,null,null,null,null,null,null,null,null,null,null,310]
[1745,"Wednesday",17,null,null,null,null,null,null,null,null,null,null,null,null,null,null,313]
[1746,"Wednesday",18,null,null,null,null,null,null,null,null,null,null,null,null,null,null,308]
[1747,"Wednesday",19,null,null,null,null,null,null,null,null,null,null,null,null,null,null,305]
[1748,"Wednesday",20,null,null,null,null,null,null,null,null,null,null,null,null,null,null,308]
[1749,"Wednesday",21,null,null,null,null,null,null,null,null,null,null,null,null,null,null,309]
[1750,"Wednesday",22,null,null,null,null,null,null,null,null,null,null,null,null,null,null,310]
[1751,"Wednesday",23,null,null,null,null,null,null,null,null,null,null,null,null,null,null,309]
[1752,"Thursday",0,null,null,null,null,null,null,null,null,null,null,null,null,null,null,308]
[1753,"Thursday",{"$f":"C1731","v":1},null,null,null,null,null,null,null,null,null,null,null,null,null,null,309]
[1754,"Thursday",2,null,null,null,null,null,null,null,null,null,null,null,null,null,null,308]
[1755,"Thursday",3,null,null,null,null,null,null,null,null,null,null,null,null,null,null,307]
[1756,"Thursday",4,null,null,null,null,null,null,null,null,null,null,null,null,null,null,311]
[1757,"Thursday",5,null,null,null,null,null,null,null,null,null,null,null,null,null,null,310]
[1758,"Thursday",6,null,null,null,null,null,null,null,null,null,null,null,null,null,null,309]
[1759,"Thursday",7,null,null,null,null,null,null,null,null,null,null,null,null,null,null,306]
[1760,"Thursday",8,null,null,null,null,null,null,null,null,null,null,null,null,null,null,308]
[1761,"Thursday",9,null,null,null,null,null,null,null,null,null,null,null,null,null,null,310]
[1762,"Thursday",10,null,null,null,null,null,null,null,null,null,null,null,null,null,null,306]
[1763,"Thursday",11,null,null,null,null,null,null,null,null,null,null,null,null,null,null,302]
[1764,"Thursday",12,null,null,null,null,null,null,null,null,null,null,null,null,null,null,301]
[1765,"Thursday",13,null,null,null,null,null,null,null,null,null,null,null,null,null,null,303]
[1766,"Thursday",14,null,null,null,null,null,null,null,null,null,null,null,null,null,null,304]
[1767,"Thursday",15,null,null,null,null,null,null,null,null,null,null,null,null,null,null,300]
[1768,"Thursday",16,null,null,null,null,null,null,null,null,null,null,null,null,null,null,298]
[1769,{"$f":"B1603","v":"Thursday"},17,null,null,null,null,null,null,null,null,null,null,null,null,null,null,301]
[{"$f":"A1771+1","v":1770},"Thursday",18,null,null,null,null,null,null,null,null,null,null,null,null,null,null,299]
[1771,"Thursday",19,null,null,null,null,null,null,null,null,null,null,null,null,null,null,303]
[1772,"Thursday",20,null,null,null,null,null,null,null,null,null,null,null,null,null,null,304]
[1773,"Thursday",21,null,null,null,null,null,null,null,null,null,null,null,null,null,null,301]
[1774,"Thursday",22,null,null,null,null,null,null,null,null,null,null,null,null,null,null,301]
[1775,"Thursday",23,null,null,null,null,null,null,null,null,null,null,null,null,null,null,303]
[1776,"Friday",0,null,null,null,null,null,null,null,null,null,null,null,null,null,null,304]
[1777,"Friday",1,null,null,null,null,null,null,null,null,null,null,null,null,null,null,306]
[1778,"Friday",2,null,null,null,null,null,null,null,null,null,null,null,null,null,null,308]
[1779,"Friday",3,null,null,null,null,null,null,null,null,null,null,null,null,null,null,306]
[1780,"Friday",4,null,null,null,null,null,null,null,null,null,null,null,null,null,null,305]
[1781,"Friday",5,null,null,null,null,null,null,null,null,null,null,null,null,null,null,306]
[1782,"Friday",6,null,null,null,null,null,null,null,null,null,null,null,null,null,null,305]
[1783,"Friday",7,null,null,null,null,null,null,null,null,null,null,null,null,null,null,304]
[1784,"Friday",8,null,null,null,null,null,null,null,null,null,null,null,null,null,null,305]
[1785,"Friday",9,null,null,null,null,null,null,null,null,null,null,null,null,null,null,309]
[1786,"Friday",10,null,null,null,null,null,null,null,null,null,null,null,null,null,null,310]
[1787,"Friday",11,null,null,null,null,null,null,null,null,null,null,null,null,null,null,308]
[1788,"Friday",12,null,null,null,null,null,null,null,null,null,null,null,null,null,null,308]
[1789,"Friday",13,null,null,null,null,null,null,null,null,null,null,null,null,null,null,306]
[1790,"Friday",14,null,null,null,null,null,null,null,null,null,null,null,null,null,null,304]
[1791,"Friday",15,null,null,null,null,null,null,null,null,null,null,null,null,null,null,305]
[1792,"Friday",16,null,null,null,null,null,null,null,null,null,null,null,null,null,null,305]
[1793,"Friday",17,null,null,null,null,null,null,null,null,null,null,null,null,null,null,307]
[1794,"Friday",18,null,null,null,null,null,null,null,null,null,null,null,null,null,null,308]
[1795,"Friday",19,null,null,null,null,null,null,null,null,null,null,null,null,null,null,306]
[1796,"Friday",20,null,null,null,null,null,null,null,null,null,null,null,null,null,null,303]
[1797,"Friday",21,null,null,null,null,null,null,null,null,null,null,null,null,null,null,306]
[1798,"Friday",22,null,null,null,null,null,null,null,null,null,null,null,null,null,null,306]
[1799,"Friday",23,null,null,null,null,null,null,null,null,null,null,null,null,null,null,306]
[1800,"Saturday",0,null,null,null,null,null,null,null,null,null,null,null,null,null,null,303]
[1801,"Saturday",1,null,null,null,null,null,null,null,null,null,null,null,null,null,null,303]
[1802,"Saturday",2,null,null,null,null,null,null,null,null,null,null,null,null,null,null,304]
[1803,"Saturday",3,null,null,null,null,null,null,null,null,null,null,null,null,null,null,304]
[1804,"Saturday",4,null,null,null,null,null,null,null,null,null,null,null,null,null,null,303]
[1805,"Saturday",5,null,null,null,null,null,null,null,null,null,null,null,null,null,null,304]
[1806,"Saturday",6,null,null,null,null,null,null,null,null,null,null,null,null,null,null,303]
[1807,"Saturday",7,null,null,null,null,null,null,null,null,null,null,null,null,null,null,303]
[1808,"Saturday",8,null,null,null,null,null,null,null,null,null,null,null,null,null,null,306]
[1809,"Saturday",9,null,null,null,null,null,null,null,null,null,null,null,null,null,null,308]
[1810,"Saturday",10,null,null,null,null,null,null,null,null,null,null,null,null,null,null,306]
[1811,"Saturday",11,null,null,null,null,null,null,null,null,null,null,null,null,null,null,306]
[1812,"Saturday",12,null,null,null,null,null,null,null,null,null,null,null,null,null,null,305]
[1813,"Saturday",13,null,null,null,null,null,null,null,null,null,null,null,null,null,null,306]
[1814,"Saturday",14,null,null,null,null,null,null,null,null,null,null,null,null,null,null,310]
[1815,"Saturday",15,null,null,null,null,null,null,null,null,null,null,null,null,null,null,306]
[1816,"Saturday",16,null,null,null,null,null,null,null,null,null,null,null,null,null,null,304]
[1817,"Saturday",{"$f":"C1795","v":17},null,null,null,null,null,null,null,null,null,null,null,null,null,null,305]
[1818,"Saturday",18,null,null,null,null,null,null,null,null,null,null,null,null,null,null,308]
[1819,"Saturday",19,null,null,null,null,null,null,null,null,null,null,null,null,null,null,307]
[1820,"Saturday",20,null,null,null,null,null,null,null,null,null,null,null,null,null,null,303]
[1821,"Saturday",21,null,null,null,null,null,null,null,null,null,null,null,null,null,null,305]
[1822,"Saturday",22,null,null,null,null,null,null,null,null,null,null,null,null,null,null,300]
[1823,"Saturday",23,null,null,null,null,null,null,null,null,null,null,null,null,null,null,300]
[1824,"Sunday",0,null,null,null,null,null,null,null,null,null,null,null,null,null,null,304]
[1825,"Sunday",1,null,null,null,null,null,null,null,null,null,null,null,null,null,null,302]
[1826,"Sunday",2,null,null,null,null,null,null,null,null,null,null,null,null,null,null,300]
[1827,"Sunday",3,null,null,null,null,null,null,null,null,null,null,null,null,null,null,302]
[1828,"Sunday",4,null,null,null,null,null,null,null,null,null,null,null,null,null,null,303]
[1829,"Sunday",5,null,null,null,null,null,null,null,null,null,null,null,null,null,null,299]
[1830,"Sunday",6,null,null,null,null,null,null,null,null,null,null,null,null,null,null,297]
[1831,"Sunday",7,null,null,null,null,null,null,null,null,null,null,null,null,null,null,300]
[1832,"Sunday",8,null,null,null,null,null,null,null,null,null,null,null,null,null,null,300]
[1833,{"$f":"B1667","v":"Sunday"},9,null,null,null,null,null,null,null,null,null,null,null,null,null,null,300]
[{"$f":"A1835+1","v":1834},"Sunday",10,null,null,null,null,null,null,null,null,null,null,null,null,null,null,299]
[1835,"Sunday",11,null,null,null,null,null,null,null,null,null,null,null,null,null,null,297]
[1836,"Sunday",12,null,null,null,null,null,null,null,null,null,null,null,null,null,null,301]
[1837,"Sunday",13,null,null,null,null,null,null,null,null,null,null,null,null,null,null,302]
[1838,"Sunday",14,null,null,null,null,null,null,null,null,null,null,null,null,null,null,304]
[1839,"Sunday",15,null,null,null,null,null,null,null,null,null,null,null,null,null,null,304]
[1840,"Sunday",16,null,null,null,null,null,null,null,null,null,null,null,null,null,null,304]
[1841,"Sunday",17,null,null,null,null,null,null,null,null,null,null,null,null,null,null,303]
[1842,"Sunday",18,null,null,null,null,null,null,null,null,null,null,null,null,null,null,305]
[1843,"Sunday",19,null,null,null,null,null,null,null,null,null,null,null,null,null,null,308]
[1844,"Sunday",20,null,null,null,null,null,null,null,null,null,null,null,null,null,null,305]
[1845,"Sunday",21,null,null,null,null,null,null,null,null,null,null,null,null,null,null,304]
[1846,"Sunday",22,null,null,null,null,null,null,null,null,null,null,null,null,null,null,303]
[1847,"Sunday",23,null,null,null,null,null,null,null,null,null,null,null,null,null,null,302]
[1848,"Monday",0,null,null,null,null,null,null,null,null,null,null,null,null,null,null,302]
[1849,"Monday",1,null,null,null,null,null,null,null,null,null,null,null,null,null,null,303]
[1850,"Monday",2,null,null,null,null,null,null,null,null,null,null,null,null,null,null,302]
[1851,"Monday",3,null,null,null,null,null,null,null,null,null,null,null,null,null,null,304]
[1852,"Monday",4,null,null,null,null,null,null,null,null,null,null,null,null,null,null,306]
[1853,"Monday",5,null,null,null,null,null,null,null,null,null,null,null,null,null,null,305]
[1854,"Monday",6,null,null,null,null,null,null,null,null,null,null,null,null,null,null,303]
[1855,"Monday",7,null,null,null,null,null,null,null,null,null,null,null,null,null,null,303]
[1856,"Monday",8,null,null,null,null,null,null,null,null,null,null,null,null,null,null,305]
[1857,"Monday",9,null,null,null,null,null,null,null,null,null,null,null,null,null,null,307]
[1858,"Monday",10,null,null,null,null,null,null,null,null,null,null,null,null,null,null,305]
[1859,"Monday",11,null,null,null,null,null,null,null,null,null,null,null,null,null,null,304]
[1860,"Monday",12,null,null,null,null,null,null,null,null,null,null,null,null,null,null,306]
[1861,"Monday",13,null,null,null,null,null,null,null,null,null,null,null,null,null,null,303]
[1862,"Monday",14,null,null,null,null,null,null,null,null,null,null,null,null,null,null,302]
[1863,"Monday",15,null,null,null,null,null,null,null,null,null,null,null,null,null,null,306]
[1864,"Monday",16,null,null,null,null,null,null,null,null,null,null,null,null,null,null,305]
[1865,"Monday",17,null,null,null,null,null,null,null,null,null,null,null,null,null,null,304]
[1866,"Monday",18,null,null,null,null,null,null,null,null,null,null,null,null,null,null,307]
[1867,"Monday",19,null,null,null,null,null,null,null,null,null,null,null,null,null,null,306]
[1868,"Monday",20,null,null,null,null,null,null,null,null,null,null,null,null,null,null,306]
[1869,"Monday",21,null,null,null,null,null,null,null,null,null,null,null,null,null,null,304]
[1870,"Monday",22,null,null,null,null,null,null,null,null,null,null,null,null,null,null,306]
[1871,"Monday",23,null,null,null,null,null,null,null,null,null,null,null,null,null,null,307]
[1872,"Tuesday",0,null,null,null,null,null,null,null,null,null,null,null,null,null,null,305]
[1873,"Tuesday",1,null,null,null,null,null,null,null,null,null,null,null,null,null,null,306]
[1874,"Tuesday",2,null,null,null,null,null,null,null,null,null,null,null,null,null,null,305]
[1875,"Tuesday",3,null,null,null,null,null,null,null,null,null,null,null,null,null,null,303]
[1876,"Tuesday",4,null,null,null,null,null,null,null,null,null,null,null,null,null,null,303]
[1877,"Tuesday",5,null,null,null,null,null,null,null,null,null,null,null,null,null,null,304]
[1878,"Tuesday",6,null,null,null,null,null,null,null,null,null,null,null,null,null,null,306]
[1879,"Tuesday",7,null,null,null,null,null,null,null,null,null,null,null,null,null,null,305]
[1880,"Tuesday",8,null,null,null,null,null,null,null,null,null,null,null,null,null,null,302]
[1881,"Tuesday",{"$f":"C1859","v":9},null,null,null,null,null,null,null,null,null,null,null,null,null,null,302]
[1882,"Tuesday",10,null,null,null,null,null,null,null,null,null,null,null,null,null,null,302]
[1883,"Tuesday",11,null,null,null,null,null,null,null,null,null,null,null,null,null,null,301]
[1884,"Tuesday",12,null,null,null,null,null,null,null,null,null,null,null,null,null,null,302]
[1885,"Tuesday",13,null,null,null,null,null,null,null,null,null,null,null,null,null,null,301]
[1886,"Tuesday",14,null,null,null,null,null,null,null,null,null,null,null,null,null,null,301]
[1887,"Tuesday",15,null,null,null,null,null,null,null,null,null,null,null,null,null,null,298]
[1888,"Tuesday",16,null,null,null,null,null,null,null,null,null,null,null,null,null,null,297]
[1889,"Tuesday",17,null,null,null,null,null,null,null,null,null,null,null,null,null,null,294]
[1890,"Tuesday",18,null,null,null,null,null,null,null,null,null,null,null,null,null,null,297]
[1891,"Tuesday",19,null,null,null,null,null,null,null,null,null,null,null,null,null,null,298]
[1892,"Tuesday",20,null,null,null,null,null,null,null,null,null,null,null,null,null,null,299]
[1893,"Tuesday",21,null,null,null,null,null,null,null,null,null,null,null,null,null,null,302]
[1894,"Tuesday",22,null,null,null,null,null,null,null,null,null,null,null,null,null,null,301]
[1895,"Tuesday",23,null,null,null,null,null,null,null,null,null,null,null,null,null,null,304]
[1896,"Wednesday",0,null,null,null,null,null,null,null,null,null,null,null,null,null,null,306]
[1897,{"$f":"B1731","v":"Wednesday"},1,null,null,null,null,null,null,null,null,null,null,null,null,null,null,301]
[{"$f":"A1899+1","v":1898},"Wednesday",2,null,null,null,null,null,null,null,null,null,null,null,null,null,null,301]
[1899,"Wednesday",3,null,null,null,null,null,null,null,null,null,null,null,null,null,null,303]
[1900,"Wednesday",4,null,null,null,null,null,null,null,null,null,null,null,null,null,null,303]
[1901,"Wednesday",5,null,null,null,null,null,null,null,null,null,null,null,null,null,null,303]
[1902,"Wednesday",6,null,null,null,null,null,null,null,null,null,null,null,null,null,null,305]
[1903,"Wednesday",7,null,null,null,null,null,null,null,null,null,null,null,null,null,null,305]
[1904,"Wednesday",8,null,null,null,null,null,null,null,null,null,null,null,null,null,null,304]
[1905,"Wednesday",9,null,null,null,null,null,null,null,null,null,null,null,null,null,null,304]
[1906,"Wednesday",10,null,null,null,null,null,null,null,null,null,null,null,null,null,null,302]
[1907,"Wednesday",11,null,null,null,null,null,null,null,null,null,null,null,null,null,null,302]
[1908,"Wednesday",12,null,null,null,null,null,null,null,null,null,null,null,null,null,null,303]
[1909,"Wednesday",13,null,null,null,null,null,null,null,null,null,null,null,null,null,null,303]
[1910,"Wednesday",14,null,null,null,null,null,null,null,null,null,null,null,null,null,null,305]
[1911,"Wednesday",15,null,null,null,null,null,null,null,null,null,null,null,null,null,null,304]
[1912,"Wednesday",16,null,null,null,null,null,null,null,null,null,null,null,null,null,null,301]
[1913,"Wednesday",17,null,null,null,null,null,null,null,null,null,null,null,null,null,null,298]
[1914,"Wednesday",18,null,null,null,null,null,null,null,null,null,null,null,null,null,null,298]
[1915,"Wednesday",19,null,null,null,null,null,null,null,null,null,null,null,null,null,null,301]
[1916,"Wednesday",20,null,null,null,null,null,null,null,null,null,null,null,null,null,null,305]
[1917,"Wednesday",21,null,null,null,null,null,null,null,null,null,null,null,null,null,null,306]
[1918,"Wednesday",22,null,null,null,null,null,null,null,null,null,null,null,null,null,null,304]
[1919,"Wednesday",23,null,null,null,null,null,null,null,null,null,null,null,null,null,null,303]
[1920,"Thursday",0,null,null,null,null,null,null,null,null,null,null,null,null,null,null,304]
[1921,"Thursday",1,null,null,null,null,null,null,null,null,null,null,null,null,null,null,303]
[1922,"Thursday",2,null,null,null,null,null,null,null,null,null,null,null,null,null,null,305]
[1923,"Thursday",3,null,null,null,null,null,null,null,null,null,null,null,null,null,null,307]
[1924,"Thursday",4,null,null,null,null,null,null,null,null,null,null,null,null,null,null,306]
[1925,"Thursday",5,null,null,null,null,null,null,null,null,null,null,null,null,null,null,305]
[1926,"Thursday",6,null,null,null,null,null,null,null,null,null,null,null,null,null,null,302]
[1927,"Thursday",7,null,null,null,null,null,null,null,null,null,null,null,null,null,null,304]
[1928,"Thursday",8,null,null,null,null,null,null,null,null,null,null,null,null,null,null,300]
[1929,"Thursday",9,null,null,null,null,null,null,null,null,null,null,null,null,null,null,300]
[1930,"Thursday",10,null,null,null,null,null,null,null,null,null,null,null,null,null,null,306]
[1931,"Thursday",11,null,null,null,null,null,null,null,null,null,null,null,null,null,null,306]
[1932,"Thursday",12,null,null,null,null,null,null,null,null,null,null,null,null,null,null,304]
[1933,"Thursday",13,null,null,null,null,null,null,null,null,null,null,null,null,null,null,303]
[1934,"Thursday",14,null,null,null,null,null,null,null,null,null,null,null,null,null,null,304]
[1935,"Thursday",15,null,null,null,null,null,null,null,null,null,null,null,null,null,null,303]
[1936,"Thursday",16,null,null,null,null,null,null,null,null,null,null,null,null,null,null,306]
[1937,"Thursday",17,null,null,null,null,null,null,null,null,null,null,null,null,null,null,306]
[1938,"Thursday",18,null,null,null,null,null,null,null,null,null,null,null,null,null,null,303]
[1939,"Thursday",19,null,null,null,null,null,null,null,null,null,null,null,null,null,null,305]
[1940,"Thursday",20,null,null,null,null,null,null,null,null,null,null,null,null,null,null,306]
[1941,"Thursday",21,null,null,null,null,null,null,null,null,null,null,null,null,null,null,304]
[1942,"Thursday",22,null,null,null,null,null,null,null,null,null,null,null,null,null,null,303]
[1943,"Thursday",23,null,null,null,null,null,null,null,null,null,null,null,null,null,null,302]
[1944,"Friday",0,null,null,null,null,null,null,null,null,null,null,null,null,null,null,305]
[1945,"Friday",{"$f":"C1923","v":1},null,null,null,null,null,null,null,null,null,null,null,null,null,null,300]
[1946,"Friday",2,null,null,null,null,null,null,null,null,null,null,null,null,null,null,299]
[1947,"Friday",3,null,null,null,null,null,null,null,null,null,null,null,null,null,null,302]
[1948,"Friday",4,null,null,null,null,null,null,null,null,null,null,null,null,null,null,300]
[1949,"Friday",5,null,null,null,null,null,null,null,null,null,null,null,null,null,null,298]
[1950,"Friday",6,null,null,null,null,null,null,null,null,null,null,null,null,null,null,298]
[1951,"Friday",7,null,null,null,null,null,null,null,null,null,null,null,null,null,null,296]
[1952,"Friday",8,null,null,null,null,null,null,null,null,null,null,null,null,null,null,300]
[1953,"Friday",9,null,null,null,null,null,null,null,null,null,null,null,null,null,null,297]
[1954,"Friday",10,null,null,null,null,null,null,null,null,null,null,null,null,null,null,299]
[1955,"Friday",11,null,null,null,null,null,null,null,null,null,null,null,null,null,null,301]
[1956,"Friday",12,null,null,null,null,null,null,null,null,null,null,null,null,null,null,302]
[1957,"Friday",13,null,null,null,null,null,null,null,null,null,null,null,null,null,null,302]
[1958,"Friday",14,null,null,null,null,null,null,null,null,null,null,null,null,null,null,301]
[1959,"Friday",15,null,null,null,null,null,null,null,null,null,null,null,null,null,null,301]
[1960,"Friday",16,null,null,null,null,null,null,null,null,null,null,null,null,null,null,302]
[1961,{"$f":"B1795","v":"Friday"},17,null,null,null,null,null,null,null,null,null,null,null,null,null,null,301]
[{"$f":"A1963+1","v":1962},"Friday",18,null,null,null,null,null,null,null,null,null,null,null,null,null,null,301]
[1963,"Friday",19,null,null,null,null,null,null,null,null,null,null,null,null,null,null,303]
[1964,"Friday",20,null,null,null,null,null,null,null,null,null,null,null,null,null,null,302]
[1965,"Friday",21,null,null,null,null,null,null,null,null,null,null,null,null,null,null,305]
[1966,"Friday",22,null,null,null,null,null,null,null,null,null,null,null,null,null,null,300]
[1967,"Friday",23,null,null,null,null,null,null,null,null,null,null,null,null,null,null,299]
[1968,"Saturday",0,null,null,null,null,null,null,null,null,null,null,null,null,null,null,302]
[1969,"Saturday",1,null,null,null,null,null,null,null,null,null,null,null,null,null,null,305]
[1970,"Saturday",2,null,null,null,null,null,null,null,null,null,null,null,null,null,null,301]
[1971,"Saturday",3,null,null,null,null,null,null,null,null,null,null,null,null,null,null,297]
[1972,"Saturday",4,null,null,null,null,null,null,null,null,null,null,null,null,null,null,302]
[1973,"Saturday",5,null,null,null,null,null,null,null,null,null,null,null,null,null,null,305]
[1974,"Saturday",6,null,null,null,null,null,null,null,null,null,null,null,null,null,null,302]
[1975,"Saturday",7,null,null,null,null,null,null,null,null,null,null,null,null,null,null,301]
[1976,"Saturday",8,null,null,null,null,null,null,null,null,null,null,null,null,null,null,300]
[1977,"Saturday",9,null,null,null,null,null,null,null,null,null,null,null,null,null,null,299]
[1978,"Saturday",10,null,null,null,null,null,null,null,null,null,null,null,null,null,null,298]
[1979,"Saturday",11,null,null,null,null,null,null,null,null,null,null,null,null,null,null,302]
[1980,"Saturday",12,null,null,null,null,null,null,null,null,null,null,null,null,null,null,305]
[1981,"Saturday",13,null,null,null,null,null,null,null,null,null,null,null,null,null,null,303]
[1982,"Saturday",14,null,null,null,null,null,null,null,null,null,null,null,null,null,null,302]
[1983,"Saturday",15,null,null,null,null,null,null,null,null,null,null,null,null,null,null,303]
[1984,"Saturday",16,null,null,null,null,null,null,null,null,null,null,null,null,null,null,303]
[1985,"Saturday",17,null,null,null,null,null,null,null,null,null,null,null,null,null,null,301]
[1986,"Saturday",18,null,null,null,null,null,null,null,null,null,null,null,null,null,null,303]
[1987,"Saturday",19,null,null,null,null,null,null,null,null,null,null,null,null,null,null,302]
[1988,"Saturday",20,null,null,null,null,null,null,null,null,null,null,null,null,null,null,300]
[1989,"Saturday",21,null,null,null,null,null,null,null,null,null,null,null,null,null,null,304]
[1990,"Saturday",22,null,null,null,null,null,null,null,null,null,null,null,null,null,null,304]
[1991,"Saturday",23,null,null,null,null,null,null,null,null,null,null,null,null,null,null,303]
[1992,"Sunday",0,null,null,null,null,null,null,null,null,null,null,null,null,null,null,302]
[1993,"Sunday",1,null,null,null,null,null,null,null,null,null,null,null,null,null,null,304]
[1994,"Sunday",2,null,null,null,null,null,null,null,null,null,null,null,null,null,null,304]
[1995,"Sunday",3,null,null,null,null,null,null,null,null,null,null,null,null,null,null,303]
[1996,"Sunday",4,null,null,null,null,null,null,null,null,null,null,null,null,null,null,300]
[1997,"Sunday",5,null,null,null,null,null,null,null,null,null,null,null,null,null,null,298]
[1998,"Sunday",6,null,null,null,null,null,null,null,null,null,null,null,null,null,null,301]
[1999,"Sunday",7,null,null,null,null,null,null,null,null,null,null,null,null,null,null,298]
[2003,"Sunday",11,null,null,null,null,null,null,null,null,null,null,null,null,null,null,299]
[2006,"Sunday",14,null,null,null,null,null,null,null,null,null,null,null,null,null,null,300]
[2010,"Sunday",18,null,null,null,null,null,null,null,null,null,null,null,null,null,null,300]
[2013,"Sunday",21,null,null,null,null,null,null,null,null,null,null,null,null,null,null,299]
[2016,"Monday",0,null,null,null,null,null,null,null,null,null,null,null,null,null,null,298]
[2017,"Monday",1,null,null,null,null,null,null,null,null,null,null,null,null,null,null,299]
[2020,"Monday",4,null,null,null,null,null,null,null,null,null,null,null,null,null,null,299]
[2025,{"$f":"B1859","v":"Monday"},9,null,null,null,null,null,null,null,null,null,null,null,null,null,null,300]
[2028,"Monday",12,null,null,null,null,null,null,null,null,null,null,null,null,null,null,302]
[2031,"Monday",15,null,null,null,null,null,null,null,null,null,null,null,null,null,null,301]
[2035,"Monday",19,null,null,null,null,null,null,null,null,null,null,null,null,null,null,300]
[2038,"Monday",22,null,null,null,null,null,null,null,null,null,null,null,null,null,null,300]
[2041,"Tuesday",1,null,null,null,null,null,null,null,null,null,null,null,null,null,null,300]
[2042,"Tuesday",2,null,null,null,null,null,null,null,null,null,null,null,null,null,null,302]
[2045,"Tuesday",5,null,null,null,null,null,null,null,null,null,null,null,null,null,null,302]
[2050,"Tuesday",10,null,null,null,null,null,null,null,null,null,null,null,null,null,null,305]
[2053,"Tuesday",13,null,null,null,null,null,null,null,null,null,null,null,null,null,null,300]
[2056,"Tuesday",16,null,null,null,null,null,null,null,null,null,null,null,null,null,null,303]
[2060,"Tuesday",20,null,null,null,null,null,null,null,null,null,null,null,null,null,null,304]
[2063,"Tuesday",23,null,null,null,null,null,null,null,null,null,null,null,null,null,null,300]
[2064,"Wednesday",0,null,null,null,null,null,null,null,null,null,null,null,null,null,null,299]
[2070,"Wednesday",6,null,null,null,null,null,null,null,null,null,null,null,null,null,null,304]
[2071,"Wednesday",7,null,null,null,null,null,null,null,null,null,null,null,null,null,null,305]
[2075,"Wednesday",11,null,null,null,null,null,null,null,null,null,null,null,null,null,null,299]
[2078,"Wednesday",14,null,null,null,null,null,null,null,null,null,null,null,null,null,null,300]
[2081,"Wednesday",17,null,null,null,null,null,null,null,null,null,null,null,null,null,null,300]
[2085,"Wednesday",21,null,null,null,null,null,null,null,null,null,null,null,null,null,null,300]
[2088,"Thursday",0,null,null,null,null,null,null,null,null,null,null,null,null,null,null,299]
[2089,{"$f":"B1923","v":"Thursday"},1,null,null,null,null,null,null,null,null,null,null,null,null,null,null,298]
[2095,"Thursday",7,null,null,null,null,null,null,null,null,null,null,null,null,null,null,300]
[2096,"Thursday",8,null,null,null,null,null,null,null,null,null,null,null,null,null,null,301]
[2100,"Thursday",12,null,null,null,null,null,null,null,null,null,null,null,null,null,null,301]
[2103,"Thursday",15,null,null,null,null,null,null,null,null,null,null,null,null,null,null,299]
[2106,"Thursday",18,null,null,null,null,null,null,null,null,null,null,null,null,null,null,297]
[2110,"Thursday",22,null,null,null,null,null,null,null,null,null,null,null,null,null,null,299]
[2113,"Friday",1,null,null,null,null,null,null,null,null,null,null,null,null,null,null,299]
[2114,"Friday",2,null,null,null,null,null,null,null,null,null,null,null,null,null,null,297]
[2120,"Friday",8,null,null,null,null,null,null,null,null,null,null,null,null,null,null,303]
[2121,"Friday",9,null,null,null,null,null,null,null,null,null,null,null,null,null,null,299]
[2125,"Friday",13,null,null,null,null,null,null,null,null,null,null,null,null,null,null,302]
[2128,"Friday",16,null,null,null,null,null,null,null,null,null,null,null,null,null,null,304]
[2132,"Friday",20,null,null,null,null,null,null,null,null,null,null,null,null,null,null,303]
[2135,"Friday",23,null,null,null,null,null,null,null,null,null,null,null,null,null,null,305]
[2138,"Saturday",2,null,null,null,null,null,null,null,null,null,null,null,null,null,null,302]
[2141,"Saturday",5,null,null,null,null,null,null,null,null,null,null,null,null,null,null,300]
[2143,"Saturday",7,null,null,null,null,null,null,null,null,null,null,null,null,null,null,297]
[2146,"Saturday",10,null,null,null,null,null,null,null,null,null,null,null,null,null,null,296]
[2150,"Saturday",14,null,null,null,null,null,null,null,null,null,null,null,null,null,null,299]
[2153,{"$f":"B1987","v":"Saturday"},17,null,null,null,null,null,null,null,null,null,null,null,null,null,null,299]
[2157,"Saturday",21,null,null,null,null,null,null,null,null,null,null,null,null,null,null,298]
[2160,"Sunday",0,null,null,null,null,null,null,null,null,null,null,null,null,null,null,301]
[2163,"Sunday",3,null,null,null,null,null,null,null,null,null,null,null,null,null,null,301]
[2166,"Sunday",6,null,null,null,null,null,null,null,null,null,null,null,null,null,null,299]
[2168,"Sunday",8,null,null,null,null,null,null,null,null,null,null,null,null,null,null,299]
[2172,"Sunday",12,null,null,null,null,null,null,null,null,null,null,null,null,null,null,300]
[2175,"Sunday",15,null,null,null,null,null,null,null,null,null,null,null,null,null,null,300]
[2178,"Sunday",18,null,null,null,null,null,null,null,null,null,null,null,null,null,null,303]
[2182,"Sunday",22,null,null,null,null,null,null,null,null,null,null,null,null,null,null,300]
[2185,"Monday",1,null,null,null,null,null,null,null,null,null,null,null,null,null,null,301]
[2188,"Monday",4,null,null,null,null,null,null,null,null,null,null,null,null,null,null,296]
[2191,"Monday",7,null,null,null,null,null,null,null,null,null,null,null,null,null,null,297]
[2193,"Monday",9,null,null,null,null,null,null,null,null,null,null,null,null,null,null,298]
[2197,"Monday",13,null,null,null,null,null,null,null,null,null,null,null,null,null,null,298]
[2200,"Monday",16,null,null,null,null,null,null,null,null,null,null,null,null,null,null,301]
[2203,"Monday",19,null,null,null,null,null,null,null,null,null,null,null,null,null,null,297]
[2207,"Monday",23,null,null,null,null,null,null,null,null,null,null,null,null,null,null,304]
[2210,"Tuesday",2,null,null,null,null,null,null,null,null,null,null,null,null,null,null,302]
[2212,"Tuesday",4,null,null,null,null,null,null,null,null,null,null,null,null,null,null,299]
[2215,"Tuesday",7,null,null,null,null,null,null,null,null,null,null,null,null,null,null,299]
[{"$f":"A2219+1","v":2218},"Tuesday",10,null,null,null,null,null,null,null,null,null,null,null,null,null,null,298]
[2222,"Tuesday",14,null,null,null,null,null,null,null,null,null,null,null,null,null,null,295]
[2225,"Tuesday",17,null,null,null,null,null,null,null,null,null,null,null,null,null,null,301]
[2228,"Tuesday",20,null,null,null,null,null,null,null,null,null,null,null,null,null,null,293]
[2232,"Wednesday",0,null,null,null,null,null,null,null,null,null,null,null,null,null,null,300]
[2235,"Wednesday",3,null,null,null,null,null,null,null,null,null,null,null,null,null,null,303]
[2237,"Wednesday",5,null,null,null,null,null,null,null,null,null,null,null,null,null,null,301]
[2240,"Wednesday",8,null,null,null,null,null,null,null,null,null,null,null,null,null,null,298]
[2243,"Wednesday",11,null,null,null,null,null,null,null,null,null,null,null,null,null,null,301]
[2247,"Wednesday",15,null,null,null,null,null,null,null,null,null,null,null,null,null,null,300]
[2250,"Wednesday",18,null,null,null,null,null,null,null,null,null,null,null,null,null,null,299]
[2253,"Wednesday",21,null,null,null,null,null,null,null,null,null,null,null,null,null,null,296]
[2257,"Thursday",1,null,null,null,null,null,null,null,null,null,null,null,null,null,null,297]
[2258,"Thursday",2,null,null,null,null,null,null,null,null,null,null,null,null,null,null,297]
[2262,"Thursday",6,null,null,null,null,null,null,null,null,null,null,null,null,null,null,298]
[2265,"Thursday",{"$f":"C2243","v":9},null,null,null,null,null,null,null,null,null,null,null,null,null,null,299]
[2268,"Thursday",12,null,null,null,null,null,null,null,null,null,null,null,null,null,null,299]
[2272,"Thursday",16,null,null,null,null,null,null,null,null,null,null,null,null,null,null,296]
[2275,"Thursday",19,null,null,null,null,null,null,null,null,null,null,null,null,null,null,302]
[2278,"Thursday",22,null,null,null,null,null,null,null,null,null,null,null,null,null,null,304]
[{"$f":"A2283+1","v":2282},"Friday",2,null,null,null,null,null,null,null,null,null,null,null,null,null,null,300]
[2283,"Friday",3,null,null,null,null,null,null,null,null,null,null,null,null,null,null,301]
[2287,"Friday",7,null,null,null,null,null,null,null,null,null,null,null,null,null,null,300]
[2290,"Friday",10,null,null,null,null,null,null,null,null,null,null,null,null,null,null,300]
[2293,"Friday",13,null,null,null,null,null,null,null,null,null,null,null,null,null,null,297]
[2297,"Friday",17,null,null,null,null,null,null,null,null,null,null,null,null,null,null,299]
[2300,"Friday",20,null,null,null,null,null,null,null,null,null,null,null,null,null,null,296]
[2304,"Saturday",0,null,null,null,null,null,null,null,null,null,null,null,null,null,null,298]
[2307,"Saturday",3,null,null,null,null,null,null,null,null,null,null,null,null,null,null,298]
[2308,"Saturday",4,null,null,null,null,null,null,null,null,null,null,null,null,null,null,298]
[2312,"Saturday",8,null,null,null,null,null,null,null,null,null,null,null,null,null,null,299]
[2315,"Saturday",11,null,null,null,null,null,null,null,null,null,null,null,null,null,null,304]
[2318,"Saturday",14,null,null,null,null,null,null,null,null,null,null,null,null,null,null,300]
[2322,"Saturday",18,null,null,null,null,null,null,null,null,null,null,null,null,null,null,298]
[2325,"Saturday",21,null,null,null,null,null,null,null,null,null,null,null,null,null,null,299]
[2329,"Sunday",{"$f":"C2307","v":1},null,null,null,null,null,null,null,null,null,null,null,null,null,null,295]
[2333,"Sunday",5,null,null,null,null,null,null,null,null,null,null,null,null,null,null,294]
[2336,"Sunday",8,null,null,null,null,null,null,null,null,null,null,null,null,null,null,295]
[2337,"Sunday",9,null,null,null,null,null,null,null,null,null,null,null,null,null,null,293]
[2340,"Sunday",12,null,null,null,null,null,null,null,null,null,null,null,null,null,null,297]
[2344,"Sunday",16,null,null,null,null,null,null,null,null,null,null,null,null,null,null,297]
[2347,"Sunday",19,null,null,null,null,null,null,null,null,null,null,null,null,null,null,294]
[2350,"Sunday",22,null,null,null,null,null,null,null,null,null,null,null,null,null,null,297]
[2354,"Monday",2,null,null,null,null,null,null,null,null,null,null,null,null,null,null,298]
[2358,"Monday",6,null,null,null,null,null,null,null,null,null,null,null,null,null,null,300]
[2361,"Monday",9,null,null,null,null,null,null,null,null,null,null,null,null,null,null,298]
[2362,"Monday",10,null,null,null,null,null,null,null,null,null,null,null,null,null,null,296]
[2365,"Monday",13,null,null,null,null,null,null,null,null,null,null,null,null,null,null,296]
[2369,"Monday",17,null,null,null,null,null,null,null,null,null,null,null,null,null,null,295]
[2372,"Monday",20,null,null,null,null,null,null,null,null,null,null,null,null,null,null,296]
[2375,"Monday",23,null,null,null,null,null,null,null,null,null,null,null,null,null,null,300]
[2379,"Tuesday",3,null,null,null,null,null,null,null,null,null,null,null,null,null,null,298]
[2383,"Tuesday",7,null,null,null,null,null,null,null,null,null,null,null,null,null,null,301]
[2386,"Tuesday",10,null,null,null,null,null,null,null,null,null,null,null,null,null,null,303]
[2387,"Tuesday",11,null,null,null,null,null,null,null,null,null,null,null,null,null,null,304]
[2390,"Tuesday",14,null,null,null,null,null,null,null,null,null,null,null,null,null,null,302]
[2394,"Tuesday",18,null,null,null,null,null,null,null,null,null,null,null,null,null,null,302]
[2397,"Tuesday",21,null,null,null,null,null,null,null,null,null,null,null,null,null,null,301]
[2400,"Wednesday",0,null,null,null,null,null,null,null,null,null,null,null,null,null,null,295]
[2404,"Wednesday",4,null,null,null,null,null,null,null,null,null,null,null,null,null,null,294]
[2408,"Wednesday",8,null,null,null,null,null,null,null,null,null,null,null,null,null,null,298]
[2409,{"$f":"B2243","v":"Wednesday"},9,null,null,null,null,null,null,null,null,null,null,null,null,null,null,298]
[2412,"Wednesday",12,null,null,null,null,null,null,null,null,null,null,null,null,null,null,296]
[2415,"Wednesday",15,null,null,null,null,null,null,null,null,null,null,null,null,null,null,302]
[2419,"Wednesday",19,null,null,null,null,null,null,null,null,null,null,null,null,null,null,300]
[2422,"Wednesday",22,null,null,null,null,null,null,null,null,null,null,null,null,null,null,300]
[2425,"Thursday",1,null,null,null,null,null,null,null,null,null,null,null,null,null,null,301]
[2429,"Thursday",5,null,null,null,null,null,null,null,null,null,null,null,null,null,null,296]
[2433,"Thursday",9,null,null,null,null,null,null,null,null,null,null,null,null,null,null,295]
[2434,"Thursday",10,null,null,null,null,null,null,null,null,null,null,null,null,null,null,293]
[2437,"Thursday",13,null,null,null,null,null,null,null,null,null,null,null,null,null,null,297]
[2440,"Thursday",16,null,null,null,null,null,null,null,null,null,null,null,null,null,null,295]
[2444,"Thursday",20,null,null,null,null,null,null,null,null,null,null,null,null,null,null,297]
[2447,"Thursday",23,null,null,null,null,null,null,null,null,null,null,null,null,null,null,296]
[2451,"Friday",3,null,null,null,null,null,null,null,null,null,null,null,null,null,null,299]
[2454,"Friday",6,null,null,null,null,null,null,null,null,null,null,null,null,null,null,302]
[2458,"Friday",10,null,null,null,null,null,null,null,null,null,null,null,null,null,null,294]
[2459,"Friday",11,null,null,null,null,null,null,null,null,null,null,null,null,null,null,296]
[2462,"Friday",14,null,null,null,null,null,null,null,null,null,null,null,null,null,null,296]
[2465,"Friday",17,null,null,null,null,null,null,null,null,null,null,null,null,null,null,295]
[2469,"Friday",21,null,null,null,null,null,null,null,null,null,null,null,null,null,null,297]
[2472,"Saturday",0,null,null,null,null,null,null,null,null,null,null,null,null,null,null,299]
[2475,"Saturday",3,null,null,null,null,null,null,null,null,null,null,null,null,null,null,298]
[2480,"Saturday",8,null,null,null,null,null,null,null,null,null,null,null,null,null,null,298]
[2483,"Saturday",11,null,null,null,null,null,null,null,null,null,null,null,null,null,null,299]
[2484,"Saturday",12,null,null,null,null,null,null,null,null,null,null,null,null,null,null,299]
[2487,"Saturday",15,null,null,null,null,null,null,null,null,null,null,null,null,null,null,300]
[2490,"Saturday",18,null,null,null,null,null,null,null,null,null,null,null,null,null,null,297]
[2494,"Saturday",22,null,null,null,null,null,null,null,null,null,null,null,null,null,null,297]
[2497,"Sunday",1,null,null,null,null,null,null,null,null,null,null,null,null,null,null,297]
[2500,"Sunday",4,null,null,null,null,null,null,null,null,null,null,null,null,null,null,295]
[2505,"Sunday",9,null,null,null,null,null,null,null,null,null,null,null,null,null,null,302]
[2508,"Sunday",12,null,null,null,null,null,null,null,null,null,null,null,null,null,null,303]
[2509,"Sunday",13,null,null,null,null,null,null,null,null,null,null,null,null,null,null,302]
[2512,"Sunday",16,null,null,null,null,null,null,null,null,null,null,null,null,null,null,302]
[2516,"Sunday",20,null,null,null,null,null,null,null,null,null,null,null,null,null,null,302]
[2519,"Sunday",23,null,null,null,null,null,null,null,null,null,null,null,null,null,null,300]
[2521,"Monday",{"$f":"C2499","v":1},null,null,null,null,null,null,null,null,null,null,null,null,null,null,300]
[2527,"Monday",7,null,null,null,null,null,null,null,null,null,null,null,null,null,null,297]
[2530,"Monday",10,null,null,null,null,null,null,null,null,null,null,null,null,null,null,296]
[2533,"Monday",13,null,null,null,null,null,null,null,null,null,null,null,null,null,null,300]
[2534,"Monday",14,null,null,null,null,null,null,null,null,null,null,null,null,null,null,300]
[2537,{"$f":"B2371","v":"Monday"},17,null,null,null,null,null,null,null,null,null,null,null,null,null,null,298]
[2541,"Monday",21,null,null,null,null,null,null,null,null,null,null,null,null,null,null,301]
[2544,"Tuesday",0,null,null,null,null,null,null,null,null,null,null,null,null,null,null,300]
[2546,"Tuesday",2,null,null,null,null,null,null,null,null,null,null,null,null,null,null,301]
[2552,"Tuesday",8,null,null,null,null,null,null,null,null,null,null,null,null,null,null,300]
[2555,"Tuesday",11,null,null,null,null,null,null,null,null,null,null,null,null,null,null,299]
[2558,"Tuesday",14,null,null,null,null,null,null,null,null,null,null,null,null,null,null,297]
[2559,"Tuesday",15,null,null,null,null,null,null,null,null,null,null,null,null,null,null,299]
[2562,"Tuesday",18,null,null,null,null,null,null,null,null,null,null,null,null,null,null,298]
[2566,"Tuesday",22,null,null,null,null,null,null,null,null,null,null,null,null,null,null,301]
[2569,"Wednesday",1,null,null,null,null,null,null,null,null,null,null,null,null,null,null,299]
[2571,"Wednesday",3,null,null,null,null,null,null,null,null,null,null,null,null,null,null,302]
[2577,"Wednesday",9,null,null,null,null,null,null,null,null,null,null,null,null,null,null,298]
[2580,"Wednesday",12,null,null,null,null,null,null,null,null,null,null,null,null,null,null,296]
[2581,"Wednesday",13,null,null,null,null,null,null,null,null,null,null,null,null,null,null,299]
[2584,"Wednesday",16,null,null,null,null,null,null,null,null,null,null,null,null,null,null,301]
[2587,"Wednesday",19,null,null,null,null,null,null,null,null,null,null,null,null,null,null,297]
[2591,"Wednesday",23,null,null,null,null,null,null,null,null,null,null,null,null,null,null,300]
[2596,"Thursday",4,null,null,null,null,null,null,null,null,null,null,null,null,null,null,298]
[2598,"Thursday",6,null,null,null,null,null,null,null,null,null,null,null,null,null,null,299]
[{"$f":"A2603+1","v":2602},"Thursday",10,null,null,null,null,null,null,null,null,null,null,null,null,null,null,298]
[2605,"Thursday",13,null,null,null,null,null,null,null,null,null,null,null,null,null,null,296]
[2606,"Thursday",14,null,null,null,null,null,null,null,null,null,null,null,null,null,null,297]
[2609,"Thursday",17,null,null,null,null,null,null,null,null,null,null,null,null,null,null,297]
[2612,"Thursday",20,null,null,null,null,null,null,null,null,null,null,null,null,null,null,298]
[2616,"Friday",0,null,null,null,null,null,null,null,null,null,null,null,null,null,null,299]
[2621,"Friday",5,null,null,null,null,null,null,null,null,null,null,null,null,null,null,296]
[2624,"Friday",8,null,null,null,null,null,null,null,null,null,null,null,null,null,null,300]
[2627,"Friday",11,null,null,null,null,null,null,null,null,null,null,null,null,null,null,296]
[2630,"Friday",14,null,null,null,null,null,null,null,null,null,null,null,null,null,null,295]
[2631,"Friday",15,null,null,null,null,null,null,null,null,null,null,null,null,null,null,296]
[2634,"Friday",18,null,null,null,null,null,null,null,null,null,null,null,null,null,null,297]
[2637,"Friday",21,null,null,null,null,null,null,null,null,null,null,null,null,null,null,299]
[2641,"Saturday",1,null,null,null,null,null,null,null,null,null,null,null,null,null,null,299]
[2646,"Saturday",6,null,null,null,null,null,null,null,null,null,null,null,null,null,null,298]
[2649,"Saturday",{"$f":"C2627","v":9},null,null,null,null,null,null,null,null,null,null,null,null,null,null,299]
[2652,"Saturday",12,null,null,null,null,null,null,null,null,null,null,null,null,null,null,295]
[2655,"Saturday",15,null,null,null,null,null,null,null,null,null,null,null,null,null,null,296]
[2656,"Saturday",16,null,null,null,null,null,null,null,null,null,null,null,null,null,null,296]
[2659,"Saturday",19,null,null,null,null,null,null,null,null,null,null,null,null,null,null,299]
[2662,"Saturday",22,null,null,null,null,null,null,null,null,null,null,null,null,null,null,293]
[2667,"Sunday",3,null,null,null,null,null,null,null,null,null,null,null,null,null,null,301]
[2670,"Sunday",6,null,null,null,null,null,null,null,null,null,null,null,null,null,null,297]
[2674,"Sunday",10,null,null,null,null,null,null,null,null,null,null,null,null,null,null,301]
[2677,"Sunday",13,null,null,null,null,null,null,null,null,null,null,null,null,null,null,299]
[2680,"Sunday",16,null,null,null,null,null,null,null,null,null,null,null,null,null,null,298]
[2681,"Sunday",17,null,null,null,null,null,null,null,null,null,null,null,null,null,null,299]
[2684,"Sunday",20,null,null,null,null,null,null,null,null,null,null,null,null,null,null,293]
[2688,"Monday",0,null,null,null,null,null,null,null,null,null,null,null,null,null,null,298]
[2692,"Monday",4,null,null,null,null,null,null,null,null,null,null,null,null,null,null,299]
[2695,"Monday",7,null,null,null,null,null,null,null,null,null,null,null,null,null,null,299]
[2699,"Monday",11,null,null,null,null,null,null,null,null,null,null,null,null,null,null,298]
[2702,"Monday",14,null,null,null,null,null,null,null,null,null,null,null,null,null,null,299]
[2705,"Monday",17,null,null,null,null,null,null,null,null,null,null,null,null,null,null,298]
[2706,"Monday",18,null,null,null,null,null,null,null,null,null,null,null,null,null,null,297]
[2709,"Monday",21,null,null,null,null,null,null,null,null,null,null,null,null,null,null,297]
[2713,"Tuesday",{"$f":"C2691","v":1},null,null,null,null,null,null,null,null,null,null,null,null,null,null,295]
[2717,"Tuesday",5,null,null,null,null,null,null,null,null,null,null,null,null,null,null,300]
[2720,"Tuesday",8,null,null,null,null,null,null,null,null,null,null,null,null,null,null,298]
[2724,"Tuesday",12,null,null,null,null,null,null,null,null,null,null,null,null,null,null,298]
[2727,"Tuesday",15,null,null,null,null,null,null,null,null,null,null,null,null,null,null,301]
[{"$f":"A2731+1","v":2730},"Tuesday",18,null,null,null,null,null,null,null,null,null,null,null,null,null,null,301]
[2731,"Tuesday",19,null,null,null,null,null,null,null,null,null,null,null,null,null,null,300]
[2734,"Tuesday",22,null,null,null,null,null,null,null,null,null,null,null,null,null,null,298]
[2738,"Wednesday",2,null,null,null,null,null,null,null,null,null,null,null,null,null,null,296]
[2742,"Wednesday",6,null,null,null,null,null,null,null,null,null,null,null,null,null,null,296]
[2745,"Wednesday",9,null,null,null,null,null,null,null,null,null,null,null,null,null,null,294]
[2749,"Wednesday",13,null,null,null,null,null,null,null,null,null,null,null,null,null,null,299]
[2752,"Wednesday",16,null,null,null,null,null,null,null,null,null,null,null,null,null,null,299]
[2753,"Wednesday",17,null,null,null,null,null,null,null,null,null,null,null,null,null,null,302]
[2756,"Wednesday",20,null,null,null,null,null,null,null,null,null,null,null,null,null,null,302]
[2759,"Wednesday",23,null,null,null,null,null,null,null,null,null,null,null,null,null,null,299]
[2763,"Thursday",3,null,null,null,null,null,null,null,null,null,null,null,null,null,null,304]
[2767,"Thursday",7,null,null,null,null,null,null,null,null,null,null,null,null,null,null,300]
[2770,"Thursday",10,null,null,null,null,null,null,null,null,null,null,null,null,null,null,295]
[2774,"Thursday",14,null,null,null,null,null,null,null,null,null,null,null,null,null,null,296]
[2777,"Thursday",{"$f":"C2755","v":17},null,null,null,null,null,null,null,null,null,null,null,null,null,null,299]
[2778,"Thursday",18,null,null,null,null,null,null,null,null,null,null,null,null,null,null,298]
[2781,"Thursday",21,null,null,null,null,null,null,null,null,null,null,null,null,null,null,300]
[2784,"Friday",0,null,null,null,null,null,null,null,null,null,null,null,null,null,null,304]
[2789,"Friday",5,null,null,null,null,null,null,null,null,null,null,null,null,null,null,305]
[2792,"Friday",8,null,null,null,null,null,null,null,null,null,null,null,null,null,null,302]
[2796,"Friday",12,null,null,null,null,null,null,null,null,null,null,null,null,null,null,298]
[2799,"Friday",15,null,null,null,null,null,null,null,null,null,null,null,null,null,null,298]
[2802,"Friday",18,null,null,null,null,null,null,null,null,null,null,null,null,null,null,295]
[2803,"Friday",19,null,null,null,null,null,null,null,null,null,null,null,null,null,null,293]
[2806,"Friday",22,null,null,null,null,null,null,null,null,null,null,null,null,null,null,300]
[2809,"Saturday",1,null,null,null,null,null,null,null,null,null,null,null,null,null,null,298]
[2814,"Saturday",6,null,null,null,null,null,null,null,null,null,null,null,null,null,null,303]
[2817,"Saturday",9,null,null,null,null,null,null,null,null,null,null,null,null,null,null,298]
[2821,"Saturday",13,null,null,null,null,null,null,null,null,null,null,null,null,null,null,298]
[2824,"Saturday",16,null,null,null,null,null,null,null,null,null,null,null,null,null,null,300]
[2827,"Saturday",19,null,null,null,null,null,null,null,null,null,null,null,null,null,null,299]
[2828,"Saturday",20,null,null,null,null,null,null,null,null,null,null,null,null,null,null,297]
[2831,"Saturday",23,null,null,null,null,null,null,null,null,null,null,null,null,null,null,299]
[2834,"Sunday",2,null,null,null,null,null,null,null,null,null,null,null,null,null,null,295]
[2839,"Sunday",7,null,null,null,null,null,null,null,null,null,null,null,null,null,null,302]
[2842,"Sunday",10,null,null,null,null,null,null,null,null,null,null,null,null,null,null,300]
[2846,"Sunday",14,null,null,null,null,null,null,null,null,null,null,null,null,null,null,302]
[2849,"Sunday",17,null,null,null,null,null,null,null,null,null,null,null,null,null,null,297]
[2852,"Sunday",20,null,null,null,null,null,null,null,null,null,null,null,null,null,null,298]
[2853,"Sunday",21,null,null,null,null,null,null,null,null,null,null,null,null,null,null,299]
[2859,"Monday",3,null,null,null,null,null,null,null,null,null,null,null,null,null,null,295]
[2861,"Monday",5,null,null,null,null,null,null,null,null,null,null,null,null,null,null,294]
[2864,"Monday",8,null,null,null,null,null,null,null,null,null,null,null,null,null,null,291]
[2867,"Monday",11,null,null,null,null,null,null,null,null,null,null,null,null,null,null,295]
[2871,"Monday",15,null,null,null,null,null,null,null,null,null,null,null,null,null,null,297]
[2874,"Monday",18,null,null,null,null,null,null,null,null,null,null,null,null,null,null,295]
[2877,"Monday",21,null,null,null,null,null,null,null,null,null,null,null,null,null,null,298]
[2878,"Monday",22,null,null,null,null,null,null,null,null,null,null,null,null,null,null,298]
[2884,"Tuesday",4,null,null,null,null,null,null,null,null,null,null,null,null,null,null,298]
[2886,"Tuesday",6,null,null,null,null,null,null,null,null,null,null,null,null,null,null,297]
[2889,"Tuesday",9,null,null,null,null,null,null,null,null,null,null,null,null,null,null,296]
[2892,"Tuesday",12,null,null,null,null,null,null,null,null,null,null,null,null,null,null,296]
[2896,"Tuesday",16,null,null,null,null,null,null,null,null,null,null,null,null,null,null,292]
[2899,"Tuesday",19,null,null,null,null,null,null,null,null,null,null,null,null,null,null,293]
[2900,"Tuesday",20,null,null,null,null,null,null,null,null,null,null,null,null,null,null,294]
[2903,"Tuesday",23,null,null,null,null,null,null,null,null,null,null,null,null,null,null,297]
[2909,"Wednesday",5,null,null,null,null,null,null,null,null,null,null,null,null,null,null,294]
[2911,"Wednesday",7,null,null,null,null,null,null,null,null,null,null,null,null,null,null,293]
[2914,"Wednesday",10,null,null,null,null,null,null,null,null,null,null,null,null,null,null,294]
[2917,"Wednesday",13,null,null,null,null,null,null,null,null,null,null,null,null,null,null,297]
[2921,{"$f":"B2755","v":"Wednesday"},17,null,null,null,null,null,null,null,null,null,null,null,null,null,null,293]
[2924,"Wednesday",20,null,null,null,null,null,null,null,null,null,null,null,null,null,null,289]
[2925,"Wednesday",21,null,null,null,null,null,null,null,null,null,null,null,null,null,null,290]
[2930,"Thursday",2,null,null,null,null,null,null,null,null,null,null,null,null,null,null,287]
[2932,"Thursday",4,null,null,null,null,null,null,null,null,null,null,null,null,null,null,293]
[2936,"Thursday",8,null,null,null,null,null,null,null,null,null,null,null,null,null,null,293]
[2939,"Thursday",11,null,null,null,null,null,null,null,null,null,null,null,null,null,null,296]
[2942,"Thursday",14,null,null,null,null,null,null,null,null,null,null,null,null,null,null,294]
[2946,"Thursday",18,null,null,null,null,null,null,null,null,null,null,null,null,null,null,297]
[2949,"Thursday",21,null,null,null,null,null,null,null,null,null,null,null,null,null,null,295]
[2950,"Thursday",22,null,null,null,null,null,null,null,null,null,null,null,null,null,null,294]
[2955,"Friday",3,null,null,null,null,null,null,null,null,null,null,null,null,null,null,297]
[2957,"Friday",5,null,null,null,null,null,null,null,null,null,null,null,null,null,null,298]
[2961,"Friday",9,null,null,null,null,null,null,null,null,null,null,null,null,null,null,296]
[2964,"Friday",12,null,null,null,null,null,null,null,null,null,null,null,null,null,null,292]
[2968,"Friday",16,null,null,null,null,null,null,null,null,null,null,null,null,null,null,292]
[2971,"Friday",19,null,null,null,null,null,null,null,null,null,null,null,null,null,null,291]
[2974,"Friday",22,null,null,null,null,null,null,null,null,null,null,null,null,null,null,291]
[2976,"Saturday",0,null,null,null,null,null,null,null,null,null,null,null,null,null,null,295]
[2979,"Saturday",3,null,null,null,null,null,null,null,null,null,null,null,null,null,null,294]
[2982,"Saturday",6,null,null,null,null,null,null,null,null,null,null,null,null,null,null,299]
[{"$f":"A2987+1","v":2986},"Saturday",10,null,null,null,null,null,null,null,null,null,null,null,null,null,null,295]
[2989,"Saturday",13,null,null,null,null,null,null,null,null,null,null,null,null,null,null,294]
[2993,"Saturday",17,null,null,null,null,null,null,null,null,null,null,null,null,null,null,296]
[2996,"Saturday",20,null,null,null,null,null,null,null,null,null,null,null,null,null,null,294]
[2999,"Saturday",23,null,null,null,null,null,null,null,null,null,null,null,null,null,null,291]
[3001,"Sunday",1,null,null,null,null,null,null,null,null,null,null,null,null,null,null,292]
[3004,"Sunday",4,null,null,null,null,null,null,null,null,null,null,null,null,null,null,290]
[3007,"Sunday",7,null,null,null,null,null,null,null,null,null,null,null,null,null,null,292]
[3011,"Sunday",11,null,null,null,null,null,null,null,null,null,null,null,null,null,null,293]
[3014,"Sunday",14,null,null,null,null,null,null,null,null,null,null,null,null,null,null,298]
[3018,"Sunday",18,null,null,null,null,null,null,null,null,null,null,null,null,null,null,298]
[3021,"Sunday",21,null,null,null,null,null,null,null,null,null,null,null,null,null,null,295]
[3024,"Monday",0,null,null,null,null,null,null,null,null,null,null,null,null,null,null,294]
[3026,"Monday",2,null,null,null,null,null,null,null,null,null,null,null,null,null,null,293]
[3029,"Monday",5,null,null,null,null,null,null,null,null,null,null,null,null,null,null,297]
[3033,"Monday",{"$f":"C3011","v":9},null,null,null,null,null,null,null,null,null,null,null,null,null,null,292]
[3036,"Monday",12,null,null,null,null,null,null,null,null,null,null,null,null,null,null,294]
[3039,"Monday",15,null,null,null,null,null,null,null,null,null,null,null,null,null,null,291]
[3043,"Monday",19,null,null,null,null,null,null,null,null,null,null,null,null,null,null,291]
[3046,"Monday",22,null,null,null,null,null,null,null,null,null,null,null,null,null,null,295]
[3047,"Monday",23,null,null,null,null,null,null,null,null,null,null,null,null,null,null,293]
[3051,"Tuesday",3,null,null,null,null,null,null,null,null,null,null,null,null,null,null,293]
[3054,"Tuesday",6,null,null,null,null,null,null,null,null,null,null,null,null,null,null,295]
[3058,"Tuesday",10,null,null,null,null,null,null,null,null,null,null,null,null,null,null,294]
[3061,"Tuesday",13,null,null,null,null,null,null,null,null,null,null,null,null,null,null,296]
[3064,"Tuesday",16,null,null,null,null,null,null,null,null,null,null,null,null,null,null,298]
[3068,"Tuesday",20,null,null,null,null,null,null,null,null,null,null,null,null,null,null,292]
[3071,"Tuesday",23,null,null,null,null,null,null,null,null,null,null,null,null,null,null,291]
[3072,"Wednesday",0,null,null,null,null,null,null,null,null,null,null,null,null,null,null,292]
[3076,"Wednesday",4,null,null,null,null,null,null,null,null,null,null,null,null,null,null,293]
[3079,"Wednesday",7,null,null,null,null,null,null,null,null,null,null,null,null,null,null,294]
[3083,"Wednesday",11,null,null,null,null,null,null,null,null,null,null,null,null,null,null,294]
[3086,"Wednesday",14,null,null,null,null,null,null,null,null,null,null,null,null,null,null,296]
[3089,"Wednesday",17,null,null,null,null,null,null,null,null,null,null,null,null,null,null,295]
[3093,"Wednesday",21,null,null,null,null,null,null,null,null,null,null,null,null,null,null,296]
[3096,"Thursday",0,null,null,null,null,null,null,null,null,null,null,null,null,null,null,296]
[3097,"Thursday",{"$f":"C3075","v":1},null,null,null,null,null,null,null,null,null,null,null,null,null,null,295]
[3101,"Thursday",5,null,null,null,null,null,null,null,null,null,null,null,null,null,null,294]
[3104,"Thursday",8,null,null,null,null,null,null,null,null,null,null,null,null,null,null,295]
[3108,"Thursday",12,null,null,null,null,null,null,null,null,null,null,null,null,null,null,291]
[3111,"Thursday",15,null,null,null,null,null,null,null,null,null,null,null,null,null,null,290]
[{"$f":"A3115+1","v":3114},"Thursday",18,null,null,null,null,null,null,null,null,null,null,null,null,null,null,294]
[3118,"Thursday",22,null,null,null,null,null,null,null,null,null,null,null,null,null,null,296]
[3122,"Friday",2,null,null,null,null,null,null,null,null,null,null,null,null,null,null,294]
[3123,"Friday",3,null,null,null,null,null,null,null,null,null,null,null,null,null,null,294]
[3126,"Friday",6,null,null,null,null,null,null,null,null,null,null,null,null,null,null,297]
[3129,"Friday",9,null,null,null,null,null,null,null,null,null,null,null,null,null,null,297]
[3133,"Friday",13,null,null,null,null,null,null,null,null,null,null,null,null,null,null,297]
[3136,"Friday",16,null,null,null,null,null,null,null,null,null,null,null,null,null,null,295]
[3140,"Friday",20,null,null,null,null,null,null,null,null,null,null,null,null,null,null,299]
[3143,"Friday",23,null,null,null,null,null,null,null,null,null,null,null,null,null,null,296]
[3147,"Saturday",3,null,null,null,null,null,null,null,null,null,null,null,null,null,null,290]
[3148,"Saturday",4,null,null,null,null,null,null,null,null,null,null,null,null,null,null,291]
[3151,"Saturday",7,null,null,null,null,null,null,null,null,null,null,null,null,null,null,295]
[3154,"Saturday",10,null,null,null,null,null,null,null,null,null,null,null,null,null,null,295]
[3158,"Saturday",14,null,null,null,null,null,null,null,null,null,null,null,null,null,null,299]
[3161,"Saturday",{"$f":"C3139","v":17},null,null,null,null,null,null,null,null,null,null,null,null,null,null,299]
[3165,"Saturday",21,null,null,null,null,null,null,null,null,null,null,null,null,null,null,298]
[3168,"Sunday",0,null,null,null,null,null,null,null,null,null,null,null,null,null,null,300]
[3172,"Sunday",4,null,null,null,null,null,null,null,null,null,null,null,null,null,null,299]
[3173,"Sunday",5,null,null,null,null,null,null,null,null,null,null,null,null,null,null,299]
[3176,"Sunday",8,null,null,null,null,null,null,null,null,null,null,null,null,null,null,293]
[3180,"Sunday",12,null,null,null,null,null,null,null,null,null,null,null,null,null,null,296]
[3183,"Sunday",15,null,null,null,null,null,null,null,null,null,null,null,null,null,null,289]
[3186,"Sunday",18,null,null,null,null,null,null,null,null,null,null,null,null,null,null,294]
[3190,"Sunday",22,null,null,null,null,null,null,null,null,null,null,null,null,null,null,295]
[3193,"Monday",1,null,null,null,null,null,null,null,null,null,null,null,null,null,null,297]
[3197,"Monday",5,null,null,null,null,null,null,null,null,null,null,null,null,null,null,298]
[3198,"Monday",6,null,null,null,null,null,null,null,null,null,null,null,null,null,null,298]
[3201,"Monday",9,null,null,null,null,null,null,null,null,null,null,null,null,null,null,300]
[3205,"Monday",13,null,null,null,null,null,null,null,null,null,null,null,null,null,null,301]
[3208,"Monday",16,null,null,null,null,null,null,null,null,null,null,null,null,null,null,298]
[3211,"Monday",19,null,null,null,null,null,null,null,null,null,null,null,null,null,null,296]
[3215,"Monday",23,null,null,null,null,null,null,null,null,null,null,null,null,null,null,297]
[3218,"Tuesday",2,null,null,null,null,null,null,null,null,null,null,null,null,null,null,297]
[3222,"Tuesday",6,null,null,null,null,null,null,null,null,null,null,null,null,null,null,294]
[3223,"Tuesday",7,null,null,null,null,null,null,null,null,null,null,null,null,null,null,292]
[3226,"Tuesday",10,null,null,null,null,null,null,null,null,null,null,null,null,null,null,293]
[3230,"Tuesday",14,null,null,null,null,null,null,null,null,null,null,null,null,null,null,292]
[3233,"Tuesday",17,null,null,null,null,null,null,null,null,null,null,null,null,null,null,294]
[3236,"Tuesday",20,null,null,null,null,null,null,null,null,null,null,null,null,null,null,295]
[3239,"Tuesday",23,null,null,null,null,null,null,null,null,null,null,null,null,null,null,295]
[3244,"Wednesday",4,null,null,null,null,null,null,null,null,null,null,null,null,null,null,298]
[3245,"Wednesday",5,null,null,null,null,null,null,null,null,null,null,null,null,null,null,298]
[3248,"Wednesday",8,null,null,null,null,null,null,null,null,null,null,null,null,null,null,296]
[3251,"Wednesday",11,null,null,null,null,null,null,null,null,null,null,null,null,null,null,297]
[3255,"Wednesday",15,null,null,null,null,null,null,null,null,null,null,null,null,null,null,299]
[3258,"Wednesday",18,null,null,null,null,null,null,null,null,null,null,null,null,null,null,301]
[3261,"Wednesday",21,null,null,null,null,null,null,null,null,null,null,null,null,null,null,298]
[3264,"Thursday",0,null,null,null,null,null,null,null,null,null,null,null,null,null,null,297]
[3269,"Thursday",5,null,null,null,null,null,null,null,null,null,null,null,null,null,null,297]
[3270,"Thursday",6,null,null,null,null,null,null,null,null,null,null,null,null,null,null,296]
[3273,"Thursday",9,null,null,null,null,null,null,null,null,null,null,null,null,null,null,295]
[3276,"Thursday",12,null,null,null,null,null,null,null,null,null,null,null,null,null,null,293]
[3280,"Thursday",16,null,null,null,null,null,null,null,null,null,null,null,null,null,null,295]
[3283,"Thursday",19,null,null,null,null,null,null,null,null,null,null,null,null,null,null,293]
[3286,"Thursday",22,null,null,null,null,null,null,null,null,null,null,null,null,null,null,295]
[3289,"Friday",{"$f":"C3267","v":1},null,null,null,null,null,null,null,null,null,null,null,null,null,null,297]
[3294,"Friday",6,null,null,null,null,null,null,null,null,null,null,null,null,null,null,297]
[3295,"Friday",7,null,null,null,null,null,null,null,null,null,null,null,null,null,null,299]
[3298,"Friday",10,null,null,null,null,null,null,null,null,null,null,null,null,null,null,297]
[3301,"Friday",13,null,null,null,null,null,null,null,null,null,null,null,null,null,null,299]
[3305,{"$f":"B3139","v":"Friday"},17,null,null,null,null,null,null,null,null,null,null,null,null,null,null,299]
[3308,"Friday",20,null,null,null,null,null,null,null,null,null,null,null,null,null,null,303]
[3310,"Friday",22,null,null,null,null,null,null,null,null,null,null,null,null,null,null,298]
[3316,"Saturday",4,null,null,null,null,null,null,null,null,null,null,null,null,null,null,300]
[3319,"Saturday",7,null,null,null,null,null,null,null,null,null,null,null,null,null,null,299]
[3320,"Saturday",8,null,null,null,null,null,null,null,null,null,null,null,null,null,null,302]
[3323,"Saturday",11,null,null,null,null,null,null,null,null,null,null,null,null,null,null,301]
[3326,"Saturday",14,null,null,null,null,null,null,null,null,null,null,null,null,null,null,296]
[3330,"Saturday",18,null,null,null,null,null,null,null,null,null,null,null,null,null,null,296]
[3333,"Saturday",21,null,null,null,null,null,null,null,null,null,null,null,null,null,null,297]
[3335,"Saturday",23,null,null,null,null,null,null,null,null,null,null,null,null,null,null,300]
[3341,"Sunday",5,null,null,null,null,null,null,null,null,null,null,null,null,null,null,298]
[3344,"Sunday",8,null,null,null,null,null,null,null,null,null,null,null,null,null,null,300]
[3345,"Sunday",9,null,null,null,null,null,null,null,null,null,null,null,null,null,null,300]
[3348,"Sunday",12,null,null,null,null,null,null,null,null,null,null,null,null,null,null,303]
[3352,"Sunday",16,null,null,null,null,null,null,null,null,null,null,null,null,null,null,305]
[3355,"Sunday",19,null,null,null,null,null,null,null,null,null,null,null,null,null,null,302]
[3358,"Sunday",22,null,null,null,null,null,null,null,null,null,null,null,null,null,null,301]
[3360,"Monday",0,null,null,null,null,null,null,null,null,null,null,null,null,null,null,300]
[3366,"Monday",6,null,null,null,null,null,null,null,null,null,null,null,null,null,null,303]
[3369,{"$f":"B3203","v":"Monday"},9,null,null,null,null,null,null,null,null,null,null,null,null,null,null,301]
[{"$f":"A3371+1","v":3370},"Monday",10,null,null,null,null,null,null,null,null,null,null,null,null,null,null,299]
[3373,"Monday",13,null,null,null,null,null,null,null,null,null,null,null,null,null,null,298]
[3377,"Monday",17,null,null,null,null,null,null,null,null,null,null,null,null,null,null,299]
[3380,"Monday",20,null,null,null,null,null,null,null,null,null,null,null,null,null,null,299]
[3385,"Tuesday",1,null,null,null,null,null,null,null,null,null,null,null,null,null,null,299]
[3388,"Tuesday",4,null,null,null,null,null,null,null,null,null,null,null,null,null,null,300]
[3391,"Tuesday",7,null,null,null,null,null,null,null,null,null,null,null,null,null,null,304]
[3394,"Tuesday",10,null,null,null,null,null,null,null,null,null,null,null,null,null,null,300]
[3395,"Tuesday",11,null,null,null,null,null,null,null,null,null,null,null,null,null,null,302]
[3398,"Tuesday",14,null,null,null,null,null,null,null,null,null,null,null,null,null,null,301]
[3402,"Tuesday",18,null,null,null,null,null,null,null,null,null,null,null,null,null,null,300]
[3405,"Tuesday",21,null,null,null,null,null,null,null,null,null,null,null,null,null,null,299]
[3410,"Wednesday",2,null,null,null,null,null,null,null,null,null,null,null,null,null,null,306]
[3413,"Wednesday",5,null,null,null,null,null,null,null,null,null,null,null,null,null,null,298]
[3416,"Wednesday",8,null,null,null,null,null,null,null,null,null,null,null,null,null,null,302]
[3417,"Wednesday",{"$f":"C3395","v":9},null,null,null,null,null,null,null,null,null,null,null,null,null,null,300]
[3420,"Wednesday",12,null,null,null,null,null,null,null,null,null,null,null,null,null,null,302]
[3423,"Wednesday",15,null,null,null,null,null,null,null,null,null,null,null,null,null,null,298]
[3427,"Wednesday",19,null,null,null,null,null,null,null,null,null,null,null,null,null,null,298]
[3430,"Wednesday",22,null,null,null,null,null,null,null,null,null,null,null,null,null,null,300]
[3435,"Thursday",3,null,null,null,null,null,null,null,null,null,null,null,null,null,null,303]
[3438,"Thursday",6,null,null,null,null,null,null,null,null,null,null,null,null,null,null,301]
[3441,"Thursday",9,null,null,null,null,null,null,null,null,null,null,null,null,null,null,299]
[3442,"Thursday",10,null,null,null,null,null,null,null,null,null,null,null,null,null,null,299]
[3445,"Thursday",13,null,null,null,null,null,null,null,null,null,null,null,null,null,null,298]
[3448,"Thursday",16,null,null,null,null,null,null,null,null,null,null,null,null,null,null,300]
[3452,"Thursday",20,null,null,null,null,null,null,null,null,null,null,null,null,null,null,301]
[3456,"Friday",0,null,null,null,null,null,null,null,null,null,null,null,null,null,null,302]
[3459,"Friday",3,null,null,null,null,null,null,null,null,null,null,null,null,null,null,297]
[3463,"Friday",7,null,null,null,null,null,null,null,null,null,null,null,null,null,null,300]
[3466,"Friday",10,null,null,null,null,null,null,null,null,null,null,null,null,null,null,302]
[3467,"Friday",11,null,null,null,null,null,null,null,null,null,null,null,null,null,null,303]
[3470,"Friday",14,null,null,null,null,null,null,null,null,null,null,null,null,null,null,301]
[3473,"Friday",17,null,null,null,null,null,null,null,null,null,null,null,null,null,null,302]
[3477,"Friday",21,null,null,null,null,null,null,null,null,null,null,null,null,null,null,303]
[3481,"Saturday",{"$f":"C3459","v":1},null,null,null,null,null,null,null,null,null,null,null,null,null,null,299]
[3485,"Saturday",5,null,null,null,null,null,null,null,null,null,null,null,null,null,null,297]
[3488,"Saturday",8,null,null,null,null,null,null,null,null,null,null,null,null,null,null,300]
[3491,"Saturday",11,null,null,null,null,null,null,null,null,null,null,null,null,null,null,298]
[3492,"Saturday",12,null,null,null,null,null,null,null,null,null,null,null,null,null,null,299]
[3495,"Saturday",15,null,null,null,null,null,null,null,null,null,null,null,null,null,null,300]
[{"$f":"A3499+1","v":3498},"Saturday",18,null,null,null,null,null,null,null,null,null,null,null,null,null,null,299]
[3502,"Saturday",22,null,null,null,null,null,null,null,null,null,null,null,null,null,null,296]
[3506,"Sunday",2,null,null,null,null,null,null,null,null,null,null,null,null,null,null,298]
[3510,"Sunday",6,null,null,null,null,null,null,null,null,null,null,null,null,null,null,297]
[3513,"Sunday",9,null,null,null,null,null,null,null,null,null,null,null,null,null,null,299]
[3516,"Sunday",12,null,null,null,null,null,null,null,null,null,null,null,null,null,null,299]
[3517,"Sunday",13,null,null,null,null,null,null,null,null,null,null,null,null,null,null,300]
[3520,"Sunday",16,null,null,null,null,null,null,null,null,null,null,null,null,null,null,298]
[3524,"Sunday",20,null,null,null,null,null,null,null,null,null,null,null,null,null,null,300]
[3527,"Sunday",23,null,null,null,null,null,null,null,null,null,null,null,null,null,null,298]
[3531,"Monday",3,null,null,null,null,null,null,null,null,null,null,null,null,null,null,299]
[3535,"Monday",7,null,null,null,null,null,null,null,null,null,null,null,null,null,null,299]
[3538,"Monday",10,null,null,null,null,null,null,null,null,null,null,null,null,null,null,300]
[3541,"Monday",13,null,null,null,null,null,null,null,null,null,null,null,null,null,null,300]
[3542,"Monday",14,null,null,null,null,null,null,null,null,null,null,null,null,null,null,302]
[3545,"Monday",{"$f":"C3523","v":17},null,null,null,null,null,null,null,null,null,null,null,null,null,null,296]
[3549,"Monday",21,null,null,null,null,null,null,null,null,null,null,null,null,null,null,292]
[3552,"Tuesday",0,null,null,null,null,null,null,null,null,null,null,null,null,null,null,296]
[3556,"Tuesday",4,null,null,null,null,null,null,null,null,null,null,null,null,null,null,301]
[3560,"Tuesday",8,null,null,null,null,null,null,null,null,null,null,null,null,null,null,299]
[3563,"Tuesday",11,null,null,null,null,null,null,null,null,null,null,null,null,null,null,298]
[3566,"Tuesday",14,null,null,null,null,null,null,null,null,null,null,null,null,null,null,295]
[3567,"Tuesday",15,null,null,null,null,null,null,null,null,null,null,null,null,null,null,299]
[3570,"Tuesday",18,null,null,null,null,null,null,null,null,null,null,null,null,null,null,300]
[3573,"Tuesday",21,null,null,null,null,null,null,null,null,null,null,null,null,null,null,300]
[3578,"Wednesday",2,null,null,null,null,null,null,null,null,null,null,null,null,null,null,299]
[3581,"Wednesday",5,null,null,null,null,null,null,null,null,null,null,null,null,null,null,300]
[3585,"Wednesday",9,null,null,null,null,null,null,null,null,null,null,null,null,null,null,300]
[3588,"Wednesday",12,null,null,null,null,null,null,null,null,null,null,null,null,null,null,299]
[3589,"Wednesday",13,null,null,null,null,null,null,null,null,null,null,null,null,null,null,300]
[3592,"Wednesday",16,null,null,null,null,null,null,null,null,null,null,null,null,null,null,298]
[3595,"Wednesday",19,null,null,null,null,null,null,null,null,null,null,null,null,null,null,303]
[3598,"Wednesday",22,null,null,null,null,null,null,null,null,null,null,null,null,null,null,301]
[3603,"Thursday",3,null,null,null,null,null,null,null,null,null,null,null,null,null,null,300]
[3606,"Thursday",6,null,null,null,null,null,null,null,null,null,null,null,null,null,null,300]
[3610,"Thursday",10,null,null,null,null,null,null,null,null,null,null,null,null,null,null,295]
[3613,"Thursday",13,null,null,null,null,null,null,null,null,null,null,null,null,null,null,294]
[3614,"Thursday",14,null,null,null,null,null,null,null,null,null,null,null,null,null,null,295]
[3617,"Thursday",17,null,null,null,null,null,null,null,null,null,null,null,null,null,null,299]
[3620,"Thursday",20,null,null,null,null,null,null,null,null,null,null,null,null,null,null,297]
[3623,"Thursday",23,null,null,null,null,null,null,null,null,null,null,null,null,null,null,299]
[3628,"Friday",4,null,null,null,null,null,null,null,null,null,null,null,null,null,null,302]
[3632,"Friday",8,null,null,null,null,null,null,null,null,null,null,null,null,null,null,298]
[3635,"Friday",11,null,null,null,null,null,null,null,null,null,null,null,null,null,null,300]
[3638,"Friday",14,null,null,null,null,null,null,null,null,null,null,null,null,null,null,298]
[3639,"Friday",15,null,null,null,null,null,null,null,null,null,null,null,null,null,null,300]
[3642,"Friday",18,null,null,null,null,null,null,null,null,null,null,null,null,null,null,301]
[3648,"Saturday",0,null,null,null,null,null,null,null,null,null,null,null,null,null,null,302]
[3650,"Saturday",2,null,null,null,null,null,null,null,null,null,null,null,null,null,null,303]
[3653,"Saturday",5,null,null,null,null,null,null,null,null,null,null,null,null,null,null,303]
[3657,"Saturday",9,null,null,null,null,null,null,null,null,null,null,null,null,null,null,301]
[3660,"Saturday",12,null,null,null,null,null,null,null,null,null,null,null,null,null,null,299]
[3663,"Saturday",15,null,null,null,null,null,null,null,null,null,null,null,null,null,null,297]
[3664,"Saturday",16,null,null,null,null,null,null,null,null,null,null,null,null,null,null,298]
[3667,"Saturday",19,null,null,null,null,null,null,null,null,null,null,null,null,null,null,298]
[3673,"Sunday",{"$f":"C3651","v":1},null,null,null,null,null,null,null,null,null,null,null,null,null,null,303]
[3675,"Sunday",3,null,null,null,null,null,null,null,null,null,null,null,null,null,null,301]
[3678,"Sunday",6,null,null,null,null,null,null,null,null,null,null,null,null,null,null,303]
[3682,"Sunday",10,null,null,null,null,null,null,null,null,null,null,null,null,null,null,301]
[3685,"Sunday",13,null,null,null,null,null,null,null,null,null,null,null,null,null,null,300]
[3688,"Sunday",16,null,null,null,null,null,null,null,null,null,null,null,null,null,null,297]
[3689,{"$f":"B3523","v":"Sunday"},17,null,null,null,null,null,null,null,null,null,null,null,null,null,null,297]
[3694,"Sunday",22,null,null,null,null,null,null,null,null,null,null,null,null,null,null,300]
[3697,"Monday",1,null,null,null,null,null,null,null,null,null,null,null,null,null,null,298]
[3700,"Monday",4,null,null,null,null,null,null,null,null,null,null,null,null,null,null,301]
[3703,"Monday",7,null,null,null,null,null,null,null,null,null,null,null,null,null,null,300]
[3707,"Monday",11,null,null,null,null,null,null,null,null,null,null,null,null,null,null,303]
[3710,"Monday",14,null,null,null,null,null,null,null,null,null,null,null,null,null,null,299]
[3713,"Monday",17,null,null,null,null,null,null,null,null,null,null,null,null,null,null,299]
[3714,"Monday",18,null,null,null,null,null,null,null,null,null,null,null,null,null,null,300]
[3719,"Monday",23,null,null,null,null,null,null,null,null,null,null,null,null,null,null,297]
[3722,"Tuesday",2,null,null,null,null,null,null,null,null,null,null,null,null,null,null,297]
[3725,"Tuesday",5,null,null,null,null,null,null,null,null,null,null,null,null,null,null,299]
[3728,"Tuesday",8,null,null,null,null,null,null,null,null,null,null,null,null,null,null,299]
[3732,"Tuesday",12,null,null,null,null,null,null,null,null,null,null,null,null,null,null,299]
[3735,"Tuesday",15,null,null,null,null,null,null,null,null,null,null,null,null,null,null,301]
[3738,"Tuesday",18,null,null,null,null,null,null,null,null,null,null,null,null,null,null,294]
[3739,"Tuesday",19,null,null,null,null,null,null,null,null,null,null,null,null,null,null,295]
[3744,"Wednesday",0,null,null,null,null,null,null,null,null,null,null,null,null,null,null,300]
[3747,"Wednesday",3,null,null,null,null,null,null,null,null,null,null,null,null,null,null,299]
[3750,"Wednesday",6,null,null,null,null,null,null,null,null,null,null,null,null,null,null,297]
[3753,{"$f":"B3587","v":"Wednesday"},9,null,null,null,null,null,null,null,null,null,null,null,null,null,null,301]
[3757,"Wednesday",13,null,null,null,null,null,null,null,null,null,null,null,null,null,null,300]
[3760,"Wednesday",16,null,null,null,null,null,null,null,null,null,null,null,null,null,null,296]
[3761,"Wednesday",17,null,null,null,null,null,null,null,null,null,null,null,null,null,null,295]
[3765,"Wednesday",21,null,null,null,null,null,null,null,null,null,null,null,null,null,null,297]
[3768,"Thursday",0,null,null,null,null,null,null,null,null,null,null,null,null,null,null,298]
[3772,"Thursday",4,null,null,null,null,null,null,null,null,null,null,null,null,null,null,298]
[3775,"Thursday",7,null,null,null,null,null,null,null,null,null,null,null,null,null,null,298]
[3778,"Thursday",10,null,null,null,null,null,null,null,null,null,null,null,null,null,null,301]
[3782,"Thursday",14,null,null,null,null,null,null,null,null,null,null,null,null,null,null,299]
[3785,"Thursday",17,null,null,null,null,null,null,null,null,null,null,null,null,null,null,300]
[3786,"Thursday",18,null,null,null,null,null,null,null,null,null,null,null,null,null,null,299]
[3790,"Thursday",22,null,null,null,null,null,null,null,null,null,null,null,null,null,null,298]
[3793,"Friday",1,null,null,null,null,null,null,null,null,null,null,null,null,null,null,299]
[3797,"Friday",5,null,null,null,null,null,null,null,null,null,null,null,null,null,null,299]
[3800,"Friday",8,null,null,null,null,null,null,null,null,null,null,null,null,null,null,303]
[3804,"Friday",12,null,null,null,null,null,null,null,null,null,null,null,null,null,null,298]
[3807,"Friday",15,null,null,null,null,null,null,null,null,null,null,null,null,null,null,301]
[3810,"Friday",18,null,null,null,null,null,null,null,null,null,null,null,null,null,null,301]
[3811,"Friday",19,null,null,null,null,null,null,null,null,null,null,null,null,null,null,301]
[3815,"Friday",23,null,null,null,null,null,null,null,null,null,null,null,null,null,null,297]
[{"$f":"A3819+1","v":3818},"Saturday",2,null,null,null,null,null,null,null,null,null,null,null,null,null,null,299]
[3822,"Saturday",6,null,null,null,null,null,null,null,null,null,null,null,null,null,null,298]
[3825,"Saturday",9,null,null,null,null,null,null,null,null,null,null,null,null,null,null,299]
[3829,"Saturday",13,null,null,null,null,null,null,null,null,null,null,null,null,null,null,301]
[3832,"Saturday",16,null,null,null,null,null,null,null,null,null,null,null,null,null,null,302]
[3835,"Saturday",19,null,null,null,null,null,null,null,null,null,null,null,null,null,null,297]
[3836,"Saturday",20,null,null,null,null,null,null,null,null,null,null,null,null,null,null,298]
[3840,"Sunday",0,null,null,null,null,null,null,null,null,null,null,null,null,null,null,296]
[3843,"Sunday",3,null,null,null,null,null,null,null,null,null,null,null,null,null,null,297]
[3847,"Sunday",7,null,null,null,null,null,null,null,null,null,null,null,null,null,null,298]
[3850,"Sunday",10,null,null,null,null,null,null,null,null,null,null,null,null,null,null,302]
[3854,"Sunday",14,null,null,null,null,null,null,null,null,null,null,null,null,null,null,300]
[3857,"Sunday",17,null,null,null,null,null,null,null,null,null,null,null,null,null,null,300]
[3860,"Sunday",20,null,null,null,null,null,null,null,null,null,null,null,null,null,null,300]
[3861,"Sunday",21,null,null,null,null,null,null,null,null,null,null,null,null,null,null,299]
[3865,"Monday",{"$f":"C3843","v":1},null,null,null,null,null,null,null,null,null,null,null,null,null,null,296]
[3869,"Monday",5,null,null,null,null,null,null,null,null,null,null,null,null,null,null,298]
[3872,"Monday",8,null,null,null,null,null,null,null,null,null,null,null,null,null,null,302]
[3875,"Monday",11,null,null,null,null,null,null,null,null,null,null,null,null,null,null,296]
[3879,"Monday",15,null,null,null,null,null,null,null,null,null,null,null,null,null,null,298]
[{"$f":"A3883+1","v":3882},"Monday",18,null,null,null,null,null,null,null,null,null,null,null,null,null,null,299]
[3885,"Monday",21,null,null,null,null,null,null,null,null,null,null,null,null,null,null,297]
[3886,"Monday",22,null,null,null,null,null,null,null,null,null,null,null,null,null,null,297]
[3890,"Tuesday",2,null,null,null,null,null,null,null,null,null,null,null,null,null,null,296]
[3894,"Tuesday",6,null,null,null,null,null,null,null,null,null,null,null,null,null,null,301]
[3897,"Tuesday",9,null,null,null,null,null,null,null,null,null,null,null,null,null,null,300]
[3900,"Tuesday",12,null,null,null,null,null,null,null,null,null,null,null,null,null,null,298]
[3904,"Tuesday",16,null,null,null,null,null,null,null,null,null,null,null,null,null,null,299]
[3907,"Tuesday",19,null,null,null,null,null,null,null,null,null,null,null,null,null,null,299]
[3911,"Tuesday",23,null,null,null,null,null,null,null,null,null,null,null,null,null,null,298]
[3912,"Wednesday",0,null,null,null,null,null,null,null,null,null,null,null,null,null,null,297]
[3915,"Wednesday",3,null,null,null,null,null,null,null,null,null,null,null,null,null,null,301]
[3919,"Wednesday",7,null,null,null,null,null,null,null,null,null,null,null,null,null,null,301]
[3922,"Wednesday",10,null,null,null,null,null,null,null,null,null,null,null,null,null,null,301]
[3925,"Wednesday",13,null,null,null,null,null,null,null,null,null,null,null,null,null,null,302]
[3929,"Wednesday",{"$f":"C3907","v":17},null,null,null,null,null,null,null,null,null,null,null,null,null,null,297]
[3932,"Wednesday",20,null,null,null,null,null,null,null,null,null,null,null,null,null,null,297]
[3936,"Thursday",0,null,null,null,null,null,null,null,null,null,null,null,null,null,null,296]
[3937,"Thursday",1,null,null,null,null,null,null,null,null,null,null,null,null,null,null,296]
[3940,"Thursday",4,null,null,null,null,null,null,null,null,null,null,null,null,null,null,295]
[3944,"Thursday",8,null,null,null,null,null,null,null,null,null,null,null,null,null,null,300]
[3947,"Thursday",11,null,null,null,null,null,null,null,null,null,null,null,null,null,null,301]
[3950,"Thursday",14,null,null,null,null,null,null,null,null,null,null,null,null,null,null,301]
[3954,"Thursday",18,null,null,null,null,null,null,null,null,null,null,null,null,null,null,295]
[3957,"Thursday",21,null,null,null,null,null,null,null,null,null,null,null,null,null,null,298]
[3959,"Thursday",23,null,null,null,null,null,null,null,null,null,null,null,null,null,null,297]
[3962,"Friday",2,null,null,null,null,null,null,null,null,null,null,null,null,null,null,297]
[3965,"Friday",5,null,null,null,null,null,null,null,null,null,null,null,null,null,null,303]
[3969,"Friday",9,null,null,null,null,null,null,null,null,null,null,null,null,null,null,298]
[3972,"Friday",12,null,null,null,null,null,null,null,null,null,null,null,null,null,null,301]
[3976,"Friday",16,null,null,null,null,null,null,null,null,null,null,null,null,null,null,296]
[3979,"Friday",19,null,null,null,null,null,null,null,null,null,null,null,null,null,null,296]
[3982,"Friday",22,null,null,null,null,null,null,null,null,null,null,null,null,null,null,296]
[3984,"Saturday",0,null,null,null,null,null,null,null,null,null,null,null,null,null,null,300]
[3987,"Saturday",3,null,null,null,null,null,null,null,null,null,null,null,null,null,null,300]
[3990,"Saturday",6,null,null,null,null,null,null,null,null,null,null,null,null,null,null,304]
[3994,"Saturday",10,null,null,null,null,null,null,null,null,null,null,null,null,null,null,302]
[3997,"Saturday",13,null,null,null,null,null,null,null,null,null,null,null,null,null,null,297]
[4001,"Saturday",17,null,null,null,null,null,null,null,null,null,null,null,null,null,null,299]
[4004,"Saturday",20,null,null,null,null,null,null,null,null,null,null,null,null,null,null,297]
[4007,"Saturday",23,null,null,null,null,null,null,null,null,null,null,null,null,null,null,298]
[4009,{"$f":"B3843","v":"Sunday"},1,null,null,null,null,null,null,null,null,null,null,null,null,null,null,298]
[4012,"Sunday",4,null,null,null,null,null,null,null,null,null,null,null,null,null,null,301]
[4015,"Sunday",7,null,null,null,null,null,null,null,null,null,null,null,null,null,null,304]
[4019,"Sunday",11,null,null,null,null,null,null,null,null,null,null,null,null,null,null,300]
[4022,"Sunday",14,null,null,null,null,null,null,null,null,null,null,null,null,null,null,302]
[4026,"Sunday",18,null,null,null,null,null,null,null,null,null,null,null,null,null,null,299]
[4028,"Sunday",20,null,null,null,null,null,null,null,null,null,null,null,null,null,null,299]
[4033,"Monday",1,null,null,null,null,null,null,null,null,null,null,null,null,null,null,297]
[4034,"Monday",2,null,null,null,null,null,null,null,null,null,null,null,null,null,null,301]
[4037,"Monday",5,null,null,null,null,null,null,null,null,null,null,null,null,null,null,302]
[4041,"Monday",9,null,null,null,null,null,null,null,null,null,null,null,null,null,null,299]
[4044,"Monday",12,null,null,null,null,null,null,null,null,null,null,null,null,null,null,301]
[4047,"Monday",15,null,null,null,null,null,null,null,null,null,null,null,null,null,null,303]
[4051,"Monday",19,null,null,null,null,null,null,null,null,null,null,null,null,null,null,299]
[4053,"Monday",21,null,null,null,null,null,null,null,null,null,null,null,null,null,null,300]
[4058,"Tuesday",2,null,null,null,null,null,null,null,null,null,null,null,null,null,null,300]
[4059,"Tuesday",3,null,null,null,null,null,null,null,null,null,null,null,null,null,null,300]
[4062,"Tuesday",6,null,null,null,null,null,null,null,null,null,null,null,null,null,null,299]
[4066,"Tuesday",10,null,null,null,null,null,null,null,null,null,null,null,null,null,null,301]
[4069,"Tuesday",13,null,null,null,null,null,null,null,null,null,null,null,null,null,null,299]
[4072,"Tuesday",16,null,null,null,null,null,null,null,null,null,null,null,null,null,null,301]
[4076,"Tuesday",20,null,null,null,null,null,null,null,null,null,null,null,null,null,null,300]
[4078,"Tuesday",22,null,null,null,null,null,null,null,null,null,null,null,null,null,null,299]
[4081,"Wednesday",1,null,null,null,null,null,null,null,null,null,null,null,null,null,null,300]
[4084,"Wednesday",4,null,null,null,null,null,null,null,null,null,null,null,null,null,null,298]
[4087,"Wednesday",7,null,null,null,null,null,null,null,null,null,null,null,null,null,null,302]
[4091,"Wednesday",11,null,null,null,null,null,null,null,null,null,null,null,null,null,null,300]
[4094,"Wednesday",14,null,null,null,null,null,null,null,null,null,null,null,null,null,null,300]
[4097,"Wednesday",17,null,null,null,null,null,null,null,null,null,null,null,null,null,null,296]
[4099,"Wednesday",19,null,null,null,null,null,null,null,null,null,null,null,null,null,null,297]
[4105,"Thursday",1,null,null,null,null,null,null,null,null,null,null,null,null,null,null,295]
[4106,"Thursday",2,null,null,null,null,null,null,null,null,null,null,null,null,null,null,295]
[4109,"Thursday",5,null,null,null,null,null,null,null,null,null,null,null,null,null,null,300]
[4112,"Thursday",8,null,null,null,null,null,null,null,null,null,null,null,null,null,null,298]
[4116,"Thursday",12,null,null,null,null,null,null,null,null,null,null,null,null,null,null,297]
[4119,"Thursday",15,null,null,null,null,null,null,null,null,null,null,null,null,null,null,299]
[4122,"Thursday",18,null,null,null,null,null,null,null,null,null,null,null,null,null,null,304]
[4124,"Thursday",20,null,null,null,null,null,null,null,null,null,null,null,null,null,null,300]
[4130,"Friday",2,null,null,null,null,null,null,null,null,null,null,null,null,null,null,297]
[4131,"Friday",3,null,null,null,null,null,null,null,null,null,null,null,null,null,null,298]
[4134,"Friday",6,null,null,null,null,null,null,null,null,null,null,null,null,null,null,298]
[4137,{"$f":"B3971","v":"Friday"},9,null,null,null,null,null,null,null,null,null,null,null,null,null,null,300]
[4141,"Friday",13,null,null,null,null,null,null,null,null,null,null,null,null,null,null,299]
[4144,"Friday",16,null,null,null,null,null,null,null,null,null,null,null,null,null,null,300]
[4148,"Friday",20,null,null,null,null,null,null,null,null,null,null,null,null,null,null,303]
[4149,"Friday",21,null,null,null,null,null,null,null,null,null,null,null,null,null,null,301]
[4155,"Saturday",3,null,null,null,null,null,null,null,null,null,null,null,null,null,null,298]
[4156,"Saturday",4,null,null,null,null,null,null,null,null,null,null,null,null,null,null,299]
[4159,"Saturday",7,null,null,null,null,null,null,null,null,null,null,null,null,null,null,299]
[4162,"Saturday",10,null,null,null,null,null,null,null,null,null,null,null,null,null,null,299]
[4166,"Saturday",14,null,null,null,null,null,null,null,null,null,null,null,null,null,null,299]
[4169,"Saturday",17,null,null,null,null,null,null,null,null,null,null,null,null,null,null,296]
[4174,"Saturday",22,null,null,null,null,null,null,null,null,null,null,null,null,null,null,301]
[4177,"Sunday",1,null,null,null,null,null,null,null,null,null,null,null,null,null,null,300]
[4180,"Sunday",4,null,null,null,null,null,null,null,null,null,null,null,null,null,null,298]
[4181,"Sunday",5,null,null,null,null,null,null,null,null,null,null,null,null,null,null,297]
[4184,"Sunday",8,null,null,null,null,null,null,null,null,null,null,null,null,null,null,296]
[4187,"Sunday",11,null,null,null,null,null,null,null,null,null,null,null,null,null,null,297]
[4191,"Sunday",15,null,null,null,null,null,null,null,null,null,null,null,null,null,null,294]
[4194,"Sunday",18,null,null,null,null,null,null,null,null,null,null,null,null,null,null,297]
[4199,"Sunday",23,null,null,null,null,null,null,null,null,null,null,null,null,null,null,297]
[{"$f":"A4203+1","v":4202},"Monday",2,null,null,null,null,null,null,null,null,null,null,null,null,null,null,298]
[4205,"Monday",5,null,null,null,null,null,null,null,null,null,null,null,null,null,null,299]
[4206,"Monday",6,null,null,null,null,null,null,null,null,null,null,null,null,null,null,298]
[4209,"Monday",9,null,null,null,null,null,null,null,null,null,null,null,null,null,null,297]
[4213,"Monday",13,null,null,null,null,null,null,null,null,null,null,null,null,null,null,297]
[4216,"Monday",16,null,null,null,null,null,null,null,null,null,null,null,null,null,null,295]
[4220,"Monday",20,null,null,null,null,null,null,null,null,null,null,null,null,null,null,295]
[4224,"Tuesday",0,null,null,null,null,null,null,null,null,null,null,null,null,null,null,296]
[4227,"Tuesday",3,null,null,null,null,null,null,null,null,null,null,null,null,null,null,298]
[4230,"Tuesday",6,null,null,null,null,null,null,null,null,null,null,null,null,null,null,300]
[4231,"Tuesday",7,null,null,null,null,null,null,null,null,null,null,null,null,null,null,303]
[4234,"Tuesday",10,null,null,null,null,null,null,null,null,null,null,null,null,null,null,302]
[4238,"Tuesday",14,null,null,null,null,null,null,null,null,null,null,null,null,null,null,299]
[4241,"Tuesday",17,null,null,null,null,null,null,null,null,null,null,null,null,null,null,299]
[4245,"Tuesday",21,null,null,null,null,null,null,null,null,null,null,null,null,null,null,297]
[4249,"Wednesday",{"$f":"C4227","v":1},null,null,null,null,null,null,null,null,null,null,null,null,null,null,297]
[4252,"Wednesday",4,null,null,null,null,null,null,null,null,null,null,null,null,null,null,300]
[4253,"Wednesday",5,null,null,null,null,null,null,null,null,null,null,null,null,null,null,299]
[4256,"Wednesday",8,null,null,null,null,null,null,null,null,null,null,null,null,null,null,298]
[4259,"Wednesday",11,null,null,null,null,null,null,null,null,null,null,null,null,null,null,300]
[4263,"Wednesday",15,null,null,null,null,null,null,null,null,null,null,null,null,null,null,298]
[{"$f":"A4267+1","v":4266},"Wednesday",18,null,null,null,null,null,null,null,null,null,null,null,null,null,null,303]
[4270,"Wednesday",22,null,null,null,null,null,null,null,null,null,null,null,null,null,null,297]
[4274,"Thursday",2,null,null,null,null,null,null,null,null,null,null,null,null,null,null,295]
[4277,"Thursday",5,null,null,null,null,null,null,null,null,null,null,null,null,null,null,298]
[4278,"Thursday",6,null,null,null,null,null,null,null,null,null,null,null,null,null,null,295]
[4281,"Thursday",9,null,null,null,null,null,null,null,null,null,null,null,null,null,null,297]
[4284,"Thursday",12,null,null,null,null,null,null,null,null,null,null,null,null,null,null,301]
[4288,"Thursday",16,null,null,null,null,null,null,null,null,null,null,null,null,null,null,300]
[4291,"Thursday",19,null,null,null,null,null,null,null,null,null,null,null,null,null,null,300]
[4295,"Thursday",23,null,null,null,null,null,null,null,null,null,null,null,null,null,null,299]
[4299,"Friday",3,null,null,null,null,null,null,null,null,null,null,null,null,null,null,299]
[4302,"Friday",6,null,null,null,null,null,null,null,null,null,null,null,null,null,null,295]
[4303,"Friday",7,null,null,null,null,null,null,null,null,null,null,null,null,null,null,297]
[4306,"Friday",10,null,null,null,null,null,null,null,null,null,null,null,null,null,null,298]
[4309,"Friday",13,null,null,null,null,null,null,null,null,null,null,null,null,null,null,299]
[4313,"Friday",{"$f":"C4291","v":17},null,null,null,null,null,null,null,null,null,null,null,null,null,null,301]
[4316,"Friday",20,null,null,null,null,null,null,null,null,null,null,null,null,null,null,301]
[4321,"Saturday",1,null,null,null,null,null,null,null,null,null,null,null,null,null,null,298]
[4324,"Saturday",4,null,null,null,null,null,null,null,null,null,null,null,null,null,null,300]
[4327,"Saturday",7,null,null,null,null,null,null,null,null,null,null,null,null,null,null,303]
[4328,"Saturday",8,null,null,null,null,null,null,null,null,null,null,null,null,null,null,300]
[4331,"Saturday",11,null,null,null,null,null,null,null,null,null,null,null,null,null,null,297]
[4334,"Saturday",14,null,null,null,null,null,null,null,null,null,null,null,null,null,null,299]
[4338,"Saturday",18,null,null,null,null,null,null,null,null,null,null,null,null,null,null,299]
[4341,"Saturday",21,null,null,null,null,null,null,null,null,null,null,null,null,null,null,295]
[4346,"Sunday",2,null,null,null,null,null,null,null,null,null,null,null,null,null,null,301]
[4349,"Sunday",5,null,null,null,null,null,null,null,null,null,null,null,null,null,null,301]
[4352,"Sunday",8,null,null,null,null,null,null,null,null,null,null,null,null,null,null,299]
[4353,"Sunday",9,null,null,null,null,null,null,null,null,null,null,null,null,null,null,298]
[4356,"Sunday",12,null,null,null,null,null,null,null,null,null,null,null,null,null,null,303]
[4360,"Sunday",16,null,null,null,null,null,null,null,null,null,null,null,null,null,null,300]
[4362,"Sunday",18,null,null,null,null,null,null,null,null,null,null,null,null,null,null,298]
[4367,"Sunday",23,null,null,null,null,null,null,null,null,null,null,null,null,null,null,296]
[4371,"Monday",3,null,null,null,null,null,null,null,null,null,null,null,null,null,null,299]
[4374,"Monday",6,null,null,null,null,null,null,null,null,null,null,null,null,null,null,299]
[4377,"Monday",{"$f":"C4355","v":9},null,null,null,null,null,null,null,null,null,null,null,null,null,null,301]
[4378,"Monday",10,null,null,null,null,null,null,null,null,null,null,null,null,null,null,301]
[4381,"Monday",13,null,null,null,null,null,null,null,null,null,null,null,null,null,null,303]
[4385,"Monday",17,null,null,null,null,null,null,null,null,null,null,null,null,null,null,304]
[4387,"Monday",19,null,null,null,null,null,null,null,null,null,null,null,null,null,null,300]
[4392,"Tuesday",0,null,null,null,null,null,null,null,null,null,null,null,null,null,null,296]
[4396,"Tuesday",4,null,null,null,null,null,null,null,null,null,null,null,null,null,null,299]
[4399,"Tuesday",7,null,null,null,null,null,null,null,null,null,null,null,null,null,null,294]
[4402,"Tuesday",10,null,null,null,null,null,null,null,null,null,null,null,null,null,null,301]
[4403,"Tuesday",11,null,null,null,null,null,null,null,null,null,null,null,null,null,null,300]
[4406,"Tuesday",14,null,null,null,null,null,null,null,null,null,null,null,null,null,null,304]
[4412,"Tuesday",20,null,null,null,null,null,null,null,null,null,null,null,null,null,null,303]
[4414,"Tuesday",22,null,null,null,null,null,null,null,null,null,null,null,null,null,null,306]
[4417,"Wednesday",1,null,null,null,null,null,null,null,null,null,null,null,null,null,null,303]
[4421,"Wednesday",5,null,null,null,null,null,null,null,null,null,null,null,null,null,null,298]
[4424,"Wednesday",8,null,null,null,null,null,null,null,null,null,null,null,null,null,null,300]
[4425,"Wednesday",9,null,null,null,null,null,null,null,null,null,null,null,null,null,null,298]
[4428,"Wednesday",12,null,null,null,null,null,null,null,null,null,null,null,null,null,null,300]
[4431,"Wednesday",15,null,null,null,null,null,null,null,null,null,null,null,null,null,null,301]
[4437,"Wednesday",21,null,null,null,null,null,null,null,null,null,null,null,null,null,null,302]
[4439,"Wednesday",23,null,null,null,null,null,null,null,null,null,null,null,null,null,null,304]
[4442,"Thursday",2,null,null,null,null,null,null,null,null,null,null,null,null,null,null,301]
[4446,"Thursday",6,null,null,null,null,null,null,null,null,null,null,null,null,null,null,305]
[4449,"Thursday",9,null,null,null,null,null,null,null,null,null,null,null,null,null,null,303]
[4450,"Thursday",10,null,null,null,null,null,null,null,null,null,null,null,null,null,null,299]
[4453,"Thursday",13,null,null,null,null,null,null,null,null,null,null,null,null,null,null,300]
[4456,"Thursday",16,null,null,null,null,null,null,null,null,null,null,null,null,null,null,299]
[4462,"Thursday",22,null,null,null,null,null,null,null,null,null,null,null,null,null,null,302]
[4464,"Friday",0,null,null,null,null,null,null,null,null,null,null,null,null,null,null,300]
[4467,"Friday",3,null,null,null,null,null,null,null,null,null,null,null,null,null,null,301]
[4471,"Friday",7,null,null,null,null,null,null,null,null,null,null,null,null,null,null,305]
[4474,"Friday",10,null,null,null,null,null,null,null,null,null,null,null,null,null,null,302]
[4475,"Friday",11,null,null,null,null,null,null,null,null,null,null,null,null,null,null,303]
[4478,"Friday",14,null,null,null,null,null,null,null,null,null,null,null,null,null,null,303]
[4483,"Friday",19,null,null,null,null,null,null,null,null,null,null,null,null,null,null,302]
[4486,"Friday",22,null,null,null,null,null,null,null,null,null,null,null,null,null,null,302]
[4489,"Saturday",1,null,null,null,null,null,null,null,null,null,null,null,null,null,null,300]
[4493,"Saturday",5,null,null,null,null,null,null,null,null,null,null,null,null,null,null,299]
[4496,"Saturday",8,null,null,null,null,null,null,null,null,null,null,null,null,null,null,301]
[4499,"Saturday",11,null,null,null,null,null,null,null,null,null,null,null,null,null,null,305]
[4500,"Saturday",12,null,null,null,null,null,null,null,null,null,null,null,null,null,null,304]
[4503,"Saturday",15,null,null,null,null,null,null,null,null,null,null,null,null,null,null,307]
[4508,"Saturday",20,null,null,null,null,null,null,null,null,null,null,null,null,null,null,306]
[4511,"Saturday",23,null,null,null,null,null,null,null,null,null,null,null,null,null,null,305]
[4514,"Sunday",2,null,null,null,null,null,null,null,null,null,null,null,null,null,null,298]
[4518,"Sunday",6,null,null,null,null,null,null,null,null,null,null,null,null,null,null,303]
[4521,{"$f":"B4355","v":"Sunday"},9,null,null,null,null,null,null,null,null,null,null,null,null,null,null,304]
[4524,"Sunday",12,null,null,null,null,null,null,null,null,null,null,null,null,null,null,305]
[4525,"Sunday",13,null,null,null,null,null,null,null,null,null,null,null,null,null,null,305]
[4528,"Sunday",16,null,null,null,null,null,null,null,null,null,null,null,null,null,null,304]
[4533,"Sunday",21,null,null,null,null,null,null,null,null,null,null,null,null,null,null,305]
[4536,"Monday",0,null,null,null,null,null,null,null,null,null,null,null,null,null,null,308]
[4539,"Monday",3,null,null,null,null,null,null,null,null,null,null,null,null,null,null,306]
[4543,"Monday",7,null,null,null,null,null,null,null,null,null,null,null,null,null,null,309]
[4546,"Monday",10,null,null,null,null,null,null,null,null,null,null,null,null,null,null,303]
[4549,"Monday",13,null,null,null,null,null,null,null,null,null,null,null,null,null,null,304]
[4550,"Monday",14,null,null,null,null,null,null,null,null,null,null,null,null,null,null,302]
[4554,"Monday",18,null,null,null,null,null,null,null,null,null,null,null,null,null,null,304]
[4558,"Monday",22,null,null,null,null,null,null,null,null,null,null,null,null,null,null,305]
[4561,"Tuesday",1,null,null,null,null,null,null,null,null,null,null,null,null,null,null,308]
[4564,"Tuesday",4,null,null,null,null,null,null,null,null,null,null,null,null,null,null,303]
[4568,"Tuesday",8,null,null,null,null,null,null,null,null,null,null,null,null,null,null,306]
[4571,"Tuesday",11,null,null,null,null,null,null,null,null,null,null,null,null,null,null,306]
[4574,"Tuesday",14,null,null,null,null,null,null,null,null,null,null,null,null,null,null,307]
[4575,"Tuesday",15,null,null,null,null,null,null,null,null,null,null,null,null,null,null,309]
[4579,"Tuesday",19,null,null,null,null,null,null,null,null,null,null,null,null,null,null,304]
[4583,"Tuesday",23,null,null,null,null,null,null,null,null,null,null,null,null,null,null,306]
[{"$f":"A4587+1","v":4586},"Wednesday",2,null,null,null,null,null,null,null,null,null,null,null,null,null,null,303]
[4589,"Wednesday",5,null,null,null,null,null,null,null,null,null,null,null,null,null,null,303]
[4593,"Wednesday",9,null,null,null,null,null,null,null,null,null,null,null,null,null,null,306]
[4596,"Wednesday",12,null,null,null,null,null,null,null,null,null,null,null,null,null,null,307]
[4597,"Wednesday",13,null,null,null,null,null,null,null,null,null,null,null,null,null,null,305]
[4600,"Wednesday",16,null,null,null,null,null,null,null,null,null,null,null,null,null,null,306]
[4604,"Wednesday",20,null,null,null,null,null,null,null,null,null,null,null,null,null,null,308]
[4608,"Thursday",0,null,null,null,null,null,null,null,null,null,null,null,null,null,null,307]
[4611,"Thursday",3,null,null,null,null,null,null,null,null,null,null,null,null,null,null,307]
[4614,"Thursday",6,null,null,null,null,null,null,null,null,null,null,null,null,null,null,306]
[4618,"Thursday",10,null,null,null,null,null,null,null,null,null,null,null,null,null,null,305]
[4621,"Thursday",13,null,null,null,null,null,null,null,null,null,null,null,null,null,null,304]
[4622,"Thursday",14,null,null,null,null,null,null,null,null,null,null,null,null,null,null,303]
[4625,"Thursday",17,null,null,null,null,null,null,null,null,null,null,null,null,null,null,305]
[4629,"Thursday",21,null,null,null,null,null,null,null,null,null,null,null,null,null,null,305]
[4633,"Friday",{"$f":"C4611","v":1},null,null,null,null,null,null,null,null,null,null,null,null,null,null,307]
[4636,"Friday",4,null,null,null,null,null,null,null,null,null,null,null,null,null,null,307]
[4639,"Friday",7,null,null,null,null,null,null,null,null,null,null,null,null,null,null,307]
[4643,"Friday",11,null,null,null,null,null,null,null,null,null,null,null,null,null,null,304]
[4646,"Friday",14,null,null,null,null,null,null,null,null,null,null,null,null,null,null,306]
[4647,"Friday",15,null,null,null,null,null,null,null,null,null,null,null,null,null,null,305]
[{"$f":"A4651+1","v":4650},"Friday",18,null,null,null,null,null,null,null,null,null,null,null,null,null,null,300]
[4654,"Friday",22,null,null,null,null,null,null,null,null,null,null,null,null,null,null,301]
[4658,"Saturday",2,null,null,null,null,null,null,null,null,null,null,null,null,null,null,306]
[4661,"Saturday",5,null,null,null,null,null,null,null,null,null,null,null,null,null,null,306]
[4665,"Saturday",9,null,null,null,null,null,null,null,null,null,null,null,null,null,null,305]
[4668,"Saturday",12,null,null,null,null,null,null,null,null,null,null,null,null,null,null,304]
[4671,"Saturday",15,null,null,null,null,null,null,null,null,null,null,null,null,null,null,309]
[4675,"Saturday",19,null,null,null,null,null,null,null,null,null,null,null,null,null,null,310]
[4676,"Saturday",20,null,null,null,null,null,null,null,null,null,null,null,null,null,null,307]
[4679,"Saturday",23,null,null,null,null,null,null,null,null,null,null,null,null,null,null,307]
[4683,"Sunday",3,null,null,null,null,null,null,null,null,null,null,null,null,null,null,305]
[4686,"Sunday",6,null,null,null,null,null,null,null,null,null,null,null,null,null,null,304]
[4690,"Sunday",10,null,null,null,null,null,null,null,null,null,null,null,null,null,null,300]
[4693,"Sunday",13,null,null,null,null,null,null,null,null,null,null,null,null,null,null,303]
[4696,"Sunday",16,null,null,null,null,null,null,null,null,null,null,null,null,null,null,307]
[4700,"Sunday",20,null,null,null,null,null,null,null,null,null,null,null,null,null,null,308]
[4701,"Sunday",21,null,null,null,null,null,null,null,null,null,null,null,null,null,null,306]
[4705,"Monday",1,null,null,null,null,null,null,null,null,null,null,null,null,null,null,306]
[4708,"Monday",4,null,null,null,null,null,null,null,null,null,null,null,null,null,null,308]
[4711,"Monday",7,null,null,null,null,null,null,null,null,null,null,null,null,null,null,309]
[4715,"Monday",11,null,null,null,null,null,null,null,null,null,null,null,null,null,null,304]
[4718,"Monday",14,null,null,null,null,null,null,null,null,null,null,null,null,null,null,304]
[4721,"Monday",17,null,null,null,null,null,null,null,null,null,null,null,null,null,null,308]
[4725,"Monday",21,null,null,null,null,null,null,null,null,null,null,null,null,null,null,305]
[4726,"Monday",22,null,null,null,null,null,null,null,null,null,null,null,null,null,null,306]
[4730,"Tuesday",2,null,null,null,null,null,null,null,null,null,null,null,null,null,null,305]
[4733,"Tuesday",5,null,null,null,null,null,null,null,null,null,null,null,null,null,null,307]
[4736,"Tuesday",8,null,null,null,null,null,null,null,null,null,null,null,null,null,null,305]
[4740,"Tuesday",12,null,null,null,null,null,null,null,null,null,null,null,null,null,null,311]
[4743,"Tuesday",15,null,null,null,null,null,null,null,null,null,null,null,null,null,null,308]
[4746,"Tuesday",18,null,null,null,null,null,null,null,null,null,null,null,null,null,null,303]
[4748,"Tuesday",20,null,null,null,null,null,null,null,null,null,null,null,null,null,null,304]
[4751,"Tuesday",23,null,null,null,null,null,null,null,null,null,null,null,null,null,null,306]
[4755,"Wednesday",3,null,null,null,null,null,null,null,null,null,null,null,null,null,null,302]
[4758,"Wednesday",6,null,null,null,null,null,null,null,null,null,null,null,null,null,null,307]
[4761,"Wednesday",{"$f":"C4739","v":9},null,null,null,null,null,null,null,null,null,null,null,null,null,null,305]
[4765,"Wednesday",13,null,null,null,null,null,null,null,null,null,null,null,null,null,null,305]
[4768,"Wednesday",16,null,null,null,null,null,null,null,null,null,null,null,null,null,null,306]
[4771,"Wednesday",19,null,null,null,null,null,null,null,null,null,null,null,null,null,null,307]
[4773,"Wednesday",21,null,null,null,null,null,null,null,null,null,null,null,null,null,null,307]
[4776,"Thursday",0,null,null,null,null,null,null,null,null,null,null,null,null,null,null,309]
[4780,"Thursday",4,null,null,null,null,null,null,null,null,null,null,null,null,null,null,311]
[4783,"Thursday",7,null,null,null,null,null,null,null,null,null,null,null,null,null,null,306]
[4786,"Thursday",10,null,null,null,null,null,null,null,null,null,null,null,null,null,null,306]
[4790,"Thursday",14,null,null,null,null,null,null,null,null,null,null,null,null,null,null,309]
[4793,"Thursday",17,null,null,null,null,null,null,null,null,null,null,null,null,null,null,305]
[4796,"Thursday",20,null,null,null,null,null,null,null,null,null,null,null,null,null,null,306]
[4798,"Thursday",22,null,null,null,null,null,null,null,null,null,null,null,null,null,null,305]
[4801,"Friday",1,null,null,null,null,null,null,null,null,null,null,null,null,null,null,310]
[4805,"Friday",5,null,null,null,null,null,null,null,null,null,null,null,null,null,null,309]
[4808,"Friday",8,null,null,null,null,null,null,null,null,null,null,null,null,null,null,308]
[4812,"Friday",12,null,null,null,null,null,null,null,null,null,null,null,null,null,null,307]
[4815,"Friday",15,null,null,null,null,null,null,null,null,null,null,null,null,null,null,308]
[4817,"Friday",17,null,null,null,null,null,null,null,null,null,null,null,null,null,null,308]
[4820,"Friday",20,null,null,null,null,null,null,null,null,null,null,null,null,null,null,308]
[4823,"Friday",23,null,null,null,null,null,null,null,null,null,null,null,null,null,null,305]
[4826,"Saturday",2,null,null,null,null,null,null,null,null,null,null,null,null,null,null,307]
[4830,"Saturday",6,null,null,null,null,null,null,null,null,null,null,null,null,null,null,308]
[4833,"Saturday",9,null,null,null,null,null,null,null,null,null,null,null,null,null,null,310]
[4837,"Saturday",13,null,null,null,null,null,null,null,null,null,null,null,null,null,null,312]
[4840,"Saturday",16,null,null,null,null,null,null,null,null,null,null,null,null,null,null,311]
[{"$f":"A4843+1","v":4842},"Saturday",18,null,null,null,null,null,null,null,null,null,null,null,null,null,null,308]
[4845,"Saturday",21,null,null,null,null,null,null,null,null,null,null,null,null,null,null,311]
[4848,"Sunday",0,null,null,null,null,null,null,null,null,null,null,null,null,null,null,307]
[4851,"Sunday",3,null,null,null,null,null,null,null,null,null,null,null,null,null,null,308]
[4855,"Sunday",7,null,null,null,null,null,null,null,null,null,null,null,null,null,null,306]
[4858,"Sunday",10,null,null,null,null,null,null,null,null,null,null,null,null,null,null,306]
[4862,"Sunday",14,null,null,null,null,null,null,null,null,null,null,null,null,null,null,310]
[4865,"Sunday",17,null,null,null,null,null,null,null,null,null,null,null,null,null,null,311]
[4867,"Sunday",19,null,null,null,null,null,null,null,null,null,null,null,null,null,null,309]
[4870,"Sunday",22,null,null,null,null,null,null,null,null,null,null,null,null,null,null,306]
[4873,"Monday",1,null,null,null,null,null,null,null,null,null,null,null,null,null,null,310]
[4877,"Monday",5,null,null,null,null,null,null,null,null,null,null,null,null,null,null,310]
[4880,"Monday",8,null,null,null,null,null,null,null,null,null,null,null,null,null,null,309]
[4883,"Monday",11,null,null,null,null,null,null,null,null,null,null,null,null,null,null,311]
[4887,"Monday",15,null,null,null,null,null,null,null,null,null,null,null,null,null,null,309]
[4888,"Monday",16,null,null,null,null,null,null,null,null,null,null,null,null,null,null,309]
[4894,"Monday",22,null,null,null,null,null,null,null,null,null,null,null,null,null,null,307]
[4895,"Monday",23,null,null,null,null,null,null,null,null,null,null,null,null,null,null,308]
[4898,"Tuesday",2,null,null,null,null,null,null,null,null,null,null,null,null,null,null,308]
[4902,"Tuesday",6,null,null,null,null,null,null,null,null,null,null,null,null,null,null,309]
[4905,{"$f":"B4739","v":"Tuesday"},9,null,null,null,null,null,null,null,null,null,null,null,null,null,null,314]
[4908,"Tuesday",12,null,null,null,null,null,null,null,null,null,null,null,null,null,null,311]
[4912,"Tuesday",16,null,null,null,null,null,null,null,null,null,null,null,null,null,null,313]
[4913,"Tuesday",17,null,null,null,null,null,null,null,null,null,null,null,null,null,null,311]
[4919,"Tuesday",23,null,null,null,null,null,null,null,null,null,null,null,null,null,null,312]
[4920,"Wednesday",0,null,null,null,null,null,null,null,null,null,null,null,null,null,null,312]
[4923,"Wednesday",3,null,null,null,null,null,null,null,null,null,null,null,null,null,null,308]
[4927,"Wednesday",7,null,null,null,null,null,null,null,null,null,null,null,null,null,null,307]
[4930,"Wednesday",10,null,null,null,null,null,null,null,null,null,null,null,null,null,null,308]
[4933,"Wednesday",13,null,null,null,null,null,null,null,null,null,null,null,null,null,null,309]
[4938,"Wednesday",18,null,null,null,null,null,null,null,null,null,null,null,null,null,null,314]
[4941,"Wednesday",21,null,null,null,null,null,null,null,null,null,null,null,null,null,null,312]
[4942,"Wednesday",22,null,null,null,null,null,null,null,null,null,null,null,null,null,null,314]
[4945,"Thursday",1,null,null,null,null,null,null,null,null,null,null,null,null,null,null,314]
[4948,"Thursday",4,null,null,null,null,null,null,null,null,null,null,null,null,null,null,311]
[4952,"Thursday",8,null,null,null,null,null,null,null,null,null,null,null,null,null,null,316]
[4955,"Thursday",11,null,null,null,null,null,null,null,null,null,null,null,null,null,null,312]
[4958,"Thursday",14,null,null,null,null,null,null,null,null,null,null,null,null,null,null,310]
[4963,"Thursday",19,null,null,null,null,null,null,null,null,null,null,null,null,null,null,310]
[4966,"Thursday",22,null,null,null,null,null,null,null,null,null,null,null,null,null,null,310]
[4967,"Thursday",23,null,null,null,null,null,null,null,null,null,null,null,null,null,null,311]
[{"$f":"A4971+1","v":4970},"Friday",2,null,null,null,null,null,null,null,null,null,null,null,null,null,null,312]
[4973,"Friday",5,null,null,null,null,null,null,null,null,null,null,null,null,null,null,311]
[4977,"Friday",9,null,null,null,null,null,null,null,null,null,null,null,null,null,null,314]
[4980,"Friday",12,null,null,null,null,null,null,null,null,null,null,null,null,null,null,315]
[4984,"Friday",16,null,null,null,null,null,null,null,null,null,null,null,null,null,null,315]
[4988,"Friday",20,null,null,null,null,null,null,null,null,null,null,null,null,null,null,314]
[4991,"Friday",23,null,null,null,null,null,null,null,null,null,null,null,null,null,null,315]
[4992,"Saturday",0,null,null,null,null,null,null,null,null,null,null,null,null,null,null,314]
[4995,"Saturday",3,null,null,null,null,null,null,null,null,null,null,null,null,null,null,320]
[4998,"Saturday",6,null,null,null,null,null,null,null,null,null,null,null,null,null,null,315]
[5002,"Saturday",10,null,null,null,null,null,null,null,null,null,null,null,null,null,null,314]
[5005,"Saturday",13,null,null,null,null,null,null,null,null,null,null,null,null,null,null,312]
[5009,"Saturday",17,null,null,null,null,null,null,null,null,null,null,null,null,null,null,312]
[5013,"Saturday",21,null,null,null,null,null,null,null,null,null,null,null,null,null,null,315]
[5016,"Sunday",0,null,null,null,null,null,null,null,null,null,null,null,null,null,null,315]
[5017,"Sunday",{"$f":"C4995","v":1},null,null,null,null,null,null,null,null,null,null,null,null,null,null,317]
[5020,"Sunday",4,null,null,null,null,null,null,null,null,null,null,null,null,null,null,316]
[5023,"Sunday",7,null,null,null,null,null,null,null,null,null,null,null,null,null,null,318]
[5027,"Sunday",11,null,null,null,null,null,null,null,null,null,null,null,null,null,null,313]
[5030,"Sunday",14,null,null,null,null,null,null,null,null,null,null,null,null,null,null,312]
[{"$f":"A5035+1","v":5034},"Sunday",18,null,null,null,null,null,null,null,null,null,null,null,null,null,null,313]
[5038,"Sunday",22,null,null,null,null,null,null,null,null,null,null,null,null,null,null,312]
[5041,"Monday",1,null,null,null,null,null,null,null,null,null,null,null,null,null,null,312]
[5042,"Monday",2,null,null,null,null,null,null,null,null,null,null,null,null,null,null,314]
[5045,"Monday",5,null,null,null,null,null,null,null,null,null,null,null,null,null,null,315]
[5049,"Monday",9,null,null,null,null,null,null,null,null,null,null,null,null,null,null,313]
[5052,"Monday",12,null,null,null,null,null,null,null,null,null,null,null,null,null,null,315]
[5055,"Monday",15,null,null,null,null,null,null,null,null,null,null,null,null,null,null,314]
[5059,"Monday",19,null,null,null,null,null,null,null,null,null,null,null,null,null,null,313]
[5063,"Monday",23,null,null,null,null,null,null,null,null,null,null,null,null,null,null,313]
[5066,"Tuesday",2,null,null,null,null,null,null,null,null,null,null,null,null,null,null,314]
[5067,"Tuesday",3,null,null,null,null,null,null,null,null,null,null,null,null,null,null,313]
[5070,"Tuesday",6,null,null,null,null,null,null,null,null,null,null,null,null,null,null,314]
[5074,"Tuesday",10,null,null,null,null,null,null,null,null,null,null,null,null,null,null,312]
[5077,"Tuesday",13,null,null,null,null,null,null,null,null,null,null,null,null,null,null,314]
[5080,"Tuesday",16,null,null,null,null,null,null,null,null,null,null,null,null,null,null,315]
[5085,"Tuesday",21,null,null,null,null,null,null,null,null,null,null,null,null,null,null,315]
[5088,"Wednesday",0,null,null,null,null,null,null,null,null,null,null,null,null,null,null,317]
[5089,"Wednesday",1,null,null,null,null,null,null,null,null,null,null,null,null,null,null,316]
[5092,"Wednesday",4,null,null,null,null,null,null,null,null,null,null,null,null,null,null,316]
[5095,"Wednesday",7,null,null,null,null,null,null,null,null,null,null,null,null,null,null,316]
[5099,"Wednesday",11,null,null,null,null,null,null,null,null,null,null,null,null,null,null,315]
[5102,"Wednesday",14,null,null,null,null,null,null,null,null,null,null,null,null,null,null,318]
[5105,"Wednesday",17,null,null,null,null,null,null,null,null,null,null,null,null,null,null,316]
[5110,"Wednesday",22,null,null,null,null,null,null,null,null,null,null,null,null,null,null,314]
[5113,"Thursday",1,null,null,null,null,null,null,null,null,null,null,null,null,null,null,317]
[5114,"Thursday",2,null,null,null,null,null,null,null,null,null,null,null,null,null,null,315]
[5117,"Thursday",5,null,null,null,null,null,null,null,null,null,null,null,null,null,null,316]
[5120,"Thursday",8,null,null,null,null,null,null,null,null,null,null,null,null,null,null,316]
[5124,"Thursday",12,null,null,null,null,null,null,null,null,null,null,null,null,null,null,320]
[5126,"Thursday",14,null,null,null,null,null,null,null,null,null,null,null,null,null,null,318]
[5131,"Thursday",19,null,null,null,null,null,null,null,null,null,null,null,null,null,null,318]
[5135,"Thursday",23,null,null,null,null,null,null,null,null,null,null,null,null,null,null,315]
[5138,"Friday",2,null,null,null,null,null,null,null,null,null,null,null,null,null,null,316]
[5139,"Friday",3,null,null,null,null,null,null,null,null,null,null,null,null,null,null,315]
[5142,"Friday",6,null,null,null,null,null,null,null,null,null,null,null,null,null,null,314]
[5145,"Friday",{"$f":"C5123","v":9},null,null,null,null,null,null,null,null,null,null,null,null,null,null,315]
[5149,"Friday",13,null,null,null,null,null,null,null,null,null,null,null,null,null,null,316]
[5151,"Friday",15,null,null,null,null,null,null,null,null,null,null,null,null,null,null,317]
[5157,"Friday",21,null,null,null,null,null,null,null,null,null,null,null,null,null,null,318]
[5160,"Saturday",0,null,null,null,null,null,null,null,null,null,null,null,null,null,null,318]
[5163,"Saturday",3,null,null,null,null,null,null,null,null,null,null,null,null,null,null,320]
[5164,"Saturday",4,null,null,null,null,null,null,null,null,null,null,null,null,null,null,319]
[5167,"Saturday",7,null,null,null,null,null,null,null,null,null,null,null,null,null,null,321]
[5170,"Saturday",10,null,null,null,null,null,null,null,null,null,null,null,null,null,null,316]
[5174,"Saturday",14,null,null,null,null,null,null,null,null,null,null,null,null,null,null,315]
[5176,"Saturday",16,null,null,null,null,null,null,null,null,null,null,null,null,null,null,317]
[5182,"Saturday",22,null,null,null,null,null,null,null,null,null,null,null,null,null,null,319]
[5185,"Sunday",1,null,null,null,null,null,null,null,null,null,null,null,null,null,null,315]
[5188,"Sunday",4,null,null,null,null,null,null,null,null,null,null,null,null,null,null,320]
[5189,"Sunday",5,null,null,null,null,null,null,null,null,null,null,null,null,null,null,320]
[5192,"Sunday",8,null,null,null,null,null,null,null,null,null,null,null,null,null,null,322]
[5195,"Sunday",11,null,null,null,null,null,null,null,null,null,null,null,null,null,null,316]
[5201,"Sunday",17,null,null,null,null,null,null,null,null,null,null,null,null,null,null,317]
[5203,"Sunday",19,null,null,null,null,null,null,null,null,null,null,null,null,null,null,321]
[5207,"Sunday",23,null,null,null,null,null,null,null,null,null,null,null,null,null,null,322]
[5210,"Monday",2,null,null,null,null,null,null,null,null,null,null,null,null,null,null,324]
[5213,"Monday",5,null,null,null,null,null,null,null,null,null,null,null,null,null,null,321]
[5214,"Monday",6,null,null,null,null,null,null,null,null,null,null,null,null,null,null,322]
[5217,"Monday",9,null,null,null,null,null,null,null,null,null,null,null,null,null,null,321]
[5221,"Monday",13,null,null,null,null,null,null,null,null,null,null,null,null,null,null,322]
[{"$f":"A5227+1","v":5226},"Monday",18,null,null,null,null,null,null,null,null,null,null,null,null,null,null,321]
[5228,"Monday",20,null,null,null,null,null,null,null,null,null,null,null,null,null,null,321]
[5232,"Tuesday",0,null,null,null,null,null,null,null,null,null,null,null,null,null,null,320]
[5235,"Tuesday",3,null,null,null,null,null,null,null,null,null,null,null,null,null,null,322]
[5238,"Tuesday",6,null,null,null,null,null,null,null,null,null,null,null,null,null,null,323]
[5239,"Tuesday",7,null,null,null,null,null,null,null,null,null,null,null,null,null,null,322]
[5242,"Tuesday",10,null,null,null,null,null,null,null,null,null,null,null,null,null,null,324]
[5246,"Tuesday",14,null,null,null,null,null,null,null,null,null,null,null,null,null,null,322]
[5251,"Tuesday",19,null,null,null,null,null,null,null,null,null,null,null,null,null,null,321]
[5253,"Tuesday",21,null,null,null,null,null,null,null,null,null,null,null,null,null,null,324]
[5257,"Wednesday",1,null,null,null,null,null,null,null,null,null,null,null,null,null,null,326]
[5260,"Wednesday",4,null,null,null,null,null,null,null,null,null,null,null,null,null,null,322]
[5261,"Wednesday",5,null,null,null,null,null,null,null,null,null,null,null,null,null,null,324]
[5264,"Wednesday",8,null,null,null,null,null,null,null,null,null,null,null,null,null,null,328]
[5267,"Wednesday",11,null,null,null,null,null,null,null,null,null,null,null,null,null,null,327]
[5272,"Wednesday",16,null,null,null,null,null,null,null,null,null,null,null,null,null,null,332]
[5275,"Wednesday",19,null,null,null,null,null,null,null,null,null,null,null,null,null,null,333]
[5278,"Wednesday",22,null,null,null,null,null,null,null,null,null,null,null,null,null,null,333]
[5282,"Thursday",2,null,null,null,null,null,null,null,null,null,null,null,null,null,null,334]
[5285,"Thursday",5,null,null,null,null,null,null,null,null,null,null,null,null,null,null,337]
[5286,"Thursday",6,null,null,null,null,null,null,null,null,null,null,null,null,null,null,337]
[5289,{"$f":"B5123","v":"Thursday"},9,null,null,null,null,null,null,null,null,null,null,null,null,null,null,339]
[5292,"Thursday",12,null,null,null,null,null,null,null,null,null,null,null,null,null,null,340]
[5297,"Thursday",17,null,null,null,null,null,null,null,null,null,null,null,null,null,null,342]
[5300,"Thursday",20,null,null,null,null,null,null,null,null,null,null,null,null,null,null,346]
[5303,"Thursday",23,null,null,null,null,null,null,null,null,null,null,null,null,null,null,346]
[5307,"Friday",3,null,null,null,null,null,null,null,null,null,null,null,null,null,null,345]
[5310,"Friday",6,null,null,null,null,null,null,null,null,null,null,null,null,null,null,342]
[5311,"Friday",7,null,null,null,null,null,null,null,null,null,null,null,null,null,null,344]
[5314,"Friday",10,null,null,null,null,null,null,null,null,null,null,null,null,null,null,344]
[5317,"Friday",13,null,null,null,null,null,null,null,null,null,null,null,null,null,null,353]
[5322,"Friday",18,null,null,null,null,null,null,null,null,null,null,null,null,null,null,355]
[5325,"Friday",21,null,null,null,null,null,null,null,null,null,null,null,null,null,null,353]
[5329,"Saturday",1,null,null,null,null,null,null,null,null,null,null,null,null,null,null,351]
[5332,"Saturday",4,null,null,null,null,null,null,null,null,null,null,null,null,null,null,353]
[5335,"Saturday",7,null,null,null,null,null,null,null,null,null,null,null,null,null,null,352]
[5336,"Saturday",8,null,null,null,null,null,null,null,null,null,null,null,null,null,null,350]
[5339,"Saturday",11,null,null,null,null,null,null,null,null,null,null,null,null,null,null,353]
[5343,"Saturday",15,null,null,null,null,null,null,null,null,null,null,null,null,null,null,354]
[5347,"Saturday",19,null,null,null,null,null,null,null,null,null,null,null,null,null,null,353]
[5350,"Saturday",22,null,null,null,null,null,null,null,null,null,null,null,null,null,null,354]
[{"$f":"A5355+1","v":5354},"Sunday",2,null,null,null,null,null,null,null,null,null,null,null,null,null,null,355]
[5357,"Sunday",5,null,null,null,null,null,null,null,null,null,null,null,null,null,null,351]
[5360,"Sunday",8,null,null,null,null,null,null,null,null,null,null,null,null,null,null,354]
[5361,"Sunday",9,null,null,null,null,null,null,null,null,null,null,null,null,null,null,352]
[5364,"Sunday",12,null,null,null,null,null,null,null,null,null,null,null,null,null,null,355]
[5368,"Sunday",16,null,null,null,null,null,null,null,null,null,null,null,null,null,null,356]
[5372,"Sunday",20,null,null,null,null,null,null,null,null,null,null,null,null,null,null,356]
[5375,"Sunday",23,null,null,null,null,null,null,null,null,null,null,null,null,null,null,357]
[5379,"Monday",3,null,null,null,null,null,null,null,null,null,null,null,null,null,null,363]
[5382,"Monday",6,null,null,null,null,null,null,null,null,null,null,null,null,null,null,358]
[5385,"Monday",9,null,null,null,null,null,null,null,null,null,null,null,null,null,null,360]
[5386,"Monday",10,null,null,null,null,null,null,null,null,null,null,null,null,null,null,358]
[5389,"Monday",13,null,null,null,null,null,null,null,null,null,null,null,null,null,null,355]
[5394,"Monday",18,null,null,null,null,null,null,null,null,null,null,null,null,null,null,356]
[5397,"Monday",21,null,null,null,null,null,null,null,null,null,null,null,null,null,null,354]
[5400,"Tuesday",0,null,null,null,null,null,null,null,null,null,null,null,null,null,null,356]
[5404,"Tuesday",4,null,null,null,null,null,null,null,null,null,null,null,null,null,null,352]
[5407,"Tuesday",7,null,null,null,null,null,null,null,null,null,null,null,null,null,null,357]
[5410,"Tuesday",10,null,null,null,null,null,null,null,null,null,null,null,null,null,null,350]
[5411,"Tuesday",11,null,null,null,null,null,null,null,null,null,null,null,null,null,null,350]
[5414,"Tuesday",14,null,null,null,null,null,null,null,null,null,null,null,null,null,null,351]
[5419,"Tuesday",19,null,null,null,null,null,null,null,null,null,null,null,null,null,null,348]
[5422,"Tuesday",22,null,null,null,null,null,null,null,null,null,null,null,null,null,null,349]
[5425,"Wednesday",1,null,null,null,null,null,null,null,null,null,null,null,null,null,null,352]
[5429,"Wednesday",5,null,null,null,null,null,null,null,null,null,null,null,null,null,null,350]
[5432,"Wednesday",8,null,null,null,null,null,null,null,null,null,null,null,null,null,null,347]
[5433,"Wednesday",9,null,null,null,null,null,null,null,null,null,null,null,null,null,null,344]
[5436,"Wednesday",12,null,null,null,null,null,null,null,null,null,null,null,null,null,null,344]
[5439,"Wednesday",15,null,null,null,null,null,null,null,null,null,null,null,null,null,null,344]
[5444,"Wednesday",20,null,null,null,null,null,null,null,null,null,null,null,null,null,null,344]
[5447,"Wednesday",23,null,null,null,null,null,null,null,null,null,null,null,null,null,null,343]
[5450,"Thursday",2,null,null,null,null,null,null,null,null,null,null,null,null,null,null,341]
[5454,"Thursday",6,null,null,null,null,null,null,null,null,null,null,null,null,null,null,342]
[5457,"Thursday",9,null,null,null,null,null,null,null,null,null,null,null,null,null,null,344]
[5458,"Thursday",10,null,null,null,null,null,null,null,null,null,null,null,null,null,null,343]
[5464,"Thursday",16,null,null,null,null,null,null,null,null,null,null,null,null,null,null,337]
[5465,"Thursday",{"$f":"C5443","v":17},null,null,null,null,null,null,null,null,null,null,null,null,null,null,338]
[5469,"Thursday",21,null,null,null,null,null,null,null,null,null,null,null,null,null,null,340]
[5472,"Friday",0,null,null,null,null,null,null,null,null,null,null,null,null,null,null,338]
[5475,"Friday",3,null,null,null,null,null,null,null,null,null,null,null,null,null,null,339]
[5479,"Friday",7,null,null,null,null,null,null,null,null,null,null,null,null,null,null,342]
[{"$f":"A5483+1","v":5482},"Friday",10,null,null,null,null,null,null,null,null,null,null,null,null,null,null,341]
[5483,"Friday",11,null,null,null,null,null,null,null,null,null,null,null,null,null,null,341]
[5489,"Friday",17,null,null,null,null,null,null,null,null,null,null,null,null,null,null,344]
[5490,"Friday",18,null,null,null,null,null,null,null,null,null,null,null,null,null,null,344]
[5494,"Friday",22,null,null,null,null,null,null,null,null,null,null,null,null,null,null,337]
[5497,"Saturday",1,null,null,null,null,null,null,null,null,null,null,null,null,null,null,341]
[5501,"Saturday",5,null,null,null,null,null,null,null,null,null,null,null,null,null,null,338]
[5504,"Saturday",8,null,null,null,null,null,null,null,null,null,null,null,null,null,null,341]
[5507,"Saturday",11,null,null,null,null,null,null,null,null,null,null,null,null,null,null,338]
[5508,"Saturday",12,null,null,null,null,null,null,null,null,null,null,null,null,null,null,340]
[5514,"Saturday",18,null,null,null,null,null,null,null,null,null,null,null,null,null,null,339]
[5515,"Saturday",19,null,null,null,null,null,null,null,null,null,null,null,null,null,null,339]
[5519,"Saturday",23,null,null,null,null,null,null,null,null,null,null,null,null,null,null,343]
[5522,"Sunday",2,null,null,null,null,null,null,null,null,null,null,null,null,null,null,345]
[5526,"Sunday",6,null,null,null,null,null,null,null,null,null,null,null,null,null,null,342]
[5529,"Sunday",{"$f":"C5507","v":9},null,null,null,null,null,null,null,null,null,null,null,null,null,null,343]
[5532,"Sunday",12,null,null,null,null,null,null,null,null,null,null,null,null,null,null,346]
[5535,"Sunday",15,null,null,null,null,null,null,null,null,null,null,null,null,null,null,344]
[5537,"Sunday",17,null,null,null,null,null,null,null,null,null,null,null,null,null,null,340]
[5541,"Sunday",21,null,null,null,null,null,null,null,null,null,null,null,null,null,null,339]
[5544,"Monday",0,null,null,null,null,null,null,null,null,null,null,null,null,null,null,344]
[5547,"Monday",3,null,null,null,null,null,null,null,null,null,null,null,null,null,null,350]
[5551,"Monday",7,null,null,null,null,null,null,null,null,null,null,null,null,null,null,346]
[5554,"Monday",10,null,null,null,null,null,null,null,null,null,null,null,null,null,null,345]
[5557,"Monday",13,null,null,null,null,null,null,null,null,null,null,null,null,null,null,338]
[5560,"Monday",16,null,null,null,null,null,null,null,null,null,null,null,null,null,null,340]
[5562,"Monday",18,null,null,null,null,null,null,null,null,null,null,null,null,null,null,339]
[5566,"Monday",22,null,null,null,null,null,null,null,null,null,null,null,null,null,null,340]
[5569,"Tuesday",1,null,null,null,null,null,null,null,null,null,null,null,null,null,null,341]
[5572,"Tuesday",4,null,null,null,null,null,null,null,null,null,null,null,null,null,null,339]
[5576,"Tuesday",8,null,null,null,null,null,null,null,null,null,null,null,null,null,null,336]
[5579,"Tuesday",11,null,null,null,null,null,null,null,null,null,null,null,null,null,null,341]
[5582,"Tuesday",14,null,null,null,null,null,null,null,null,null,null,null,null,null,null,340]
[5585,"Tuesday",17,null,null,null,null,null,null,null,null,null,null,null,null,null,null,342]
[5587,"Tuesday",19,null,null,null,null,null,null,null,null,null,null,null,null,null,null,340]
[5591,"Tuesday",23,null,null,null,null,null,null,null,null,null,null,null,null,null,null,343]
[5594,"Wednesday",2,null,null,null,null,null,null,null,null,null,null,null,null,null,null,341]
[5597,"Wednesday",5,null,null,null,null,null,null,null,null,null,null,null,null,null,null,340]
[5601,"Wednesday",9,null,null,null,null,null,null,null,null,null,null,null,null,null,null,338]
[5604,"Wednesday",12,null,null,null,null,null,null,null,null,null,null,null,null,null,null,339]
[5606,"Wednesday",14,null,null,null,null,null,null,null,null,null,null,null,null,null,null,341]
[5609,{"$f":"B5443","v":"Wednesday"},17,null,null,null,null,null,null,null,null,null,null,null,null,null,null,336]
[5612,"Wednesday",20,null,null,null,null,null,null,null,null,null,null,null,null,null,null,338]
[5616,"Thursday",0,null,null,null,null,null,null,null,null,null,null,null,null,null,null,341]
[5619,"Thursday",3,null,null,null,null,null,null,null,null,null,null,null,null,null,null,339]
[5622,"Thursday",6,null,null,null,null,null,null,null,null,null,null,null,null,null,null,345]
[5626,"Thursday",10,null,null,null,null,null,null,null,null,null,null,null,null,null,null,339]
[5629,"Thursday",13,null,null,null,null,null,null,null,null,null,null,null,null,null,null,339]
[5631,"Thursday",15,null,null,null,null,null,null,null,null,null,null,null,null,null,null,339]
[5634,"Thursday",18,null,null,null,null,null,null,null,null,null,null,null,null,null,null,339]
[5637,"Thursday",21,null,null,null,null,null,null,null,null,null,null,null,null,null,null,340]
[5641,"Friday",1,null,null,null,null,null,null,null,null,null,null,null,null,null,null,337]
[5644,"Friday",4,null,null,null,null,null,null,null,null,null,null,null,null,null,null,335]
[5647,"Friday",7,null,null,null,null,null,null,null,null,null,null,null,null,null,null,338]
[5651,"Friday",11,null,null,null,null,null,null,null,null,null,null,null,null,null,null,342]
[5652,"Friday",12,null,null,null,null,null,null,null,null,null,null,null,null,null,null,341]
[5656,"Friday",16,null,null,null,null,null,null,null,null,null,null,null,null,null,null,341]
[5659,"Friday",19,null,null,null,null,null,null,null,null,null,null,null,null,null,null,342]
[5662,"Friday",22,null,null,null,null,null,null,null,null,null,null,null,null,null,null,343]
[5666,"Saturday",2,null,null,null,null,null,null,null,null,null,null,null,null,null,null,341]
[5669,"Saturday",5,null,null,null,null,null,null,null,null,null,null,null,null,null,null,339]
[5673,{"$f":"B5507","v":"Saturday"},9,null,null,null,null,null,null,null,null,null,null,null,null,null,null,339]
[5676,"Saturday",12,null,null,null,null,null,null,null,null,null,null,null,null,null,null,339]
[5677,"Saturday",13,null,null,null,null,null,null,null,null,null,null,null,null,null,null,337]
[5681,"Saturday",17,null,null,null,null,null,null,null,null,null,null,null,null,null,null,338]
[5684,"Saturday",20,null,null,null,null,null,null,null,null,null,null,null,null,null,null,338]
[5687,"Saturday",23,null,null,null,null,null,null,null,null,null,null,null,null,null,null,338]
[5691,"Sunday",3,null,null,null,null,null,null,null,null,null,null,null,null,null,null,342]
[5694,"Sunday",6,null,null,null,null,null,null,null,null,null,null,null,null,null,null,338]
[5698,"Sunday",10,null,null,null,null,null,null,null,null,null,null,null,null,null,null,340]
[5701,"Sunday",13,null,null,null,null,null,null,null,null,null,null,null,null,null,null,339]
[5702,"Sunday",14,null,null,null,null,null,null,null,null,null,null,null,null,null,null,341]
[5706,"Sunday",18,null,null,null,null,null,null,null,null,null,null,null,null,null,null,338]
[5709,"Sunday",21,null,null,null,null,null,null,null,null,null,null,null,null,null,null,336]
[5713,"Monday",1,null,null,null,null,null,null,null,null,null,null,null,null,null,null,338]
[5716,"Monday",4,null,null,null,null,null,null,null,null,null,null,null,null,null,null,341]
[5719,"Monday",7,null,null,null,null,null,null,null,null,null,null,null,null,null,null,338]
[5723,"Monday",11,null,null,null,null,null,null,null,null,null,null,null,null,null,null,345]
[5727,"Monday",15,null,null,null,null,null,null,null,null,null,null,null,null,null,null,342]
[5730,"Monday",18,null,null,null,null,null,null,null,null,null,null,null,null,null,null,342]
[5731,"Monday",19,null,null,null,null,null,null,null,null,null,null,null,null,null,null,342]
[5734,"Monday",22,null,null,null,null,null,null,null,null,null,null,null,null,null,null,346]
[{"$f":"A5739+1","v":5738},"Tuesday",2,null,null,null,null,null,null,null,null,null,null,null,null,null,null,341]
[5741,"Tuesday",5,null,null,null,null,null,null,null,null,null,null,null,null,null,null,339]
[5744,"Tuesday",8,null,null,null,null,null,null,null,null,null,null,null,null,null,null,341]
[5748,"Tuesday",12,null,null,null,null,null,null,null,null,null,null,null,null,null,null,344]
[5752,"Tuesday",16,null,null,null,null,null,null,null,null,null,null,null,null,null,null,338]
[5755,"Tuesday",19,null,null,null,null,null,null,null,null,null,null,null,null,null,null,340]
[5756,"Tuesday",20,null,null,null,null,null,null,null,null,null,null,null,null,null,null,340]
[5759,"Tuesday",23,null,null,null,null,null,null,null,null,null,null,null,null,null,null,340]
[5763,"Wednesday",3,null,null,null,null,null,null,null,null,null,null,null,null,null,null,341]
[5766,"Wednesday",6,null,null,null,null,null,null,null,null,null,null,null,null,null,null,337]
[5769,"Wednesday",9,null,null,null,null,null,null,null,null,null,null,null,null,null,null,338]
[5773,"Wednesday",13,null,null,null,null,null,null,null,null,null,null,null,null,null,null,337]
[5777,"Wednesday",17,null,null,null,null,null,null,null,null,null,null,null,null,null,null,342]
[5778,"Wednesday",18,null,null,null,null,null,null,null,null,null,null,null,null,null,null,342]
[5781,"Wednesday",21,null,null,null,null,null,null,null,null,null,null,null,null,null,null,341]
[5784,"Thursday",0,null,null,null,null,null,null,null,null,null,null,null,null,null,null,341]
[5788,"Thursday",4,null,null,null,null,null,null,null,null,null,null,null,null,null,null,339]
[5791,"Thursday",7,null,null,null,null,null,null,null,null,null,null,null,null,null,null,340]
[5794,"Thursday",10,null,null,null,null,null,null,null,null,null,null,null,null,null,null,341]
[5798,"Thursday",14,null,null,null,null,null,null,null,null,null,null,null,null,null,null,344]
[{"$f":"A5803+1","v":5802},"Thursday",18,null,null,null,null,null,null,null,null,null,null,null,null,null,null,342]
[5803,"Thursday",19,null,null,null,null,null,null,null,null,null,null,null,null,null,null,343]
[5806,"Thursday",22,null,null,null,null,null,null,null,null,null,null,null,null,null,null,348]
[5809,"Friday",1,null,null,null,null,null,null,null,null,null,null,null,null,null,null,345]
[5813,"Friday",5,null,null,null,null,null,null,null,null,null,null,null,null,null,null,340]
[5816,"Friday",8,null,null,null,null,null,null,null,null,null,null,null,null,null,null,342]
[5819,"Friday",11,null,null,null,null,null,null,null,null,null,null,null,null,null,null,346]
[5823,"Friday",15,null,null,null,null,null,null,null,null,null,null,null,null,null,null,342]
[5827,"Friday",19,null,null,null,null,null,null,null,null,null,null,null,null,null,null,345]
[5828,"Friday",20,null,null,null,null,null,null,null,null,null,null,null,null,null,null,343]
[5831,"Friday",23,null,null,null,null,null,null,null,null,null,null,null,null,null,null,344]
[5834,"Saturday",2,null,null,null,null,null,null,null,null,null,null,null,null,null,null,342]
[5838,"Saturday",6,null,null,null,null,null,null,null,null,null,null,null,null,null,null,339]
[5841,"Saturday",9,null,null,null,null,null,null,null,null,null,null,null,null,null,null,338]
[5845,"Saturday",13,null,null,null,null,null,null,null,null,null,null,null,null,null,null,340]
[5848,"Saturday",16,null,null,null,null,null,null,null,null,null,null,null,null,null,null,339]
[5852,"Saturday",20,null,null,null,null,null,null,null,null,null,null,null,null,null,null,341]
[5853,"Saturday",21,null,null,null,null,null,null,null,null,null,null,null,null,null,null,340]
[5856,"Sunday",0,null,null,null,null,null,null,null,null,null,null,null,null,null,null,342]
[5859,"Sunday",3,null,null,null,null,null,null,null,null,null,null,null,null,null,null,340]
[5863,"Sunday",7,null,null,null,null,null,null,null,null,null,null,null,null,null,null,346]
[{"$f":"A5867+1","v":5866},"Sunday",10,null,null,null,null,null,null,null,null,null,null,null,null,null,null,342]
[5869,"Sunday",13,null,null,null,null,null,null,null,null,null,null,null,null,null,null,342]
[5874,"Sunday",18,null,null,null,null,null,null,null,null,null,null,null,null,null,null,340]
[5877,"Sunday",21,null,null,null,null,null,null,null,null,null,null,null,null,null,null,340]
[5878,"Sunday",22,null,null,null,null,null,null,null,null,null,null,null,null,null,null,337]
[5881,"Monday",1,null,null,null,null,null,null,null,null,null,null,null,null,null,null,339]
[5885,"Monday",5,null,null,null,null,null,null,null,null,null,null,null,null,null,null,340]
[5888,"Monday",8,null,null,null,null,null,null,null,null,null,null,null,null,null,null,339]
[5891,"Monday",11,null,null,null,null,null,null,null,null,null,null,null,null,null,null,341]
[5894,"Monday",14,null,null,null,null,null,null,null,null,null,null,null,null,null,null,343]
[5899,"Monday",19,null,null,null,null,null,null,null,null,null,null,null,null,null,null,341]
[5902,"Monday",22,null,null,null,null,null,null,null,null,null,null,null,null,null,null,344]
[5903,"Monday",23,null,null,null,null,null,null,null,null,null,null,null,null,null,null,344]
[5906,"Tuesday",2,null,null,null,null,null,null,null,null,null,null,null,null,null,null,342]
[5910,"Tuesday",6,null,null,null,null,null,null,null,null,null,null,null,null,null,null,344]
[5913,"Tuesday",{"$f":"C5891","v":9},null,null,null,null,null,null,null,null,null,null,null,null,null,null,346]
[5915,"Tuesday",11,null,null,null,null,null,null,null,null,null,null,null,null,null,null,342]
[5921,"Tuesday",17,null,null,null,null,null,null,null,null,null,null,null,null,null,null,342]
[5924,"Tuesday",20,null,null,null,null,null,null,null,null,null,null,null,null,null,null,340]
[5927,"Tuesday",23,null,null,null,null,null,null,null,null,null,null,null,null,null,null,336]
[5928,"Wednesday",0,null,null,null,null,null,null,null,null,null,null,null,null,null,null,338]
[5931,"Wednesday",3,null,null,null,null,null,null,null,null,null,null,null,null,null,null,342]
[5935,"Wednesday",7,null,null,null,null,null,null,null,null,null,null,null,null,null,null,342]
[5938,"Wednesday",10,null,null,null,null,null,null,null,null,null,null,null,null,null,null,336]
[5940,"Wednesday",12,null,null,null,null,null,null,null,null,null,null,null,null,null,null,346]
[5946,"Wednesday",18,null,null,null,null,null,null,null,null,null,null,null,null,null,null,347]
[5949,"Wednesday",21,null,null,null,null,null,null,null,null,null,null,null,null,null,null,342]
[5950,"Wednesday",22,null,null,null,null,null,null,null,null,null,null,null,null,null,null,346]
[5953,"Thursday",1,null,null,null,null,null,null,null,null,null,null,null,null,null,null,342]
[5956,"Thursday",4,null,null,null,null,null,null,null,null,null,null,null,null,null,null,347]
[5960,"Thursday",8,null,null,null,null,null,null,null,null,null,null,null,null,null,null,347]
[5963,"Thursday",11,null,null,null,null,null,null,null,null,null,null,null,null,null,null,344]
[5965,"Thursday",13,null,null,null,null,null,null,null,null,null,null,null,null,null,null,343]
[5971,"Thursday",19,null,null,null,null,null,null,null,null,null,null,null,null,null,null,343]
[5974,"Thursday",22,null,null,null,null,null,null,null,null,null,null,null,null,null,null,340]
[5975,"Thursday",23,null,null,null,null,null,null,null,null,null,null,null,null,null,null,340]
[5978,"Friday",2,null,null,null,null,null,null,null,null,null,null,null,null,null,null,343]
[5981,"Friday",5,null,null,null,null,null,null,null,null,null,null,null,null,null,null,343]
[5985,"Friday",9,null,null,null,null,null,null,null,null,null,null,null,null,null,null,342]
[5990,"Friday",14,null,null,null,null,null,null,null,null,null,null,null,null,null,null,342]
[5993,{"$f":"B5827","v":"Friday"},17,null,null,null,null,null,null,null,null,null,null,null,null,null,null,340]
[5996,"Friday",20,null,null,null,null,null,null,null,null,null,null,null,null,null,null,343]
[5999,"Friday",23,null,null,null,null,null,null,null,null,null,null,null,null,null,null,345]
[6000,"Saturday",0,null,null,null,null,null,null,null,null,null,null,null,null,null,null,343]
[6003,"Saturday",3,null,null,null,null,null,null,null,null,null,null,null,null,null,null,345]
[6006,"Saturday",6,null,null,null,null,null,null,null,null,null,null,null,null,null,null,345]
[6010,"Saturday",10,null,null,null,null,null,null,null,null,null,null,null,null,null,null,343]
[6015,"Saturday",15,null,null,null,null,null,null,null,null,null,null,null,null,null,null,342]
[6018,"Saturday",18,null,null,null,null,null,null,null,null,null,null,null,null,null,null,342]
[6021,"Saturday",21,null,null,null,null,null,null,null,null,null,null,null,null,null,null,343]
[6024,"Sunday",0,null,null,null,null,null,null,null,null,null,null,null,null,null,null,341]
[6025,"Sunday",1,null,null,null,null,null,null,null,null,null,null,null,null,null,null,342]
[6028,"Sunday",4,null,null,null,null,null,null,null,null,null,null,null,null,null,null,338]
[6031,"Sunday",7,null,null,null,null,null,null,null,null,null,null,null,null,null,null,341]
[6035,"Sunday",11,null,null,null,null,null,null,null,null,null,null,null,null,null,null,343]
[6040,"Sunday",16,null,null,null,null,null,null,null,null,null,null,null,null,null,null,344]
[6043,"Sunday",19,null,null,null,null,null,null,null,null,null,null,null,null,null,null,345]
[6046,"Sunday",22,null,null,null,null,null,null,null,null,null,null,null,null,null,null,343]
[6049,"Monday",1,null,null,null,null,null,null,null,null,null,null,null,null,null,null,343]
[6050,"Monday",2,null,null,null,null,null,null,null,null,null,null,null,null,null,null,341]
[6053,"Monday",5,null,null,null,null,null,null,null,null,null,null,null,null,null,null,341]
[6057,{"$f":"B5891","v":"Monday"},9,null,null,null,null,null,null,null,null,null,null,null,null,null,null,340]
[6061,"Monday",13,null,null,null,null,null,null,null,null,null,null,null,null,null,null,342]
[6064,"Monday",16,null,null,null,null,null,null,null,null,null,null,null,null,null,null,338]
[6068,"Monday",20,null,null,null,null,null,null,null,null,null,null,null,null,null,null,338]
[6071,"Monday",23,null,null,null,null,null,null,null,null,null,null,null,null,null,null,338]
[6074,"Tuesday",2,null,null,null,null,null,null,null,null,null,null,null,null,null,null,336]
[6075,"Tuesday",3,null,null,null,null,null,null,null,null,null,null,null,null,null,null,339]
[6078,"Tuesday",6,null,null,null,null,null,null,null,null,null,null,null,null,null,null,340]
[6082,"Tuesday",10,null,null,null,null,null,null,null,null,null,null,null,null,null,null,338]
[6086,"Tuesday",14,null,null,null,null,null,null,null,null,null,null,null,null,null,null,340]
[6089,"Tuesday",17,null,null,null,null,null,null,null,null,null,null,null,null,null,null,341]
[6093,"Tuesday",21,null,null,null,null,null,null,null,null,null,null,null,null,null,null,341]
[6096,"Wednesday",0,null,null,null,null,null,null,null,null,null,null,null,null,null,null,345]
[6099,"Wednesday",3,null,null,null,null,null,null,null,null,null,null,null,null,null,null,342]
[6100,"Wednesday",4,null,null,null,null,null,null,null,null,null,null,null,null,null,null,342]
[6103,"Wednesday",7,null,null,null,null,null,null,null,null,null,null,null,null,null,null,340]
[6107,"Wednesday",11,null,null,null,null,null,null,null,null,null,null,null,null,null,null,339]
[6111,"Wednesday",15,null,null,null,null,null,null,null,null,null,null,null,null,null,null,340]
[6114,"Wednesday",18,null,null,null,null,null,null,null,null,null,null,null,null,null,null,337]
[6118,"Wednesday",22,null,null,null,null,null,null,null,null,null,null,null,null,null,null,336]
[6121,{"$f":"B5955","v":"Thursday"},1,null,null,null,null,null,null,null,null,null,null,null,null,null,null,333]
[{"$f":"A6123+1","v":6122},"Thursday",2,null,null,null,null,null,null,null,null,null,null,null,null,null,null,333]
[6125,"Thursday",5,null,null,null,null,null,null,null,null,null,null,null,null,null,null,338]
[6128,"Thursday",8,null,null,null,null,null,null,null,null,null,null,null,null,null,null,341]
[6132,"Thursday",12,null,null,null,null,null,null,null,null,null,null,null,null,null,null,341]
[6136,"Thursday",16,null,null,null,null,null,null,null,null,null,null,null,null,null,null,341]
[6139,"Thursday",19,null,null,null,null,null,null,null,null,null,null,null,null,null,null,342]
[6143,"Thursday",23,null,null,null,null,null,null,null,null,null,null,null,null,null,null,340]
[6146,"Friday",2,null,null,null,null,null,null,null,null,null,null,null,null,null,null,342]
[6147,"Friday",3,null,null,null,null,null,null,null,null,null,null,null,null,null,null,342]
[6150,"Friday",6,null,null,null,null,null,null,null,null,null,null,null,null,null,null,340]
[6153,"Friday",9,null,null,null,null,null,null,null,null,null,null,null,null,null,null,341]
[6157,"Friday",13,null,null,null,null,null,null,null,null,null,null,null,null,null,null,339]
[6161,"Friday",17,null,null,null,null,null,null,null,null,null,null,null,null,null,null,337]
[6165,"Friday",21,null,null,null,null,null,null,null,null,null,null,null,null,null,null,338]
[6168,"Saturday",0,null,null,null,null,null,null,null,null,null,null,null,null,null,null,338]
[6171,"Saturday",3,null,null,null,null,null,null,null,null,null,null,null,null,null,null,336]
[6172,"Saturday",4,null,null,null,null,null,null,null,null,null,null,null,null,null,null,340]
[6175,"Saturday",7,null,null,null,null,null,null,null,null,null,null,null,null,null,null,339]
[6178,"Saturday",10,null,null,null,null,null,null,null,null,null,null,null,null,null,null,342]
[6183,"Saturday",15,null,null,null,null,null,null,null,null,null,null,null,null,null,null,344]
[{"$f":"A6187+1","v":6186},"Saturday",18,null,null,null,null,null,null,null,null,null,null,null,null,null,null,342]
[6190,"Saturday",22,null,null,null,null,null,null,null,null,null,null,null,null,null,null,340]
[6193,"Sunday",1,null,null,null,null,null,null,null,null,null,null,null,null,null,null,341]
[6196,"Sunday",4,null,null,null,null,null,null,null,null,null,null,null,null,null,null,341]
[6197,"Sunday",5,null,null,null,null,null,null,null,null,null,null,null,null,null,null,340]
[6200,"Sunday",8,null,null,null,null,null,null,null,null,null,null,null,null,null,null,337]
[6203,"Sunday",11,null,null,null,null,null,null,null,null,null,null,null,null,null,null,339]
[6208,"Sunday",16,null,null,null,null,null,null,null,null,null,null,null,null,null,null,340]
[6211,"Sunday",19,null,null,null,null,null,null,null,null,null,null,null,null,null,null,339]
[6215,"Sunday",23,null,null,null,null,null,null,null,null,null,null,null,null,null,null,335]
[6218,"Monday",2,null,null,null,null,null,null,null,null,null,null,null,null,null,null,340]
[6221,"Monday",5,null,null,null,null,null,null,null,null,null,null,null,null,null,null,342]
[6222,"Monday",6,null,null,null,null,null,null,null,null,null,null,null,null,null,null,343]
[6225,"Monday",9,null,null,null,null,null,null,null,null,null,null,null,null,null,null,343]
[6228,"Monday",12,null,null,null,null,null,null,null,null,null,null,null,null,null,null,342]
[6233,"Monday",{"$f":"C6211","v":17},null,null,null,null,null,null,null,null,null,null,null,null,null,null,342]
[6236,"Monday",20,null,null,null,null,null,null,null,null,null,null,null,null,null,null,341]
[6240,"Tuesday",0,null,null,null,null,null,null,null,null,null,null,null,null,null,null,340]
[6243,"Tuesday",3,null,null,null,null,null,null,null,null,null,null,null,null,null,null,341]
[6246,"Tuesday",6,null,null,null,null,null,null,null,null,null,null,null,null,null,null,336]
[6247,"Tuesday",7,null,null,null,null,null,null,null,null,null,null,null,null,null,null,337]
[6253,"Tuesday",13,null,null,null,null,null,null,null,null,null,null,null,null,null,null,339]
[6255,"Tuesday",15,null,null,null,null,null,null,null,null,null,null,null,null,null,null,340]
[6258,"Tuesday",18,null,null,null,null,null,null,null,null,null,null,null,null,null,null,339]
[6261,"Tuesday",21,null,null,null,null,null,null,null,null,null,null,null,null,null,null,340]
[6265,"Wednesday",1,null,null,null,null,null,null,null,null,null,null,null,null,null,null,341]
[6268,"Wednesday",4,null,null,null,null,null,null,null,null,null,null,null,null,null,null,344]
[6269,"Wednesday",5,null,null,null,null,null,null,null,null,null,null,null,null,null,null,345]
[6272,"Wednesday",8,null,null,null,null,null,null,null,null,null,null,null,null,null,null,342]
[6278,"Wednesday",14,null,null,null,null,null,null,null,null,null,null,null,null,null,null,341]
[6280,"Wednesday",16,null,null,null,null,null,null,null,null,null,null,null,null,null,null,342]
[6283,"Wednesday",19,null,null,null,null,null,null,null,null,null,null,null,null,null,null,342]
[6286,"Wednesday",22,null,null,null,null,null,null,null,null,null,null,null,null,null,null,342]
[6290,"Thursday",2,null,null,null,null,null,null,null,null,null,null,null,null,null,null,340]
[6293,"Thursday",5,null,null,null,null,null,null,null,null,null,null,null,null,null,null,341]
[6294,"Thursday",6,null,null,null,null,null,null,null,null,null,null,null,null,null,null,340]
[6297,"Thursday",{"$f":"C6275","v":9},null,null,null,null,null,null,null,null,null,null,null,null,null,null,339]
[6303,"Thursday",15,null,null,null,null,null,null,null,null,null,null,null,null,null,null,338]
[6305,"Thursday",17,null,null,null,null,null,null,null,null,null,null,null,null,null,null,342]
[6308,"Thursday",20,null,null,null,null,null,null,null,null,null,null,null,null,null,null,338]
[6311,"Thursday",23,null,null,null,null,null,null,null,null,null,null,null,null,null,null,345]
[6315,"Friday",3,null,null,null,null,null,null,null,null,null,null,null,null,null,null,343]
[6318,"Friday",6,null,null,null,null,null,null,null,null,null,null,null,null,null,null,341]
[6319,"Friday",7,null,null,null,null,null,null,null,null,null,null,null,null,null,null,343]
[6324,"Friday",12,null,null,null,null,null,null,null,null,null,null,null,null,null,null,342]
[6326,"Friday",14,null,null,null,null,null,null,null,null,null,null,null,null,null,null,342]
[6330,"Friday",18,null,null,null,null,null,null,null,null,null,null,null,null,null,null,343]
[6333,"Friday",21,null,null,null,null,null,null,null,null,null,null,null,null,null,null,341]
[6337,"Saturday",1,null,null,null,null,null,null,null,null,null,null,null,null,null,null,339]
[6340,"Saturday",4,null,null,null,null,null,null,null,null,null,null,null,null,null,null,338]
[6343,"Saturday",7,null,null,null,null,null,null,null,null,null,null,null,null,null,null,340]
[6344,"Saturday",8,null,null,null,null,null,null,null,null,null,null,null,null,null,null,341]
[6349,"Saturday",13,null,null,null,null,null,null,null,null,null,null,null,null,null,null,345]
[6351,"Saturday",15,null,null,null,null,null,null,null,null,null,null,null,null,null,null,342]
[6355,"Saturday",19,null,null,null,null,null,null,null,null,null,null,null,null,null,null,339]
[6358,"Saturday",22,null,null,null,null,null,null,null,null,null,null,null,null,null,null,342]
[6362,"Sunday",2,null,null,null,null,null,null,null,null,null,null,null,null,null,null,342]
[6365,"Sunday",5,null,null,null,null,null,null,null,null,null,null,null,null,null,null,345]
[6368,"Sunday",8,null,null,null,null,null,null,null,null,null,null,null,null,null,null,345]
[6370,"Sunday",10,null,null,null,null,null,null,null,null,null,null,null,null,null,null,345]
[6373,"Sunday",13,null,null,null,null,null,null,null,null,null,null,null,null,null,null,343]
[6376,"Sunday",16,null,null,null,null,null,null,null,null,null,null,null,null,null,null,341]
[6380,"Sunday",20,null,null,null,null,null,null,null,null,null,null,null,null,null,null,344]
[6383,"Sunday",23,null,null,null,null,null,null,null,null,null,null,null,null,null,null,341]
[6387,"Monday",3,null,null,null,null,null,null,null,null,null,null,null,null,null,null,341]
[6390,"Monday",6,null,null,null,null,null,null,null,null,null,null,null,null,null,null,338]
[6393,"Monday",9,null,null,null,null,null,null,null,null,null,null,null,null,null,null,340]
[6395,"Monday",11,null,null,null,null,null,null,null,null,null,null,null,null,null,null,340]
[6398,"Monday",14,null,null,null,null,null,null,null,null,null,null,null,null,null,null,340]
[6402,"Monday",18,null,null,null,null,null,null,null,null,null,null,null,null,null,null,345]
[6405,"Monday",21,null,null,null,null,null,null,null,null,null,null,null,null,null,null,344]
[6408,"Tuesday",0,null,null,null,null,null,null,null,null,null,null,null,null,null,null,342]
[6412,"Tuesday",4,null,null,null,null,null,null,null,null,null,null,null,null,null,null,347]
[6415,"Tuesday",7,null,null,null,null,null,null,null,null,null,null,null,null,null,null,345]
[6418,"Tuesday",10,null,null,null,null,null,null,null,null,null,null,null,null,null,null,348]
[6420,"Tuesday",12,null,null,null,null,null,null,null,null,null,null,null,null,null,null,347]
[6423,"Tuesday",15,null,null,null,null,null,null,null,null,null,null,null,null,null,null,346]
[6427,"Tuesday",19,null,null,null,null,null,null,null,null,null,null,null,null,null,null,349]
[6430,"Tuesday",22,null,null,null,null,null,null,null,null,null,null,null,null,null,null,344]
[6433,"Wednesday",1,null,null,null,null,null,null,null,null,null,null,null,null,null,null,344]
[6437,"Wednesday",5,null,null,null,null,null,null,null,null,null,null,null,null,null,null,344]
[6440,"Wednesday",8,null,null,null,null,null,null,null,null,null,null,null,null,null,null,346]
[6441,{"$f":"B6275","v":"Wednesday"},9,null,null,null,null,null,null,null,null,null,null,null,null,null,null,344]
[6445,"Wednesday",13,null,null,null,null,null,null,null,null,null,null,null,null,null,null,342]
[6448,"Wednesday",16,null,null,null,null,null,null,null,null,null,null,null,null,null,null,343]
[6452,"Wednesday",20,null,null,null,null,null,null,null,null,null,null,null,null,null,null,344]
[6455,"Wednesday",23,null,null,null,null,null,null,null,null,null,null,null,null,null,null,348]
[6458,"Thursday",2,null,null,null,null,null,null,null,null,null,null,null,null,null,null,345]
[6462,"Thursday",6,null,null,null,null,null,null,null,null,null,null,null,null,null,null,347]
[6465,"Thursday",9,null,null,null,null,null,null,null,null,null,null,null,null,null,null,347]
[6466,"Thursday",10,null,null,null,null,null,null,null,null,null,null,null,null,null,null,347]
[6470,"Thursday",14,null,null,null,null,null,null,null,null,null,null,null,null,null,null,345]
[6473,"Thursday",17,null,null,null,null,null,null,null,null,null,null,null,null,null,null,347]
[6477,"Thursday",21,null,null,null,null,null,null,null,null,null,null,null,null,null,null,348]
[6480,"Friday",0,null,null,null,null,null,null,null,null,null,null,null,null,null,null,348]
[6483,"Friday",3,null,null,null,null,null,null,null,null,null,null,null,null,null,null,347]
[6487,"Friday",7,null,null,null,null,null,null,null,null,null,null,null,null,null,null,346]
[6490,"Friday",10,null,null,null,null,null,null,null,null,null,null,null,null,null,null,343]
[6491,"Friday",11,null,null,null,null,null,null,null,null,null,null,null,null,null,null,344]
[6495,"Friday",15,null,null,null,null,null,null,null,null,null,null,null,null,null,null,341]
[6498,"Friday",18,null,null,null,null,null,null,null,null,null,null,null,null,null,null,346]
[6502,"Friday",22,null,null,null,null,null,null,null,null,null,null,null,null,null,null,346]
[6505,{"$f":"B6339","v":"Saturday"},1,null,null,null,null,null,null,null,null,null,null,null,null,null,null,344]
[6509,"Saturday",5,null,null,null,null,null,null,null,null,null,null,null,null,null,null,350]
[6512,"Saturday",8,null,null,null,null,null,null,null,null,null,null,null,null,null,null,345]
[6516,"Saturday",12,null,null,null,null,null,null,null,null,null,null,null,null,null,null,352]
[6517,"Saturday",13,null,null,null,null,null,null,null,null,null,null,null,null,null,null,350]
[6520,"Saturday",16,null,null,null,null,null,null,null,null,null,null,null,null,null,null,348]
[6523,"Saturday",19,null,null,null,null,null,null,null,null,null,null,null,null,null,null,349]
[6527,"Saturday",23,null,null,null,null,null,null,null,null,null,null,null,null,null,null,348]
[6530,"Sunday",2,null,null,null,null,null,null,null,null,null,null,null,null,null,null,347]
[6534,"Sunday",6,null,null,null,null,null,null,null,null,null,null,null,null,null,null,346]
[6537,"Sunday",9,null,null,null,null,null,null,null,null,null,null,null,null,null,null,345]
[6541,"Sunday",13,null,null,null,null,null,null,null,null,null,null,null,null,null,null,344]
[6542,"Sunday",14,null,null,null,null,null,null,null,null,null,null,null,null,null,null,343]
[6545,"Sunday",17,null,null,null,null,null,null,null,null,null,null,null,null,null,null,343]
[6548,"Sunday",20,null,null,null,null,null,null,null,null,null,null,null,null,null,null,342]
[6552,"Monday",0,null,null,null,null,null,null,null,null,null,null,null,null,null,null,346]
[6555,"Monday",3,null,null,null,null,null,null,null,null,null,null,null,null,null,null,348]
[6559,"Monday",7,null,null,null,null,null,null,null,null,null,null,null,null,null,null,352]
[6562,"Monday",10,null,null,null,null,null,null,null,null,null,null,null,null,null,null,349]
[6566,"Monday",14,null,null,null,null,null,null,null,null,null,null,null,null,null,null,348]
[6567,"Monday",15,null,null,null,null,null,null,null,null,null,null,null,null,null,null,347]
[{"$f":"A6571+1","v":6570},"Monday",18,null,null,null,null,null,null,null,null,null,null,null,null,null,null,348]
[6574,"Monday",22,null,null,null,null,null,null,null,null,null,null,null,null,null,null,349]
[6577,"Tuesday",1,null,null,null,null,null,null,null,null,null,null,null,null,null,null,353]
[6580,"Tuesday",4,null,null,null,null,null,null,null,null,null,null,null,null,null,null,350]
[6584,"Tuesday",8,null,null,null,null,null,null,null,null,null,null,null,null,null,null,346]
[6587,"Tuesday",11,null,null,null,null,null,null,null,null,null,null,null,null,null,null,349]
[6591,"Tuesday",15,null,null,null,null,null,null,null,null,null,null,null,null,null,null,345]
[6592,"Tuesday",16,null,null,null,null,null,null,null,null,null,null,null,null,null,null,348]
[6595,"Tuesday",19,null,null,null,null,null,null,null,null,null,null,null,null,null,null,344]
[6599,"Tuesday",23,null,null,null,null,null,null,null,null,null,null,null,null,null,null,344]
[6602,"Wednesday",2,null,null,null,null,null,null,null,null,null,null,null,null,null,null,348]
[6605,"Wednesday",5,null,null,null,null,null,null,null,null,null,null,null,null,null,null,346]
[6609,"Wednesday",9,null,null,null,null,null,null,null,null,null,null,null,null,null,null,348]
[6612,"Wednesday",12,null,null,null,null,null,null,null,null,null,null,null,null,null,null,353]
[6614,"Wednesday",14,null,null,null,null,null,null,null,null,null,null,null,null,null,null,347]
[6617,"Wednesday",{"$f":"C6595","v":17},null,null,null,null,null,null,null,null,null,null,null,null,null,null,352]
[6620,"Wednesday",20,null,null,null,null,null,null,null,null,null,null,null,null,null,null,349]
[6624,"Thursday",0,null,null,null,null,null,null,null,null,null,null,null,null,null,null,351]
[6627,"Thursday",3,null,null,null,null,null,null,null,null,null,null,null,null,null,null,352]
[6630,"Thursday",6,null,null,null,null,null,null,null,null,null,null,null,null,null,null,349]
[6633,{"$f":"B6467","v":"Thursday"},9,null,null,null,null,null,null,null,null,null,null,null,null,null,null,355]
[6638,"Thursday",14,null,null,null,null,null,null,null,null,null,null,null,null,null,null,358]
[6639,"Thursday",15,null,null,null,null,null,null,null,null,null,null,null,null,null,null,362]
[6642,"Thursday",18,null,null,null,null,null,null,null,null,null,null,null,null,null,null,363]
[6645,"Thursday",21,null,null,null,null,null,null,null,null,null,null,null,null,null,null,362]
[6649,"Friday",1,null,null,null,null,null,null,null,null,null,null,null,null,null,null,364]
[6652,"Friday",4,null,null,null,null,null,null,null,null,null,null,null,null,null,null,363]
[6655,"Friday",7,null,null,null,null,null,null,null,null,null,null,null,null,null,null,363]
[6658,"Friday",10,null,null,null,null,null,null,null,null,null,null,null,null,null,null,363]
[6663,"Friday",15,null,null,null,null,null,null,null,null,null,null,null,null,null,null,364]
[6664,"Friday",16,null,null,null,null,null,null,null,null,null,null,null,null,null,null,365]
[6667,"Friday",19,null,null,null,null,null,null,null,null,null,null,null,null,null,null,370]
[6670,"Friday",22,null,null,null,null,null,null,null,null,null,null,null,null,null,null,372]
[6674,"Saturday",2,null,null,null,null,null,null,null,null,null,null,null,null,null,null,365]
[6677,"Saturday",5,null,null,null,null,null,null,null,null,null,null,null,null,null,null,365]
[6681,"Saturday",{"$f":"C6659","v":9},null,null,null,null,null,null,null,null,null,null,null,null,null,null,360]
[6683,"Saturday",11,null,null,null,null,null,null,null,null,null,null,null,null,null,null,362]
[6688,"Saturday",16,null,null,null,null,null,null,null,null,null,null,null,null,null,null,365]
[6689,"Saturday",17,null,null,null,null,null,null,null,null,null,null,null,null,null,null,366]
[6692,"Saturday",20,null,null,null,null,null,null,null,null,null,null,null,null,null,null,366]
[6695,"Saturday",23,null,null,null,null,null,null,null,null,null,null,null,null,null,null,366]
[6699,"Sunday",3,null,null,null,null,null,null,null,null,null,null,null,null,null,null,369]
[6702,"Sunday",6,null,null,null,null,null,null,null,null,null,null,null,null,null,null,368]
[6704,"Sunday",8,null,null,null,null,null,null,null,null,null,null,null,null,null,null,369]
[6710,"Sunday",14,null,null,null,null,null,null,null,null,null,null,null,null,null,null,364]
[6713,"Sunday",17,null,null,null,null,null,null,null,null,null,null,null,null,null,null,365]
[6714,"Sunday",18,null,null,null,null,null,null,null,null,null,null,null,null,null,null,365]
[6717,"Sunday",21,null,null,null,null,null,null,null,null,null,null,null,null,null,null,366]
[6721,"Monday",1,null,null,null,null,null,null,null,null,null,null,null,null,null,null,363]
[6724,"Monday",4,null,null,null,null,null,null,null,null,null,null,null,null,null,null,366]
[6727,"Monday",7,null,null,null,null,null,null,null,null,null,null,null,null,null,null,363]
[6729,"Monday",9,null,null,null,null,null,null,null,null,null,null,null,null,null,null,365]
[6735,"Monday",15,null,null,null,null,null,null,null,null,null,null,null,null,null,null,364]
[6738,"Monday",18,null,null,null,null,null,null,null,null,null,null,null,null,null,null,367]
[6739,"Monday",19,null,null,null,null,null,null,null,null,null,null,null,null,null,null,369]
[6742,"Monday",22,null,null,null,null,null,null,null,null,null,null,null,null,null,null,367]
[6746,"Tuesday",2,null,null,null,null,null,null,null,null,null,null,null,null,null,null,368]
[6749,"Tuesday",5,null,null,null,null,null,null,null,null,null,null,null,null,null,null,368]
[6752,"Tuesday",8,null,null,null,null,null,null,null,null,null,null,null,null,null,null,368]
[6754,"Tuesday",10,null,null,null,null,null,null,null,null,null,null,null,null,null,null,367]
[6760,"Tuesday",16,null,null,null,null,null,null,null,null,null,null,null,null,null,null,366]
[6763,"Tuesday",19,null,null,null,null,null,null,null,null,null,null,null,null,null,null,367]
[6764,"Tuesday",20,null,null,null,null,null,null,null,null,null,null,null,null,null,null,369]
[6767,"Tuesday",23,null,null,null,null,null,null,null,null,null,null,null,null,null,null,364]
[6771,"Wednesday",3,null,null,null,null,null,null,null,null,null,null,null,null,null,null,362]
[6774,"Wednesday",6,null,null,null,null,null,null,null,null,null,null,null,null,null,null,360]
[6779,"Wednesday",11,null,null,null,null,null,null,null,null,null,null,null,null,null,null,361]
[6782,"Wednesday",14,null,null,null,null,null,null,null,null,null,null,null,null,null,null,362]
[6785,"Wednesday",17,null,null,null,null,null,null,null,null,null,null,null,null,null,null,361]
[6786,"Wednesday",18,null,null,null,null,null,null,null,null,null,null,null,null,null,null,361]
[6789,"Wednesday",21,null,null,null,null,null,null,null,null,null,null,null,null,null,null,365]
[6792,"Thursday",0,null,null,null,null,null,null,null,null,null,null,null,null,null,null,367]
[6796,"Thursday",4,null,null,null,null,null,null,null,null,null,null,null,null,null,null,368]
[6799,"Thursday",7,null,null,null,null,null,null,null,null,null,null,null,null,null,null,371]
[6804,"Thursday",12,null,null,null,null,null,null,null,null,null,null,null,null,null,null,372]
[6807,"Thursday",15,null,null,null,null,null,null,null,null,null,null,null,null,null,null,369]
[6810,"Thursday",18,null,null,null,null,null,null,null,null,null,null,null,null,null,null,369]
[6811,"Thursday",19,null,null,null,null,null,null,null,null,null,null,null,null,null,null,370]
[6814,"Thursday",22,null,null,null,null,null,null,null,null,null,null,null,null,null,null,368]
[6817,"Friday",1,null,null,null,null,null,null,null,null,null,null,null,null,null,null,366]
[6821,"Friday",5,null,null,null,null,null,null,null,null,null,null,null,null,null,null,369]
[6825,{"$f":"B6659","v":"Friday"},9,null,null,null,null,null,null,null,null,null,null,null,null,null,null,369]
[6828,"Friday",12,null,null,null,null,null,null,null,null,null,null,null,null,null,null,374]
[6832,"Friday",16,null,null,null,null,null,null,null,null,null,null,null,null,null,null,379]
[6835,"Friday",19,null,null,null,null,null,null,null,null,null,null,null,null,null,null,384]
[6836,"Friday",20,null,null,null,null,null,null,null,null,null,null,null,null,null,null,388]
[6839,"Friday",23,null,null,null,null,null,null,null,null,null,null,null,null,null,null,391]
[6842,"Saturday",2,null,null,null,null,null,null,null,null,null,null,null,null,null,null,392]
[6846,"Saturday",6,null,null,null,null,null,null,null,null,null,null,null,null,null,null,397]
[6850,"Saturday",10,null,null,null,null,null,null,null,null,null,null,null,null,null,null,397]
[6854,"Saturday",14,null,null,null,null,null,null,null,null,null,null,null,null,null,null,400]
[6857,"Saturday",17,null,null,null,null,null,null,null,null,null,null,null,null,null,null,399]
[6860,"Saturday",20,null,null,null,null,null,null,null,null,null,null,null,null,null,null,398]
[6861,"Saturday",21,null,null,null,null,null,null,null,null,null,null,null,null,null,null,398]
[6864,"Sunday",0,null,null,null,null,null,null,null,null,null,null,null,null,null,null,397]
[6867,"Sunday",3,null,null,null,null,null,null,null,null,null,null,null,null,null,null,395]
[6871,"Sunday",7,null,null,null,null,null,null,null,null,null,null,null,null,null,null,390]
[6875,"Sunday",11,null,null,null,null,null,null,null,null,null,null,null,null,null,null,389]
[6879,"Sunday",15,null,null,null,null,null,null,null,null,null,null,null,null,null,null,387]
[6882,"Sunday",18,null,null,null,null,null,null,null,null,null,null,null,null,null,null,386]
[6885,"Sunday",21,null,null,null,null,null,null,null,null,null,null,null,null,null,null,382]
[6886,"Sunday",22,null,null,null,null,null,null,null,null,null,null,null,null,null,null,382]
[6889,{"$f":"B6723","v":"Monday"},1,null,null,null,null,null,null,null,null,null,null,null,null,null,null,378]
[6893,"Monday",5,null,null,null,null,null,null,null,null,null,null,null,null,null,null,380]
[6896,"Monday",8,null,null,null,null,null,null,null,null,null,null,null,null,null,null,382]
[6900,"Monday",12,null,null,null,null,null,null,null,null,null,null,null,null,null,null,378]
[6904,"Monday",16,null,null,null,null,null,null,null,null,null,null,null,null,null,null,380]
[6907,"Monday",19,null,null,null,null,null,null,null,null,null,null,null,null,null,null,377]
[6910,"Monday",22,null,null,null,null,null,null,null,null,null,null,null,null,null,null,382]
[6911,"Monday",23,null,null,null,null,null,null,null,null,null,null,null,null,null,null,381]
[6914,"Tuesday",2,null,null,null,null,null,null,null,null,null,null,null,null,null,null,378]
[6918,"Tuesday",6,null,null,null,null,null,null,null,null,null,null,null,null,null,null,376]
[6921,"Tuesday",9,null,null,null,null,null,null,null,null,null,null,null,null,null,null,417]
[6925,"Tuesday",13,null,null,null,null,null,null,null,null,null,null,null,null,null,null,497]
[6929,"Tuesday",17,null,null,null,null,null,null,null,null,null,null,null,null,null,null,481]
[6932,"Tuesday",20,null,null,null,null,null,null,null,null,null,null,null,null,null,null,480]
[6935,"Tuesday",23,null,null,null,null,null,null,null,null,null,null,null,null,null,null,474]
[6936,"Wednesday",0,null,null,null,null,null,null,null,null,null,null,null,null,null,null,474]
[6939,"Wednesday",3,null,null,null,null,null,null,null,null,null,null,null,null,null,null,476]
[6943,"Wednesday",7,null,null,null,null,null,null,null,null,null,null,null,null,null,null,471]
[6946,"Wednesday",10,null,null,null,null,null,null,null,null,null,null,null,null,null,null,465]
[6950,"Wednesday",14,null,null,null,null,null,null,null,null,null,null,null,null,null,null,459]
[{"$f":"A6955+1","v":6954},"Wednesday",18,null,null,null,null,null,null,null,null,null,null,null,null,null,null,455]
[6957,"Wednesday",21,null,null,null,null,null,null,null,null,null,null,null,null,null,null,450]
[6958,"Wednesday",22,null,null,null,null,null,null,null,null,null,null,null,null,null,null,447]
[6961,"Thursday",1,null,null,null,null,null,null,null,null,null,null,null,null,null,null,447]
[6964,"Thursday",4,null,null,null,null,null,null,null,null,null,null,null,null,null,null,443]
[6967,"Thursday",7,null,null,null,null,null,null,null,null,null,null,null,null,null,null,409]
[6972,"Thursday",12,null,null,null,null,null,null,null,null,null,null,null,null,null,null,408]
[6975,"Thursday",15,null,null,null,null,null,null,null,null,null,null,null,null,null,null,409]
[6979,"Thursday",19,null,null,null,null,null,null,null,null,null,null,null,null,null,null,407]
[6982,"Thursday",22,null,null,null,null,null,null,null,null,null,null,null,null,null,null,408]
[6983,"Thursday",23,null,null,null,null,null,null,null,null,null,null,null,null,null,null,409]
[6986,"Friday",2,null,null,null,null,null,null,null,null,null,null,null,null,null,null,410]
[6989,"Friday",5,null,null,null,null,null,null,null,null,null,null,null,null,null,null,406]
[6992,"Friday",8,null,null,null,null,null,null,null,null,null,null,null,null,null,null,403]
[6997,"Friday",13,null,null,null,null,null,null,null,null,null,null,null,null,null,null,411]
[7000,"Friday",16,null,null,null,null,null,null,null,null,null,null,null,null,null,null,406]
[7004,"Friday",20,null,null,null,null,null,null,null,null,null,null,null,null,null,null,407]
[7007,"Friday",23,null,null,null,null,null,null,null,null,null,null,null,null,null,null,405]
[7008,"Saturday",0,null,null,null,null,null,null,null,null,null,null,null,null,null,null,402]
[7011,"Saturday",3,null,null,null,null,null,null,null,null,null,null,null,null,null,null,409]
[7014,"Saturday",6,null,null,null,null,null,null,null,null,null,null,null,null,null,null,407]
[7017,{"$f":"B6851","v":"Saturday"},9,null,null,null,null,null,null,null,null,null,null,null,null,null,null,407]
[7022,"Saturday",14,null,null,null,null,null,null,null,null,null,null,null,null,null,null,403]
[7026,"Saturday",18,null,null,null,null,null,null,null,null,null,null,null,null,null,null,400]
[7029,"Saturday",21,null,null,null,null,null,null,null,null,null,null,null,null,null,null,403]
[7032,"Sunday",0,null,null,null,null,null,null,null,null,null,null,null,null,null,null,402]
[7033,"Sunday",1,null,null,null,null,null,null,null,null,null,null,null,null,null,null,404]
[7036,"Sunday",4,null,null,null,null,null,null,null,null,null,null,null,null,null,null,404]
[7042,"Sunday",10,null,null,null,null,null,null,null,null,null,null,null,null,null,null,399]
[7044,"Sunday",12,null,null,null,null,null,null,null,null,null,null,null,null,null,null,398]
[7047,"Sunday",15,null,null,null,null,null,null,null,null,null,null,null,null,null,null,399]
[7051,"Sunday",19,null,null,null,null,null,null,null,null,null,null,null,null,null,null,400]
[7054,"Sunday",22,null,null,null,null,null,null,null,null,null,null,null,null,null,null,395]
[7057,"Monday",1,null,null,null,null,null,null,null,null,null,null,null,null,null,null,393]
[7058,"Monday",2,null,null,null,null,null,null,null,null,null,null,null,null,null,null,396]
[7061,"Monday",5,null,null,null,null,null,null,null,null,null,null,null,null,null,null,396]
[7067,"Monday",11,null,null,null,null,null,null,null,null,null,null,null,null,null,null,1059]
[7069,"Monday",13,null,null,null,null,null,null,null,null,null,null,null,null,null,null,474]
[7072,"Monday",16,null,null,null,null,null,null,null,null,null,null,null,null,null,null,428]
[7076,"Monday",20,null,null,null,null,null,null,null,null,null,null,null,null,null,null,420]
[7079,"Monday",23,null,null,null,null,null,null,null,null,null,null,null,null,null,null,418]
[{"$f":"A7083+1","v":7082},"Tuesday",2,null,null,null,null,null,null,null,null,null,null,null,null,null,null,415]
[7083,"Tuesday",3,null,null,null,null,null,null,null,null,null,null,null,null,null,null,416]
[7088,"Tuesday",8,null,null,null,null,null,null,null,null,null,null,null,null,null,null,409]
[7091,"Tuesday",11,null,null,null,null,null,null,null,null,null,null,null,null,null,null,411]
[7094,"Tuesday",14,null,null,null,null,null,null,null,null,null,null,null,null,null,null,410]
[7097,"Tuesday",17,null,null,null,null,null,null,null,null,null,null,null,null,null,null,403]
[7101,"Tuesday",21,null,null,null,null,null,null,null,null,null,null,null,null,null,null,404]
[7104,"Wednesday",0,null,null,null,null,null,null,null,null,null,null,null,null,null,null,406]
[7107,"Wednesday",3,null,null,null,null,null,null,null,null,null,null,null,null,null,null,401]
[7108,"Wednesday",4,null,null,null,null,null,null,null,null,null,null,null,null,null,null,400]
[7113,"Wednesday",9,null,null,null,null,null,null,null,null,null,null,null,null,null,null,457]
[7116,"Wednesday",12,null,null,null,null,null,null,null,null,null,null,null,null,null,null,416]
[7119,"Wednesday",15,null,null,null,null,null,null,null,null,null,null,null,null,null,null,406]
[7122,"Wednesday",18,null,null,null,null,null,null,null,null,null,null,null,null,null,null,403]
[7126,"Wednesday",22,null,null,null,null,null,null,null,null,null,null,null,null,null,null,398]
[7129,"Thursday",{"$f":"C7107","v":1},null,null,null,null,null,null,null,null,null,null,null,null,null,null,399]
[7130,"Thursday",2,null,null,null,null,null,null,null,null,null,null,null,null,null,null,399]
[7133,"Thursday",5,null,null,null,null,null,null,null,null,null,null,null,null,null,null,397]
[7138,"Thursday",10,null,null,null,null,null,null,null,null,null,null,null,null,null,null,397]
[7141,"Thursday",13,null,null,null,null,null,null,null,null,null,null,null,null,null,null,396]
[7144,"Thursday",16,null,null,null,null,null,null,null,null,null,null,null,null,null,null,395]
[7147,"Thursday",19,null,null,null,null,null,null,null,null,null,null,null,null,null,null,394]
[7151,"Thursday",23,null,null,null,null,null,null,null,null,null,null,null,null,null,null,394]
[7154,"Friday",2,null,null,null,null,null,null,null,null,null,null,null,null,null,null,392]
[7155,"Friday",3,null,null,null,null,null,null,null,null,null,null,null,null,null,null,393]
[7159,"Friday",7,null,null,null,null,null,null,null,null,null,null,null,null,null,null,391]
[7162,"Friday",10,null,null,null,null,null,null,null,null,null,null,null,null,null,null,387]
[7166,"Friday",14,null,null,null,null,null,null,null,null,null,null,null,null,null,null,387]
[7169,"Friday",17,null,null,null,null,null,null,null,null,null,null,null,null,null,null,388]
[7173,"Friday",21,null,null,null,null,null,null,null,null,null,null,null,null,null,null,389]
[7176,"Saturday",0,null,null,null,null,null,null,null,null,null,null,null,null,null,null,388]
[7179,"Saturday",3,null,null,null,null,null,null,null,null,null,null,null,null,null,null,387]
[7180,"Saturday",4,null,null,null,null,null,null,null,null,null,null,null,null,null,null,388]
[7184,"Saturday",8,null,null,null,null,null,null,null,null,null,null,null,null,null,null,387]
[7187,"Saturday",11,null,null,null,null,null,null,null,null,null,null,null,null,null,null,387]
[7191,"Saturday",15,null,null,null,null,null,null,null,null,null,null,null,null,null,null,388]
[7194,"Saturday",18,null,null,null,null,null,null,null,null,null,null,null,null,null,null,389]
[7198,"Saturday",22,null,null,null,null,null,null,null,null,null,null,null,null,null,null,388]
[7201,"Sunday",1,null,null,null,null,null,null,null,null,null,null,null,null,null,null,388]
[7204,"Sunday",4,null,null,null,null,null,null,null,null,null,null,null,null,null,null,389]
[7205,"Sunday",5,null,null,null,null,null,null,null,null,null,null,null,null,null,null,389]
[7209,{"$f":"B7043","v":"Sunday"},9,null,null,null,null,null,null,null,null,null,null,null,null,null,null,390]
[7212,"Sunday",12,null,null,null,null,null,null,null,null,null,null,null,null,null,null,387]
[7216,"Sunday",16,null,null,null,null,null,null,null,null,null,null,null,null,null,null,389]
[7219,"Sunday",19,null,null,null,null,null,null,null,null,null,null,null,null,null,null,389]
[7223,"Sunday",23,null,null,null,null,null,null,null,null,null,null,null,null,null,null,387]
[7226,"Monday",2,null,null,null,null,null,null,null,null,null,null,null,null,null,null,387]
[7229,"Monday",5,null,null,null,null,null,null,null,null,null,null,null,null,null,null,384]
[7230,"Monday",6,null,null,null,null,null,null,null,null,null,null,null,null,null,null,387]
[7234,"Monday",10,null,null,null,null,null,null,null,null,null,null,null,null,null,null,389]
[7238,"Monday",14,null,null,null,null,null,null,null,null,null,null,null,null,null,null,383]
[7241,"Monday",17,null,null,null,null,null,null,null,null,null,null,null,null,null,null,381]
[7244,"Monday",20,null,null,null,null,null,null,null,null,null,null,null,null,null,null,385]
[7248,"Tuesday",0,null,null,null,null,null,null,null,null,null,null,null,null,null,null,381]
[7251,"Tuesday",3,null,null,null,null,null,null,null,null,null,null,null,null,null,null,384]
[7254,"Tuesday",6,null,null,null,null,null,null,null,null,null,null,null,null,null,null,386]
[7255,"Tuesday",7,null,null,null,null,null,null,null,null,null,null,null,null,null,null,383]
[7259,"Tuesday",11,null,null,null,null,null,null,null,null,null,null,null,null,null,null,381]
[7263,"Tuesday",15,null,null,null,null,null,null,null,null,null,null,null,null,null,null,381]
[7266,"Tuesday",18,null,null,null,null,null,null,null,null,null,null,null,null,null,null,378]
[7269,"Tuesday",21,null,null,null,null,null,null,null,null,null,null,null,null,null,null,380]
[7273,{"$f":"B7107","v":"Wednesday"},1,null,null,null,null,null,null,null,null,null,null,null,null,null,null,379]
[7276,"Wednesday",4,null,null,null,null,null,null,null,null,null,null,null,null,null,null,379]
[7279,"Wednesday",7,null,null,null,null,null,null,null,null,null,null,null,null,null,null,378]
[7280,"Wednesday",8,null,null,null,null,null,null,null,null,null,null,null,null,null,null,406]
[7284,"Wednesday",12,null,null,null,null,null,null,null,null,null,null,null,null,null,null,1521]
[7288,"Wednesday",16,null,null,null,null,null,null,null,null,null,null,null,null,null,null,902]
[7291,"Wednesday",19,null,null,null,null,null,null,null,null,null,null,null,null,null,null,1130]
[7294,"Wednesday",22,null,null,null,null,null,null,null,null,null,null,null,null,null,null,1156]
[7298,"Thursday",2,null,null,null,null,null,null,null,null,null,null,null,null,null,null,478]
[7301,"Thursday",5,null,null,null,null,null,null,null,null,null,null,null,null,null,null,436]
[7305,"Thursday",9,null,null,null,null,null,null,null,null,null,null,null,null,null,null,425]
[7306,"Thursday",10,null,null,null,null,null,null,null,null,null,null,null,null,null,null,424]
[7309,"Thursday",13,null,null,null,null,null,null,null,null,null,null,null,null,null,null,429]
[7313,"Thursday",17,null,null,null,null,null,null,null,null,null,null,null,null,null,null,1075]
[7316,"Thursday",20,null,null,null,null,null,null,null,null,null,null,null,null,null,null,3497]
[7319,"Thursday",23,null,null,null,null,null,null,null,null,null,null,null,null,null,null,3289]
[7323,"Friday",3,null,null,null,null,null,null,null,null,null,null,null,null,null,null,1119]
[7326,"Friday",6,null,null,null,null,null,null,null,null,null,null,null,null,null,null,1384]
[7330,"Friday",10,null,null,null,null,null,null,null,null,null,null,null,null,null,null,932]
[7331,"Friday",11,null,null,null,null,null,null,null,null,null,null,null,null,null,null,1356]
[7334,"Friday",14,null,null,null,null,null,null,null,null,null,null,null,null,null,null,693]
[{"$f":"A7339+1","v":7338},"Friday",18,null,null,null,null,null,null,null,null,null,null,null,null,null,null,471]
[7341,"Friday",21,null,null,null,null,null,null,null,null,null,null,null,null,null,null,411]
[7345,"Saturday",1,null,null,null,null,null,null,null,null,null,null,null,null,null,null,419]
[7348,"Saturday",4,null,null,null,null,null,null,null,null,null,null,null,null,null,null,415]
[7351,"Saturday",7,null,null,null,null,null,null,null,null,null,null,null,null,null,null,549]
[7353,"Saturday",9,null,null,null,null,null,null,null,null,null,null,null,null,null,null,872]
[7356,"Saturday",12,null,null,null,null,null,null,null,null,null,null,null,null,null,null,2358]
[7359,"Saturday",15,null,null,null,null,null,null,null,null,null,null,null,null,null,null,3628]
[7363,"Saturday",19,null,null,null,null,null,null,null,null,null,null,null,null,null,null,1082]
[7366,"Saturday",22,null,null,null,null,null,null,null,null,null,null,null,null,null,null,1170]
[7370,"Sunday",2,null,null,null,null,null,null,null,null,null,null,null,null,null,null,819]
[7373,"Sunday",5,null,null,null,null,null,null,null,null,null,null,null,null,null,null,1058]
[7376,"Sunday",8,null,null,null,null,null,null,null,null,null,null,null,null,null,null,528]
[7378,"Sunday",10,null,null,null,null,null,null,null,null,null,null,null,null,null,null,626]
[7381,"Sunday",13,null,null,null,null,null,null,null,null,null,null,null,null,null,null,718]
[7384,"Sunday",16,null,null,null,null,null,null,null,null,null,null,null,null,null,null,414]
[7388,"Sunday",20,null,null,null,null,null,null,null,null,null,null,null,null,null,null,405]
[7391,"Sunday",23,null,null,null,null,null,null,null,null,null,null,null,null,null,null,398]
[7395,"Monday",3,null,null,null,null,null,null,null,null,null,null,null,null,null,null,901]
[7398,"Monday",6,null,null,null,null,null,null,null,null,null,null,null,null,null,null,1390]
[7401,{"$f":"B7235","v":"Monday"},9,null,null,null,null,null,null,null,null,null,null,null,null,null,null,593]
[7403,"Monday",11,null,null,null,null,null,null,null,null,null,null,null,null,null,null,501]
[7406,"Monday",14,null,null,null,null,null,null,null,null,null,null,null,null,null,null,630]
[7410,"Monday",18,null,null,null,null,null,null,null,null,null,null,null,null,null,null,1049]
[7413,"Monday",21,null,null,null,null,null,null,null,null,null,null,null,null,null,null,1064]
[7416,"Tuesday",0,null,null,null,null,null,null,null,null,null,null,null,null,null,null,699]
[7420,"Tuesday",4,null,null,null,null,null,null,null,null,null,null,null,null,null,null,541]
[7422,"Tuesday",6,null,null,null,null,null,null,null,null,null,null,null,null,null,null,652]
[7427,"Tuesday",11,null,null,null,null,null,null,null,null,null,null,null,null,null,null,400]
[7428,"Tuesday",12,null,null,null,null,null,null,null,null,null,null,null,null,null,null,400]
[7431,"Tuesday",15,null,null,null,null,null,null,null,null,null,null,null,null,null,null,395]
[7435,"Tuesday",19,null,null,null,null,null,null,null,null,null,null,null,null,null,null,403]
[7438,"Tuesday",22,null,null,null,null,null,null,null,null,null,null,null,null,null,null,549]
[7441,"Wednesday",1,null,null,null,null,null,null,null,null,null,null,null,null,null,null,691]
[7445,"Wednesday",5,null,null,null,null,null,null,null,null,null,null,null,null,null,null,1341]
[7447,"Wednesday",7,null,null,null,null,null,null,null,null,null,null,null,null,null,null,1005]
[7450,"Wednesday",10,null,null,null,null,null,null,null,null,null,null,null,null,null,null,623]
[7453,"Wednesday",13,null,null,null,null,null,null,null,null,null,null,null,null,null,null,561]
[7456,"Wednesday",16,null,null,null,null,null,null,null,null,null,null,null,null,null,null,478]
[7460,"Wednesday",20,null,null,null,null,null,null,null,null,null,null,null,null,null,null,527]
[7463,"Wednesday",23,null,null,null,null,null,null,null,null,null,null,null,null,null,null,496]
[{"$f":"A7467+1","v":7466},"Thursday",2,null,null,null,null,null,null,null,null,null,null,null,null,null,null,417]
[7470,"Thursday",6,null,null,null,null,null,null,null,null,null,null,null,null,null,null,393]
[7472,"Thursday",8,null,null,null,null,null,null,null,null,null,null,null,null,null,null,391]
[7475,"Thursday",11,null,null,null,null,null,null,null,null,null,null,null,null,null,null,393]
[7478,"Thursday",14,null,null,null,null,null,null,null,null,null,null,null,null,null,null,394]
[7481,"Thursday",17,null,null,null,null,null,null,null,null,null,null,null,null,null,null,610]
[7485,"Thursday",21,null,null,null,null,null,null,null,null,null,null,null,null,null,null,1017]
[7488,"Friday",0,null,null,null,null,null,null,null,null,null,null,null,null,null,null,1401]
[7491,"Friday",3,null,null,null,null,null,null,null,null,null,null,null,null,null,null,484]
[7493,"Friday",5,null,null,null,null,null,null,null,null,null,null,null,null,null,null,475]
[7499,"Friday",11,null,null,null,null,null,null,null,null,null,null,null,null,null,null,656]
[7500,"Friday",12,null,null,null,null,null,null,null,null,null,null,null,null,null,null,648]
[7503,"Friday",15,null,null,null,null,null,null,null,null,null,null,null,null,null,null,508]
[7506,"Friday",18,null,null,null,null,null,null,null,null,null,null,null,null,null,null,406]
[7510,"Friday",22,null,null,null,null,null,null,null,null,null,null,null,null,null,null,391]
[7513,"Saturday",{"$f":"C7491","v":1},null,null,null,null,null,null,null,null,null,null,null,null,null,null,390]
[7517,"Saturday",5,null,null,null,null,null,null,null,null,null,null,null,null,null,null,390]
[7518,"Saturday",6,null,null,null,null,null,null,null,null,null,null,null,null,null,null,388]
[7524,"Saturday",12,null,null,null,null,null,null,null,null,null,null,null,null,null,null,754]
[7525,"Saturday",13,null,null,null,null,null,null,null,null,null,null,null,null,null,null,795]
[7528,"Saturday",16,null,null,null,null,null,null,null,null,null,null,null,null,null,null,732]
[7531,"Saturday",19,null,null,null,null,null,null,null,null,null,null,null,null,null,null,1071]
[7535,"Saturday",23,null,null,null,null,null,null,null,null,null,null,null,null,null,null,621]
[7538,"Sunday",2,null,null,null,null,null,null,null,null,null,null,null,null,null,null,718]
[7543,"Sunday",7,null,null,null,null,null,null,null,null,null,null,null,null,null,null,619]
[7546,"Sunday",10,null,null,null,null,null,null,null,null,null,null,null,null,null,null,648]
[7549,"Sunday",13,null,null,null,null,null,null,null,null,null,null,null,null,null,null,561]
[7550,"Sunday",14,null,null,null,null,null,null,null,null,null,null,null,null,null,null,468]
[7553,"Sunday",17,null,null,null,null,null,null,null,null,null,null,null,null,null,null,391]
[7556,"Sunday",20,null,null,null,null,null,null,null,null,null,null,null,null,null,null,393]
[7560,"Monday",0,null,null,null,null,null,null,null,null,null,null,null,null,null,null,389]
[7563,"Monday",3,null,null,null,null,null,null,null,null,null,null,null,null,null,null,389]
[7568,"Monday",8,null,null,null,null,null,null,null,null,null,null,null,null,null,null,777]
[7571,"Monday",11,null,null,null,null,null,null,null,null,null,null,null,null,null,null,493]
[7574,"Monday",14,null,null,null,null,null,null,null,null,null,null,null,null,null,null,428]
[7575,"Monday",15,null,null,null,null,null,null,null,null,null,null,null,null,null,null,460]
[7578,"Monday",18,null,null,null,null,null,null,null,null,null,null,null,null,null,null,482]
[7582,"Monday",22,null,null,null,null,null,null,null,null,null,null,null,null,null,null,547]
[7585,"Tuesday",1,null,null,null,null,null,null,null,null,null,null,null,null,null,null,452]
[7588,"Tuesday",4,null,null,null,null,null,null,null,null,null,null,null,null,null,null,672]
[7593,{"$f":"B7427","v":"Tuesday"},9,null,null,null,null,null,null,null,null,null,null,null,null,null,null,396]
[7596,"Tuesday",12,null,null,null,null,null,null,null,null,null,null,null,null,null,null,394]
[7599,"Tuesday",15,null,null,null,null,null,null,null,null,null,null,null,null,null,null,400]
[7600,"Tuesday",16,null,null,null,null,null,null,null,null,null,null,null,null,null,null,391]
[7603,"Tuesday",19,null,null,null,null,null,null,null,null,null,null,null,null,null,null,525]
[7607,"Tuesday",23,null,null,null,null,null,null,null,null,null,null,null,null,null,null,685]
[7610,"Wednesday",2,null,null,null,null,null,null,null,null,null,null,null,null,null,null,902]
[7614,"Wednesday",6,null,null,null,null,null,null,null,null,null,null,null,null,null,null,518]
[7618,"Wednesday",10,null,null,null,null,null,null,null,null,null,null,null,null,null,null,541]
[7621,"Wednesday",13,null,null,null,null,null,null,null,null,null,null,null,null,null,null,1176]
[7622,"Wednesday",14,null,null,null,null,null,null,null,null,null,null,null,null,null,null,1231]
[7625,"Wednesday",17,null,null,null,null,null,null,null,null,null,null,null,null,null,null,589]
[7628,"Wednesday",20,null,null,null,null,null,null,null,null,null,null,null,null,null,null,393]
[7632,"Thursday",0,null,null,null,null,null,null,null,null,null,null,null,null,null,null,392]
[7635,"Thursday",3,null,null,null,null,null,null,null,null,null,null,null,null,null,null,392]
[7639,"Thursday",7,null,null,null,null,null,null,null,null,null,null,null,null,null,null,712]
[7643,"Thursday",11,null,null,null,null,null,null,null,null,null,null,null,null,null,null,940]
[7646,"Thursday",14,null,null,null,null,null,null,null,null,null,null,null,null,null,null,639]
[7647,"Thursday",15,null,null,null,null,null,null,null,null,null,null,null,null,null,null,738]
[7650,"Thursday",18,null,null,null,null,null,null,null,null,null,null,null,null,null,null,440]
[7653,"Thursday",21,null,null,null,null,null,null,null,null,null,null,null,null,null,null,486]
[7657,{"$f":"B7491","v":"Friday"},1,null,null,null,null,null,null,null,null,null,null,null,null,null,null,552]
[7660,"Friday",4,null,null,null,null,null,null,null,null,null,null,null,null,null,null,669]
[7664,"Friday",8,null,null,null,null,null,null,null,null,null,null,null,null,null,null,399]
[7668,"Friday",12,null,null,null,null,null,null,null,null,null,null,null,null,null,null,394]
[7671,"Friday",15,null,null,null,null,null,null,null,null,null,null,null,null,null,null,401]
[7672,"Friday",16,null,null,null,null,null,null,null,null,null,null,null,null,null,null,402]
[7675,"Friday",19,null,null,null,null,null,null,null,null,null,null,null,null,null,null,398]
[7678,"Friday",22,null,null,null,null,null,null,null,null,null,null,null,null,null,null,782]
[7682,"Saturday",2,null,null,null,null,null,null,null,null,null,null,null,null,null,null,1057]
[7685,"Saturday",5,null,null,null,null,null,null,null,null,null,null,null,null,null,null,792]
[7690,"Saturday",10,null,null,null,null,null,null,null,null,null,null,null,null,null,null,522]
[7693,"Saturday",13,null,null,null,null,null,null,null,null,null,null,null,null,null,null,643]
[7696,"Saturday",16,null,null,null,null,null,null,null,null,null,null,null,null,null,null,422]
[7697,"Saturday",17,null,null,null,null,null,null,null,null,null,null,null,null,null,null,422]
[7700,"Saturday",20,null,null,null,null,null,null,null,null,null,null,null,null,null,null,395]
[7703,"Saturday",23,null,null,null,null,null,null,null,null,null,null,null,null,null,null,392]
[7707,"Sunday",3,null,null,null,null,null,null,null,null,null,null,null,null,null,null,397]
[7710,"Sunday",6,null,null,null,null,null,null,null,null,null,null,null,null,null,null,440]
[7715,"Sunday",11,null,null,null,null,null,null,null,null,null,null,null,null,null,null,978]
[7718,"Sunday",14,null,null,null,null,null,null,null,null,null,null,null,null,null,null,864]
[7721,{"$f":"B7555","v":"Sunday"},17,null,null,null,null,null,null,null,null,null,null,null,null,null,null,662]
[{"$f":"A7723+1","v":7722},"Sunday",18,null,null,null,null,null,null,null,null,null,null,null,null,null,null,725]
[7725,"Sunday",21,null,null,null,null,null,null,null,null,null,null,null,null,null,null,495]
[7728,"Monday",0,null,null,null,null,null,null,null,null,null,null,null,null,null,null,677]
[7732,"Monday",4,null,null,null,null,null,null,null,null,null,null,null,null,null,null,406]
[7735,"Monday",7,null,null,null,null,null,null,null,null,null,null,null,null,null,null,396]
[7740,"Monday",12,null,null,null,null,null,null,null,null,null,null,null,null,null,null,396]
[7743,"Monday",15,null,null,null,null,null,null,null,null,null,null,null,null,null,null,393]
[7746,"Monday",18,null,null,null,null,null,null,null,null,null,null,null,null,null,null,910]
[7747,"Monday",19,null,null,null,null,null,null,null,null,null,null,null,null,null,null,858]
[7750,"Monday",22,null,null,null,null,null,null,null,null,null,null,null,null,null,null,917]
[7754,"Tuesday",2,null,null,null,null,null,null,null,null,null,null,null,null,null,null,452]
[7756,"Tuesday",4,null,null,null,null,null,null,null,null,null,null,null,null,null,null,441]
[7761,"Tuesday",9,null,null,null,null,null,null,null,null,null,null,null,null,null,null,432]
[7765,"Tuesday",13,null,null,null,null,null,null,null,null,null,null,null,null,null,null,473]
[7768,"Tuesday",16,null,null,null,null,null,null,null,null,null,null,null,null,null,null,395]
[7771,"Tuesday",19,null,null,null,null,null,null,null,null,null,null,null,null,null,null,393]
[7772,"Tuesday",20,null,null,null,null,null,null,null,null,null,null,null,null,null,null,393]
[7775,"Tuesday",23,null,null,null,null,null,null,null,null,null,null,null,null,null,null,406]
[7779,"Wednesday",3,null,null,null,null,null,null,null,null,null,null,null,null,null,null,641]
[7781,"Wednesday",5,null,null,null,null,null,null,null,null,null,null,null,null,null,null,546]
[{"$f":"A7787+1","v":7786},"Wednesday",10,null,null,null,null,null,null,null,null,null,null,null,null,null,null,685]
[7790,"Wednesday",14,null,null,null,null,null,null,null,null,null,null,null,null,null,null,536]
[7793,"Wednesday",17,null,null,null,null,null,null,null,null,null,null,null,null,null,null,485]
[7794,"Wednesday",18,null,null,null,null,null,null,null,null,null,null,null,null,null,null,499]
[7797,"Wednesday",21,null,null,null,null,null,null,null,null,null,null,null,null,null,null,452]
[7800,"Thursday",0,null,null,null,null,null,null,null,null,null,null,null,null,null,null,392]
[7806,"Thursday",6,null,null,null,null,null,null,null,null,null,null,null,null,null,null,391]
[7808,"Thursday",8,null,null,null,null,null,null,null,null,null,null,null,null,null,null,393]
[7811,"Thursday",11,null,null,null,null,null,null,null,null,null,null,null,null,null,null,461]
[7815,"Thursday",15,null,null,null,null,null,null,null,null,null,null,null,null,null,null,1210]
[7818,"Thursday",18,null,null,null,null,null,null,null,null,null,null,null,null,null,null,1038]
[7819,"Thursday",19,null,null,null,null,null,null,null,null,null,null,null,null,null,null,671]
[7822,"Thursday",22,null,null,null,null,null,null,null,null,null,null,null,null,null,null,605]
[7825,"Friday",1,null,null,null,null,null,null,null,null,null,null,null,null,null,null,480]
[7831,"Friday",7,null,null,null,null,null,null,null,null,null,null,null,null,null,null,404]
[7833,"Friday",{"$f":"C7811","v":9},null,null,null,null,null,null,null,null,null,null,null,null,null,null,393]
[7836,"Friday",12,null,null,null,null,null,null,null,null,null,null,null,null,null,null,394]
[7840,"Friday",16,null,null,null,null,null,null,null,null,null,null,null,null,null,null,390]
[7843,"Friday",19,null,null,null,null,null,null,null,null,null,null,null,null,null,null,394]
[7844,"Friday",20,null,null,null,null,null,null,null,null,null,null,null,null,null,null,398]
[7847,"Friday",23,null,null,null,null,null,null,null,null,null,null,null,null,null,null,852]
[{"$f":"A7851+1","v":7850},"Saturday",2,null,null,null,null,null,null,null,null,null,null,null,null,null,null,1310]
[7856,"Saturday",8,null,null,null,null,null,null,null,null,null,null,null,null,null,null,417]
[7858,"Saturday",10,null,null,null,null,null,null,null,null,null,null,null,null,null,null,435]
[7862,"Saturday",14,null,null,null,null,null,null,null,null,null,null,null,null,null,null,593]
[7865,"Saturday",17,null,null,null,null,null,null,null,null,null,null,null,null,null,null,572]
[7868,"Saturday",20,null,null,null,null,null,null,null,null,null,null,null,null,null,null,405]
[7869,"Saturday",21,null,null,null,null,null,null,null,null,null,null,null,null,null,null,392]
[7872,"Sunday",0,null,null,null,null,null,null,null,null,null,null,null,null,null,null,391]
[7877,"Sunday",5,null,null,null,null,null,null,null,null,null,null,null,null,null,null,395]
[7880,"Sunday",8,null,null,null,null,null,null,null,null,null,null,null,null,null,null,390]
[7883,"Sunday",11,null,null,null,null,null,null,null,null,null,null,null,null,null,null,1075]
[7887,"Sunday",15,null,null,null,null,null,null,null,null,null,null,null,null,null,null,1169]
[7890,"Sunday",18,null,null,null,null,null,null,null,null,null,null,null,null,null,null,524]
[7893,"Sunday",21,null,null,null,null,null,null,null,null,null,null,null,null,null,null,430]
[7894,"Sunday",22,null,null,null,null,null,null,null,null,null,null,null,null,null,null,426]
[7897,"Monday",{"$f":"C7875","v":1},null,null,null,null,null,null,null,null,null,null,null,null,null,null,419]
[7902,"Monday",6,null,null,null,null,null,null,null,null,null,null,null,null,null,null,457]
[7905,"Monday",9,null,null,null,null,null,null,null,null,null,null,null,null,null,null,395]
[7908,"Monday",12,null,null,null,null,null,null,null,null,null,null,null,null,null,null,392]
[7912,"Monday",16,null,null,null,null,null,null,null,null,null,null,null,null,null,null,393]
[7915,"Monday",19,null,null,null,null,null,null,null,null,null,null,null,null,null,null,393]
[7918,"Monday",22,null,null,null,null,null,null,null,null,null,null,null,null,null,null,423]
[7919,"Monday",23,null,null,null,null,null,null,null,null,null,null,null,null,null,null,533]
[7922,"Tuesday",2,null,null,null,null,null,null,null,null,null,null,null,null,null,null,913]
[7927,"Tuesday",7,null,null,null,null,null,null,null,null,null,null,null,null,null,null,444]
[7930,"Tuesday",10,null,null,null,null,null,null,null,null,null,null,null,null,null,null,423]
[7933,"Tuesday",13,null,null,null,null,null,null,null,null,null,null,null,null,null,null,471]
[7937,"Tuesday",17,null,null,null,null,null,null,null,null,null,null,null,null,null,null,480]
[7940,"Tuesday",20,null,null,null,null,null,null,null,null,null,null,null,null,null,null,410]
[7943,"Tuesday",23,null,null,null,null,null,null,null,null,null,null,null,null,null,null,392]
[7944,"Wednesday",0,null,null,null,null,null,null,null,null,null,null,null,null,null,null,392]
[7948,"Wednesday",4,null,null,null,null,null,null,null,null,null,null,null,null,null,null,396]
[7952,"Wednesday",8,null,null,null,null,null,null,null,null,null,null,null,null,null,null,390]
[7955,"Wednesday",11,null,null,null,null,null,null,null,null,null,null,null,null,null,null,397]
[7958,"Wednesday",14,null,null,null,null,null,null,null,null,null,null,null,null,null,null,763]
[7962,"Wednesday",18,null,null,null,null,null,null,null,null,null,null,null,null,null,null,2496]
[7965,"Wednesday",21,null,null,null,null,null,null,null,null,null,null,null,null,null,null,505]
[7966,"Wednesday",22,null,null,null,null,null,null,null,null,null,null,null,null,null,null,446]
[7969,"Thursday",1,null,null,null,null,null,null,null,null,null,null,null,null,null,null,427]
[7973,"Thursday",5,null,null,null,null,null,null,null,null,null,null,null,null,null,null,441]
[7977,{"$f":"B7811","v":"Thursday"},9,null,null,null,null,null,null,null,null,null,null,null,null,null,null,430]
[7980,"Thursday",12,null,null,null,null,null,null,null,null,null,null,null,null,null,null,394]
[7983,"Thursday",15,null,null,null,null,null,null,null,null,null,null,null,null,null,null,395]
[7987,"Thursday",19,null,null,null,null,null,null,null,null,null,null,null,null,null,null,397]
[7990,"Thursday",22,null,null,null,null,null,null,null,null,null,null,null,null,null,null,392]
[7991,"Thursday",23,null,null,null,null,null,null,null,null,null,null,null,null,null,null,392]
[7994,"Friday",2,null,null,null,null,null,null,null,null,null,null,null,null,null,null,667]
[7998,"Friday",6,null,null,null,null,null,null,null,null,null,null,null,null,null,null,2204]
[8002,"Friday",10,null,null,null,null,null,null,null,null,null,null,null,null,null,null,797]
[8005,"Friday",13,null,null,null,null,null,null,null,null,null,null,null,null,null,null,475]
[8008,"Friday",16,null,null,null,null,null,null,null,null,null,null,null,null,null,null,431]
[8012,"Friday",20,null,null,null,null,null,null,null,null,null,null,null,null,null,null,444]
[8015,"Friday",23,null,null,null,null,null,null,null,null,null,null,null,null,null,null,424]
[8016,"Saturday",0,null,null,null,null,null,null,null,null,null,null,null,null,null,null,479]
[8019,"Saturday",3,null,null,null,null,null,null,null,null,null,null,null,null,null,null,386]
[8023,"Saturday",7,null,null,null,null,null,null,null,null,null,null,null,null,null,null,382]
[8027,"Saturday",11,null,null,null,null,null,null,null,null,null,null,null,null,null,null,384]
[8030,"Saturday",14,null,null,null,null,null,null,null,null,null,null,null,null,null,null,392]
[8034,"Saturday",18,null,null,null,null,null,null,null,null,null,null,null,null,null,null,389]
[8037,"Saturday",21,null,null,null,null,null,null,null,null,null,null,null,null,null,null,391]
[8040,"Sunday",0,null,null,null,null,null,null,null,null,null,null,null,null,null,null,388]
[8041,{"$f":"B7875","v":"Sunday"},1,null,null,null,null,null,null,null,null,null,null,null,null,null,null,391]
[8044,"Sunday",4,null,null,null,null,null,null,null,null,null,null,null,null,null,null,390]
[8048,"Sunday",8,null,null,null,null,null,null,null,null,null,null,null,null,null,null,1090]
[8052,"Sunday",12,null,null,null,null,null,null,null,null,null,null,null,null,null,null,1750]
[8055,"Sunday",15,null,null,null,null,null,null,null,null,null,null,null,null,null,null,1026]
[8059,"Sunday",19,null,null,null,null,null,null,null,null,null,null,null,null,null,null,777]
[8062,"Sunday",22,null,null,null,null,null,null,null,null,null,null,null,null,null,null,628]
[8065,"Monday",1,null,null,null,null,null,null,null,null,null,null,null,null,null,null,544]
[8069,"Monday",5,null,null,null,null,null,null,null,null,null,null,null,null,null,null,978]
[8070,"Monday",6,null,null,null,null,null,null,null,null,null,null,null,null,null,null,1087]
[8074,"Monday",10,null,null,null,null,null,null,null,null,null,null,null,null,null,null,829]
[8077,"Monday",13,null,null,null,null,null,null,null,null,null,null,null,null,null,null,503]
[8080,"Monday",16,null,null,null,null,null,null,null,null,null,null,null,null,null,null,468]
[8084,"Monday",20,null,null,null,null,null,null,null,null,null,null,null,null,null,null,462]
[8087,"Monday",23,null,null,null,null,null,null,null,null,null,null,null,null,null,null,452]
[8090,"Tuesday",2,null,null,null,null,null,null,null,null,null,null,null,null,null,null,450]
[8094,"Tuesday",6,null,null,null,null,null,null,null,null,null,null,null,null,null,null,444]
[8095,"Tuesday",7,null,null,null,null,null,null,null,null,null,null,null,null,null,null,441]
[8099,"Tuesday",11,null,null,null,null,null,null,null,null,null,null,null,null,null,null,437]
[8102,"Tuesday",14,null,null,null,null,null,null,null,null,null,null,null,null,null,null,438]
[8105,{"$f":"B7939","v":"Tuesday"},17,null,null,null,null,null,null,null,null,null,null,null,null,null,null,431]
[8109,"Tuesday",21,null,null,null,null,null,null,null,null,null,null,null,null,null,null,477]
[8112,"Wednesday",0,null,null,null,null,null,null,null,null,null,null,null,null,null,null,415]
[8115,"Wednesday",3,null,null,null,null,null,null,null,null,null,null,null,null,null,null,417]
[8119,"Wednesday",7,null,null,null,null,null,null,null,null,null,null,null,null,null,null,415]
[8120,"Wednesday",8,null,null,null,null,null,null,null,null,null,null,null,null,null,null,413]
[8124,"Wednesday",12,null,null,null,null,null,null,null,null,null,null,null,null,null,null,416]
[8127,"Wednesday",15,null,null,null,null,null,null,null,null,null,null,null,null,null,null,414]
[8130,"Wednesday",18,null,null,null,null,null,null,null,null,null,null,null,null,null,null,407]
[8134,"Wednesday",22,null,null,null,null,null,null,null,null,null,null,null,null,null,null,402]
[8137,"Thursday",1,null,null,null,null,null,null,null,null,null,null,null,null,null,null,395]
[8140,"Thursday",4,null,null,null,null,null,null,null,null,null,null,null,null,null,null,396]
[8142,"Thursday",6,null,null,null,null,null,null,null,null,null,null,null,null,null,null,391]
[8145,"Thursday",9,null,null,null,null,null,null,null,null,null,null,null,null,null,null,387]
[8149,"Thursday",13,null,null,null,null,null,null,null,null,null,null,null,null,null,null,387]
[8152,"Thursday",16,null,null,null,null,null,null,null,null,null,null,null,null,null,null,387]
[8155,"Thursday",19,null,null,null,null,null,null,null,null,null,null,null,null,null,null,387]
[8159,"Thursday",23,null,null,null,null,null,null,null,null,null,null,null,null,null,null,383]
[8162,"Friday",2,null,null,null,null,null,null,null,null,null,null,null,null,null,null,400]
[8165,"Friday",5,null,null,null,null,null,null,null,null,null,null,null,null,null,null,394]
[8167,"Friday",7,null,null,null,null,null,null,null,null,null,null,null,null,null,null,394]
[{"$f":"A8171+1","v":8170},"Friday",10,null,null,null,null,null,null,null,null,null,null,null,null,null,null,387]
[8174,"Friday",14,null,null,null,null,null,null,null,null,null,null,null,null,null,null,389]
[8177,"Friday",17,null,null,null,null,null,null,null,null,null,null,null,null,null,null,381]
[8181,"Friday",21,null,null,null,null,null,null,null,null,null,null,null,null,null,null,386]
[8184,"Saturday",0,null,null,null,null,null,null,null,null,null,null,null,null,null,null,387]
[8187,"Saturday",3,null,null,null,null,null,null,null,null,null,null,null,null,null,null,384]
[8190,"Saturday",6,null,null,null,null,null,null,null,null,null,null,null,null,null,null,385]
[8192,"Saturday",8,null,null,null,null,null,null,null,null,null,null,null,null,null,null,385]
[8195,"Saturday",11,null,null,null,null,null,null,null,null,null,null,null,null,null,null,383]
[8199,"Saturday",15,null,null,null,null,null,null,null,null,null,null,null,null,null,null,384]
[8202,"Saturday",18,null,null,null,null,null,null,null,null,null,null,null,null,null,null,388]
[8206,"Saturday",22,null,null,null,null,null,null,null,null,null,null,null,null,null,null,385]
[8209,"Sunday",1,null,null,null,null,null,null,null,null,null,null,null,null,null,null,384]
[8211,"Sunday",3,null,null,null,null,null,null,null,null,null,null,null,null,null,null,382]
[8214,"Sunday",6,null,null,null,null,null,null,null,null,null,null,null,null,null,null,385]
[8217,"Sunday",{"$f":"C8195","v":9},null,null,null,null,null,null,null,null,null,null,null,null,null,null,385]
[8220,"Sunday",12,null,null,null,null,null,null,null,null,null,null,null,null,null,null,382]
[8224,"Sunday",16,null,null,null,null,null,null,null,null,null,null,null,null,null,null,388]
[8227,"Sunday",19,null,null,null,null,null,null,null,null,null,null,null,null,null,null,384]
[8231,"Sunday",23,null,null,null,null,null,null,null,null,null,null,null,null,null,null,385]
[{"$f":"A8235+1","v":8234},"Monday",2,null,null,null,null,null,null,null,null,null,null,null,null,null,null,383]
[8236,"Monday",4,null,null,null,null,null,null,null,null,null,null,null,null,null,null,387]
[8239,"Monday",7,null,null,null,null,null,null,null,null,null,null,null,null,null,null,386]
[8242,"Monday",10,null,null,null,null,null,null,null,null,null,null,null,null,null,null,383]
[8246,"Monday",14,null,null,null,null,null,null,null,null,null,null,null,null,null,null,387]
[8249,"Monday",17,null,null,null,null,null,null,null,null,null,null,null,null,null,null,386]
[8252,"Monday",20,null,null,null,null,null,null,null,null,null,null,null,null,null,null,388]
[8256,"Tuesday",0,null,null,null,null,null,null,null,null,null,null,null,null,null,null,392]
[8257,"Tuesday",1,null,null,null,null,null,null,null,null,null,null,null,null,null,null,392]
[8261,"Tuesday",5]
[8262,"Tuesday",6]
[8263,"Tuesday",7]
[8264,"Tuesday",8]
[8265,"Tuesday",9]
[8266,"Tuesday",10]
[8267,"Tuesday",11]
[8268,"Tuesday",12]
[8269,"Tuesday",13]
[8270,"Tuesday",14]
[8271,"Tuesday",15]
[8272,"Tuesday",16]
[8273,"Tuesday",17]
[8274,"Tuesday",18]
[8275,"Tuesday",19]
[8276,"Tuesday",20]
[8277,"Tuesday",21]
[8278,"Tuesday",22]
[8279,"Tuesday",23]
[8280,"Wednesday",0]
[8281,"Wednesday",{"$f":"C8259","v":1}]
[8282,"Wednesday",2]
[8283,"Wednesday",3]
[8284,"Wednesday",4]
[8285,"Wednesday",5]
[8286,"Wednesday",6]
[8287,"Wednesday",7]
[8288,"Wednesday",8]
[8289,"Wednesday",9]
[8290,"Wednesday",10]
[8291,"Wednesday",11]
[8292,"Wednesday",12]
[8293,"Wednesday",13]
[8294,"Wednesday",14]
[8295,"Wednesday",15]
[8296,"Wednesday",16]
[8297,{"$f":"B8131","v":"Wednesday"},17]
[{"$f":"A8299+1","v":8298},"Wednesday",18]
[8299,"Wednesday",19]
[8300,"Wednesday",20]
[8301,"Wednesday",21]
[8302,"Wednesday",22]
[8303,"Wednesday",23]
[8304,"Thursday",0]
[8305,"Thursday",1]
[8306,"Thursday",2]
[8307,"Thursday",3]
[8308,"Thursday",4]
[8309,"Thursday",5]
[8310,"Thursday",6]
[8311,"Thursday",7]
[8312,"Thursday",8]
[8313,"Thursday",9]
[8314,"Thursday",10]
[8315,"Thursday",11]
[8316,"Thursday",12]
[8317,"Thursday",13]
[8318,"Thursday",14]
[8319,"Thursday",15]
[8320,"Thursday",16]
[8321,"Thursday",17]
[8322,"Thursday",18]
[8323,"Thursday",19]
[8324,"Thursday",20]
[8325,"Thursday",21]
[8326,"Thursday",22]
[8327,"Thursday",23]
[8328,"Friday",0]
[8329,"Friday",1]
[8330,"Friday",2]
[8331,"Friday",3]
[8332,"Friday",4]
[8333,"Friday",5]
[8334,"Friday",6]
[8335,"Friday",7]
[8336,"Friday",8]
[8337,"Friday",9]
[8338,"Friday",10]
[8339,"Friday",11]
[8340,"Friday",12]
[8341,"Friday",13]
[8342,"Friday",14]
[8343,"Friday",15]
[8344,"Friday",16]
[8345,"Friday",{"$f":"C8323","v":17}]
[8346,"Friday",18]
[8347,"Friday",19]
[8348,"Friday",20]
[8349,"Friday",21]
[8350,"Friday",22]
[8351,"Friday",23]
[8352,"Saturday",0]
[8353,"Saturday",1]
[8354,"Saturday",2]
[8355,"Saturday",3]
[8356,"Saturday",4]
[8357,"Saturday",5]
[8358,"Saturday",6]
[8359,"Saturday",7]
[8360,"Saturday",8]
[8361,{"$f":"B8195","v":"Saturday"},9]
[{"$f":"A8363+1","v":8362},"Saturday",10]
[8363,"Saturday",11]
[8364,"Saturday",12]
[8365,"Saturday",13]
[8366,"Saturday",14]
[8367,"Saturday",15]
[8368,"Saturday",16]
[8369,"Saturday",17]
[8370,"Saturday",18]
[8371,"Saturday",19]
[8372,"Saturday",20]
[8373,"Saturday",21]
[8374,"Saturday",22]
[8375,"Saturday",23]
[8376,"Sunday",0]
[8377,"Sunday",1]
[8378,"Sunday",2]
[8379,"Sunday",3]
[8380,"Sunday",4]
[8381,"Sunday",5]
[8382,"Sunday",6]
[8383,"Sunday",7]
[8384,"Sunday",8]
[8385,"Sunday",9]
[8386,"Sunday",10]
[8387,"Sunday",11]
[8388,"Sunday",12]
[8389,"Sunday",13]
[8390,"Sunday",14]
[8391,"Sunday",15]
[8392,"Sunday",16]
[8393,"Sunday",17]
[8394,"Sunday",18]
[8395,"Sunday",19]
[8396,"Sunday",20]
[8397,"Sunday",21]
[8398,"Sunday",22]
[8399,"Sunday",23]
[8400,"Monday",0]
[8401,"Monday",1]
[8402,"Monday",2]
[8403,"Monday",3]
[8404,"Monday",4]
[8405,"Monday",5]
[8406,"Monday",6]
[8407,"Monday",7]
[8408,"Monday",8]
[8409,"Monday",{"$f":"C8387","v":9}]
[8410,"Monday",10]
[8411,"Monday",11]
[8412,"Monday",12]
[8413,"Monday",13]
[8414,"Monday",14]
[8415,"Monday",15]
[8416,"Monday",16]
[8417,"Monday",17]
[8418,"Monday",18]
[8419,"Monday",19]
[8420,"Monday",20]
[8421,"Monday",21]
[8422,"Monday",22]
[8423,"Monday",23]
[8424,"Tuesday",0]
[8425,{"$f":"B8259","v":"Tuesday"},1]
[{"$f":"A8427+1","v":8426},"Tuesday",2]
[8427,"Tuesday",3]
[8428,"Tuesday",4]
[8429,"Tuesday",5]
[8430,"Tuesday",6]
[8431,"Tuesday",7]
[8432,"Tuesday",8]
[8433,"Tuesday",9]
[8434,"Tuesday",10]
[8435,"Tuesday",11]
[8436,"Tuesday",12]
[8437,"Tuesday",13]
[8438,"Tuesday",14]
[8439,"Tuesday",15]
[8440,"Tuesday",16]
[8441,"Tuesday",17]
[8442,"Tuesday",18]
[8443,"Tuesday",19]
[8444,"Tuesday",20]
[8445,"Tuesday",21]
[8446,"Tuesday",22]
[8447,"Tuesday",23]
[8448,"Wednesday",0]
[8449,"Wednesday",1]
[8450,"Wednesday",2]
[8451,"Wednesday",3]
[8452,"Wednesday",4]
[8453,"Wednesday",5]
[8454,"Wednesday",6]
[8455,"Wednesday",7]
[8456,"Wednesday",8]
[8457,"Wednesday",9]
[8458,"Wednesday",10]
[8459,"Wednesday",11]
[8460,"Wednesday",12]
[8461,"Wednesday",13]
[8462,"Wednesday",14]
[8463,"Wednesday",15]
[8464,"Wednesday",16]
[8465,"Wednesday",17]
[8466,"Wednesday",18]
[8467,"Wednesday",19]
[8468,"Wednesday",20]
[8469,"Wednesday",21]
[8470,"Wednesday",22]
[8471,"Wednesday",23]
[8472,"Thursday",0]
[8473,"Thursday",{"$f":"C8451","v":1}]
[8474,"Thursday",2]
[8475,"Thursday",3]
[8476,"Thursday",4]
[8477,"Thursday",5]
[8478,"Thursday",6]
[8479,"Thursday",7]
[8480,"Thursday",8]
[8481,"Thursday",9]
[8482,"Thursday",10]
[8483,"Thursday",11]
[8484,"Thursday",12]
[8485,"Thursday",13]
[8486,"Thursday",14]
[8487,"Thursday",15]
[8488,"Thursday",16]
[8489,{"$f":"B8323","v":"Thursday"},17]
[{"$f":"A8491+1","v":8490},"Thursday",18]
[8491,"Thursday",19]
[8492,"Thursday",20]
[8493,"Thursday",21]
[8494,"Thursday",22]
[8495,"Thursday",23]
[8496,"Friday",0]
[8497,"Friday",1]
[8498,"Friday",2]
[8499,"Friday",3]
[8500,"Friday",4]
[8501,"Friday",5]
[8502,"Friday",6]
[8503,"Friday",7]
[8504,"Friday",8]
[8505,"Friday",9]
[8506,"Friday",10]
[8507,"Friday",11]
[8508,"Friday",12]
[8509,"Friday",13]
[8510,"Friday",14]
[8511,"Friday",15]
[8512,"Friday",16]
[8513,"Friday",17]
[8514,"Friday",18]
[8515,"Friday",19]
[8516,"Friday",20]
[8517,"Friday",21]
[8518,"Friday",22]
[8519,"Friday",23]
[8520,"Saturday",0]
[8521,"Saturday",1]
[8522,"Saturday",2]
[8523,"Saturday",3]
[8524,"Saturday",4]
[8525,"Saturday",5]
[8526,"Saturday",6]
[8527,"Saturday",7]
[8528,"Saturday",8]
[8529,"Saturday",9]
[8530,"Saturday",10]
[8531,"Saturday",11]
[8532,"Saturday",12]
[8533,"Saturday",13]
[8534,"Saturday",14]
[8535,"Saturday",15]
[8536,"Saturday",16]
[8537,"Saturday",{"$f":"C8515","v":17}]
[8538,"Saturday",18]
[8539,"Saturday",19]
[8540,"Saturday",20]
[8541,"Saturday",21]
[8542,"Saturday",22]
[8543,"Saturday",23]
[8544,"Sunday",0]
[8545,"Sunday",1]
[8546,"Sunday",2]
[8547,"Sunday",3]
[8548,"Sunday",4]
[8549,"Sunday",5]
[8550,"Sunday",6]
[8551,"Sunday",7]
[8552,"Sunday",8]
[8553,{"$f":"B8387","v":"Sunday"},9]
[{"$f":"A8555+1","v":8554},"Sunday",10]
[8555,"Sunday",11]
[8556,"Sunday",12]
[8557,"Sunday",13]
[8558,"Sunday",14]
[8559,"Sunday",15]
[8560,"Sunday",16]
[8561,"Sunday",17]
[8562,"Sunday",18]
[8563,"Sunday",19]
[8564,"Sunday",20]
[8565,"Sunday",21]
[8566,"Sunday",22]
[8567,"Sunday",23]
[8568,"Monday",0]
[8569,"Monday",1]
[8570,"Monday",2]
[8571,"Monday",3]
[8572,"Monday",4]
[8573,"Monday",5]
[8574,"Monday",6]
[8575,"Monday",7]
[8576,"Monday",8]
[8577,"Monday",9]
[8578,"Monday",10]
[8579,"Monday",11]
[8580,"Monday",12]
[8581,"Monday",13]
[8582,"Monday",14]
[8583,"Monday",15]
[8584,"Monday",16]
[8585,"Monday",17]
[8586,"Monday",18]
[8587,"Monday",19]
[8588,"Monday",20]
[8589,"Monday",21]
[8590,"Monday",22]
[8591,"Monday",23]
[8592,"Tuesday",0]
[8593,"Tuesday",1]
[8594,"Tuesday",2]
[8595,"Tuesday",3]
[8596,"Tuesday",4]
[8597,"Tuesday",5]
[8598,"Tuesday",6]
[8599,"Tuesday",7]
[8600,"Tuesday",8]
[8601,"Tuesday",{"$f":"C8579","v":9}]
[8602,"Tuesday",10]
[8603,"Tuesday",11]
[8604,"Tuesday",12]
[8605,"Tuesday",13]
[8606,"Tuesday",14]
[8607,"Tuesday",15]
[8608,"Tuesday",16]
[8609,"Tuesday",17]
[8610,"Tuesday",18]
[8611,"Tuesday",19]
[8612,"Tuesday",20]
[8613,"Tuesday",21]
[8614,"Tuesday",22]
[8615,"Tuesday",23]
[8616,"Wednesday",0]
[8617,{"$f":"B8451","v":"Wednesday"},1]
[{"$f":"A8619+1","v":8618},"Wednesday",2]
[8619,"Wednesday",3]
[8620,"Wednesday",4]
[8621,"Wednesday",5]
[8622,"Wednesday",6]
[8623,"Wednesday",7]
[8624,"Wednesday",8]
[8625,"Wednesday",9]
[8626,"Wednesday",10]
[8627,"Wednesday",11]
[8628,"Wednesday",12]
[8629,"Wednesday",13]
[8630,"Wednesday",14]
[8631,"Wednesday",15]
[8632,"Wednesday",16]
[8633,"Wednesday",17]
[8634,"Wednesday",18]
[8635,"Wednesday",19]
[8636,"Wednesday",20]
[8637,"Wednesday",21]
[8638,"Wednesday",22]
[8639,"Wednesday",23]
[8640,"Thursday",0]
[8641,"Thursday",1]
[8642,"Thursday",2]
[8643,"Thursday",3]
[8644,"Thursday",4]
[8645,"Thursday",5]
[8646,"Thursday",6]
[8647,"Thursday",7]
[8648,"Thursday",8]
[8649,"Thursday",9]
[8650,"Thursday",10]
[8651,"Thursday",11]
[8652,"Thursday",12]
[8653,"Thursday",13]
[8654,"Thursday",14]
[8655,"Thursday",15]
[8656,"Thursday",16]
[8657,"Thursday",17]
[8658,"Thursday",18]
[8659,"Thursday",19]
[8660,"Thursday",20]
[8661,"Thursday",21]
[8662,"Thursday",22]
[8663,"Thursday",23]
[8664,"Friday",0]
[8665,"Friday",{"$f":"C8643","v":1}]
[8666,"Friday",2]
[8667,"Friday",3]
[8668,"Friday",4]
[8669,"Friday",5]
[8670,"Friday",6]
[8671,"Friday",7]
[8672,"Friday",8]
[{"$f":"A8674+1","v":8673},"Friday",9]
[8674,"Friday",10]
[8675,"Friday",11]
[8676,"Friday",12]
[8677,"Friday",13]
[8678,"Friday",14]
[8679,"Friday",15]
[8680,"Friday",16]
[8681,{"$f":"B8515","v":"Friday"},17]
[8682,"Friday",18]
[8683,"Friday",19]
[8684,"Friday",20]
[8685,"Friday",21]
[8686,"Friday",22]
[8687,"Friday",23]
[8688,"Saturday",0]
[8689,"Saturday",1]
[8690,"Saturday",2]
[8691,"Saturday",3]
[8692,"Saturday",4]
[8693,"Saturday",5]
[8694,"Saturday",6]
[8695,"Saturday",7]
[8696,"Saturday",8]
[8697,"Saturday",9]
[8698,"Saturday",10]
[8699,"Saturday",11]
[8700,"Saturday",12]
[8701,"Saturday",13]
[8702,"Saturday",14]
[8703,"Saturday",15]
[8704,"Saturday",16]
[8705,"Saturday",17]
[8706,"Saturday",18]
[8707,"Saturday",19]
[8708,"Saturday",20]
[8709,"Saturday",21]
[8710,"Saturday",22]
[8711,"Saturday",23]
[8712,"Sunday",0]
[8713,"Sunday",1]
[8714,"Sunday",2]
[8715,"Sunday",3]
[8716,"Sunday",4]
[8717,"Sunday",5]
[8718,"Sunday",6]
[8719,"Sunday",7]
[8720,"Sunday",8]
[8721,"Sunday",9]
[8722,"Sunday",10]
[8723,"Sunday",11]
[8724,"Sunday",12]
[8725,"Sunday",13]
[8726,"Sunday",14]
[8727,"Sunday",15]
[8728,"Sunday",16]
[8729,"Sunday",{"$f":"C8707","v":17}]
[8730,"Sunday",18]
[8731,"Sunday",19]
[8732,"Sunday",20]
[8733,"Sunday",21]
[8734,"Sunday",22]
[8735,"Sunday",23]
[8736,"Monday",0]
[{"$f":"A8738+1","v":8737},"Monday",1]
[8738,"Monday",2]
[8739,"Monday",3]
[8740,"Monday",4]
[8741,"Monday",5]
[8742,"Monday",6]
[8743,"Monday",7]
[8744,"Monday",8]
[8745,{"$f":"B8579","v":"Monday"},9]
[8746,"Monday",10]
[8747,"Monday",11]
[8748,"Monday",12]
[8749,"Monday",13]
[8750,"Monday",14]
[8751,"Monday",15]
[8752,"Monday",16]
[8753,"Monday",17]
[8754,"Monday",18]
[8755,"Monday",19]
[8756,"Monday",20]
[8757,"Monday",21]
[8758,"Monday",22]
[8759,"Monday",23]
[8760,"Tuesday",0]

{"sheet":"Parameters","index":3,"n_rows":41,"n_cols":13,"rows_kept":41,"cut":false,"hidden":false,"merged":[[0,1,0,4],[20,1,20,4]]}
["ELV method parameters","Long-term Exposure",null,null,null,null,null,null,"DALY method parameters"]
[null,"ELV","Unit","Averaging period","Source"]
["Acetaldehyde",48,"µg/m³","1 year","Japan",null,null,null,"Age (years)","% of population","Cancer ADAF","% of day spent at home","Air intake (m³/day)"]
["Acrolein",0.35,"µg/m³","1 year","USA-California",null,null,null,"<= 2",3,10,75,7]
["a-Pinene",200,"µg/m³","1 year","Germany",null,null,null,"2-16",19,3,75,13]
["Benzene",0.2,"µg/m³","whole life (carcinogenic risk level: 10-6)","France",null,null,null,">=16",78,1,69,15]
["Carbon dioxide","-","ppm","-","-"]
["Formaldehyde",9,"µg/m³","1 year","USA-California"]
["Naphthalene",2,"µg/m³","1 year","Germany"]
["Nitrogen dioxide",20,"µg/m³","1 year","France"]
["PM10",20,"µg/m³","1 year","WHO"]
["PM2.5",10,"µg/m³","1 year","WHO"]
["Radon",200,"Bq/m³","1 year","Austria, Canada"]
["Styrene",30,"µg/m³","1 year","Germany"]
["Toluene",250,"µg/m³","1 year","Portugal"]
["Trichloroethylene",2,"µg/m³","whole life (carcinogenic risk level: 10-6)","France"]
["TVOC","-","µg/m³","-"]
["Mold",200,"CFU/m³","1 year","EU"]
[]
[]
["ELV method parameters","Short-term Exposure"]
[null,"ELV","Unit","Averaging period","Source"]
["Acetaldehyde","-","µg/m³","-","-"]
["Acrolein",6.9,"µg/m³","1 h","France"]
["a-Pinene","-","µg/m³","-","-"]
["Benzene","-","µg/m³","-","-"]
["Carbon dioxide",1000,"ppm","8 h","Hong-Kong, Korea"]
["Formaldehyde",123,"µg/m³","1 h","Canada"]
["Naphthalene","-","µg/m³","-","-"]
["Nitrogen dioxide",470,"µg/m³","1 h","USA-California"]
["PM10",50,"µg/m³","24 h","WHO"]
["PM2.5",25,"µg/m³","24 h","WHO"]
["Radon",400,"Bq/m³","8 h","Austria, China, Portugal"]
["Styrene","-","µg/m³","-","-"]
["Toluene","-","µg/m³","-","-"]
["Trichloroethylene","-","µg/m³","-","-"]
["TVOC",400,"µg/m³","8 h","Japan, Korea"]
["Mold","-","CFU/m³","-","-"]
[]
[]
["Editable Cells"]

{"sheet":"Outputs","index":4,"n_rows":38,"n_cols":3,"rows_kept":38,"cut":false,"hidden":false,"merged":[[0,1,0,2],[20,1,20,2]]}
[null,"Long-term Exposure"]
[null,"ELV Indices","DALY"]
["Acetaldehyde",0,0]
["Acrolein",0,0]
["a-Pinene",0,"-"]
["Benzene",0,0]
["Carbon dioxide","-","-"]
["Formaldehyde",0,0]
["Naphthalene",0,0]
["Nitrogen dioxide",0,0]
["PM10",75,"-"]
["PM2.5",4.8953846153846152,2260.4638873894819]
["Radon",0,"-"]
["Styrene",0,0]
["Toluene",0,0]
["Trichloroethylene",0,0]
["TVOC","-","-"]
["Mold",0,"-"]
[]
[]
[null,"Short-term Exposure"]
[null,"%"]
["Acetaldehyde","-"]
["Acrolein",0]
["a-Pinene","-"]
["Benzene","-"]
["Carbon dioxide",0.33333333333333331]
["Formaldehyde",0]
["Naphthalene","-"]
["Nitrogen dioxide",0]
["PM10",1]
["PM2.5",1]
["Radon",0]
["Styrene","-"]
["Toluene","-"]
["Trichloroethylene","-"]
["TVOC",0]
["Mold","-"]

{"sheet":"Résultats","index":5,"n_rows":43,"n_cols":13,"rows_kept":43,"cut":false,"hidden":true,"merged":[]}
["Substance","CAS","Cmean","DALY","Note",null,null,null,null,"COPY Logue","Substance","CAS","Cmean"]
["1,1 Dichloroethene","75-35-4",null,{"$f":"'DALY-Calc'!AG12","v":0},"Carcinogenic and non carcinogenic",null,null,null,null,null,"1,1 Dichloroethene","75-35-4",1.2]
["1,1,2,2 Tetrachloroethane","79-34-5",null,{"$f":"'DALY-Calc'!AG35","v":0},"Carcinogenic only",null,null,null,null,null,"1,1,2,2 Tetrachloroethane","79-34-5",0.42]
["1,1,2-Trichloroethane","79-00-5",null,{"$f":"'DALY-Calc'!AG37","v":0},"Carcinogenic and non carcinogenic",null,null,null,null,null,"1,1,2-Trichloroethane","79-00-5",0.46]
["1,2 Dichloroethane","107-06-2",null,{"$f":"'DALY-Calc'!AG28","v":0},"Carcinogenic only",null,null,null,null,null,"1,2 Dichloroethane","107-06-2",0.34]
["1,2-Dibromoethane","106-93-4",null,{"$f":"'DALY-Calc'!AG23","v":0},"Carcinogenic only",null,null,null,null,null,"1,2-Dibromoethane","106-93-4",0.14000000000000001]
["1,4-Dichlorobenzene","106-46-7",null,{"$f":"'DALY-Calc'!AG11","v":0},"Carcinogenic and non carcinogenic",null,null,null,null,null,"1,4-Dichlorobenzene","106-46-7",50]
["2-Butoxyethanol","111-76-2",null,{"$f":"'DALY-Calc'!AG27","v":0},"Not carcinogenic",null,null,null,null,null,"2-Butoxyethanol","111-76-2",2.6]
["2-Ethoxyethanol",null,null,{"$f":"'DALY-Calc'!AG38","v":0},"Not carcinogenic",null,null,null,null,null,"2-Ethoxyethanol",null,0.43]
["2-Methoxyethanol","109-86-4",null,{"$f":"'DALY-Calc'!AG36","v":0},"Not carcinogenic",null,null,null,null,null,"2-Methoxyethanol","109-86-4",0.12]
["Acetaldehyde","75-07-0",0,{"$f":"'DALY-Calc'!AG6","v":0},"Carcinogenic and non carcinogenic",null,null,null,null,null,"Acetaldehyde","75-07-0",22]
["Acrolein","107-02-8",0,{"$f":"'DALY-Calc'!AG3","v":0},"Not carcinogenic",null,null,null,null,null,"Acrolein","107-02-8",2.2999999999999998]
["Acrylonitrile","107-13-1",null,{"$f":"'DALY-Calc'!AG13","v":0},"Carcinogenic and non carcinogenic",null,null,null,null,null,"Acrylonitrile","107-13-1",0.27]
["Ammonia","7664-41-7",null,{"$f":"'DALY-Calc'!AG7","v":0},"Not carcinogenic",null,null,null,null,null,"Ammonia","7664-41-7",28]
["Benzene","71-43-2",0,{"$f":"'DALY-Calc'!AG32","v":0},"Carcinogenic and non carcinogenic",null,null,null,null,null,"Benzene","71-43-2",2.5]
["Benzyl chloride","100-44-7",null,{"$f":"'DALY-Calc'!AG34","v":0},"Carcinogenic only",null,null,null,null,null,"Benzyl chloride","100-44-7",0.5]
["Cadmium","7440-43-9",null,{"$f":"'DALY-Calc'!AG19","v":0},"Carcinogenic and non carcinogenic",null,null,null,null,null,"Cadmium","7440-43-9",2.5999999999999999E-3]
["Carbon tetrachloride","56-23-5",null,{"$f":"'DALY-Calc'!AG18","v":0},"Carcinogenic and non carcinogenic",null,null,null,null,null,"Carbon tetrachloride","56-23-5",0.68]
["Chromium",null,null,{"$f":"'DALY-Calc'!AG10","v":0},"Carcinogenic and non carcinogenic",null,null,null,null,null,"Chromium",null,2.2000000000000001E-3]
["CO",null,null,{"$f":"'DALY-Calc'!R47","v":0},null,null,null,null,null,null,"CO",null,810]
["Crotonaldehyde","123-73-9",null,{"$f":"'DALY-Calc'!AG8","v":0},"Carcinogenic only",null,null,null,null,null,"Crotonaldehyde","123-73-9",4.7]
["D-limonene","5989-27-5",null,{"$f":"'DALY-Calc'!AG21","v":0},"Carcinogenic only",null,null,null,null,null,"D-limonene","5989-27-5",23]
["Ethanol","64-17-5",null,{"$f":"'DALY-Calc'!AG25","v":0},"Carcinogenic only",null,null,null,null,null,"Ethanol","64-17-5",860]
["Ethylbenzene","100-41-4",null,{"$f":"'DALY-Calc'!AG15","v":0},"Carcinogenic and non carcinogenic",null,null,null,null,null,"Ethylbenzene","100-41-4",3.9]
["Formaldehyde","50-00-0",0,{"$f":"'DALY-Calc'!AG4","v":0},"Carcinogenic and non carcinogenic",null,null,null,null,null,"Formaldehyde","50-00-0",69]
["Hexachlorobutadiene","87-68-3",null,{"$f":"'DALY-Calc'!AG33","v":0},"Carcinogenic only",null,null,null,null,null,"Hexachlorobutadiene","87-68-3",1.7]
["Hexane","110-54-3",null,{"$f":"'DALY-Calc'!AG22","v":0},"Not carcinogenic",null,null,null,null,null,"Hexane","110-54-3",7.3]
["Manganese","7439-96-5",null,{"$f":"'DALY-Calc'!AG17","v":0},"Not carcinogenic",null,null,null,null,null,"Manganese","7439-96-5",3.3E-3]
["Methyl methacrylate","80-62-6",null,{"$f":"'DALY-Calc'!AG31","v":0},"Not carcinogenic",null,null,null,null,null,"Methyl methacrylate","80-62-6",0.27]
["Methyl tert- butyl ether","1634-04-4",null,{"$f":"'DALY-Calc'!AG29","v":0},"Carcinogenic and non carcinogenic",null,null,null,null,null,"Methyl tert- butyl ether","1634-04-4",12]
["Methylene chloride","75-09-2",null,{"$f":"'DALY-Calc'!AG39","v":0},"Carcinogenic and non carcinogenic",null,null,null,null,null,"Methylene chloride","75-09-2",8.1999999999999993]
["Naphtalene","91-58-7",0,{"$f":"'DALY-Calc'!AG16","v":0},"Not carcinogenic",null,null,null,null,null,"Naphtalene","91-58-7",1.2]
["NO2",null,0,{"$f":"'DALY-Calc'!R52","v":0},null,null,null,null,null,null,"NO2",null,13.1]
["Ozone","10028-15-6",null,{"$f":"'DALY-Calc'!AG5","v":0},"Carcinogenic only",null,null,null,null,null,"Ozone","10028-15-6",17.2]
["Ozone",null,null,{"$f":"'DALY-Calc'!R57","v":0},null,null,null,null,null,null,"Ozone",null,17.2]
["PM2,5",null,48.95384615384615,{"$f":"'DALY-Calc'!R44","v":2260.4638873894819},null,null,null,null,null,null,"PM2,5",null,15.9]
["SO2",null,null,{"$f":"'DALY-Calc'!R63","v":0},null,null,null,null,null,null,"SO2",null,2.9]
["Styrene","100-42-5",0,{"$f":"'DALY-Calc'!AG14","v":0},"Carcinogenic and non carcinogenic",null,null,null,null,null,"Styrene","100-42-5",5.9]
["Tetrachloroethylene","127-18-4",null,{"$f":"'DALY-Calc'!AG26","v":0},"Carcinogenic and non carcinogenic",null,null,null,null,null,"Tetrachloroethylene","127-18-4",1.7]
["Toluene","108-88-3",0,{"$f":"'DALY-Calc'!AG20","v":0},"Carcinogenic and non carcinogenic",null,null,null,null,null,"Toluene","108-88-3",2.2999999999999998]
["Trichloroethylene","79-01-6",0,{"$f":"'DALY-Calc'!AG24","v":0},"Carcinogenic only",null,null,null,null,null,"Trichloroethylene","79-01-6",0.46]
["Vinyl chloride","75-01-4",null,{"$f":"'DALY-Calc'!AG30","v":0},"Carcinogenic and non carcinogenic",null,null,null,null,null,"Vinyl chloride","75-01-4",1.7]
["Xylenes","1330-20-7",null,{"$f":"'DALY-Calc'!AG9","v":0},"Carcinogenic and non carcinogenic",null,null,null,null,null,"Xylenes","1330-20-7",7.4]

{"sheet":"DALY-Calc","index":6,"n_rows":63,"n_cols":34,"rows_kept":63,"cut":false,"hidden":true,"merged":[[43,20,62,20],[43,21,62,21],[43,22,62,22],[46,1,50,1],[56,1,61,1],[56,17,61,17],[56,18,61,18],[56,19,61,19],[46,17,50,17],[46,18,50,18],[46,19,50,19],[51,1,55,1],[51,17,55,17],[51,18,55,18],[51,19,55,19],[43,0,62,0],[43,1,45,1],[43,17,45,17],[43,18,45,18],[43,19,45,19],[6,19,6,22],[2,19,2,22],[0,25,0,28],[0,29,0,32],[41,3,41,5],[41,7,41,9],[41,10,42,10],[41,11,41,13],[41,14,41,16],[41,17,41,19],[0,3,0,8],[0,9,0,13],[0,14,0,18],[0,19,0,21],[4,19,4,22],[41,20,41,22]]}
["substance","CAS","page","carcinogenic",null,null,null,null,null,"noncarcinogenic, oral",null,null,null,null,"noncarcinogenic, inhalation",null,null,null,null,"age",null,null,null,null,"Cmoy","polluant inhalé par an (kg.an)",null,null,null,"DALY perdus (par an par 100 000 personnes)",null,null,null,"cancerigène"]
[null,null,null,"IARC class","dD/dR(y)","dD/dTU (-)","dTU/dl (kg-1)","dD/dl (y.kg-1)","kdD/dl","dD/dR(y)","dR/dTU (-)","dTU/dl (kg-1)","dD/dl (y.kg-1)","kdD/dl","dD/dR (y)","dE/dTU (-)","dTU/dl (kg-1)","dD/dl (y.kg-1)","kdD/dl","<2","2_16",">16","tot",null,null,"<2","2_16",">16","tot","<2","2_16",">16","tot"]
["acroléine","107-02-8",195,null,null,null,null,null,null,2.7,{"$f":"1.6*10^-1","v":0.16000000000000003},{"$f":"5.1*10","v":51},{"$f":"2.2*10","v":22},126,2.7,{"$f":"1.6*10^-1","v":0.16000000000000003},{"$f":"1.2*10^2","v":120},51.84,277,"cancer adaf",null,null,null,{"$f":"A3","v":"acroléine"},{"$f":"Résultats!$C$12","v":0},{"$f":"Y3*10^-9*$T$8*365*$T$6/100","v":0},{"$f":"Y3*$U$6*$U$8*10^-11*365","v":0},{"$f":"Y3*10^-9*$V$6*$V$8*365/100","v":0},{"$f":"Y3*10^-9*365*$W$6*$W$8/100","v":0},{"$f":"Z3*($H3*T$4+$R3)*100000","v":0},{"$f":"AA3*($H3*U$4+$R3)*100000","v":0},{"$f":"AB3*($H3*V$4+$R3)*100000","v":0},{"$f":"(AD3*$T$10+AE3*$U$10+AF3*$V$10)/100","v":0},{"$f":"IF(H3=0,\"non cancérigène\",IF(M3+R3=0,\"seulement cancérigène\",\"cancérigène et non cancérigène\"))","v":"non cancérigène"}]
["Formaldéhyde","50-00-0",216,"2A",28.3,{"$f":"1.6*10^-2","v":1.6E-2},{"$f":"1.7*10","v":17},0.76900000000000002,26,2.7,{"$f":"1.6*10^-1","v":0.16000000000000003},1.7000000000000001E-2,7.3000000000000001E-3,126,null,null,null,null,null,10,3,1,{"$f":"(T4*T10+U4*U10+V4*V10)/100","v":1.65},{"$f":"A4","v":"Formaldéhyde"},{"$f":"Résultats!$C$25","v":0},{"$f":"Y4*10^-9*$T$8*365*$T$6/100","v":0},{"$f":"Y4*$U$6*$U$8*10^-11*365","v":0},{"$f":"Y4*10^-9*$V$6*$V$8*365/100","v":0},{"$f":"Y4*10^-9*365*$W$6*$W$8/100","v":0},{"$f":"Z4*($H4*T$4+$R4)*100000","v":0},{"$f":"AA4*($H4*U$4+$R4)*100000","v":0},{"$f":"AB4*($H4*V$4+$R4)*100000","v":0},{"$f":"(AD4*$T$10+AE4*$U$10+AF4*$V$10)/100","v":0},{"$f":"IF(H4=0,\"non cancérigène\",IF(M4+R4=0,\"seulement cancérigène\",\"cancérigène et non cancérigène\"))","v":"cancérigène et non cancérigène"}]
["Ozone","10028-15-6",193,null,16.5,{"$f":"2.6*10^-2","v":2.6000000000000002E-2},{"$f":"2.2*10","v":22},{"$f":"9.2*10^-1","v":0.91999999999999993},24,null,null,null,null,null,null,null,null,null,null,"%day at home",null,null,null,"Ozone",{"$f":"Résultats!$C$34","v":0},0,0,0,0,0,0,0,0,"seulement cancérigène"]
["Acetaldéhyde","75-07-0",231,"2B",16.5,{"$f":"2.6*10^-2","v":2.6000000000000002E-2},{"$f":"1.5*10^-2","v":1.4999999999999999E-2},{"$f":"6.4*10^-3","v":6.4000000000000003E-3},24,null,null,null,null,null,2.7,{"$f":"1.6*10^-1","v":0.16000000000000003},{"$f":"7.5*10^-2","v":7.4999999999999997E-2},{"$f":"3.2*10^-2","v":3.2000000000000001E-2},215,{"$f":"Parameters!L4","v":75},{"$f":"Parameters!L5","v":75},{"$f":"Parameters!L6","v":69},{"$f":"(T6*T10+U6*U10+V6*V10)/100","v":70.319999999999993},"Acetaldéhyde",{"$f":"Résultats!$C$11","v":0},0,0,0,0,0,0,0,0,"cancérigène et non cancérigène"]
["Ammonia","7664-41-7",233,null,null,null,null,null,null,null,null,null,null,null,2.7,{"$f":"1.6*10^-1","v":0.16000000000000003},{"$f":"1.4*10^-1","v":0.13999999999999999},{"$f":"6.1*10^-2","v":6.0999999999999999E-2},44,"air intake",null,null,null,"Ammonia",{"$f":"Résultats!$C$14","v":0},0,0,0,0,0,0,0,0,"non cancérigène"]
["Crotonaldéhyde","123-73-9",199,null,22.5,{"$f":"1.4*10^-2","v":1.3999999999999999E-2},{"$f":"5.4*10^-1","v":0.54},{"$f":"1.7*10^-1","v":0.17},23,null,null,null,null,null,null,null,null,null,null,{"$f":"Parameters!M4","v":7},{"$f":"Parameters!M5","v":13},{"$f":"Parameters!M6","v":15},{"$f":"(T8*T10+U8*U10+V8*V10)/100","v":14.38},"Crotonaldéhyde",{"$f":"Résultats!$C$21","v":0},0,0,0,0,0,0,0,0,"seulement cancérigène"]
["Xylenes","1330-20-7",200,3,6.2,{"$f":"4.7*10^-2","v":4.7E-2},{"$f":"7.4*10^-4","v":7.400000000000001E-4},{"$f":"2.1*10^-4","v":2.1000000000000001E-4},23,2.7,{"$f":"1.6*10^-1","v":0.16000000000000003},{"$f":"1.4*10^-3","v":1.4E-3},{"$f":"6.1*10^-4","v":6.0999999999999997E-4},126,2.7,{"$f":"1.6*10^-1","v":0.16000000000000003},{"$f":"1.7*10^-2","v":1.7000000000000001E-2},{"$f":"7.2*10^-3","v":7.2000000000000007E-3},215,"%population",null,null,null,"Xylenes",{"$f":"Résultats!$C$43","v":0},0,0,0,0,0,0,0,0,"cancérigène et non cancérigène"]
["chromium",null,null,null,16.5,2.5999999999999999E-2,44,19,57,5.4,0.32,0.10017,4.4075000000000003E-2,126,2.7,0.16,57,24,215,{"$f":"Parameters!J4","v":3},{"$f":"Parameters!J5","v":19},{"$f":"Parameters!J6","v":78},{"$f":"SUM(T10:V10)","v":100},"chromium",{"$f":"Résultats!$C$19","v":0},0,0,0,0,0,0,0,0,"cancérigène et non cancérigène"]
["1,4-Dichlorobenzene","106-46-7",195,"2B",11.5,0.03,3.5999999999999999E-3,1.1999999999999999E-3,26,null,null,null,null,null,2.7,0.16,4.4000000000000003E-3,1.9E-3,126,null,null,null,null,"1,4-Dichlorobenzene",{"$f":"Résultats!$C$7","v":0},0,0,0,0,0,0,0,0,"cancérigène et non cancérigène"]
["1,1 Dichloroethene","75-35-4",231,3,16.5,{"$f":"2.6*10^-2","v":2.6000000000000002E-2},{"$f":"1.2*10^-1","v":0.12},{"$f":"5*10^-2","v":0.05},24,2.7,0.16,7.9000000000000001E-2,3.4000000000000002E-2,66,2.7,0.16,1.7999999999999999E-2,8.0000000000000002E-3,126,null,null,null,null,"1,1 Dichloroethene",{"$f":"Résultats!$C$2","v":0},0,0,0,0,0,0,0,0,"cancérigène et non cancérigène"]
["acrylonitrile","107-13-1",195,"2B",16.5,2.5999999999999999E-2,0.14000000000000001,5.8000000000000003E-2,24,null,null,null,null,null,2.7,0.16,0.69,0.3,145,null,null,null,null,"acrylonitrile",{"$f":"Résultats!$C$13","v":0},0,0,0,0,0,0,0,0,"cancérigène et non cancérigène"]
["styrene","100-42-5",193,"2B",7.6,4.4999999999999998E-2,9.8000000000000004E-2,3.3000000000000002E-2,22,2.7,0.16,9.1E-4,3.8999999999999999E-4,215,2.7,0.16,1.9E-2,8.3000000000000001E-3,96,null,null,null,null,"styrene",{"$f":"Résultats!$C$38","v":0},0,0,0,0,0,0,0,0,"cancérigène et non cancérigène"]
["ethylbenzene","100-41-4",193,"2B",16.5,2.5999999999999999E-2,5.2999999999999998E-4,2.2000000000000001E-4,24,2.7,0.16,5.1999999999999998E-3,2.3E-3,215,2.7,0.16,7.5000000000000002E-4,3.3E-4,126,null,null,null,null,"ethylbenzene",{"$f":"Résultats!$C$24","v":0},0,0,0,0,0,0,0,0,"cancérigène et non cancérigène"]
["naphtalene","91-58-7",239,null,null,null,null,null,null,2.7,0.16,3.5999999999999999E-3,1.6000000000000001E-3,215,null,null,null,null,null,null,null,null,null,"naphtalene",{"$f":"Résultats!$C$32","v":0},0,0,0,0,0,0,0,0,"non cancérigène"]
["manganese","7439-96-5",230,null,null,null,null,null,null,2.7,0.16,0.44,0.19,44,2.7,0.16,52,23,124,null,null,null,null,"manganese",{"$f":"Résultats!$C$28","v":0},0,0,0,0,0,0,0,0,"non cancérigène"]
["carbon tetrachloride","56-23-5",221,"2B",22.5,1.4E-2,10,3.15,23,2.7,0.16,0.72,0.31,215,null,null,null,null,null,null,null,null,null,"carbon tetrachloride",{"$f":"Résultats!$C$18","v":0},0,0,0,0,0,0,0,0,"cancérigène et non cancérigène"]
["Cadmium","7440-43-9",230,1,16.5,2.5999999999999999E-2,0.66,0.28000000000000003,57,2.7,0.16,0.12,5.3999999999999999E-2,44,null,null,null,null,null,null,null,null,null,"Cadmium",{"$f":"Résultats!$C$17","v":0},0,0,0,0,0,0,0,0,"cancérigène et non cancérigène"]
["Toluene","108-88-3",196,3,6.2,4.7E-2,7.5000000000000002E-4,2.2000000000000001E-4,23,2.7,0.16,2.3E-3,9.7999999999999997E-4,215,2.7,0.16,1.0999999999999999E-2,4.7000000000000002E-3,57,null,null,null,null,"Toluene",{"$f":"Résultats!$C$40","v":0},0,0,0,0,0,0,0,0,"cancérigène et non cancérigène"]
["d-limonine","5989-27-5",223,3,11.5,{"$f":"3*10^-2","v":0.03},1.0999999999999999E-2,3.7950000000000002E-3,26,null,null,null,null,null,null,null,null,null,null,null,null,null,null,"d-limonine",{"$f":"Résultats!$C$22","v":0},{"$f":"Y21*10^-9*$T$8*365*$T$6/100","v":0},{"$f":"Y21*$U$6*$U$8*10^-11*365","v":0},{"$f":"Y21*10^-9*$V$6*$V$8*365/100","v":0},{"$f":"Y21*10^-9*365*$W$6*$W$8/100","v":0},0,0,0,{"$f":"(AD21*$T$10+AE21*$U$10+AF21*$V$10)/100","v":0},"seulement cancérigène"]
["Hexane","110-54-3",196,null,null,null,null,null,null,null,null,null,null,null,2.7,0.16,1.7999999999999999E-2,7.7000000000000002E-3,57,null,null,null,null,"Hexane",{"$f":"Résultats!$C$27","v":0},0,0,0,0,0,0,0,0,"non cancérigène"]
["1,2-Dibromoethane","106-93-4",195,"2A",22.5,1.4E-2,15,0.48,23,null,null,null,null,null,null,null,null,null,null,null,null,null,null,"1,2-Dibromoethane",{"$f":"Résultats!$C$6","v":0},0,0,0,0,0,0,0,0,"seulement cancérigène"]
["Trichloroethylene","79-01-6",234,"2A",11.5,0.03,3.3999999999999998E-3,1.1999999999999999E-3,26,null,null,null,null,null,null,null,null,null,null,null,null,null,null,"Trichloroethylene",{"$f":"Résultats!$C$41","v":0},0,0,0,0,0,0,0,0,"seulement cancérigène"]
["Ethanol","64-17-5",226,1,22.5,{"$f":"1.4*10^-2","v":1.3999999999999999E-2},2.5000000000000001E-4,7.8999999999999996E-5,23,null,null,null,null,null,null,null,null,null,null,null,null,null,null,"Ethanol",{"$f":"Résultats!$C$23","v":0},0,0,0,0,0,0,0,0,"seulement cancérigène"]
["Tetrachloroethylene","127-18-4",199,"2A",28.3,1.6E-2,2.3E-2,0.01,26,2.7,0.16,6.5000000000000002E-2,2.8000000000000001E-2,215,null,null,null,null,null,null,null,null,null,"Tetrachloroethylene",{"$f":"Résultats!$C$39","v":0},0,0,0,0,0,0,0,0,"cancérigène et non cancérigène"]
["2-butoxyethanol","111-76-2",197,null,null,null,null,null,null,2.7,0.16,2.9000000000000001E-2,1.2E-2,128,2.7,0.16,1.4999999999999999E-2,6.7000000000000002E-3,128,null,null,null,null,"2-butoxyethanol",{"$f":"Résultats!$C$8","v":0},0,0,0,0,0,0,0,0,"non cancérigène"]
["1,2 Dichloroethane","107-06-2",195,"2B",13.6,3.5000000000000003E-2,0.28000000000000003,0.13,23,null,null,null,null,null,null,null,null,null,null,null,null,null,null,"1,2 Dichloroethane",{"$f":"Résultats!$C$5","v":0},0,0,0,0,0,0,0,0,"seulement cancérigène"]
["Methyl tert- butyl ether","1634-04-4",204,3,28.3,1.6E-2,3.3E-3,1.5E-3,26,null,null,null,null,null,2.7,0.16,1.2999999999999999E-3,5.5000000000000003E-4,126,null,null,null,null,"Methyl tert- butyl ether",{"$f":"Résultats!$C$30","v":0},0,0,0,0,0,0,0,0,"cancérigène et non cancérigène"]
["vinyl chloride","75-01-4",231,1,22.5,1.4E-2,0.12,3.7999999999999999E-2,23,2.7,0.16,16,6.91,66,2.7,0.16,0.13,5.7000000000000002E-2,126,null,null,null,null,"vinyl chloride",{"$f":"Résultats!$C$42","v":0},0,0,0,0,0,0,0,0,"cancérigène et non cancérigène"]
["Methyl methacrylate","80-62-6",235,null,null,null,null,null,null,2.7,0.16,1.9E-3,8.0999999999999996E-4,126,2.7,0.16,0.16,6.9000000000000006E-2,66,null,null,null,null,"Methyl methacrylate",{"$f":"Résultats!$C$29","v":0},0,0,0,0,0,0,0,0,"non cancérigène"]
["benzene","71-43-2",229,1,16.5,2.5999999999999999E-2,1.4E-2,5.7999999999999996E-3,24,null,null,null,null,null,2.7,0.16,7.3000000000000001E-3,3.0999999999999999E-3,49,null,null,null,null,"benzene",{"$f":"Résultats!$C$15","v":0},0,0,0,0,0,0,0,0,"cancérigène et non cancérigène"]
["Hexachlorobutadiene","87-68-3",237,3,11.5,0.03,3.5000000000000003E-2,1.2E-2,26,null,null,null,null,null,null,null,null,null,null,null,null,null,null,"Hexachlorobutadiene",{"$f":"Résultats!$C$26","v":0},0,0,0,0,0,0,0,0,"seulement cancérigène"]
["Benzyl chloride","100-44-7",193,"2A",13.6,3.5000000000000003E-2,6.6000000000000003E-2,3.1E-2,23,null,null,null,null,null,null,null,null,null,null,null,null,null,null,"Benzyl chloride",{"$f":"Résultats!$C$16","v":0},0,0,0,0,0,0,0,0,"seulement cancérigène"]
["1,1,2,2 Tetrachloroethane","79-34-5",235,3,22.5,1.4E-2,0.11,3.4000000000000002E-2,23,null,null,null,null,null,null,null,null,null,null,null,null,null,null,"1,1,2,2 Tetrachloroethane",{"$f":"Résultats!$C$3","v":0},0,0,0,0,0,0,0,0,"seulement cancérigène"]
["2-Methoxyethanol","109-86-4",196,null,null,null,null,null,null,null,null,null,null,null,2.7,0.16,3.7999999999999999E-2,1.7000000000000001E-2,215,null,null,null,null,"2-Methoxyethanol",{"$f":"Résultats!$C$10","v":0},0,0,0,0,0,0,0,0,"non cancérigène"]
["1,1,2-Trichloroethane","79-00-5",234,3,22.5,1.4E-2,7.3999999999999996E-2,2.3E-2,23,2.7,0.16,0.23,0.1,215,null,null,null,null,null,null,null,null,null,"1,1,2-Trichloroethane",{"$f":"Résultats!$C$4","v":0},0,0,0,0,0,0,0,0,"cancérigène et non cancérigène"]
["2-Ethoxyethanol",null,null,null,null,null,null,null,null,null,null,null,null,null,null,null,null,null,null,null,null,null,null,"2-Ethoxyethanol",{"$f":"Résultats!$C$9","v":0},0,0,0,0,0,0,0,0,"non cancérigène"]
["Methylene chloride","75-09-2",231,"2B",7.6,4.4999999999999998E-2,3.2000000000000002E-3,1.1000000000000001E-3,22,2.7,0.16,4.2999999999999997E-2,1.9E-2,126,null,null,null,null,null,null,null,null,null,"Methylene chloride",{"$f":"Résultats!$C$31","v":0},0,0,0,0,0,0,0,0,"cancérigène et non cancérigène"]
[]
[]
[null,null,null,"b-coefficient",null,null,"y0","DALYs lost per incidence",null,null,"Cmoy","disease incidence",null,null,"total DALY lost per incidence",null,null,"total DALY per pollutant",null,null,"total DALY lost (per year per 100000 person)"]
[null,null,null,"mediane","min","max",null,"médiane","min","max",null,"médiane","min","max","médiane","min","max","médiane","min","max","médiane ","min","max"]
["IND","PM2,5","total mortality",5.8000000000000003E-2,0.02,0.1,{"$f":"7.4*10^-3","v":7.4000000000000003E-3},1.4,0.14000000000000001,14,{"$f":"Résultats!C36","v":48.95384615384615},{"$f":"-($G44*(EXP(-D44*$W$6/100*$K44)-1))*100000","v":639.51201194591658},{"$f":"-($G44*(EXP(-E44*$W$6/100*$K44)-1))*100000","v":368.2716692148702},{"$f":"-($G44*(EXP(-F44*$W$6/100*$K44)-1))*100000","v":716.32982718153062},{"$f":"L44*H44","v":895.31681672428317},{"$f":"M44*I44","v":51.558033690081835},10028.617580541428,{"$f":"O44+O45+O46","v":2260.4638873894819},{"$f":"P44+P45+P46","v":200.40523282100423},12443.946400426923,{"$f":"R44+R47+R52+R57+R63","v":2260.4638873894819},{"$f":"S44+S47+S52+S57+S63","v":200.40523282100423},12443.946400426923]
[null,null,"chronic bronchitis",9.0999999999999998E-2,7.8E-2,0.105,{"$f":"0.4*10^-3","v":4.0000000000000002E-4},1.2,0.12,12,{"$f":"K44","v":48.95384615384615},{"$f":"-($G45*(EXP(-D45*$W$6/100*$K45)-1))*100000","v":38.255855645540329},{"$f":"-($G45*(EXP(-E45*$W$6/100*$K45)-1))*100000","v":37.271422055273888},{"$f":"-($G45*(EXP(-F45*$W$6/100*$K45)-1))*100000","v":38.922845039436808},{"$f":"L45*H45","v":45.907026774648394},4.4725706466328665,467.0741404732417]
[null,null,"nonfatal stroke",2.5000000000000001E-2,2E-3,4.8000000000000001E-2,{"$f":"2*10^-3","v":2E-3},11.43,10.85,12.05,{"$f":"K45","v":48.95384615384615},115.41907645586616,13.306417371823921,161.68088625827824,1319.2400438905502,144.37462848428953,1948.2546794122529]
[null,"CO","hospital admission",null,null,null,null,{"$f":"4*10^-4","v":4.0000000000000002E-4},{"$f":"4*10^-4","v":4.0000000000000002E-4},4.0000000000000002E-4,{"$f":"Résultats!C20","v":0},0,0,0,0,0,0,{"$f":"O47+O49+O48+O50+O51","v":0},{"$f":"P47+P49+P48+P50+P51","v":0},0]
[null,null,"Asthma",3.3000000000000002E-2,1.6E-2,0.05,{"$f":"1.8*10^-3","v":1.8000000000000002E-3},{"$f":"4*10^-4","v":4.0000000000000002E-4},4.0000000000000002E-4,4.0000000000000002E-4,{"$f":"K47","v":0},0,0,0,0,0,0]
[null,null,"Lung disease",2.5000000000000001E-2,9.9999999999999995E-8,5.7000000000000002E-2,{"$f":"2.1*10^-3","v":2.1000000000000003E-3},4.0000000000000002E-4,4.0000000000000002E-4,4.0000000000000002E-4,{"$f":"K48","v":0},0,0,0,0,0,0]
[null,null,"Dysrhythmias",5.8000000000000003E-2,1.2E-2,0.10199999999999999,{"$f":"2.4*10^-3","v":2.3999999999999998E-3},4.0000000000000002E-4,4.0000000000000002E-4,4.0000000000000002E-4,{"$f":"K49","v":0},0,0,0,0,0,0]
[null,null,"Heart failure",3.4000000000000002E-2,2E-3,6.6000000000000003E-2,{"$f":"3.4*10^-3","v":3.3999999999999998E-3},4.0000000000000002E-4,4.0000000000000002E-4,4.0000000000000002E-4,{"$f":"K50","v":0},0,0,0,0,0,0]
[null,"NO2","hospital admission",null,null,null,null,4.0000000000000002E-4,4.0000000000000002E-4,4.0000000000000002E-4,{"$f":"Résultats!C33","v":0},0,0,0,0,0,0,{"$f":"O52+O53+O54+O55+O56","v":0},{"$f":"P52+P53+P54+P55+P56","v":0},0]
[null,null,"Respiratory issues",4.0000000000000001E-3,9.9999999999999995E-8,8.0000000000000002E-3,{"$f":"9.5*10^-3","v":9.4999999999999998E-3},4.0000000000000002E-4,4.0000000000000002E-4,4.0000000000000002E-4,{"$f":"K52","v":0},0,0,0,0,0,0]
[null,null,"congestive heart failure",3.0000000000000001E-3,1E-3,4.0000000000000001E-3,{"$f":"3.4*10^-3","v":3.3999999999999998E-3},4.0000000000000002E-4,4.0000000000000002E-4,4.0000000000000002E-4,{"$f":"K52","v":0},0,0,0,0,0,0]
[null,null,"ischemic heart disease",3.0000000000000001E-3,2E-3,4.0000000000000001E-3,{"$f":"8*10^-1","v":0.8},4.0000000000000002E-4,4.0000000000000002E-4,4.0000000000000002E-4,{"$f":"K52","v":0},0,0,0,0,0,0]
[null,null,"respiratory illness",null,null,null,null,4.0000000000000002E-4,4.0000000000000002E-4,4.0000000000000002E-4,{"$f":"K52","v":0},0,0,0,0,0,0]
[null,"Ozone","Mortality",1E-3,1E-8,2E-3,{"$f":"7.7*10^-4","v":7.7000000000000007E-4},1,0.1,10,{"$f":"Résultats!C34","v":0},0,0,0,0,0,0,{"$f":"O57+O58+O59+O60+O61+O62","v":0},{"$f":"P57+P58+P59+P60+P61+P62","v":0},0]
[null,null,"hospital admission",null,null,null,null,4.0000000000000002E-4,4.0000000000000002E-4,4.0000000000000002E-4,{"$f":"K57","v":0},0,0,0,0,0,0]
[null,null,"Asthma",3.0000000000000001E-3,1E-3,4.0000000000000001E-3,{"$f":"1.8*10^-4","v":1.8000000000000001E-4},4.0000000000000002E-4,4.0000000000000002E-4,4.0000000000000002E-4,{"$f":"K57","v":0},0,0,0,0,0,0]
[null,null,"Lung disease",3.0000000000000001E-3,1E-3,5.0000000000000001E-3,{"$f":"2.1*10^-4","v":2.1000000000000001E-4},4.0000000000000002E-4,4.0000000000000002E-4,4.0000000000000002E-4,{"$f":"K57","v":0},0,0,0,0,0,0]
[null,null,"Respiratory infection",2E-3,1E-3,3.0000000000000001E-3,{"$f":"5.8*10^-4","v":5.8E-4},4.0000000000000002E-4,4.0000000000000002E-4,4.0000000000000002E-4,{"$f":"K57","v":0},0,0,0,0,0,0]
[null,null,"Dysrhythmias",2E-3,1E-8,4.0000000000000001E-3,{"$f":"2.4*10^-4","v":2.4000000000000001E-4},4.0000000000000002E-4,4.0000000000000002E-4,4.0000000000000002E-4,{"$f":"K57","v":0},0,0,0,0,0,0]
[null,"SO2","hospital admission",2E-3,9.9999999999999995E-8,3.0000000000000001E-3,{"$f":"8*10^-3","v":8.0000000000000002E-3},4.0000000000000002E-4,4.0000000000000002E-4,4.0000000000000002E-4,{"$f":"Résultats!C37","v":0},0,0,0,0,0,0,{"$f":"O63","v":0},{"$f":"P63","v":0},0]

{"sheet":"Graph hidden","index":10,"n_rows":38,"n_cols":3,"rows_kept":38,"cut":false,"hidden":true,"merged":[[0,1,0,2],[20,1,20,2]]}
[null,"Long-term Exposure"]
[null,"ELV Indices","DALY"]
["Acetaldehyde",1,{"$f":"Résultats!D11","v":0}]
["Acrolein",1,{"$f":"Résultats!D12","v":0}]
["a-Pinene",1,"-"]
["Benzene",1,{"$f":"Résultats!D15","v":0}]
["Carbon dioxide",1,"-"]
["Formaldehyde",1,{"$f":"Résultats!D25","v":0}]
["Naphthalene",1,{"$f":"Résultats!D32","v":0}]
["Nitrogen dioxide",1,{"$f":"Résultats!D33","v":0}]
["PM10",1,"-"]
["PM2.5",1,{"$f":"Résultats!D36","v":2260.4638873894819}]
["Radon",1,"-"]
["Styrene",1,{"$f":"Résultats!D38","v":0}]
["Toluene",1,{"$f":"Résultats!D40","v":0}]
["Trichloroethylene",1,{"$f":"Résultats!D41","v":0}]
["TVOC",1,"-"]
["Mold",1,"-"]
[]
[]
[null,"Short-term Exposure"]
[null,"%"]
["Acetaldehyde",{"$f":"Inputs!B23","v":"-"}]
["Acrolein",{"$f":"Inputs!B24","v":0}]
["a-Pinene",{"$f":"Inputs!B25","v":"-"}]
["Benzene",{"$f":"Inputs!B26","v":"-"}]
["Carbon dioxide",{"$f":"Inputs!B27","v":0.33333333333333331}]
["Formaldehyde",{"$f":"Inputs!B28","v":0}]
["Naphthalene",{"$f":"Inputs!B29","v":"-"}]
["Nitrogen dioxide",{"$f":"Inputs!B30","v":0}]
["PM10",{"$f":"Inputs!B31","v":1}]
["PM2.5",{"$f":"Inputs!B32","v":1}]
["Radon",{"$f":"Inputs!B33","v":0}]
["Styrene",{"$f":"Inputs!B34","v":"-"}]
["Toluene",{"$f":"Inputs!B35","v":"-"}]
["Trichloroethylene",{"$f":"Inputs!B36","v":"-"}]
["TVOC",{"$f":"Inputs!B37","v":0}]
["Mold",{"$f":"Inputs!B38","v":"-"}]